Workbook

Sheet Historical scenario - input
B1: Unit cost - historical | C1: Calibration period: Calendar Year 2016 to 2019
B2: Replacement lives - calibrated | C2: Reference to 2020 refers to calendar year 2020
C3: All expenditure values are in $2020-21 | D3: Unit cost | E3: Replacement life | G3: Method | H3: Volume | CV3: Replacement Cost (NOT depreciated)
H4: Installation date | CV4: Installation date
A5: ID | B5: Asset group | C5: Asset category | D5: $ ('000) | E5: μ | F5: σ | G5: # | H5: 2019 | I5: 2018 | J5: 2017 | K5: 2016 | L5: 2015 | M5: 2014 | N5: 2013 | O5: 2012 | P5: 2011 | Q5: 2010 | R5: 2009 | S5: 2008 | T5: 2007 | U5: 2006 | V5: 2005 | W5: 2004 | X5: 2003 | Y5: 2002 | Z5: 2001 | AA5: 2000 | AB5: 1999 | AC5: 1998 | AD5: 1997 | AE5: 1996 | AF5: 1995 | AG5: 1994 | AH5: 1993 | AI5: 1992 | AJ5: 1991 | AK5: 1990 | AL5: 1989 | AM5: 1988 | AN5: 1987 | AO5: 1986 | AP5: 1985 | AQ5: 1984 | AR5: 1983 | AS5: 1982 | AT5: 1981 | AU5: 1980 | AV5: 1979 | AW5: 1978 | AX5: 1977 | AY5: 1976 | AZ5: 1975 | BA5: 1974 | BB5: 1973 | BC5: 1972 | BD5: 1971 | BE5: 1970 | BF5: 1969 | BG5: 1968 | BH5: 1967 | BI5: 1966 | BJ5: 1965 | BK5: 1964 | BL5: 1963 | BM5: 1962 | BN5: 1961 | BO5: 1960 | BP5: 1959 | BQ5: 1958 | BR5: 1957 | BS5: 1956 | BT5: 1955 | BU5: 1954 | BV5: 1953 | BW5: 1952 | BX5: 1951 | BY5: 1950 | BZ5: 1949 | CA5: 1948 | CB5: 1947 | CC5: 1946 | CD5: 1945 | CE5: 1944 | CF5: 1943 | CG5: 1942 | CH5: 1941 | CI5: 1940 | CJ5: 1939 | CK5: 1938 | CL5: 1937 | CM5: 1936 | CN5: 1935 | CO5: 1934 | CP5: 1933 | CQ5: 1932 | CR5: 1931 | CS5: 1930 | CT5: 1929 | CV5: =H5 -> 2019 | CW5: =I5 -> 2018 | CX5: 2017 | CY5: 2016 | CZ5: 2015 | DA5: 2014 | DB5: 2013 | DC5: 2012 | DD5: 2011 | DE5: 2010 | DF5: 2009 | DG5: 2008 | DH5: 2007 | DI5: 2006 | DJ5: 2005 | DK5: 2004 | DL5: 2003 | DM5: 2002 | DN5: 2001 | DO5: 2000 | DP5: 1999 | DQ5: 1998 | DR5: 1997 | DS5: 1996 | DT5: 1995 | DU5: 1994 | DV5: 1993 | DW5: 1992 | DX5: 1991 | DY5: 1990 | DZ5: 1989 | EA5: 1988 | EB5: 1987 | EC5: 1986 | ED5: 1985 | EE5: 1984 | EF5: 1983 | EG5: 1982 | EH5: 1981 | EI5: 1980 | EJ5: 1979 | EK5: 1978 | EL5: 1977 | EM5: 1976 | EN5: 1975 | EO5: 1974 | EP5: 1973 | EQ5: 1972 | ER5: 1971 | ES5: 1970 | ET5: 1969 | EU5: 1968 | EV5: 1967 | EW5: 1966 | EX5: 1965 | EY5: 1964 | EZ5: 1963 | FA5: 1962 | FB5: 1961 | FC5: 1960 | FD5: 1959 | FE5: 1958 | FF5: 1957 | FG5: 1956 | FH5: 1955 | FI5: =BU5 -> 1954 | FJ5: 1953 | FK5: 1952 | FL5: 1951 | FM5: 1950 | FN5: 1949 | FO5: 1948 | FP5: 1947 | FQ5: 1946 | FR5: 1945 | FS5: 1944 | FT5: 1943 | FU5: 1942 | FV5: 1941 | FW5: 1940 | FX5: 1939 | FY5: 1938 | FZ5: 1937 | GA5: 1936 | GB5: 1935 | GC5: 1934 | GD5: 1933 | GE5: 1932 | GF5: 1931 | GG5: 1930 | GH5: 1929
A6: 1 | B6: OVERHEAD CONDUCTORS | C6: ˂ = 1 kv | D6: 69.8748222 | E6: 100.0105408 | F6: 10.00052702 | G6: 2 | H6: 2.597 | I6: 7.056 | J6: 4.495 | K6: 9.339 | L6: 13.988 | M6: 20.846 | N6: 27.491 | O6: 22.42 | P6: 18.886 | Q6: 19.371 | R6: 20.174 | S6: 15.946 | T6: 25.124 | U6: 32.322 | V6: 15.626 | W6: 9.101 | X6: 11.731 | Y6: 17.993 | Z6: 13.167 | AA6: 32.596 | AB6: 13.877 | AC6: 17.233 | AD6: 48.147 | AE6: 108.235 | AF6: 68.891 | AG6: 20.259 | AH6: 32.652 | AI6: 31.418 | AJ6: 39.328 | AK6: 62.986 | AL6: 69.806 | AM6: 111.234 | AN6: 97.678 | AO6: 129.971 | AP6: 148.91 | AQ6: 146.717 | AR6: 153.573 | AS6: 151.861 | AT6: 165.742 | AU6: 173.762 | AV6: 156.756 | AW6: 151.177 | AX6: 143.394 | AY6: 142.93 | AZ6: 122.996 | BA6: 105.109 | BB6: 108.862 | BC6: 125.082 | BD6: 112.999 | BE6: 474.799 | BF6: 140.018 | BG6: 136.913 | BH6: 140.871 | BI6: 108.296 | BJ6: 151.063 | BK6: 124.909 | BL6: 95.61 | BM6: 86.911 | BN6: 85.49 | BO6: 83.836 | BP6: 72.364 | BQ6: 64.399 | BR6: 47.219 | BS6: 26.109 | BT6: 19.635 | BU6: 26.593 | BV6: 20.079 | BW6: 19.241 | BX6: 12.566 | BY6: 60.597 | BZ6: 16.62 | CA6: 14.772 | CB6: 12.41 | CC6: 12.137 | CD6: 4.675 | CE6: 2.451 | CF6: 4.959 | CG6: 15.603 | CH6: 22.963 | CI6: 32.388 | CJ6: 32.769 | CK6: 47.388 | CL6: 38.733 | CM6: 27.443 | CN6: 40.552 | CO6: 40.174 | CP6: 28.746 | CQ6: 9.971 | CR6: 2.574 | CS6: 4.585 | CT6: 20.766 | CV6: =IFERROR($D6*H6,"") -> 181.4649133 | CW6: =IFERROR($D6*I6,"") -> 493.0367455 | CX6: =IFERROR($D6*J6,"") -> 314.0873258 | CY6: =IFERROR($D6*K6,"") -> 652.5609646 | CZ6: =IFERROR($D6*L6,"") -> 977.409013 | DA6: =IFERROR($D6*M6,"") -> 1456.610544 | DB6: =IFERROR($D6*N6,"") -> 1920.928737 | DC6: =IFERROR($D6*O6,"") -> 1566.593514 | DD6: =IFERROR($D6*P6,"") -> 1319.655892 | DE6: =IFERROR($D6*Q6,"") -> 1353.545181 | DF6: =IFERROR($D6*R6,"") -> 1409.654663 | DG6: =IFERROR($D6*S6,"") -> 1114.223915 | DH6: =IFERROR($D6*T6,"") -> 1755.535033 | DI6: =IFERROR($D6*U6,"") -> 2258.494003 | DJ6: =IFERROR($D6*V6,"") -> 1091.863972 | DK6: =IFERROR($D6*W6,"") -> 635.9307569 | DL6: =IFERROR($D6*X6,"") -> 819.7015393 | DM6: =IFERROR($D6*Y6,"") -> 1257.257676 | DN6: =IFERROR($D6*Z6,"") -> 920.0417839 | DO6: =IFERROR($D6*AA6,"") -> 2277.639705 | DP6: =IFERROR($D6*AB6,"") -> 969.6529077 | DQ6: =IFERROR($D6*AC6,"") -> 1204.152811 | DR6: =IFERROR($D6*AD6,"") -> 3364.263065 | DS6: =IFERROR($D6*AE6,"") -> 7562.901381 | DT6: =IFERROR($D6*AF6,"") -> 4813.746376 | DU6: =IFERROR($D6*AG6,"") -> 1415.594023 | DV6: =IFERROR($D6*AH6,"") -> 2281.552695 | DW6: =IFERROR($D6*AI6,"") -> 2195.327164 | DX6: =IFERROR($D6*AJ6,"") -> 2748.037008 | DY6: =IFERROR($D6*AK6,"") -> 4401.135551 | DZ6: =IFERROR($D6*AL6,"") -> 4877.681839 | EA6: =IFERROR($D6*AM6,"") -> 7772.455973 | EB6: =IFERROR($D6*AN6,"") -> 6825.232883 | EC6: =IFERROR($D6*AO6,"") -> 9081.700517 | ED6: =IFERROR($D6*AP6,"") -> 10405.05977 | EE6: =IFERROR($D6*AQ6,"") -> 10251.82429 | EF6: =IFERROR($D6*AR6,"") -> 10730.88607 | EG6: =IFERROR($D6*AS6,"") -> 10611.26037 | EH6: =IFERROR($D6*AT6,"") -> 11581.19278 | EI6: =IFERROR($D6*AU6,"") -> 12141.58886 | EJ6: =IFERROR($D6*AV6,"") -> 10953.29763 | EK6: =IFERROR($D6*AW6,"") -> 10563.466 | EL6: =IFERROR($D6*AX6,"") -> 10019.63026 | EM6: =IFERROR($D6*AY6,"") -> 9987.208338 | EN6: =IFERROR($D6*AZ6,"") -> 8594.323632 | EO6: =IFERROR($D6*BA6,"") -> 7344.472687 | EP6: =IFERROR($D6*BB6,"") -> 7606.712895 | EQ6: =IFERROR($D6*BC6,"") -> 8740.082511 | ER6: =IFERROR($D6*BD6,"") -> 7895.785034 | ES6: =IFERROR($D6*BE6,"") -> 33176.49571 | ET6: =IFERROR($D6*BF6,"") -> 9783.732855 | EU6: =IFERROR($D6*BG6,"") -> 9566.771532 | EV6: =IFERROR($D6*BH6,"") -> 9843.336079 | EW6: =IFERROR($D6*BI6,"") -> 7567.163745 | EX6: =IFERROR($D6*BJ6,"") -> 10555.50027 | EY6: =IFERROR($D6*BK6,"") -> 8727.994167 | EZ6: =IFERROR($D6*BL6,"") -> 6680.731751 | FA6: =IFERROR($D6*BM6,"") -> 6072.890673 | FB6: =IFERROR($D6*BN6,"") -> 5973.59855 | FC6: =IFERROR($D6*BO6,"") -> 5858.025594 | FD6: =IFERROR($D6*BP6,"") -> 5056.421634 | FE6: =IFERROR($D6*BQ6,"") -> 4499.868675 | FF6: =IFERROR($D6*BR6,"") -> 3299.41923 | FG6: =IFERROR($D6*BS6,"") -> 1824.361733 | FH6: =IFERROR($D6*BT6,"") -> 1371.992134 | FI6: =IFERROR($D6*BU6,"") -> 1858.181147 | FJ6: =IFERROR($D6*BV6,"") -> 1403.016555 | FK6: =IFERROR($D6*BW6,"") -> 1344.461454 | FL6: =IFERROR($D6*BX6,"") -> 878.0470158 | FM6: =IFERROR($D6*BY6,"") -> 4234.204601 | FN6: =IFERROR($D6*BZ6,"") -> 1161.319545 | FO6: =IFERROR($D6*CA6,"") -> 1032.190874 | FP6: =IFERROR($D6*CB6,"") -> 867.1465435 | FQ6: =IFERROR($D6*CC6,"") -> 848.0707171 | FR6: =IFERROR($D6*CD6,"") -> 326.6647938 | FS6: =IFERROR($D6*CE6,"") -> 171.2631892 | FT6: =IFERROR($D6*CF6,"") -> 346.5092433 | FU6: =IFERROR($D6*CG6,"") -> 1090.256851 | FV6: =IFERROR($D6*CH6,"") -> 1604.535542 | FW6: =IFERROR($D6*CI6,"") -> 2263.105742 | FX6: =IFERROR($D6*CJ6,"") -> 2289.728049 | FY6: =IFERROR($D6*CK6,"") -> 3311.228075 | FZ6: =IFERROR($D6*CL6,"") -> 2706.461488 | GA6: =IFERROR($D6*CM6,"") -> 1917.574746 | GB6: =IFERROR($D6*CN6,"") -> 2833.56379 | GC6: =IFERROR($D6*CO6,"") -> 2807.151107 | GD6: =IFERROR($D6*CP6,"") -> 2008.621639 | GE6: =IFERROR($D6*CQ6,"") -> 696.7218522 | GF6: =IFERROR($D6*CR6,"") -> 179.8577924 | GG6: =IFERROR($D6*CS6,"") -> 320.3760598 | GH6: =IFERROR($D6*CT6,"") -> 1451.020558
A7: 1 | B7: OVERHEAD CONDUCTORS | C7: ˃ 11 kv & < = 22 kv ; multiple-phase | D7: 312.2890455 | E7: 67.83809579 | F7: 8.236388516 | G7: 2 | H7: 9.103 | I7: 11.132 | J7: 34.124 | K7: 35.212 | L7: 17.999 | M7: 7.407 | N7: 15.165 | O7: 9.879 | P7: 21.135 | Q7: 15.377 | R7: 32.62 | S7: 18.886 | T7: 7.781 | U7: 6.854 | V7: 10.074 | W7: 2.869 | X7: 3.8 | Y7: 5.921 | Z7: 8.845 | AA7: 18.966 | AB7: 10.134 | AC7: 30.56 | AD7: 11.11 | AE7: 13.184 | AF7: 15.226 | AG7: 21.408 | AH7: 34.598 | AI7: 28.095 | AJ7: 43.35 | AK7: 59.403 | AL7: 69.857 | AM7: 87.807 | AN7: 79.902 | AO7: 142.31 | AP7: 131.945 | AQ7: 160.413 | AR7: 161.836 | AS7: 146.137 | AT7: 129.046 | AU7: 97.779 | AV7: 101.328 | AW7: 91.176 | AX7: 69.187 | AY7: 57.183 | AZ7: 43.14 | BA7: 28.504 | BB7: 17.359 | BC7: 17.952 | BD7: 8.507 | BE7: 298.746 | BF7: 10.455 | BG7: 11.948 | BH7: 12.62 | BI7: 7.552 | BJ7: 7.741 | BK7: 8.538 | BL7: 5.821 | BM7: 5.985 | BN7: 10.445 | BO7: 5.932 | BP7: 6.393 | BQ7: 7.59 | BR7: 1.597 | BS7: 8.161 | BT7: 3.057 | BU7: 2.571 | BV7: 1.705 | BW7: 4.786 | BX7: 1.707 | BY7: 20.062 | BZ7: 2.211 | CA7: 3.537 | CB7: 2.115 | CC7: 1.413 | CD7: 0.193 | CE7: 0 | CF7: 0.391 | CG7: 0.345 | CH7: 0.221 | CI7: 2.019 | CJ7: 0.975 | CK7: 3.132 | CL7: 2.142 | CM7: 1.675 | CN7: 7.103 | CO7: 4.443 | CP7: 0.891 | CQ7: 0.975 | CR7: 0.234 | CS7: 0.896 | CT7: 1.916 | CV7: =IFERROR($D7*H7,"") -> 2842.767181 | CW7: 3476.401654 | CX7: 10656.55139 | CY7: 10996.32187 | CZ7: 5620.890529 | DA7: 2313.12496 | DB7: 4735.863374 | DC7: 3085.10348 | DD7: 6600.228976 | DE7: 4802.068652 | DF7: 10186.86866 | DG7: 5897.890912 | DH7: 2429.921063 | DI7: 2140.429118 | DJ7: 3145.999844 | DK7: 895.9572714 | DL7: 1186.698373 | DM7: 1849.063438 | DN7: 2762.196607 | DO7: 5922.874036 | DP7: 3164.737187 | DQ7: 9543.553229 | DR7: 3469.531295 | DS7: 4117.218775 | DT7: 4754.913006 | DU7: 6685.483885 | DV7: 10804.57639 | DW7: 8773.760732 | DX7: 13537.73012 | DY7: 18550.90617 | DZ7: 21815.57585 | EA7: 27421.16421 | EB7: 24952.51931 | EC7: 44441.85406 | ED7: 41204.9781 | EE7: 50095.22265 | EF7: 50539.60996 | EG7: 45636.98424 | EH7: 40299.65216 | EI7: 30535.31058 | EJ7: 31643.6244 | EK7: 28473.26601 | EL7: 21606.34219 | EM7: 17857.62449 | EN7: 13472.14942 | EO7: 8901.486952 | EP7: 5421.02554 | EQ7: 5606.212944 | ER7: 2656.64291 | ES7: 93295.10317 | ET7: 3264.98197 | EU7: 3731.229515 | EV7: 3941.087754 | EW7: 2358.406871 | EX7: 2417.429501 | EY7: 2666.32387 | EZ7: 1817.834534 | FA7: 1869.049937 | FB7: 3261.85908 | FC7: 1852.498618 | FD7: 1996.463868 | FE7: 2370.273855 | FF7: 498.7256056 | FG7: 2548.5909 | FH7: 954.6676119 | FI7: 802.8951359 | FJ7: 532.4528225 | FK7: 1494.615372 | FL7: 533.0774006 | FM7: 6265.14283 | FN7: 690.4710795 | FO7: 1104.566354 | FP7: 660.4913311 | FQ7: 441.2644212 | FR7: 60.27178577 | FS7: 0 | FT7: 122.1050168 | FU7: 107.7397207 | FV7: 69.01587904 | FW7: 630.5115828 | FX7: 304.4818193 | FY7: 978.0892904 | FZ7: 668.9231354 | GA7: 523.0841511 | GB7: 2218.18909 | GC7: 1387.500229 | GD7: 278.2495395 | GE7: 304.4818193 | GF7: 73.07563664 | GG7: 279.8109847 | GH7: 598.3458111
A8: 1 | B8: OVERHEAD CONDUCTORS | C8: ˃ 11 kv & < = 22 kv ; single-phase | D8: 185.6177248 | E8: 75.39708596 | F8: 8.683149542 | G8: 2 | H8: 1.477 | I8: 0 | J8: 0 | K8: 0.281 | L8: 0 | M8: 0 | N8: 1.146 | O8: 0.038 | P8: 1.072 | Q8: 0 | R8: 0.125 | S8: 0.729 | T8: 0.456 | U8: 0.371 | V8: 0.181 | W8: 0 | X8: 0 | Y8: 0.138 | Z8: 0.201 | AA8: 2.166 | AB8: 1.24 | AC8: 1.989 | AD8: 0.594 | AE8: 0.475 | AF8: 3.302 | AG8: 3.031 | AH8: 2.499 | AI8: 2.499 | AJ8: 4.641 | AK8: 7.115 | AL8: 12.101 | AM8: 18.343 | AN8: 10.984 | AO8: 22.981 | AP8: 9.82 | AQ8: 7.244 | AR8: 16.695 | AS8: 12.563 | AT8: 14.726 | AU8: 8.741 | AV8: 7.989 | AW8: 5.215 | AX8: 8.99 | AY8: 4.329 | AZ8: 1.899 | BA8: 3.242 | BB8: 0.619 | BC8: 1.674 | BD8: 2.49 | BE8: 18.688 | BF8: 0.515 | BG8: 0 | BH8: 0 | BI8: 0 | BJ8: 1.38 | BK8: 0.734 | BL8: 0 | BM8: 0 | BN8: 0.45 | BO8: 0 | BP8: 0 | BQ8: 0 | BR8: 0 | BS8: 0.627 | BT8: 1.472 | BU8: 0 | BV8: 0 | BW8: 0 | BX8: 0 | BY8: 0.78 | BZ8: 0 | CA8: 0 | CB8: 0 | CC8: 0 | CD8: 0 | CE8: 0 | CF8: 0 | CG8: 0.317 | CH8: 0 | CI8: 0 | CJ8: 0 | CK8: 0.017 | CL8: 0.009 | CM8: 0 | CN8: 0 | CO8: 0 | CP8: 0 | CQ8: 0 | CR8: 0 | CS8: 0 | CT8: 0 | CV8: 274.1573796 | CW8: 0 | CX8: 0 | CY8: 52.15858068 | CZ8: 0 | DA8: 0 | DB8: 212.7179127 | DC8: 7.053473544 | DD8: 198.982201 | DE8: 0 | DF8: 23.20221561 | DG8: 135.3153214 | DH8: 84.64168253 | DI8: 68.86417592 | DJ8: 33.5968082 | DK8: 0 | DL8: 0 | DM8: 25.61524603 | DN8: 37.30916269 | DO8: 402.047992 | DP8: 230.1659788 | DQ8: 369.1936547 | DR8: 110.2569286 | DS8: 88.1684193 | DT8: 612.9097274 | DU8: 562.607324 | DV8: 463.8586944 | DW8: 463.8586944 | DX8: 861.451861 | DY8: 1320.670112 | DZ8: 2246.160088 | EA8: 3404.785927 | EB8: 2038.82509 | EC8: 4265.680935 | ED8: 1822.766058 | EE8: 1344.614799 | EF8: 3098.887916 | EG8: 2331.915477 | EH8: 2733.406616 | EI8: 1622.484533 | EJ8: 1482.900004 | EK8: 967.996435 | EL8: 1668.703346 | EM8: 803.5391308 | EN8: 352.4880595 | EO8: 601.7726639 | EP8: 114.8973717 | EQ8: 310.7240714 | ER8: 462.1881349 | ES8: 3468.824042 | ET8: 95.59312829 | EU8: 0 | EV8: 0 | EW8: 0 | EX8: 256.1524603 | EY8: 136.24341 | EZ8: 0 | FA8: 0 | FB8: 83.52797618 | FC8: 0 | FD8: 0 | FE8: 0 | FF8: 0 | FG8: 116.3823135 | FH8: 273.229291 | FI8: 0 | FJ8: 0 | FK8: 0 | FL8: 0 | FM8: 144.7818254 | FN8: 0 | FO8: 0 | FP8: 0 | FQ8: 0 | FR8: 0 | FS8: 0 | FT8: 0 | FU8: 58.84081877 | FV8: 0 | FW8: 0 | FX8: 0 | FY8: 3.155501322 | FZ8: 1.670559524 | GA8: 0 | GB8: 0 | GC8: 0 | GD8: 0 | GE8: 0 | GF8: 0 | GG8: 0 | GH8: 0
A9: 1 | B9: OVERHEAD CONDUCTORS | C9: ˃ 11 kv & < = 22 kv ; swer | D9: 12510.7118 | E9: 88.40988075 | F9: 9.402652857 | G9: 2 | H9: 0 | I9: 0 | J9: 0.76 | K9: 0 | L9: 0 | M9: 0 | N9: 0 | O9: 0 | P9: 0.105 | Q9: 0.775 | R9: 0 | S9: 0.034 | T9: 0 | U9: 0 | V9: 0 | W9: 0 | X9: 0 | Y9: 0 | Z9: 0.111 | AA9: 0 | AB9: 0 | AC9: 0 | AD9: 0 | AE9: 0 | AF9: 0 | AG9: 0 | AH9: 0 | AI9: 0 | AJ9: 0 | AK9: 0 | AL9: 1.785 | AM9: 0.843 | AN9: 2.759 | AO9: 2.95 | AP9: 0 | AQ9: 3.723 | AR9: 4.572 | AS9: 11.21 | AT9: 0 | AU9: 0 | AV9: 0 | AW9: 0 | AX9: 0 | AY9: 0 | AZ9: 0 | BA9: 0 | BB9: 0 | BC9: 0 | BD9: 0 | BE9: 5.351 | BF9: 0 | BG9: 0 | BH9: 0 | BI9: 0 | BJ9: 0 | BK9: 0 | BL9: 0 | BM9: 0.21 | BN9: 0 | BO9: 0 | BP9: 0.324 | BQ9: 1.683 | BR9: 0.067 | BS9: 0 | BT9: 0 | BU9: 0 | BV9: 0 | BW9: 0 | BX9: 0 | BY9: 0 | BZ9: 0 | CA9: 0 | CB9: 0 | CC9: 0 | CD9: 0 | CE9: 0 | CF9: 0 | CG9: 0 | CH9: 0 | CI9: 0 | CJ9: 0 | CK9: 0 | CL9: 0 | CM9: 0 | CN9: 0 | CO9: 0 | CP9: 0 | CQ9: 0 | CR9: 0 | CS9: 0 | CT9: 0 | CV9: 0 | CW9: 0 | CX9: 9508.14097 | CY9: 0 | CZ9: 0 | DA9: 0 | DB9: 0 | DC9: 0 | DD9: 1313.624739 | DE9: 9695.801647 | DF9: 0 | DG9: 425.3642013 | DH9: 0 | DI9: 0 | DJ9: 0 | DK9: 0 | DL9: 0 | DM9: 0 | DN9: 1388.68901 | DO9: 0 | DP9: 0 | DQ9: 0 | DR9: 0 | DS9: 0 | DT9: 0 | DU9: 0 | DV9: 0 | DW9: 0 | DX9: 0 | DY9: 0 | DZ9: 22331.62057 | EA9: 10546.53005 | EB9: 34517.05386 | EC9: 36906.59982 | ED9: 0 | EE9: 46577.38004 | EF9: 57198.97436 | EG9: 140245.0793 | EH9: 0 | EI9: 0 | EJ9: 0 | EK9: 0 | EL9: 0 | EM9: 0 | EN9: 0 | EO9: 0 | EP9: 0 | EQ9: 0 | ER9: 0 | ES9: 66944.81886 | ET9: 0 | EU9: 0 | EV9: 0 | EW9: 0 | EX9: 0 | EY9: 0 | EZ9: 0 | FA9: 2627.249479 | FB9: 0 | FC9: 0 | FD9: 4053.470624 | FE9: 21055.52796 | FF9: 838.2176908 | FG9: 0 | FH9: 0 | FI9: 0 | FJ9: 0 | FK9: 0 | FL9: 0 | FM9: 0 | FN9: 0 | FO9: 0 | FP9: 0 | FQ9: 0 | FR9: 0 | FS9: 0 | FT9: 0 | FU9: 0 | FV9: 0 | FW9: 0 | FX9: 0 | FY9: 0 | FZ9: 0 | GA9: 0 | GB9: 0 | GC9: 0 | GD9: 0 | GE9: 0 | GF9: 0 | GG9: 0 | GH9: 0
A10: 1 | B10: OVERHEAD CONDUCTORS | C10: > 1 kv & < = 11 kv | D10: 150.5460154 | E10: 91.82623584 | F10: 9.582600683 | G10: 2 | H10: 1.209 | I10: 0.976 | J10: 1.148 | K10: 4.763 | L10: 2.566 | M10: 1.294 | N10: 2.649 | O10: 9.144 | P10: 3.663 | Q10: 5.996 | R10: 5.216 | S10: 3.5 | T10: 2.169 | U10: 0.939 | V10: 0.875 | W10: 2.119 | X10: 0.319 | Y10: 0.958 | Z10: 0.862 | AA10: 1.565 | AB10: 3.725 | AC10: 3.223 | AD10: 0.25 | AE10: 0.378 | AF10: 0.95 | AG10: 1.578 | AH10: 1.617 | AI10: 1.028 | AJ10: 3.134 | AK10: 7.079 | AL10: 5.416 | AM10: 16.531 | AN10: 12.567 | AO10: 19.575 | AP10: 20.416 | AQ10: 18.601 | AR10: 14.942 | AS10: 19.853 | AT10: 25.298 | AU10: 24.985 | AV10: 31.938 | AW10: 33.484 | AX10: 30.928 | AY10: 31.105 | AZ10: 13.887 | BA10: 19.839 | BB10: 16.47 | BC10: 9.315 | BD10: 9.427 | BE10: 55.297 | BF10: 7.009 | BG10: 8.784 | BH10: 8.184 | BI10: 4.977 | BJ10: 5.758 | BK10: 9.317 | BL10: 8.505 | BM10: 6.643 | BN10: 6.163 | BO10: 5.903 | BP10: 4.043 | BQ10: 3.724 | BR10: 0.52 | BS10: 1.626 | BT10: 1.528 | BU10: 1.854 | BV10: 1.406 | BW10: 0.203 | BX10: 1.865 | BY10: 12.518 | BZ10: 0.424 | CA10: 0.696 | CB10: 0.337 | CC10: 1.971 | CD10: 0.293 | CE10: 0.248 | CF10: 0.522 | CG10: 3.074 | CH10: 3.408 | CI10: 3.283 | CJ10: 3.872 | CK10: 7.99 | CL10: 4.971 | CM10: 3.431 | CN10: 7.38 | CO10: 5.621 | CP10: 3.015 | CQ10: 1.73 | CR10: 0.209 | CS10: 0.61 | CT10: 3.843 | CV10: 182.0101326 | CW10: 146.932911 | CX10: 172.8268257 | CY10: 717.0506714 | CZ10: 386.3010755 | DA10: 194.8065439 | DB10: 398.7963948 | DC10: 1376.592765 | DD10: 551.4500544 | DE10: 902.6739084 | DF10: 785.2480164 | DG10: 526.9110539 | DH10: 326.5343074 | DI10: 141.3627085 | DJ10: 131.7277635 | DK10: 319.0070067 | DL10: 48.02417892 | DM10: 144.2230828 | DN10: 129.7706653 | DO10: 235.6045141 | DP10: 560.7839074 | DQ10: 485.2098077 | DR10: 37.63650385 | DS10: 56.90639382 | DT10: 143.0187146 | DU10: 237.5616123 | DV10: 243.4329069 | DW10: 154.7613038 | DX10: 471.8112123 | DY10: 1065.715243 | DZ10: 815.3572195 | EA10: 2488.676181 | EB10: 1891.911776 | EC10: 2946.938252 | ED10: 3073.547451 | EE10: 2800.306433 | EF10: 2249.458562 | EG10: 2988.790044 | EH10: 3808.513098 | EI10: 3761.392195 | EJ10: 4808.13864 | EK10: 5040.88278 | EL10: 4656.087165 | EM10: 4682.733809 | EN10: 2090.632516 | EO10: 2986.6824 | EP10: 2479.492874 | EQ10: 1402.336134 | ER10: 1419.197287 | ES10: 8324.743014 | ET10: 1055.177022 | EU10: 1322.396199 | EV10: 1232.06859 | EW10: 749.2675187 | EX10: 866.8439567 | EY10: 1402.637226 | EZ10: 1280.393861 | FA10: 1000.07718 | FB10: 927.815093 | FC10: 888.673129 | FD10: 608.6575403 | FE10: 560.6333614 | FF10: 78.28392801 | FG10: 244.7878211 | FH10: 230.0343115 | FI10: 279.1123126 | FJ10: 211.6676977 | FK10: 30.56084113 | FL10: 280.7683187 | FM10: 1884.535021 | FN10: 63.83151053 | FO10: 104.7800267 | FP10: 50.73400719 | FQ10: 296.7261964 | FR10: 44.10998251 | FS10: 37.33541182 | FT10: 78.58502004 | FU10: 462.7784514 | FV10: 513.0608205 | FW10: 494.2425686 | FX10: 582.9141717 | FY10: 1202.862663 | FZ10: 748.3642426 | GA10: 516.5233789 | GB10: 1111.029594 | GC10: 846.2191526 | GD10: 453.8962365 | GE10: 260.4446067 | GF10: 31.46411722 | GG10: 91.8330694 | GH10: 578.5483372
A11: 1 | B11: OVERHEAD CONDUCTORS | C11: > 22 kv & < = 66 kv | D11: 4047.064927 | E11: 100.5548912 | F11: 10.02770618 | G11: 2 | H11: 0 | I11: 5.349 | J11: 2.321 | K11: 0 | L11: 0.533 | M11: 43.074 | N11: 0 | O11: 4.297 | P11: 4.97 | Q11: 5.983 | R11: 9.636 | S11: 0 | T11: 4.578 | U11: 1.497 | V11: 2.198 | W11: 0 | X11: 0.232 | Y11: 0 | Z11: 0 | AA11: 6.756 | AB11: 14.547 | AC11: 0.189 | AD11: 0 | AE11: 0 | AF11: 0 | AG11: 0.407 | AH11: 0 | AI11: 0.787 | AJ11: 0.484 | AK11: 3.029 | AL11: 6.192 | AM11: 7.563 | AN11: 10.292 | AO11: 15.58 | AP11: 11.59 | AQ11: 19.726 | AR11: 36.392 | AS11: 29.208 | AT11: 23.302 | AU11: 35.936 | AV11: 20.851 | AW11: 30.377 | AX11: 28.978 | AY11: 14.193 | AZ11: 12.046 | BA11: 11.498 | BB11: 17.091 | BC11: 48.634 | BD11: 2.244 | BE11: 35.017 | BF11: 3.374 | BG11: 8.521 | BH11: 6.381 | BI11: 0.577 | BJ11: 0.149 | BK11: 3.751 | BL11: 8.112 | BM11: 1.693 | BN11: 1.178 | BO11: 0 | BP11: 0.528 | BQ11: 0 | BR11: 5.257 | BS11: 0.176 | BT11: 0 | BU11: 0 | BV11: 0 | BW11: 0 | BX11: 0 | BY11: 4.69 | BZ11: 0 | CA11: 0 | CB11: 0 | CC11: 0 | CD11: 0 | CE11: 0 | CF11: 0 | CG11: 0 | CH11: 1.219 | CI11: 0 | CJ11: 0.135 | CK11: 0 | CL11: 0 | CM11: 0 | CN11: 0 | CO11: 0.818 | CP11: 0 | CQ11: 0 | CR11: 0 | CS11: 0 | CT11: 0 | CV11: 0 | CW11: 21647.7503 | CX11: 9393.237696 | CY11: 0 | CZ11: 2157.085606 | DA11: 174323.2747 | DB11: 0 | DC11: 17390.23799 | DD11: 20113.91269 | DE11: 24213.58946 | DF11: 38997.51764 | DG11: 0 | DH11: 18527.46324 | DI11: 6058.456196 | DJ11: 8895.44871 | DK11: 0 | DL11: 938.9190631 | DM11: 0 | DN11: 0 | DO11: 27341.97065 | DP11: 58872.6535 | DQ11: 764.8952713 | DR11: 0 | DS11: 0 | DT11: 0 | DU11: 1647.155425 | DV11: 0 | DW11: 3185.040098 | DX11: 1958.779425 | DY11: 12258.55966 | DZ11: 25059.42603 | EA11: 30607.95205 | EB11: 41652.39223 | EC11: 63053.27157 | ED11: 46905.48251 | EE11: 79832.40276 | EF11: 147280.7868 | EG11: 118206.6724 | EH11: 94304.70694 | EI11: 145435.3252 | EJ11: 84385.3508 | EK11: 122937.6913 | EL11: 117275.8475 | EM11: 57439.99251 | EN11: 48750.94411 | EO11: 46533.15253 | EP11: 69168.38667 | EQ11: 196824.9557 | ER11: 9081.613697 | ES11: 141716.0726 | ET11: 13654.79706 | EU11: 34485.04025 | EV11: 25824.3213 | EW11: 2335.156463 | EX11: 603.0126742 | EY11: 15180.54054 | EZ11: 32829.79069 | FA11: 6851.680922 | FB11: 4767.442484 | FC11: 0 | FD11: 2136.850282 | FE11: 0 | FF11: 21275.42032 | FG11: 712.2834272 | FH11: 0 | FI11: 0 | FJ11: 0 | FK11: 0 | FL11: 0 | FM11: 18980.73451 | FN11: 0 | FO11: 0 | FP11: 0 | FQ11: 0 | FR11: 0 | FS11: 0 | FT11: 0 | FU11: 0 | FV11: 4933.372146 | FW11: 0 | FX11: 546.3537652 | FY11: 0 | FZ11: 0 | GA11: 0 | GB11: 0 | GC11: 3310.499111 | GD11: 0 | GE11: 0 | GF11: 0 | GG11: 0 | GH11: 0
A12: 2 | B12: POLES | C12: ˂ = 1 kv ; concrete | D12: 8.531990578 | E12: 77.46036285 | F12: 8.801156904 | G12: 2 | H12: 3 | I12: 2 | J12: 3 | K12: 3 | L12: 2 | M12: 5 | N12: 7 | O12: 7 | P12: 5 | Q12: 12 | R12: 10 | S12: 4 | T12: 3 | U12: 4 | V12: 1 | W12: 2 | X12: 4 | Y12: 6 | Z12: 7 | AA12: 11 | AB12: 71 | AC12: 38 | AD12: 154 | AE12: 131 | AF12: 357 | AG12: 730 | AH12: 1212 | AI12: 1074 | AJ12: 766 | AK12: 995 | AL12: 1139 | AM12: 1528 | AN12: 1093 | AO12: 956 | AP12: 1099 | AQ12: 578 | AR12: 199 | AS12: 106 | AT12: 179 | AU12: 375 | AV12: 14 | AW12: 457 | AX12: 511 | AY12: 180 | AZ12: 106 | BA12: 16 | BB12: 461 | BC12: 256 | BD12: 9 | BE12: 4 | BF12: 3 | BG12: 2 | BH12: 2 | BI12: 1 | BJ12: 0 | BK12: 5 | BL12: 2 | BM12: 4 | BN12: 1 | BO12: 0 | BP12: 2 | BQ12: 0 | BR12: 0 | BS12: 0 | BT12: 1 | BU12: 0 | BV12: 0 | BW12: 0 | BX12: 0 | BY12: 17 | BZ12: 0 | CA12: 0 | CB12: 0 | CC12: 0 | CD12: 0 | CE12: 0 | CF12: 0 | CG12: 0 | CH12: 0 | CI12: 0 | CJ12: 0 | CK12: 1 | CL12: 0 | CM12: 0 | CN12: 0 | CO12: 1 | CP12: 0 | CQ12: 0 | CR12: 0 | CS12: 0 | CT12: 0 | CV12: 25.59597173 | CW12: 17.06398116 | CX12: 25.59597173 | CY12: 25.59597173 | CZ12: 17.06398116 | DA12: 42.65995289 | DB12: 59.72393405 | DC12: 59.72393405 | DD12: 42.65995289 | DE12: 102.3838869 | DF12: 85.31990578 | DG12: 34.12796231 | DH12: 25.59597173 | DI12: 34.12796231 | DJ12: 8.531990578 | DK12: 17.06398116 | DL12: 34.12796231 | DM12: 51.19194347 | DN12: 59.72393405 | DO12: 93.85189636 | DP12: 605.7713311 | DQ12: 324.215642 | DR12: 1313.926549 | DS12: 1117.690766 | DT12: 3045.920636 | DU12: 6228.353122 | DV12: 10340.77258 | DW12: 9163.357881 | DX12: 6535.504783 | DY12: 8489.330625 | DZ12: 9717.937269 | EA12: 13036.8816 | EB12: 9325.465702 | EC12: 8156.582993 | ED12: 9376.657646 | EE12: 4931.490554 | EF12: 1697.866125 | EG12: 904.3910013 | EH12: 1527.226314 | EI12: 3199.496467 | EJ12: 119.4478681 | EK12: 3899.119694 | EL12: 4359.847186 | EM12: 1535.758304 | EN12: 904.3910013 | EO12: 136.5118493 | EP12: 3933.247657 | EQ12: 2184.189588 | ER12: 76.7879152 | ES12: 34.12796231 | ET12: 25.59597173 | EU12: 17.06398116 | EV12: 17.06398116 | EW12: 8.531990578 | EX12: 0 | EY12: 42.65995289 | EZ12: 17.06398116 | FA12: 34.12796231 | FB12: 8.531990578 | FC12: 0 | FD12: 17.06398116 | FE12: 0 | FF12: 0 | FG12: 0 | FH12: 8.531990578 | FI12: 0 | FJ12: 0 | FK12: 0 | FL12: 0 | FM12: 145.0438398 | FN12: 0 | FO12: 0 | FP12: 0 | FQ12: 0 | FR12: 0 | FS12: 0 | FT12: 0 | FU12: 0 | FV12: 0 | FW12: 0 | FX12: 0 | FY12: 8.531990578 | FZ12: 0 | GA12: 0 | GB12: 0 | GC12: 8.531990578 | GD12: 0 | GE12: 0 | GF12: 0 | GG12: 0 | GH12: 0
A13: 2 | B13: POLES | C13: ˂ = 1 kv ; steel | D13: 8.531990578 | E13: 77.46036285 | F13: 8.801156904 | G13: 2 | H13: 9 | I13: 7 | J13: 5 | K13: 8 | L13: 17 | M13: 8 | N13: 14 | O13: 54 | P13: 13 | Q13: 11 | R13: 9 | S13: 3 | T13: 32 | U13: 1 | V13: 5 | W13: 3 | X13: 1 | Y13: 17 | Z13: 2 | AA13: 7 | AB13: 7 | AC13: 6 | AD13: 2 | AE13: 5 | AF13: 3 | AG13: 2 | AH13: 1 | AI13: 3 | AJ13: 4 | AK13: 9 | AL13: 4 | AM13: 10 | AN13: 5 | AO13: 12 | AP13: 8 | AQ13: 10 | AR13: 7 | AS13: 5 | AT13: 8 | AU13: 14 | AV13: 4 | AW13: 7 | AX13: 7 | AY13: 3 | AZ13: 12 | BA13: 4 | BB13: 8 | BC13: 12 | BD13: 2 | BE13: 8 | BF13: 0 | BG13: 4 | BH13: 1 | BI13: 2 | BJ13: 2 | BK13: 1 | BL13: 1 | BM13: 0 | BN13: 0 | BO13: 0 | BP13: 0 | BQ13: 0 | BR13: 1 | BS13: 0 | BT13: 0 | BU13: 0 | BV13: 0 | BW13: 0 | BX13: 0 | BY13: 13 | BZ13: 0 | CA13: 0 | CB13: 0 | CC13: 1 | CD13: 0 | CE13: 0 | CF13: 0 | CG13: 0 | CH13: 0 | CI13: 0 | CJ13: 0 | CK13: 0 | CL13: 0 | CM13: 0 | CN13: 0 | CO13: 0 | CP13: 0 | CQ13: 0 | CR13: 0 | CS13: 0 | CT13: 0 | CV13: 76.7879152 | CW13: 59.72393405 | CX13: 42.65995289 | CY13: 68.25592463 | CZ13: 145.0438398 | DA13: 68.25592463 | DB13: 119.4478681 | DC13: 460.7274912 | DD13: 110.9158775 | DE13: 93.85189636 | DF13: 76.7879152 | DG13: 25.59597173 | DH13: 273.0236985 | DI13: 8.531990578 | DJ13: 42.65995289 | DK13: 25.59597173 | DL13: 8.531990578 | DM13: 145.0438398 | DN13: 17.06398116 | DO13: 59.72393405 | DP13: 59.72393405 | DQ13: 51.19194347 | DR13: 17.06398116 | DS13: 42.65995289 | DT13: 25.59597173 | DU13: 17.06398116 | DV13: 8.531990578 | DW13: 25.59597173 | DX13: 34.12796231 | DY13: 76.7879152 | DZ13: 34.12796231 | EA13: 85.31990578 | EB13: 42.65995289 | EC13: 102.3838869 | ED13: 68.25592463 | EE13: 85.31990578 | EF13: 59.72393405 | EG13: 42.65995289 | EH13: 68.25592463 | EI13: 119.4478681 | EJ13: 34.12796231 | EK13: 59.72393405 | EL13: 59.72393405 | EM13: 25.59597173 | EN13: 102.3838869 | EO13: 34.12796231 | EP13: 68.25592463 | EQ13: 102.3838869 | ER13: 17.06398116 | ES13: 68.25592463 | ET13: 0 | EU13: 34.12796231 | EV13: 8.531990578 | EW13: 17.06398116 | EX13: 17.06398116 | EY13: 8.531990578 | EZ13: 8.531990578 | FA13: 0 | FB13: 0 | FC13: 0 | FD13: 0 | FE13: 0 | FF13: 8.531990578 | FG13: 0 | FH13: 0 | FI13: 0 | FJ13: 0 | FK13: 0 | FL13: 0 | FM13: 110.9158775 | FN13: 0 | FO13: 0 | FP13: 0 | FQ13: 8.531990578 | FR13: 0 | FS13: 0 | FT13: 0 | FU13: 0 | FV13: 0 | FW13: 0 | FX13: 0 | FY13: 0 | FZ13: 0 | GA13: 0 | GB13: 0 | GC13: 0 | GD13: 0 | GE13: 0 | GF13: 0 | GG13: 0 | GH13: 0
A14: 2 | B14: POLES | C14: ˂ = 1 kv ; wood | D14: 3.745267814 | E14: 77.46036285 | F14: 8.801156904 | G14: 2 | H14: 522 | I14: 484 | J14: 500 | K14: 486 | L14: 546 | M14: 394 | N14: 418 | O14: 402 | P14: 278 | Q14: 454 | R14: 432 | S14: 307 | T14: 273 | U14: 269 | V14: 304 | W14: 575 | X14: 865 | Y14: 370 | Z14: 462 | AA14: 320 | AB14: 479 | AC14: 264 | AD14: 576 | AE14: 45 | AF14: 22 | AG14: 21 | AH14: 70 | AI14: 81 | AJ14: 81 | AK14: 144 | AL14: 412 | AM14: 583 | AN14: 511 | AO14: 1127 | AP14: 808 | AQ14: 1042 | AR14: 1090 | AS14: 1376 | AT14: 1433 | AU14: 1711 | AV14: 1138 | AW14: 1151 | AX14: 805 | AY14: 1213 | AZ14: 1548 | BA14: 1470 | BB14: 1879 | BC14: 2309 | BD14: 1877 | BE14: 1988 | BF14: 2165 | BG14: 2276 | BH14: 2262 | BI14: 1403 | BJ14: 1890 | BK14: 1566 | BL14: 1177 | BM14: 1180 | BN14: 1015 | BO14: 1079 | BP14: 922 | BQ14: 693 | BR14: 508 | BS14: 246 | BT14: 192 | BU14: 240 | BV14: 145 | BW14: 118 | BX14: 89 | BY14: 506 | BZ14: 130 | CA14: 121 | CB14: 145 | CC14: 107 | CD14: 41 | CE14: 22 | CF14: 54 | CG14: 112 | CH14: 308 | CI14: 356 | CJ14: 367 | CK14: 427 | CL14: 389 | CM14: 264 | CN14: 426 | CO14: 373 | CP14: 260 | CQ14: 77 | CR14: 24 | CS14: 33 | CT14: 131 | CV14: 1955.029799 | CW14: 1812.709622 | CX14: 1872.633907 | CY14: 1820.200157 | CZ14: 2044.916226 | DA14: 1475.635519 | DB14: 1565.521946 | DC14: 1505.597661 | DD14: 1041.184452 | DE14: 1700.351587 | DF14: 1617.955696 | DG14: 1149.797219 | DH14: 1022.458113 | DI14: 1007.477042 | DJ14: 1138.561415 | DK14: 2153.528993 | DL14: 3239.656659 | DM14: 1385.749091 | DN14: 1730.31373 | DO14: 1198.4857 | DP14: 1793.983283 | DQ14: 988.7507028 | DR14: 2157.274261 | DS14: 168.5370516 | DT14: 82.3958919 | DU14: 78.65062409 | DV14: 262.168747 | DW14: 303.3666929 | DX14: 303.3666929 | DY14: 539.3185652 | DZ14: 1543.050339 | EA14: 2183.491135 | EB14: 1913.831853 | EC14: 4220.916826 | ED14: 3026.176393 | EE14: 3902.569062 | EF14: 4082.341917 | EG14: 5153.488512 | EH14: 5366.968777 | EI14: 6408.153229 | EJ14: 4262.114772 | EK14: 4310.803254 | EL14: 3014.94059 | EM14: 4543.009858 | EN14: 5797.674576 | EO14: 5505.543686 | EP14: 7037.358222 | EQ14: 8647.823382 | ER14: 7029.867686 | ES14: 7445.592414 | ET14: 8108.504817 | EU14: 8524.229544 | EV14: 8471.795795 | EW14: 5254.610743 | EX14: 7078.556168 | EY14: 5865.089396 | EZ14: 4408.180217 | FA14: 4419.41602 | FB14: 3801.446831 | FC14: 4041.143971 | FD14: 3453.136924 | FE14: 2595.470595 | FF14: 1902.596049 | FG14: 921.3358822 | FH14: 719.0914202 | FI14: 898.8642753 | FJ14: 543.063833 | FK14: 441.941602 | FL14: 333.3288354 | FM14: 1895.105514 | FN14: 486.8848158 | FO14: 453.1774055 | FP14: 543.063833 | FQ14: 400.7436561 | FR14: 153.5559804 | FS14: 82.3958919 | FT14: 202.2444619 | FU14: 419.4699951 | FV14: 1153.542487 | FW14: 1333.315342 | FX14: 1374.513288 | FY14: 1599.229356 | FZ14: 1456.90918 | GA14: 988.7507028 | GB14: 1595.484089 | GC14: 1396.984895 | GD14: 973.7696316 | GE14: 288.3856217 | GF14: 89.88642753 | GG14: 123.5938379 | GH14: 490.6300836
A15: 2 | B15: POLES | C15: ˃ 11 kv & < = 22 kv ; concrete | D15: 14.08436896 | E15: 69.26341899 | F15: 8.322464719 | G15: 2 | H15: 1 | I15: 0 | J15: 0 | K15: 2 | L15: 3 | M15: 1 | N15: 2 | O15: 1 | P15: 3 | Q15: 6 | R15: 2 | S15: 2 | T15: 0 | U15: 2 | V15: 4 | W15: 2 | X15: 3 | Y15: 1 | Z15: 3 | AA15: 1 | AB15: 29 | AC15: 35 | AD15: 71 | AE15: 76 | AF15: 239 | AG15: 297 | AH15: 401 | AI15: 577 | AJ15: 358 | AK15: 719 | AL15: 892 | AM15: 889 | AN15: 780 | AO15: 581 | AP15: 821 | AQ15: 439 | AR15: 114 | AS15: 117 | AT15: 235 | AU15: 198 | AV15: 5 | AW15: 319 | AX15: 281 | AY15: 80 | AZ15: 34 | BA15: 2 | BB15: 7 | BC15: 19 | BD15: 2 | BE15: 2 | BF15: 0 | BG15: 1 | BH15: 1 | BI15: 2 | BJ15: 0 | BK15: 1 | BL15: 1 | BM15: 0 | BN15: 1 | BO15: 0 | BP15: 0 | BQ15: 1 | BR15: 0 | BS15: 0 | BT15: 0 | BU15: 0 | BV15: 0 | BW15: 0 | BX15: 0 | BY15: 34 | BZ15: 0 | CA15: 0 | CB15: 0 | CC15: 0 | CD15: 0 | CE15: 0 | CF15: 0 | CG15: 0 | CH15: 1 | CI15: 0 | CJ15: 0 | CK15: 0 | CL15: 0 | CM15: 0 | CN15: 0 | CO15: 0 | CP15: 0 | CQ15: 0 | CR15: 0 | CS15: 0 | CT15: 0 | CV15: 14.08436896 | CW15: 0 | CX15: 0 | CY15: 28.16873792 | CZ15: 42.25310688 | DA15: 14.08436896 | DB15: 28.16873792 | DC15: 14.08436896 | DD15: 42.25310688 | DE15: 84.50621376 | DF15: 28.16873792 | DG15: 28.16873792 | DH15: 0 | DI15: 28.16873792 | DJ15: 56.33747584 | DK15: 28.16873792 | DL15: 42.25310688 | DM15: 14.08436896 | DN15: 42.25310688 | DO15: 14.08436896 | DP15: 408.4466998 | DQ15: 492.9529136 | DR15: 999.9901962 | DS15: 1070.412041 | DT15: 3366.164182 | DU15: 4183.057581 | DV15: 5647.831953 | DW15: 8126.68089 | DX15: 5042.204088 | DY15: 10126.66128 | DZ15: 12563.25711 | EA15: 12521.00401 | EB15: 10985.80779 | EC15: 8183.018366 | ED15: 11563.26692 | EE15: 6183.037974 | EF15: 1605.618061 | EG15: 1647.871168 | EH15: 3309.826706 | EI15: 2788.705054 | EJ15: 70.4218448 | EK15: 4492.913698 | EL15: 3957.707678 | EM15: 1126.749517 | EN15: 478.8685446 | EO15: 28.16873792 | EP15: 98.59058272 | EQ15: 267.6030102 | ER15: 28.16873792 | ES15: 28.16873792 | ET15: 0 | EU15: 14.08436896 | EV15: 14.08436896 | EW15: 28.16873792 | EX15: 0 | EY15: 14.08436896 | EZ15: 14.08436896 | FA15: 0 | FB15: 14.08436896 | FC15: 0 | FD15: 0 | FE15: 14.08436896 | FF15: 0 | FG15: 0 | FH15: 0 | FI15: 0 | FJ15: 0 | FK15: 0 | FL15: 0 | FM15: 478.8685446 | FN15: 0 | FO15: 0 | FP15: 0 | FQ15: 0 | FR15: 0 | FS15: 0 | FT15: 0 | FU15: 0 | FV15: 14.08436896 | FW15: 0 | FX15: 0 | FY15: 0 | FZ15: 0 | GA15: 0 | GB15: 0 | GC15: 0 | GD15: 0 | GE15: 0 | GF15: 0 | GG15: 0 | GH15: 0
A16: 2 | B16: POLES | C16: ˃ 11 kv & < = 22 kv ; steel | D16: 14.08436896 | E16: 69.26341899 | F16: 8.322464719 | G16: 2 | H16: 1 | I16: 1 | J16: 0 | K16: 0 | L16: 3 | M16: 0 | N16: 0 | O16: 2 | P16: 1 | Q16: 0 | R16: 0 | S16: 0 | T16: 0 | U16: 0 | V16: 0 | W16: 0 | X16: 0 | Y16: 0 | Z16: 0 | AA16: 0 | AB16: 0 | AC16: 1 | AD16: 0 | AE16: 0 | AF16: 0 | AG16: 0 | AH16: 0 | AI16: 0 | AJ16: 0 | AK16: 1 | AL16: 0 | AM16: 0 | AN16: 0 | AO16: 0 | AP16: 0 | AQ16: 0 | AR16: 0 | AS16: 0 | AT16: 0 | AU16: 0 | AV16: 0 | AW16: 0 | AX16: 0 | AY16: 0 | AZ16: 0 | BA16: 0 | BB16: 0 | BC16: 1 | BD16: 0 | BE16: 0 | BF16: 0 | BG16: 0 | BH16: 0 | BI16: 0 | BJ16: 0 | BK16: 0 | BL16: 0 | BM16: 0 | BN16: 0 | BO16: 0 | BP16: 0 | BQ16: 0 | BR16: 0 | BS16: 0 | BT16: 0 | BU16: 0 | BV16: 0 | BW16: 0 | BX16: 0 | BY16: 0 | BZ16: 0 | CA16: 0 | CB16: 0 | CC16: 0 | CD16: 0 | CE16: 0 | CF16: 0 | CG16: 0 | CH16: 0 | CI16: 0 | CJ16: 0 | CK16: 0 | CL16: 0 | CM16: 0 | CN16: 0 | CO16: 0 | CP16: 0 | CQ16: 0 | CR16: 0 | CS16: 0 | CT16: 0 | CV16: 14.08436896 | CW16: 14.08436896 | CX16: 0 | CY16: 0 | CZ16: 42.25310688 | DA16: 0 | DB16: 0 | DC16: 28.16873792 | DD16: 14.08436896 | DE16: 0 | DF16: 0 | DG16: 0 | DH16: 0 | DI16: 0 | DJ16: 0 | DK16: 0 | DL16: 0 | DM16: 0 | DN16: 0 | DO16: 0 | DP16: 0 | DQ16: 14.08436896 | DR16: 0 | DS16: 0 | DT16: 0 | DU16: 0 | DV16: 0 | DW16: 0 | DX16: 0 | DY16: 14.08436896 | DZ16: 0 | EA16: 0 | EB16: 0 | EC16: 0 | ED16: 0 | EE16: 0 | EF16: 0 | EG16: 0 | EH16: 0 | EI16: 0 | EJ16: 0 | EK16: 0 | EL16: 0 | EM16: 0 | EN16: 0 | EO16: 0 | EP16: 0 | EQ16: 14.08436896 | ER16: 0 | ES16: 0 | ET16: 0 | EU16: 0 | EV16: 0 | EW16: 0 | EX16: 0 | EY16: 0 | EZ16: 0 | FA16: 0 | FB16: 0 | FC16: 0 | FD16: 0 | FE16: 0 | FF16: 0 | FG16: 0 | FH16: 0 | FI16: 0 | FJ16: 0 | FK16: 0 | FL16: 0 | FM16: 0 | FN16: 0 | FO16: 0 | FP16: 0 | FQ16: 0 | FR16: 0 | FS16: 0 | FT16: 0 | FU16: 0 | FV16: 0 | FW16: 0 | FX16: 0 | FY16: 0 | FZ16: 0 | GA16: 0 | GB16: 0 | GC16: 0 | GD16: 0 | GE16: 0 | GF16: 0 | GG16: 0 | GH16: 0
A17: 2 | B17: POLES | C17: ˃ 11 kv & < = 22 kv ; wood | D17: 7.090375202 | E17: 69.26341899 | F17: 8.322464719 | G17: 2 | H17: 497 | I17: 355 | J17: 439 | K17: 603 | L17: 645 | M17: 489 | N17: 491 | O17: 422 | P17: 463 | Q17: 630 | R17: 737 | S17: 522 | T17: 503 | U17: 485 | V17: 496 | W17: 397 | X17: 483 | Y17: 380 | Z17: 530 | AA17: 470 | AB17: 446 | AC17: 239 | AD17: 323 | AE17: 137 | AF17: 110 | AG17: 147 | AH17: 285 | AI17: 245 | AJ17: 324 | AK17: 456 | AL17: 509 | AM17: 702 | AN17: 517 | AO17: 1032 | AP17: 1031 | AQ17: 819 | AR17: 986 | AS17: 789 | AT17: 935 | AU17: 890 | AV17: 532 | AW17: 691 | AX17: 933 | AY17: 1110 | AZ17: 887 | BA17: 1052 | BB17: 912 | BC17: 932 | BD17: 1052 | BE17: 951 | BF17: 1278 | BG17: 941 | BH17: 1008 | BI17: 977 | BJ17: 1204 | BK17: 917 | BL17: 599 | BM17: 418 | BN17: 433 | BO17: 409 | BP17: 368 | BQ17: 344 | BR17: 233 | BS17: 105 | BT17: 62 | BU17: 69 | BV17: 68 | BW17: 137 | BX17: 40 | BY17: 263 | BZ17: 81 | CA17: 71 | CB17: 36 | CC17: 22 | CD17: 16 | CE17: 20 | CF17: 14 | CG17: 49 | CH17: 38 | CI17: 227 | CJ17: 57 | CK17: 169 | CL17: 205 | CM17: 41 | CN17: 110 | CO17: 29 | CP17: 30 | CQ17: 17 | CR17: 2 | CS17: 5 | CT17: 51 | CV17: 3523.916476 | CW17: 2517.083197 | CX17: 3112.674714 | CY17: 4275.496247 | CZ17: 4573.292006 | DA17: 3467.193474 | DB17: 3481.374224 | DC17: 2992.138335 | DD17: 3282.843719 | DE17: 4466.936378 | DF17: 5225.606524 | DG17: 3701.175856 | DH17: 3566.458727 | DI17: 3438.831973 | DJ17: 3516.8261 | DK17: 2814.878955 | DL17: 3424.651223 | DM17: 2694.342577 | DN17: 3757.898857 | DO17: 3332.476345 | DP17: 3162.30734 | DQ17: 1694.599673 | DR17: 2290.19119 | DS17: 971.3814027 | DT17: 779.9412723 | DU17: 1042.285155 | DV17: 2020.756933 | DW17: 1737.141925 | DX17: 2297.281566 | DY17: 3233.211092 | DZ17: 3609.000978 | EA17: 4977.443392 | EB17: 3665.72398 | EC17: 7317.267209 | ED17: 7310.176834 | EE17: 5807.017291 | EF17: 6991.10995 | EG17: 5594.306035 | EH17: 6629.500814 | EI17: 6310.43393 | EJ17: 3772.079608 | EK17: 4899.449265 | EL17: 6615.320064 | EM17: 7870.316475 | EN17: 6289.162805 | EO17: 7459.074713 | EP17: 6466.422185 | EQ17: 6608.229689 | ER17: 7459.074713 | ES17: 6742.946818 | ET17: 9061.499509 | EU17: 6672.043066 | EV17: 7147.098204 | EW17: 6927.296573 | EX17: 8536.811744 | EY17: 6501.874061 | EZ17: 4247.134746 | FA17: 2963.776835 | FB17: 3070.132463 | FC17: 2899.963458 | FD17: 2609.258075 | FE17: 2439.08907 | FF17: 1652.057422 | FG17: 744.4893963 | FH17: 439.6032626 | FI17: 489.235889 | FJ17: 482.1455138 | FK17: 971.3814027 | FL17: 283.6150081 | FM17: 1864.768678 | FN17: 574.3203914 | FO17: 503.4166394 | FP17: 255.2535073 | FQ17: 155.9882545 | FR17: 113.4460032 | FS17: 141.807504 | FT17: 99.26525283 | FU17: 347.4283849 | FV17: 269.4342577 | FW17: 1609.515171 | FX17: 404.1513865 | FY17: 1198.273409 | FZ17: 1453.526917 | GA17: 290.7053833 | GB17: 779.9412723 | GC17: 205.6208809 | GD17: 212.7112561 | GE17: 120.5363784 | GF17: 14.1807504 | GG17: 35.45187601 | GH17: 361.6091353
A18: 2 | B18: POLES | C18: > 1 kv & < = 11 kv ; concrete | D18: 14.27828101 | E18: 74.55194204 | F18: 8.634346648 | G18: 2 | H18: 0 | I18: 0 | J18: 0 | K18: 0 | L18: 0 | M18: 1 | N18: 0 | O18: 0 | P18: 1 | Q18: 0 | R18: 1 | S18: 0 | T18: 0 | U18: 0 | V18: 0 | W18: 0 | X18: 0 | Y18: 1 | Z18: 0 | AA18: 1 | AB18: 3 | AC18: 26 | AD18: 9 | AE18: 10 | AF18: 23 | AG18: 33 | AH18: 30 | AI18: 20 | AJ18: 14 | AK18: 42 | AL18: 25 | AM18: 72 | AN18: 37 | AO18: 33 | AP18: 40 | AQ18: 34 | AR18: 22 | AS18: 18 | AT18: 30 | AU18: 40 | AV18: 2 | AW18: 34 | AX18: 7 | AY18: 1 | AZ18: 0 | BA18: 0 | BB18: 1 | BC18: 0 | BD18: 0 | BE18: 0 | BF18: 0 | BG18: 0 | BH18: 0 | BI18: 0 | BJ18: 0 | BK18: 0 | BL18: 0 | BM18: 0 | BN18: 0 | BO18: 0 | BP18: 0 | BQ18: 0 | BR18: 0 | BS18: 0 | BT18: 0 | BU18: 0 | BV18: 0 | BW18: 0 | BX18: 0 | BY18: 7 | BZ18: 0 | CA18: 0 | CB18: 0 | CC18: 0 | CD18: 0 | CE18: 0 | CF18: 0 | CG18: 0 | CH18: 0 | CI18: 0 | CJ18: 0 | CK18: 0 | CL18: 0 | CM18: 0 | CN18: 0 | CO18: 0 | CP18: 0 | CQ18: 0 | CR18: 0 | CS18: 0 | CT18: 0 | CV18: 0 | CW18: 0 | CX18: 0 | CY18: 0 | CZ18: 0 | DA18: 14.27828101 | DB18: 0 | DC18: 0 | DD18: 14.27828101 | DE18: 0 | DF18: 14.27828101 | DG18: 0 | DH18: 0 | DI18: 0 | DJ18: 0 | DK18: 0 | DL18: 0 | DM18: 14.27828101 | DN18: 0 | DO18: 14.27828101 | DP18: 42.83484302 | DQ18: 371.2353062 | DR18: 128.5045291 | DS18: 142.7828101 | DT18: 328.4004631 | DU18: 471.1832732 | DV18: 428.3484302 | DW18: 285.5656201 | DX18: 199.8959341 | DY18: 599.6878023 | DZ18: 356.9570252 | EA18: 1028.036232 | EB18: 528.2963972 | EC18: 471.1832732 | ED18: 571.1312403 | EE18: 485.4615542 | EF18: 314.1221821 | EG18: 257.0090581 | EH18: 428.3484302 | EI18: 571.1312403 | EJ18: 28.55656201 | EK18: 485.4615542 | EL18: 99.94796704 | EM18: 14.27828101 | EN18: 0 | EO18: 0 | EP18: 14.27828101 | EQ18: 0 | ER18: 0 | ES18: 0 | ET18: 0 | EU18: 0 | EV18: 0 | EW18: 0 | EX18: 0 | EY18: 0 | EZ18: 0 | FA18: 0 | FB18: 0 | FC18: 0 | FD18: 0 | FE18: 0 | FF18: 0 | FG18: 0 | FH18: 0 | FI18: 0 | FJ18: 0 | FK18: 0 | FL18: 0 | FM18: 99.94796704 | FN18: 0 | FO18: 0 | FP18: 0 | FQ18: 0 | FR18: 0 | FS18: 0 | FT18: 0 | FU18: 0 | FV18: 0 | FW18: 0 | FX18: 0 | FY18: 0 | FZ18: 0 | GA18: 0 | GB18: 0 | GC18: 0 | GD18: 0 | GE18: 0 | GF18: 0 | GG18: 0 | GH18: 0
A19: 2 | B19: POLES | C19: > 1 kv & < = 11 kv ; steel | D19: 14.27828101 | E19: 74.55194204 | F19: 8.634346648 | G19: 2 | H19: 0 | I19: 1 | J19: 0 | K19: 0 | L19: 0 | M19: 0 | N19: 0 | O19: 0 | P19: 0 | Q19: 0 | R19: 0 | S19: 1 | T19: 0 | U19: 0 | V19: 0 | W19: 0 | X19: 0 | Y19: 0 | Z19: 0 | AA19: 0 | AB19: 1 | AC19: 0 | AD19: 0 | AE19: 0 | AF19: 0 | AG19: 0 | AH19: 0 | AI19: 0 | AJ19: 0 | AK19: 0 | AL19: 0 | AM19: 0 | AN19: 0 | AO19: 0 | AP19: 0 | AQ19: 0 | AR19: 0 | AS19: 0 | AT19: 0 | AU19: 0 | AV19: 0 | AW19: 0 | AX19: 0 | AY19: 0 | AZ19: 0 | BA19: 0 | BB19: 0 | BC19: 0 | BD19: 0 | BE19: 0 | BF19: 1 | BG19: 0 | BH19: 0 | BI19: 0 | BJ19: 0 | BK19: 0 | BL19: 0 | BM19: 0 | BN19: 0 | BO19: 0 | BP19: 0 | BQ19: 0 | BR19: 0 | BS19: 0 | BT19: 0 | BU19: 0 | BV19: 0 | BW19: 0 | BX19: 0 | BY19: 0 | BZ19: 0 | CA19: 0 | CB19: 0 | CC19: 0 | CD19: 0 | CE19: 0 | CF19: 0 | CG19: 0 | CH19: 0 | CI19: 0 | CJ19: 0 | CK19: 0 | CL19: 0 | CM19: 0 | CN19: 0 | CO19: 0 | CP19: 0 | CQ19: 0 | CR19: 0 | CS19: 0 | CT19: 0 | CV19: 0 | CW19: 14.27828101 | CX19: 0 | CY19: 0 | CZ19: 0 | DA19: 0 | DB19: 0 | DC19: 0 | DD19: 0 | DE19: 0 | DF19: 0 | DG19: 14.27828101 | DH19: 0 | DI19: 0 | DJ19: 0 | DK19: 0 | DL19: 0 | DM19: 0 | DN19: 0 | DO19: 0 | DP19: 14.27828101 | DQ19: 0 | DR19: 0 | DS19: 0 | DT19: 0 | DU19: 0 | DV19: 0 | DW19: 0 | DX19: 0 | DY19: 0 | DZ19: 0 | EA19: 0 | EB19: 0 | EC19: 0 | ED19: 0 | EE19: 0 | EF19: 0 | EG19: 0 | EH19: 0 | EI19: 0 | EJ19: 0 | EK19: 0 | EL19: 0 | EM19: 0 | EN19: 0 | EO19: 0 | EP19: 0 | EQ19: 0 | ER19: 0 | ES19: 0 | ET19: 14.27828101 | EU19: 0 | EV19: 0 | EW19: 0 | EX19: 0 | EY19: 0 | EZ19: 0 | FA19: 0 | FB19: 0 | FC19: 0 | FD19: 0 | FE19: 0 | FF19: 0 | FG19: 0 | FH19: 0 | FI19: 0 | FJ19: 0 | FK19: 0 | FL19: 0 | FM19: 0 | FN19: 0 | FO19: 0 | FP19: 0 | FQ19: 0 | FR19: 0 | FS19: 0 | FT19: 0 | FU19: 0 | FV19: 0 | FW19: 0 | FX19: 0 | FY19: 0 | FZ19: 0 | GA19: 0 | GB19: 0 | GC19: 0 | GD19: 0 | GE19: 0 | GF19: 0 | GG19: 0 | GH19: 0
A20: 2 | B20: POLES | C20: > 1 kv & < = 11 kv ; wood | D20: 6.610217991 | E20: 74.55194204 | F20: 8.634346648 | G20: 2 | H20: 198 | I20: 171 | J20: 172 | K20: 297 | L20: 299 | M20: 234 | N20: 265 | O20: 311 | P20: 185 | Q20: 259 | R20: 260 | S20: 170 | T20: 185 | U20: 186 | V20: 123 | W20: 130 | X20: 141 | Y20: 135 | Z20: 175 | AA20: 122 | AB20: 170 | AC20: 110 | AD20: 125 | AE20: 89 | AF20: 83 | AG20: 173 | AH20: 191 | AI20: 87 | AJ20: 218 | AK20: 370 | AL20: 198 | AM20: 256 | AN20: 232 | AO20: 430 | AP20: 293 | AQ20: 258 | AR20: 203 | AS20: 327 | AT20: 273 | AU20: 261 | AV20: 241 | AW20: 204 | AX20: 159 | AY20: 159 | AZ20: 185 | BA20: 215 | BB20: 262 | BC20: 290 | BD20: 187 | BE20: 280 | BF20: 352 | BG20: 452 | BH20: 341 | BI20: 336 | BJ20: 400 | BK20: 294 | BL20: 200 | BM20: 229 | BN20: 211 | BO20: 129 | BP20: 126 | BQ20: 114 | BR20: 34 | BS20: 22 | BT20: 30 | BU20: 41 | BV20: 40 | BW20: 10 | BX20: 16 | BY20: 100 | BZ20: 10 | CA20: 11 | CB20: 7 | CC20: 7 | CD20: 6 | CE20: 7 | CF20: 10 | CG20: 51 | CH20: 62 | CI20: 81 | CJ20: 63 | CK20: 132 | CL20: 47 | CM20: 41 | CN20: 65 | CO20: 82 | CP20: 54 | CQ20: 20 | CR20: 4 | CS20: 18 | CT20: 33 | CV20: 1308.823162 | CW20: 1130.347276 | CX20: 1136.957494 | CY20: 1963.234743 | CZ20: 1976.455179 | DA20: 1546.79101 | DB20: 1751.707768 | DC20: 2055.777795 | DD20: 1222.890328 | DE20: 1712.04646 | DF20: 1718.656678 | DG20: 1123.737058 | DH20: 1222.890328 | DI20: 1229.500546 | DJ20: 813.0568129 | DK20: 859.3283388 | DL20: 932.0407367 | DM20: 892.3794288 | DN20: 1156.788148 | DO20: 806.4465949 | DP20: 1123.737058 | DQ20: 727.123979 | DR20: 826.2772489 | DS20: 588.3094012 | DT20: 548.6480933 | DU20: 1143.567712 | DV20: 1262.551636 | DW20: 575.0889652 | DX20: 1441.027522 | DY20: 2445.780657 | DZ20: 1308.823162 | EA20: 1692.215806 | EB20: 1533.570574 | EC20: 2842.393736 | ED20: 1936.793871 | EE20: 1705.436242 | EF20: 1341.874252 | EG20: 2161.541283 | EH20: 1804.589512 | EI20: 1725.266896 | EJ20: 1593.062536 | EK20: 1348.48447 | EL20: 1051.024661 | EM20: 1051.024661 | EN20: 1222.890328 | EO20: 1421.196868 | EP20: 1731.877114 | EQ20: 1916.963217 | ER20: 1236.110764 | ES20: 1850.861037 | ET20: 2326.796733 | EU20: 2987.818532 | EV20: 2254.084335 | EW20: 2221.033245 | EX20: 2644.087196 | EY20: 1943.404089 | EZ20: 1322.043598 | FA20: 1513.73992 | FB20: 1394.755996 | FC20: 852.7181208 | FD20: 832.8874669 | FE20: 753.564851 | FF20: 224.7474117 | FG20: 145.4247958 | FH20: 198.3065397 | FI20: 271.0189376 | FJ20: 264.4087196 | FK20: 66.10217991 | FL20: 105.7634879 | FM20: 661.0217991 | FN20: 66.10217991 | FO20: 72.7123979 | FP20: 46.27152594 | FQ20: 46.27152594 | FR20: 39.66130795 | FS20: 46.27152594 | FT20: 66.10217991 | FU20: 337.1211175 | FV20: 409.8335154 | FW20: 535.4276573 | FX20: 416.4437334 | FY20: 872.5487748 | FZ20: 310.6802456 | GA20: 271.0189376 | GB20: 429.6641694 | GC20: 542.0378753 | GD20: 356.9517715 | GE20: 132.2043598 | GF20: 26.44087196 | GG20: 118.9839238 | GH20: 218.1371937
A21: 2 | B21: POLES | C21: > 22 kv & < = 66 kv ; concrete | D21: 20.20841833 | E21: 64.82836317 | F21: 8.051606248 | G21: 2 | H21: 0 | I21: 1 | J21: 6 | K21: 0 | L21: 1 | M21: 3 | N21: 1 | O21: 2 | P21: 1 | Q21: 15 | R21: 7 | S21: 0 | T21: 0 | U21: 0 | V21: 1 | W21: 0 | X21: 0 | Y21: 2 | Z21: 1 | AA21: 0 | AB21: 0 | AC21: 2 | AD21: 10 | AE21: 10 | AF21: 69 | AG21: 71 | AH21: 81 | AI21: 52 | AJ21: 45 | AK21: 51 | AL21: 65 | AM21: 52 | AN21: 30 | AO21: 20 | AP21: 58 | AQ21: 208 | AR21: 51 | AS21: 30 | AT21: 79 | AU21: 17 | AV21: 0 | AW21: 26 | AX21: 14 | AY21: 1 | AZ21: 0 | BA21: 0 | BB21: 0 | BC21: 1 | BD21: 0 | BE21: 3 | BF21: 1 | BG21: 0 | BH21: 0 | BI21: 0 | BJ21: 0 | BK21: 0 | BL21: 2 | BM21: 0 | BN21: 0 | BO21: 0 | BP21: 0 | BQ21: 0 | BR21: 0 | BS21: 0 | BT21: 0 | BU21: 0 | BV21: 0 | BW21: 0 | BX21: 0 | BY21: 1 | BZ21: 0 | CA21: 0 | CB21: 0 | CC21: 0 | CD21: 0 | CE21: 0 | CF21: 0 | CG21: 0 | CH21: 0 | CI21: 0 | CJ21: 0 | CK21: 0 | CL21: 0 | CM21: 0 | CN21: 0 | CO21: 0 | CP21: 0 | CQ21: 0 | CR21: 0 | CS21: 0 | CT21: 0 | CV21: 0 | CW21: 20.20841833 | CX21: 121.25051 | CY21: 0 | CZ21: 20.20841833 | DA21: 60.62525498 | DB21: 20.20841833 | DC21: 40.41683666 | DD21: 20.20841833 | DE21: 303.1262749 | DF21: 141.4589283 | DG21: 0 | DH21: 0 | DI21: 0 | DJ21: 20.20841833 | DK21: 0 | DL21: 0 | DM21: 40.41683666 | DN21: 20.20841833 | DO21: 0 | DP21: 0 | DQ21: 40.41683666 | DR21: 202.0841833 | DS21: 202.0841833 | DT21: 1394.380865 | DU21: 1434.797701 | DV21: 1636.881885 | DW21: 1050.837753 | DX21: 909.3788247 | DY21: 1030.629335 | DZ21: 1313.547191 | EA21: 1050.837753 | EB21: 606.2525498 | EC21: 404.1683666 | ED21: 1172.088263 | EE21: 4203.351012 | EF21: 1030.629335 | EG21: 606.2525498 | EH21: 1596.465048 | EI21: 343.5431116 | EJ21: 0 | EK21: 525.4188765 | EL21: 282.9178566 | EM21: 20.20841833 | EN21: 0 | EO21: 0 | EP21: 0 | EQ21: 20.20841833 | ER21: 0 | ES21: 60.62525498 | ET21: 20.20841833 | EU21: 0 | EV21: 0 | EW21: 0 | EX21: 0 | EY21: 0 | EZ21: 40.41683666 | FA21: 0 | FB21: 0 | FC21: 0 | FD21: 0 | FE21: 0 | FF21: 0 | FG21: 0 | FH21: 0 | FI21: 0 | FJ21: 0 | FK21: 0 | FL21: 0 | FM21: 20.20841833 | FN21: 0 | FO21: 0 | FP21: 0 | FQ21: 0 | FR21: 0 | FS21: 0 | FT21: 0 | FU21: 0 | FV21: 0 | FW21: 0 | FX21: 0 | FY21: 0 | FZ21: 0 | GA21: 0 | GB21: 0 | GC21: 0 | GD21: 0 | GE21: 0 | GF21: 0 | GG21: 0 | GH21: 0
A22: 2 | B22: POLES | C22: > 22 kv & < = 66 kv ; steel | D22: 20.20841833 | E22: 64.82836317 | F22: 8.051606248 | G22: 2 | H22: 0 | I22: 0 | J22: 0 | K22: 0 | L22: 0 | M22: 0 | N22: 0 | O22: 0 | P22: 0 | Q22: 0 | R22: 0 | S22: 0 | T22: 0 | U22: 0 | V22: 0 | W22: 0 | X22: 0 | Y22: 0 | Z22: 0 | AA22: 2 | AB22: 0 | AC22: 1 | AD22: 0 | AE22: 0 | AF22: 0 | AG22: 0 | AH22: 0 | AI22: 0 | AJ22: 0 | AK22: 0 | AL22: 0 | AM22: 0 | AN22: 0 | AO22: 0 | AP22: 0 | AQ22: 2 | AR22: 1 | AS22: 0 | AT22: 0 | AU22: 0 | AV22: 2 | AW22: 0 | AX22: 0 | AY22: 0 | AZ22: 1 | BA22: 0 | BB22: 2 | BC22: 0 | BD22: 0 | BE22: 0 | BF22: 0 | BG22: 0 | BH22: 0 | BI22: 0 | BJ22: 1 | BK22: 0 | BL22: 0 | BM22: 0 | BN22: 0 | BO22: 0 | BP22: 0 | BQ22: 0 | BR22: 0 | BS22: 0 | BT22: 0 | BU22: 0 | BV22: 0 | BW22: 0 | BX22: 0 | BY22: 0 | BZ22: 0 | CA22: 0 | CB22: 0 | CC22: 0 | CD22: 0 | CE22: 0 | CF22: 0 | CG22: 0 | CH22: 0 | CI22: 0 | CJ22: 0 | CK22: 0 | CL22: 0 | CM22: 0 | CN22: 0 | CO22: 0 | CP22: 0 | CQ22: 0 | CR22: 0 | CS22: 0 | CT22: 0 | CV22: 0 | CW22: 0 | CX22: 0 | CY22: 0 | CZ22: 0 | DA22: 0 | DB22: 0 | DC22: 0 | DD22: 0 | DE22: 0 | DF22: 0 | DG22: 0 | DH22: 0 | DI22: 0 | DJ22: 0 | DK22: 0 | DL22: 0 | DM22: 0 | DN22: 0 | DO22: 40.41683666 | DP22: 0 | DQ22: 20.20841833 | DR22: 0 | DS22: 0 | DT22: 0 | DU22: 0 | DV22: 0 | DW22: 0 | DX22: 0 | DY22: 0 | DZ22: 0 | EA22: 0 | EB22: 0 | EC22: 0 | ED22: 0 | EE22: 40.41683666 | EF22: 20.20841833 | EG22: 0 | EH22: 0 | EI22: 0 | EJ22: 40.41683666 | EK22: 0 | EL22: 0 | EM22: 0 | EN22: 20.20841833 | EO22: 0 | EP22: 40.41683666 | EQ22: 0 | ER22: 0 | ES22: 0 | ET22: 0 | EU22: 0 | EV22: 0 | EW22: 0 | EX22: 20.20841833 | EY22: 0 | EZ22: 0 | FA22: 0 | FB22: 0 | FC22: 0 | FD22: 0 | FE22: 0 | FF22: 0 | FG22: 0 | FH22: 0 | FI22: 0 | FJ22: 0 | FK22: 0 | FL22: 0 | FM22: 0 | FN22: 0 | FO22: 0 | FP22: 0 | FQ22: 0 | FR22: 0 | FS22: 0 | FT22: 0 | FU22: 0 | FV22: 0 | FW22: 0 | FX22: 0 | FY22: 0 | FZ22: 0 | GA22: 0 | GB22: 0 | GC22: 0 | GD22: 0 | GE22: 0 | GF22: 0 | GG22: 0 | GH22: 0
A23: 2 | B23: POLES | C23: > 22 kv & < = 66 kv ; wood | D23: 8.270444369 | E23: 64.82836317 | F23: 8.051606248 | G23: 2 | H23: 51 | I23: 116 | J23: 100 | K23: 62 | L23: 96 | M23: 190 | N23: 72 | O23: 171 | P23: 86 | Q23: 127 | R23: 161 | S23: 76 | T23: 156 | U23: 105 | V23: 160 | W23: 106 | X23: 107 | Y23: 156 | Z23: 192 | AA23: 210 | AB23: 65 | AC23: 78 | AD23: 47 | AE23: 58 | AF23: 73 | AG23: 26 | AH23: 82 | AI23: 32 | AJ23: 62 | AK23: 115 | AL23: 67 | AM23: 81 | AN23: 43 | AO23: 144 | AP23: 95 | AQ23: 211 | AR23: 356 | AS23: 242 | AT23: 196 | AU23: 88 | AV23: 56 | AW23: 77 | AX23: 126 | AY23: 309 | AZ23: 112 | BA23: 64 | BB23: 53 | BC23: 85 | BD23: 88 | BE23: 180 | BF23: 367 | BG23: 299 | BH23: 298 | BI23: 207 | BJ23: 438 | BK23: 236 | BL23: 213 | BM23: 38 | BN23: 89 | BO23: 23 | BP23: 16 | BQ23: 12 | BR23: 31 | BS23: 57 | BT23: 36 | BU23: 31 | BV23: 16 | BW23: 35 | BX23: 6 | BY23: 7 | BZ23: 23 | CA23: 3 | CB23: 3 | CC23: 1 | CD23: 0 | CE23: 2 | CF23: 2 | CG23: 6 | CH23: 6 | CI23: 4 | CJ23: 2 | CK23: 3 | CL23: 8 | CM23: 2 | CN23: 3 | CO23: 1 | CP23: 0 | CQ23: 0 | CR23: 0 | CS23: 0 | CT23: 0 | CV23: 421.7926628 | CW23: 959.3715468 | CX23: 827.0444369 | CY23: 512.7675509 | CZ23: 793.9626594 | DA23: 1571.38443 | DB23: 595.4719945 | DC23: 1414.245987 | DD23: 711.2582157 | DE23: 1050.346435 | DF23: 1331.541543 | DG23: 628.553772 | DH23: 1290.189322 | DI23: 868.3966587 | DJ23: 1323.271099 | DK23: 876.6671031 | DL23: 884.9375475 | DM23: 1290.189322 | DN23: 1587.925319 | DO23: 1736.793317 | DP23: 537.578884 | DQ23: 645.0946608 | DR23: 388.7108853 | DS23: 479.6857734 | DT23: 603.7424389 | DU23: 215.0315536 | DV23: 678.1764382 | DW23: 264.6542198 | DX23: 512.7675509 | DY23: 951.1011024 | DZ23: 554.1197727 | EA23: 669.9059939 | EB23: 355.6291079 | EC23: 1190.943989 | ED23: 785.692215 | EE23: 1745.063762 | EF23: 2944.278195 | EG23: 2001.447537 | EH23: 1621.007096 | EI23: 727.7991044 | EJ23: 463.1448846 | EK23: 636.8242164 | EL23: 1042.07599 | EM23: 2555.56731 | EN23: 926.2897693 | EO23: 529.3084396 | EP23: 438.3335515 | EQ23: 702.9877713 | ER23: 727.7991044 | ES23: 1488.679986 | ET23: 3035.253083 | EU23: 2472.862866 | EV23: 2464.592422 | EW23: 1711.981984 | EX23: 3622.454634 | EY23: 1951.824871 | EZ23: 1761.604651 | FA23: 314.276886 | FB23: 736.0695488 | FC23: 190.2202205 | FD23: 132.3271099 | FE23: 99.24533242 | FF23: 256.3837754 | FG23: 471.415329 | FH23: 297.7359973 | FI23: 256.3837754 | FJ23: 132.3271099 | FK23: 289.4655529 | FL23: 49.62266621 | FM23: 57.89311058 | FN23: 190.2202205 | FO23: 24.81133311 | FP23: 24.81133311 | FQ23: 8.270444369 | FR23: 0 | FS23: 16.54088874 | FT23: 16.54088874 | FU23: 49.62266621 | FV23: 49.62266621 | FW23: 33.08177747 | FX23: 16.54088874 | FY23: 24.81133311 | FZ23: 66.16355495 | GA23: 16.54088874 | GB23: 24.81133311 | GC23: 8.270444369 | GD23: 0 | GE23: 0 | GF23: 0 | GG23: 0 | GH23: 0
A24: 2 | B24: POLES | C24: staking of a wooden pole | D24: 11.71788829 | E24: 38.16654934 | F24: 6.177908168 | G24: 2 | H24: 890 | I24: 1410 | J24: 1024 | K24: 637 | L24: 1018 | M24: 868 | N24: 770 | O24: 307 | P24: 399 | Q24: 285 | R24: 310 | S24: 482 | T24: 545 | U24: 419 | V24: 475 | W24: 630 | X24: 383 | Y24: 405 | Z24: 414 | AA24: 499 | AB24: 526 | AC24: 745 | AD24: 613 | AE24: 289 | AF24: 200 | AG24: 232 | AH24: 626 | AI24: 703 | AJ24: 533 | AK24: 1032 | AL24: 508 | AM24: 3 | AN24: 20 | AO24: 307 | AP24: 1 | AQ24: 1 | AR24: 1 | AS24: 2 | AT24: 1 | AU24: 3 | AV24: 4 | AW24: 3 | AX24: 4 | AY24: 2 | AZ24: 10 | BA24: 10 | BB24: 4 | BC24: 7 | BD24: 4 | BE24: 11 | BF24: 6 | BG24: 1 | BH24: 9 | BI24: 5 | BJ24: 5 | BK24: 8 | BL24: 3 | BM24: 5 | BN24: 7 | BO24: 13 | BP24: 3 | BQ24: 3 | BR24: 4 | BS24: 3 | BT24: 1 | BU24: 4 | BV24: 0 | BW24: 2 | BX24: 1 | BY24: 2 | BZ24: 0 | CA24: 1 | CB24: 0 | CC24: 0 | CD24: 0 | CE24: 0 | CF24: 1 | CG24: 0 | CH24: 1 | CI24: 1 | CJ24: 0 | CK24: 3 | CL24: 0 | CM24: 1 | CN24: 1 | CO24: 0 | CP24: 4 | CQ24: 0 | CR24: 0 | CS24: 0 | CT24: 0 | CV24: 10428.92058 | CW24: 16522.22249 | CX24: 11999.11761 | CY24: 7464.29484 | CZ24: 11928.81028 | DA24: 10171.12703 | DB24: 9022.773982 | DC24: 3597.391705 | DD24: 4675.437427 | DE24: 3339.598162 | DF24: 3632.545369 | DG24: 5648.022155 | DH24: 6386.249117 | DI24: 4909.795193 | DJ24: 5565.996937 | DK24: 7382.269622 | DL24: 4487.951215 | DM24: 4745.744757 | DN24: 4851.205751 | DO24: 5847.226256 | DP24: 6163.60924 | DQ24: 8729.826775 | DR24: 7183.065521 | DS24: 3386.469715 | DT24: 2343.577658 | DU24: 2718.550083 | DV24: 7335.398069 | DW24: 8237.675467 | DX24: 6245.634458 | DY24: 12092.86071 | DZ24: 5952.687251 | EA24: 35.15366487 | EB24: 234.3577658 | EC24: 3597.391705 | ED24: 11.71788829 | EE24: 11.71788829 | EF24: 11.71788829 | EG24: 23.43577658 | EH24: 11.71788829 | EI24: 35.15366487 | EJ24: 46.87155315 | EK24: 35.15366487 | EL24: 46.87155315 | EM24: 23.43577658 | EN24: 117.1788829 | EO24: 117.1788829 | EP24: 46.87155315 | EQ24: 82.02521802 | ER24: 46.87155315 | ES24: 128.8967712 | ET24: 70.30732973 | EU24: 11.71788829 | EV24: 105.4609946 | EW24: 58.58944144 | EX24: 58.58944144 | EY24: 93.74310631 | EZ24: 35.15366487 | FA24: 58.58944144 | FB24: 82.02521802 | FC24: 152.3325478 | FD24: 35.15366487 | FE24: 35.15366487 | FF24: 46.87155315 | FG24: 35.15366487 | FH24: 11.71788829 | FI24: 46.87155315 | FJ24: 0 | FK24: 23.43577658 | FL24: 11.71788829 | FM24: 23.43577658 | FN24: 0 | FO24: 11.71788829 | FP24: 0 | FQ24: 0 | FR24: 0 | FS24: 0 | FT24: 11.71788829 | FU24: 0 | FV24: 11.71788829 | FW24: 11.71788829 | FX24: 0 | FY24: 35.15366487 | FZ24: 0 | GA24: 11.71788829 | GB24: 11.71788829 | GC24: 0 | GD24: 46.87155315 | GE24: 0 | GF24: 0 | GG24: 0 | GH24: 0
B25: SERVICE LINES | C25: ˂ = 11 kv ; commercial and industrial ; complex type | D25: 0.6076915166 | E25: 51.5888004 | F25: 7.1825344 | G25: 2 | H25: 138 | I25: 139 | J25: 87 | K25: 59 | L25: 78 | M25: 153 | N25: 247 | O25: 191 | P25: 145 | Q25: 132 | R25: 82 | S25: 64 | T25: 91 | U25: 52 | V25: 56 | W25: 53 | X25: 68 | Y25: 67 | Z25: 106 | AA25: 208 | AB25: 141 | AC25: 98 | AD25: 938 | AE25: 74 | AF25: 44 | AG25: 30 | AH25: 50 | AI25: 46 | AJ25: 40 | AK25: 76 | AL25: 61 | AM25: 70 | AN25: 57 | AO25: 88 | AP25: 69 | AQ25: 57 | AR25: 38 | AS25: 57 | AT25: 66 | AU25: 65 | AV25: 29 | AW25: 39 | AX25: 48 | AY25: 59 | AZ25: 26 | BA25: 40 | BB25: 34 | BC25: 35 | BD25: 45 | BE25: 242 | BF25: 17 | BG25: 37 | BH25: 27 | BI25: 32 | BJ25: 31 | BK25: 30 | BL25: 22 | BM25: 16 | BN25: 38 | BO25: 0 | BP25: 0 | BQ25: 0 | BR25: 0 | BS25: 0 | BT25: 0 | BU25: 0 | BV25: 0 | BW25: 0 | BX25: 0 | BY25: 0 | BZ25: 0 | CA25: 0 | CB25: 0 | CC25: 0 | CD25: 0 | CE25: 0 | CF25: 0 | CG25: 0 | CH25: 0 | CI25: 0 | CJ25: 0 | CK25: 0 | CL25: 0 | CM25: 0 | CN25: 0 | CO25: 0 | CP25: 0 | CQ25: 0 | CR25: 0 | CS25: 0 | CT25: 0 | CV25: 83.86142929 | CW25: 84.4691208 | CX25: 52.86916194 | CY25: 35.85379948 | CZ25: 47.39993829 | DA25: 92.97680204 | DB25: 150.0998046 | DC25: 116.0690797 | DD25: 88.1152699 | DE25: 80.21528019 | DF25: 49.83070436 | DG25: 38.89225706 | DH25: 55.29992801 | DI25: 31.59995886 | DJ25: 34.03072493 | DK25: 32.20765038 | DL25: 41.32302313 | DM25: 40.71533161 | DN25: 64.41530076 | DO25: 126.3998354 | DP25: 85.68450384 | DQ25: 59.55376862 | DR25: 570.0146425 | DS25: 44.96917223 | DT25: 26.73842673 | DU25: 18.2307455 | DV25: 30.38457583 | DW25: 27.95380976 | DX25: 24.30766066 | DY25: 46.18455526 | DZ25: 37.06918251 | EA25: 42.53840616 | EB25: 34.63841644 | EC25: 53.47685346 | ED25: 41.93071464 | EE25: 34.63841644 | EF25: 23.09227763 | EG25: 34.63841644 | EH25: 40.10764009 | EI25: 39.49994858 | EJ25: 17.62305398 | EK25: 23.69996915 | EL25: 29.1691928 | EM25: 35.85379948 | EN25: 15.79997943 | EO25: 24.30766066 | EP25: 20.66151156 | EQ25: 21.26920308 | ER25: 27.34611825 | ES25: 147.061347 | ET25: 10.33075578 | EU25: 22.48458611 | EV25: 16.40767095 | EW25: 19.44612853 | EX25: 18.83843701 | EY25: 18.2307455 | EZ25: 13.36921336 | FA25: 9.723064265 | FB25: 23.09227763 | FC25: 0 | FD25: 0 | FE25: 0 | FF25: 0 | FG25: 0 | FH25: 0 | FI25: 0 | FJ25: 0 | FK25: 0 | FL25: 0 | FM25: 0 | FN25: 0 | FO25: 0 | FP25: 0 | FQ25: 0 | FR25: 0 | FS25: 0 | FT25: 0 | FU25: 0 | FV25: 0 | FW25: 0 | FX25: 0 | FY25: 0 | FZ25: 0 | GA25: 0 | GB25: 0 | GC25: 0 | GD25: 0 | GE25: 0 | GF25: 0 | GG25: 0 | GH25: 0
A26: 3 | B26: SERVICE LINES | C26: ˂ = 11 kv ; commercial and industrial ; simple type | D26: 0.5450576891 | E26: 52.00629029 | F26: 7.211538691 | G26: 2 | H26: 634 | I26: 630 | J26: 392 | K26: 355 | L26: 520 | M26: 1697 | N26: 2065 | O26: 1537 | P26: 995 | Q26: 751 | R26: 488 | S26: 434 | T26: 391 | U26: 334 | V26: 241 | W26: 306 | X26: 324 | Y26: 172 | Z26: 464 | AA26: 609 | AB26: 341 | AC26: 172 | AD26: 1761 | AE26: 247 | AF26: 192 | AG26: 158 | AH26: 275 | AI26: 184 | AJ26: 186 | AK26: 324 | AL26: 388 | AM26: 424 | AN26: 287 | AO26: 361 | AP26: 279 | AQ26: 234 | AR26: 183 | AS26: 242 | AT26: 228 | AU26: 249 | AV26: 137 | AW26: 203 | AX26: 288 | AY26: 209 | AZ26: 134 | BA26: 209 | BB26: 193 | BC26: 243 | BD26: 169 | BE26: 484 | BF26: 224 | BG26: 180 | BH26: 210 | BI26: 181 | BJ26: 197 | BK26: 152 | BL26: 110 | BM26: 84 | BN26: 118 | BO26: 105 | BP26: 51 | BQ26: 50 | BR26: 38 | BS26: 17 | BT26: 28 | BU26: 19 | BV26: 18 | BW26: 9 | BX26: 10 | BY26: 48 | BZ26: 11 | CA26: 0 | CB26: 0 | CC26: 0 | CD26: 0 | CE26: 0 | CF26: 0 | CG26: 0 | CH26: 0 | CI26: 0 | CJ26: 0 | CK26: 0 | CL26: 0 | CM26: 0 | CN26: 0 | CO26: 0 | CP26: 0 | CQ26: 0 | CR26: 0 | CS26: 0 | CT26: 0 | CV26: 345.5665749 | CW26: 343.3863442 | CX26: 213.6626141 | CY26: 193.4954796 | CZ26: 283.4299984 | DA26: 924.9628985 | DB26: 1125.544128 | DC26: 837.7536682 | DD26: 542.3324007 | DE26: 409.3383245 | DF26: 265.9881523 | DG26: 236.5550371 | DH26: 213.1175565 | DI26: 182.0492682 | DJ26: 131.3589031 | DK26: 166.7876529 | DL26: 176.5986913 | DM26: 93.74992253 | DN26: 252.9067678 | DO26: 331.9401327 | DP26: 185.864672 | DQ26: 93.74992253 | DR26: 959.8465906 | DS26: 134.6292492 | DT26: 104.6510763 | DU26: 86.11911488 | DV26: 149.8908645 | DW26: 100.2906148 | DX26: 101.3807302 | DY26: 176.5986913 | DZ26: 211.4823834 | EA26: 231.1044602 | EB26: 156.4315568 | EC26: 196.7658258 | ED26: 152.0710953 | EE26: 127.5434993 | EF26: 99.74555711 | EG26: 131.9039608 | EH26: 124.2731531 | EI26: 135.7193646 | EJ26: 74.67290341 | EK26: 110.6467109 | EL26: 156.9766145 | EM26: 113.917057 | EN26: 73.03773034 | EO26: 113.917057 | EP26: 105.196134 | EQ26: 132.4490185 | ER26: 92.11474946 | ES26: 263.8079215 | ET26: 122.0929224 | EU26: 98.11038405 | EV26: 114.4621147 | EW26: 98.65544173 | EX26: 107.3763648 | EY26: 82.84876875 | EZ26: 59.95634581 | FA26: 45.78484589 | FB26: 64.31680732 | FC26: 57.23105736 | FD26: 27.79794215 | FE26: 27.25288446 | FF26: 20.71219219 | FG26: 9.265980715 | FH26: 15.2616153 | FI26: 10.35609609 | FJ26: 9.811038405 | FK26: 4.905519202 | FL26: 5.450576891 | FM26: 26.16276908 | FN26: 5.995634581 | FO26: 0 | FP26: 0 | FQ26: 0 | FR26: 0 | FS26: 0 | FT26: 0 | FU26: 0 | FV26: 0 | FW26: 0 | FX26: 0 | FY26: 0 | FZ26: 0 | GA26: 0 | GB26: 0 | GC26: 0 | GD26: 0 | GE26: 0 | GF26: 0 | GG26: 0 | GH26: 0
B27: SERVICE LINES | C27: ˂ = 11 kv ; residential ; complex type | D27: 0.6780477067 | E27: 49.37799945 | F27: 7.026948089 | G27: 2 | H27: 560 | I27: 558 | J27: 355 | K27: 323 | L27: 383 | M27: 1230 | N27: 1532 | O27: 2405 | P27: 1022 | Q27: 700 | R27: 309 | S27: 334 | T27: 367 | U27: 302 | V27: 190 | W27: 325 | X27: 397 | Y27: 145 | Z27: 128 | AA27: 181 | AB27: 133 | AC27: 117 | AD27: 3865 | AE27: 274 | AF27: 53 | AG27: 105 | AH27: 108 | AI27: 139 | AJ27: 131 | AK27: 157 | AL27: 154 | AM27: 187 | AN27: 196 | AO27: 236 | AP27: 200 | AQ27: 175 | AR27: 156 | AS27: 205 | AT27: 160 | AU27: 202 | AV27: 92 | AW27: 140 | AX27: 91 | AY27: 122 | AZ27: 121 | BA27: 117 | BB27: 120 | BC27: 129 | BD27: 89 | BE27: 331 | BF27: 124 | BG27: 117 | BH27: 131 | BI27: 138 | BJ27: 151 | BK27: 168 | BL27: 104 | BM27: 150 | BN27: 87 | BO27: 96 | BP27: 0 | BQ27: 0 | BR27: 0 | BS27: 0 | BT27: 0 | BU27: 0 | BV27: 0 | BW27: 0 | BX27: 0 | BY27: 0 | BZ27: 0 | CA27: 0 | CB27: 0 | CC27: 0 | CD27: 0 | CE27: 0 | CF27: 0 | CG27: 0 | CH27: 0 | CI27: 0 | CJ27: 0 | CK27: 0 | CL27: 0 | CM27: 0 | CN27: 0 | CO27: 0 | CP27: 0 | CQ27: 0 | CR27: 0 | CS27: 0 | CT27: 0 | CV27: 379.7067158 | CW27: 378.3506203 | CX27: 240.7069359 | CY27: 219.0094093 | CZ27: 259.6922717 | DA27: 833.9986793 | DB27: 1038.769087 | DC27: 1630.704735 | DD27: 692.9647563 | DE27: 474.6333947 | DF27: 209.5167414 | DG27: 226.467934 | DH27: 248.8435084 | DI27: 204.7704074 | DJ27: 128.8290643 | DK27: 220.3655047 | DL27: 269.1849396 | DM27: 98.31691747 | DN27: 86.79010646 | DO27: 122.7266349 | DP27: 90.18034499 | DQ27: 79.33158169 | DR27: 2620.654386 | DS27: 185.7850716 | DT27: 35.93652846 | DU27: 71.19500921 | DV27: 73.22915233 | DW27: 94.24863123 | DX27: 88.82424958 | DY27: 106.45349 | DZ27: 104.4193468 | EA27: 126.7949212 | EB27: 132.8973505 | EC27: 160.0192588 | ED27: 135.6095413 | EE27: 118.6583487 | EF27: 105.7754422 | EG27: 138.9997799 | EH27: 108.4876331 | EI27: 136.9656368 | EJ27: 62.38038902 | EK27: 94.92667894 | EL27: 61.70234131 | EM27: 82.72182022 | EN27: 82.04377251 | EO27: 79.33158169 | EP27: 81.36572481 | EQ27: 87.46815417 | ER27: 60.3462459 | ES27: 224.4337909 | ET27: 84.07791563 | EU27: 79.33158169 | EV27: 88.82424958 | EW27: 93.57058353 | EX27: 102.3852037 | EY27: 113.9120147 | EZ27: 70.5169615 | FA27: 101.707156 | FB27: 58.99015048 | FC27: 65.09257984 | FD27: 0 | FE27: 0 | FF27: 0 | FG27: 0 | FH27: 0 | FI27: 0 | FJ27: 0 | FK27: 0 | FL27: 0 | FM27: 0 | FN27: 0 | FO27: 0 | FP27: 0 | FQ27: 0 | FR27: 0 | FS27: 0 | FT27: 0 | FU27: 0 | FV27: 0 | FW27: 0 | FX27: 0 | FY27: 0 | FZ27: 0 | GA27: 0 | GB27: 0 | GC27: 0 | GD27: 0 | GE27: 0 | GF27: 0 | GG27: 0 | GH27: 0
A28: 3 | B28: SERVICE LINES | C28: ˂ = 11 kv ; residential ; simple type | D28: 0.6613467936 | E28: 49.36617321 | F28: 7.026106547 | G28: 2 | H28: 7360 | I28: 7267 | J28: 5005 | K28: 3361 | L28: 8698 | M28: 34274 | N28: 37818 | O28: 36854 | P28: 22445 | Q28: 18103 | R28: 7197 | S28: 6924 | T28: 5063 | U28: 4490 | V28: 2578 | W28: 3718 | X28: 3494 | Y28: 1174 | Z28: 1015 | AA28: 907 | AB28: 966 | AC28: 886 | AD28: 3102 | AE28: 579 | AF28: 668 | AG28: 902 | AH28: 1976 | AI28: 1389 | AJ28: 1230 | AK28: 2096 | AL28: 1912 | AM28: 2325 | AN28: 1828 | AO28: 2711 | AP28: 2353 | AQ28: 1527 | AR28: 1310 | AS28: 1260 | AT28: 1326 | AU28: 1523 | AV28: 971 | AW28: 1598 | AX28: 1562 | AY28: 1216 | AZ28: 1383 | BA28: 1268 | BB28: 1946 | BC28: 1946 | BD28: 1515 | BE28: 1889 | BF28: 2057 | BG28: 1899 | BH28: 1806 | BI28: 1295 | BJ28: 1968 | BK28: 1674 | BL28: 1095 | BM28: 1065 | BN28: 976 | BO28: 77 | BP28: 0 | BQ28: 0 | BR28: 0 | BS28: 0 | BT28: 0 | BU28: 0 | BV28: 0 | BW28: 0 | BX28: 0 | BY28: 0 | BZ28: 0 | CA28: 0 | CB28: 0 | CC28: 0 | CD28: 0 | CE28: 0 | CF28: 0 | CG28: 0 | CH28: 0 | CI28: 0 | CJ28: 0 | CK28: 0 | CL28: 0 | CM28: 0 | CN28: 0 | CO28: 0 | CP28: 0 | CQ28: 0 | CR28: 0 | CS28: 0 | CT28: 0 | CV28: 4867.512401 | CW28: 4806.007149 | CX28: 3310.040702 | CY28: 2222.786573 | CZ28: 5752.39441 | DA28: 22667 | DB28: 25010.81304 | DC28: 24373.27473 | DD28: 14843.92878 | DE28: 11972.361 | DF28: 4759.712873 | DG28: 4579.165199 | DH28: 3348.398816 | DI28: 2969.447103 | DJ28: 1704.952034 | DK28: 2458.887378 | DL28: 2310.745697 | DM28: 776.4211356 | DN28: 671.2669955 | DO28: 599.8415418 | DP28: 638.8610026 | DQ28: 585.9532591 | DR28: 2051.497754 | DS28: 382.9197935 | DT28: 441.7796581 | DU28: 596.5348078 | DV28: 1306.821264 | DW28: 918.6106963 | DX28: 813.4565561 | DY28: 1386.182879 | DZ28: 1264.495069 | EA28: 1537.631295 | EB28: 1208.941939 | EC28: 1792.911157 | ED28: 1556.149005 | EE28: 1009.876554 | EF28: 866.3642996 | EG28: 833.2969599 | EH28: 876.9458483 | EI28: 1007.231167 | EJ28: 642.1677366 | EK28: 1056.832176 | EL28: 1033.023692 | EM28: 804.197701 | EN28: 914.6426155 | EO28: 838.5877342 | EP28: 1286.98086 | EQ28: 1286.98086 | ER28: 1001.940392 | ES28: 1249.284093 | ET28: 1360.390354 | EU28: 1255.897561 | EV28: 1194.392309 | EW28: 856.4440977 | EX28: 1301.53049 | EY28: 1107.094532 | EZ28: 724.174739 | FA28: 704.3343351 | FB28: 645.4744705 | FC28: 50.9237031 | FD28: 0 | FE28: 0 | FF28: 0 | FG28: 0 | FH28: 0 | FI28: 0 | FJ28: 0 | FK28: 0 | FL28: 0 | FM28: 0 | FN28: 0 | FO28: 0 | FP28: 0 | FQ28: 0 | FR28: 0 | FS28: 0 | FT28: 0 | FU28: 0 | FV28: 0 | FW28: 0 | FX28: 0 | FY28: 0 | FZ28: 0 | GA28: 0 | GB28: 0 | GC28: 0 | GD28: 0 | GE28: 0 | GF28: 0 | GG28: 0 | GH28: 0
A29: 4 | B29: SWITCHGEAR | C29: ˂ = 11 kv ; circuit breaker | D29: 224.0174069 | E29: 63.33778389 | F29: 7.958503873 | G29: 2 | H29: 5 | I29: 0 | J29: 38 | K29: 18 | L29: 21 | M29: 12 | N29: 38 | O29: 26 | P29: 6 | Q29: 7 | R29: 17 | S29: 6 | T29: 17 | U29: 25 | V29: 12 | W29: 24 | X29: 0 | Y29: 4 | Z29: 2 | AA29: 0 | AB29: 0 | AC29: 0 | AD29: 0 | AE29: 1 | AF29: 0 | AG29: 0 | AH29: 0 | AI29: 0 | AJ29: 2 | AK29: 0 | AL29: 0 | AM29: 0 | AN29: 0 | AO29: 0 | AP29: 0 | AQ29: 0 | AR29: 0 | AS29: 0 | AT29: 0 | AU29: 0 | AV29: 0 | AW29: 1 | AX29: 0 | AY29: 0 | AZ29: 0 | BA29: 0 | BB29: 0 | BC29: 0 | BD29: 0 | BE29: 0 | BF29: 0 | BG29: 0 | BH29: 0 | BI29: 49 | BJ29: 15 | BK29: 0 | BL29: 0 | BM29: 0 | BN29: 32 | BO29: 19 | BP29: 0 | BQ29: 0 | BR29: 0 | BS29: 0 | BT29: 0 | BU29: 0 | BV29: 0 | BW29: 1 | BX29: 0 | BY29: 0 | BZ29: 0 | CA29: 0 | CB29: 0 | CC29: 0 | CD29: 0 | CE29: 0 | CF29: 0 | CG29: 0 | CH29: 0 | CI29: 0 | CJ29: 0 | CK29: 0 | CL29: 0 | CM29: 0 | CN29: 0 | CO29: 0 | CP29: 0 | CQ29: 0 | CR29: 0 | CS29: 0 | CT29: 0 | CV29: 1120.087035 | CW29: 0 | CX29: 8512.661463 | CY29: 4032.313325 | CZ29: 4704.365546 | DA29: 2688.208883 | DB29: 8512.661463 | DC29: 5824.45258 | DD29: 1344.104442 | DE29: 1568.121849 | DF29: 3808.295918 | DG29: 1344.104442 | DH29: 3808.295918 | DI29: 5600.435173 | DJ29: 2688.208883 | DK29: 5376.417766 | DL29: 0 | DM29: 896.0696277 | DN29: 448.0348139 | DO29: 0 | DP29: 0 | DQ29: 0 | DR29: 0 | DS29: 224.0174069 | DT29: 0 | DU29: 0 | DV29: 0 | DW29: 0 | DX29: 448.0348139 | DY29: 0 | DZ29: 0 | EA29: 0 | EB29: 0 | EC29: 0 | ED29: 0 | EE29: 0 | EF29: 0 | EG29: 0 | EH29: 0 | EI29: 0 | EJ29: 0 | EK29: 224.0174069 | EL29: 0 | EM29: 0 | EN29: 0 | EO29: 0 | EP29: 0 | EQ29: 0 | ER29: 0 | ES29: 0 | ET29: 0 | EU29: 0 | EV29: 0 | EW29: 10976.85294 | EX29: 3360.261104 | EY29: 0 | EZ29: 0 | FA29: 0 | FB29: 7168.557022 | FC29: 4256.330732 | FD29: 0 | FE29: 0 | FF29: 0 | FG29: 0 | FH29: 0 | FI29: 0 | FJ29: 0 | FK29: 224.0174069 | FL29: 0 | FM29: 0 | FN29: 0 | FO29: 0 | FP29: 0 | FQ29: 0 | FR29: 0 | FS29: 0 | FT29: 0 | FU29: 0 | FV29: 0 | FW29: 0 | FX29: 0 | FY29: 0 | FZ29: 0 | GA29: 0 | GB29: 0 | GC29: 0 | GD29: 0 | GE29: 0 | GF29: 0 | GG29: 0 | GH29: 0
A30: 4 | B30: SWITCHGEAR | C30: ˂ = 11 kv ; fuse | D30: 1.848584883 | E30: 48.06777377 | F30: 6.933092655 | G30: 2 | H30: 28 | I30: 27 | J30: 45 | K30: 56 | L30: 46 | M30: 80 | N30: 64 | O30: 101 | P30: 81 | Q30: 89 | R30: 96 | S30: 73 | T30: 70 | U30: 47 | V30: 39 | W30: 39 | X30: 49 | Y30: 61 | Z30: 35 | AA30: 22 | AB30: 26 | AC30: 32 | AD30: 15 | AE30: 46 | AF30: 16 | AG30: 26 | AH30: 29 | AI30: 15 | AJ30: 17 | AK30: 43 | AL30: 26 | AM30: 62 | AN30: 43 | AO30: 40 | AP30: 42 | AQ30: 30 | AR30: 14 | AS30: 15 | AT30: 17 | AU30: 38 | AV30: 6 | AW30: 21 | AX30: 13 | AY30: 7 | AZ30: 11 | BA30: 11 | BB30: 15 | BC30: 18 | BD30: 11 | BE30: 16 | BF30: 17 | BG30: 13 | BH30: 23 | BI30: 17 | BJ30: 34 | BK30: 15 | BL30: 9 | BM30: 16 | BN30: 13 | BO30: 7 | BP30: 12 | BQ30: 4 | BR30: 2 | BS30: 1 | BT30: 0 | BU30: 0 | BV30: 0 | BW30: 1 | BX30: 0 | BY30: 25 | BZ30: 0 | CA30: 0 | CB30: 0 | CC30: 0 | CD30: 0 | CE30: 0 | CF30: 1 | CG30: 0 | CH30: 1 | CI30: 2 | CJ30: 0 | CK30: 1 | CL30: 1 | CM30: 1 | CN30: 0 | CO30: 0 | CP30: 0 | CQ30: 0 | CR30: 0 | CS30: 0 | CT30: 0 | CV30: 51.76037672 | CW30: 49.91179184 | CX30: 83.18631973 | CY30: 103.5207534 | CZ30: 85.03490461 | DA30: 147.8867906 | DB30: 118.3094325 | DC30: 186.7070732 | DD30: 149.7353755 | DE30: 164.5240546 | DF30: 177.4641488 | DG30: 134.9466964 | DH30: 129.4009418 | DI30: 86.88348949 | DJ30: 72.09481043 | DK30: 72.09481043 | DL30: 90.58065926 | DM30: 112.7636779 | DN30: 64.7004709 | DO30: 40.66886742 | DP30: 48.06320695 | DQ30: 59.15471625 | DR30: 27.72877324 | DS30: 85.03490461 | DT30: 29.57735813 | DU30: 48.06320695 | DV30: 53.6089616 | DW30: 27.72877324 | DX30: 31.42594301 | DY30: 79.48914996 | DZ30: 48.06320695 | EA30: 114.6122627 | EB30: 79.48914996 | EC30: 73.94339531 | ED30: 77.64056508 | EE30: 55.45754649 | EF30: 25.88018836 | EG30: 27.72877324 | EH30: 31.42594301 | EI30: 70.24622555 | EJ30: 11.0915093 | EK30: 38.82028254 | EL30: 24.03160348 | EM30: 12.94009418 | EN30: 20.33443371 | EO30: 20.33443371 | EP30: 27.72877324 | EQ30: 33.27452789 | ER30: 20.33443371 | ES30: 29.57735813 | ET30: 31.42594301 | EU30: 24.03160348 | EV30: 42.51745231 | EW30: 31.42594301 | EX30: 62.85188602 | EY30: 27.72877324 | EZ30: 16.63726395 | FA30: 29.57735813 | FB30: 24.03160348 | FC30: 12.94009418 | FD30: 22.18301859 | FE30: 7.394339531 | FF30: 3.697169766 | FG30: 1.848584883 | FH30: 0 | FI30: 0 | FJ30: 0 | FK30: 1.848584883 | FL30: 0 | FM30: 46.21462207 | FN30: 0 | FO30: 0 | FP30: 0 | FQ30: 0 | FR30: 0 | FS30: 0 | FT30: 1.848584883 | FU30: 0 | FV30: 1.848584883 | FW30: 3.697169766 | FX30: 0 | FY30: 1.848584883 | FZ30: 1.848584883 | GA30: 1.848584883 | GB30: 0 | GC30: 0 | GD30: 0 | GE30: 0 | GF30: 0 | GG30: 0 | GH30: 0
A31: 4 | B31: SWITCHGEAR | C31: ˂ = 11 kv ; switch | D31: 2.656763021 | E31: 62.23596142 | F31: 7.88897721 | G31: 2 | H31: 858 | I31: 791 | J31: 979 | K31: 1448 | L31: 1439 | M31: 1714 | N31: 1654 | O31: 1686 | P31: 1396 | Q31: 1543 | R31: 2517 | S31: 1359 | T31: 1259 | U31: 1362 | V31: 1287 | W31: 3979 | X31: 1751 | Y31: 5643 | Z31: 4728 | AA31: 2167 | AB31: 767 | AC31: 668 | AD31: 528 | AE31: 1229 | AF31: 763 | AG31: 732 | AH31: 959 | AI31: 1039 | AJ31: 789 | AK31: 1518 | AL31: 1472 | AM31: 1492 | AN31: 1333 | AO31: 1569 | AP31: 1369 | AQ31: 1124 | AR31: 641 | AS31: 956 | AT31: 681 | AU31: 857 | AV31: 446 | AW31: 651 | AX31: 531 | AY31: 517 | AZ31: 490 | BA31: 565 | BB31: 696 | BC31: 647 | BD31: 586 | BE31: 1115 | BF31: 723 | BG31: 664 | BH31: 685 | BI31: 501 | BJ31: 706 | BK31: 605 | BL31: 383 | BM31: 336 | BN31: 315 | BO31: 373 | BP31: 269 | BQ31: 207 | BR31: 146 | BS31: 59 | BT31: 46 | BU31: 71 | BV31: 34 | BW31: 52 | BX31: 25 | BY31: 201 | BZ31: 36 | CA31: 25 | CB31: 27 | CC31: 23 | CD31: 14 | CE31: 5 | CF31: 11 | CG31: 40 | CH31: 76 | CI31: 103 | CJ31: 59 | CK31: 127 | CL31: 98 | CM31: 57 | CN31: 79 | CO31: 83 | CP31: 50 | CQ31: 18 | CR31: 4 | CS31: 9 | CT31: 43 | CV31: 2279.502672 | CW31: 2101.499549 | CX31: 2600.970997 | CY31: 3846.992854 | CZ31: 3823.081987 | DA31: 4553.691818 | DB31: 4394.286036 | DC31: 4479.302453 | DD31: 3708.841177 | DE31: 4099.385341 | DF31: 6687.072523 | DG31: 3610.540945 | DH31: 3344.864643 | DI31: 3618.511234 | DJ31: 3419.254008 | DK31: 10571.26006 | DL31: 4651.992049 | DM31: 14992.11373 | DN31: 12561.17556 | DO31: 5757.205466 | DP31: 2037.737237 | DQ31: 1774.717698 | DR31: 1402.770875 | DS31: 3265.161753 | DT31: 2027.110185 | DU31: 1944.750531 | DV31: 2547.835737 | DW31: 2760.376779 | DX31: 2096.186023 | DY31: 4032.966266 | DZ31: 3910.755167 | EA31: 3963.890427 | EB31: 3541.465107 | EC31: 4168.46118 | ED31: 3637.108575 | EE31: 2986.201635 | EF31: 1702.985096 | EG31: 2539.865448 | EH31: 1809.255617 | EI31: 2276.845909 | EJ31: 1184.916307 | EK31: 1729.552727 | EL31: 1410.741164 | EM31: 1373.546482 | EN31: 1301.81388 | EO31: 1501.071107 | EP31: 1849.107062 | EQ31: 1718.925674 | ER31: 1556.86313 | ES31: 2962.290768 | ET31: 1920.839664 | EU31: 1764.090646 | EV31: 1819.882669 | EW31: 1331.038273 | EX31: 1875.674693 | EY31: 1607.341628 | EZ31: 1017.540237 | FA31: 892.672375 | FB31: 836.8803516 | FC31: 990.9726068 | FD31: 714.6692526 | FE31: 549.9499453 | FF31: 387.887401 | FG31: 156.7490182 | FH31: 122.211099 | FI31: 188.6301745 | FJ31: 90.32994271 | FK31: 138.1516771 | FL31: 66.41907552 | FM31: 534.0093672 | FN31: 95.64346875 | FO31: 66.41907552 | FP31: 71.73260156 | FQ31: 61.10554948 | FR31: 37.19468229 | FS31: 13.2838151 | FT31: 29.22439323 | FU31: 106.2705208 | FV31: 201.9139896 | FW31: 273.6465911 | FX31: 156.7490182 | FY31: 337.4089036 | FZ31: 260.362776 | GA31: 151.4354922 | GB31: 209.8842786 | GC31: 220.5113307 | GD31: 132.838151 | GE31: 47.82173437 | GF31: 10.62705208 | GG31: 23.91086719 | GH31: 114.2408099
A32: 4 | B32: SWITCHGEAR | C32: > 11 kv & < = 22 kv ; circuit breaker | D32: 123.253519 | E32: 64.3223822 | F32: 8.020123578 | G32: 2 | H32: 20 | I32: 6 | J32: 22 | K32: 15 | L32: 20 | M32: 32 | N32: 50 | O32: 39 | P32: 2 | Q32: 6 | R32: 36 | S32: 11 | T32: 26 | U32: 40 | V32: 52 | W32: 12 | X32: 15 | Y32: 20 | Z32: 19 | AA32: 5 | AB32: 12 | AC32: 5 | AD32: 1 | AE32: 4 | AF32: 8 | AG32: 1 | AH32: 1 | AI32: 2 | AJ32: 0 | AK32: 0 | AL32: 0 | AM32: 0 | AN32: 2 | AO32: 1 | AP32: 1 | AQ32: 2 | AR32: 15 | AS32: 3 | AT32: 0 | AU32: 16 | AV32: 8 | AW32: 18 | AX32: 0 | AY32: 2 | AZ32: 0 | BA32: 0 | BB32: 0 | BC32: 0 | BD32: 0 | BE32: 6 | BF32: 0 | BG32: 16 | BH32: 1 | BI32: 4 | BJ32: 32 | BK32: 9 | BL32: 0 | BM32: 17 | BN32: 9 | BO32: 13 | BP32: 0 | BQ32: 0 | BR32: 0 | BS32: 0 | BT32: 7 | BU32: 1 | BV32: 0 | BW32: 4 | BX32: 0 | BY32: 0 | BZ32: 0 | CA32: 0 | CB32: 0 | CC32: 0 | CD32: 0 | CE32: 0 | CF32: 0 | CG32: 0 | CH32: 0 | CI32: 0 | CJ32: 0 | CK32: 0 | CL32: 0 | CM32: 0 | CN32: 0 | CO32: 0 | CP32: 0 | CQ32: 0 | CR32: 0 | CS32: 0 | CT32: 0 | CV32: 2465.070379 | CW32: 739.5211138 | CX32: 2711.577417 | CY32: 1848.802785 | CZ32: 2465.070379 | DA32: 3944.112607 | DB32: 6162.675949 | DC32: 4806.88724 | DD32: 246.5070379 | DE32: 739.5211138 | DF32: 4437.126683 | DG32: 1355.788709 | DH32: 3204.591493 | DI32: 4930.140759 | DJ32: 6409.182987 | DK32: 1479.042228 | DL32: 1848.802785 | DM32: 2465.070379 | DN32: 2341.816861 | DO32: 616.2675949 | DP32: 1479.042228 | DQ32: 616.2675949 | DR32: 123.253519 | DS32: 493.0140759 | DT32: 986.0281518 | DU32: 123.253519 | DV32: 123.253519 | DW32: 246.5070379 | DX32: 0 | DY32: 0 | DZ32: 0 | EA32: 0 | EB32: 246.5070379 | EC32: 123.253519 | ED32: 123.253519 | EE32: 246.5070379 | EF32: 1848.802785 | EG32: 369.7605569 | EH32: 0 | EI32: 1972.056304 | EJ32: 986.0281518 | EK32: 2218.563342 | EL32: 0 | EM32: 246.5070379 | EN32: 0 | EO32: 0 | EP32: 0 | EQ32: 0 | ER32: 0 | ES32: 739.5211138 | ET32: 0 | EU32: 1972.056304 | EV32: 123.253519 | EW32: 493.0140759 | EX32: 3944.112607 | EY32: 1109.281671 | EZ32: 0 | FA32: 2095.309823 | FB32: 1109.281671 | FC32: 1602.295747 | FD32: 0 | FE32: 0 | FF32: 0 | FG32: 0 | FH32: 862.7746328 | FI32: 123.253519 | FJ32: 0 | FK32: 493.0140759 | FL32: 0 | FM32: 0 | FN32: 0 | FO32: 0 | FP32: 0 | FQ32: 0 | FR32: 0 | FS32: 0 | FT32: 0 | FU32: 0 | FV32: 0 | FW32: 0 | FX32: 0 | FY32: 0 | FZ32: 0 | GA32: 0 | GB32: 0 | GC32: 0 | GD32: 0 | GE32: 0 | GF32: 0 | GG32: 0 | GH32: 0
A33: 4 | B33: SWITCHGEAR | C33: > 11 kv & < = 22 kv ; switch | D33: 8.408871247 | E33: 52.50598144 | F33: 7.24610112 | G33: 2 | H33: 483 | I33: 449 | J33: 334 | K33: 660 | L33: 521 | M33: 623 | N33: 659 | O33: 504 | P33: 635 | Q33: 649 | R33: 720 | S33: 528 | T33: 448 | U33: 445 | V33: 497 | W33: 447 | X33: 462 | Y33: 451 | Z33: 455 | AA33: 532 | AB33: 261 | AC33: 217 | AD33: 175 | AE33: 612 | AF33: 1048 | AG33: 272 | AH33: 169 | AI33: 209 | AJ33: 161 | AK33: 356 | AL33: 426 | AM33: 471 | AN33: 347 | AO33: 402 | AP33: 489 | AQ33: 344 | AR33: 205 | AS33: 189 | AT33: 242 | AU33: 215 | AV33: 82 | AW33: 212 | AX33: 217 | AY33: 219 | AZ33: 123 | BA33: 153 | BB33: 146 | BC33: 161 | BD33: 183 | BE33: 191 | BF33: 161 | BG33: 127 | BH33: 128 | BI33: 119 | BJ33: 140 | BK33: 81 | BL33: 84 | BM33: 62 | BN33: 55 | BO33: 56 | BP33: 39 | BQ33: 31 | BR33: 20 | BS33: 13 | BT33: 7 | BU33: 3 | BV33: 5 | BW33: 11 | BX33: 4 | BY33: 50 | BZ33: 3 | CA33: 5 | CB33: 5 | CC33: 1 | CD33: 3 | CE33: 1 | CF33: 2 | CG33: 1 | CH33: 1 | CI33: 18 | CJ33: 2 | CK33: 13 | CL33: 6 | CM33: 1 | CN33: 3 | CO33: 3 | CP33: 2 | CQ33: 0 | CR33: 0 | CS33: 0 | CT33: 0 | CV33: 4061.484812 | CW33: 3775.58319 | CX33: 2808.562997 | CY33: 5549.855023 | CZ33: 4381.02192 | DA33: 5238.726787 | DB33: 5541.446152 | DC33: 4238.071109 | DD33: 5339.633242 | DE33: 5457.35744 | DF33: 6054.387298 | DG33: 4439.884019 | DH33: 3767.174319 | DI33: 3741.947705 | DJ33: 4179.20901 | DK33: 3758.765448 | DL33: 3884.898516 | DM33: 3792.400933 | DN33: 3826.036418 | DO33: 4473.519504 | DP33: 2194.715396 | DQ33: 1824.725061 | DR33: 1471.552468 | DS33: 5146.229203 | DT33: 8812.497067 | DU33: 2287.212979 | DV33: 1421.099241 | DW33: 1757.454091 | DX33: 1353.828271 | DY33: 2993.558164 | DZ33: 3582.179151 | EA33: 3960.578357 | EB33: 2917.878323 | EC33: 3380.366241 | ED33: 4111.93804 | EE33: 2892.651709 | EF33: 1723.818606 | EG33: 1589.276666 | EH33: 2034.946842 | EI33: 1807.907318 | EJ33: 689.5274423 | EK33: 1782.680704 | EL33: 1824.725061 | EM33: 1841.542803 | EN33: 1034.291163 | EO33: 1286.557301 | EP33: 1227.695202 | EQ33: 1353.828271 | ER33: 1538.823438 | ES33: 1606.094408 | ET33: 1353.828271 | EU33: 1067.926648 | EV33: 1076.33552 | EW33: 1000.655678 | EX33: 1177.241975 | EY33: 681.118571 | EZ33: 706.3451848 | FA33: 521.3500173 | FB33: 462.4879186 | FC33: 470.8967899 | FD33: 327.9459786 | FE33: 260.6750087 | FF33: 168.1774249 | FG33: 109.3153262 | FH33: 58.86209873 | FI33: 25.22661374 | FJ33: 42.04435624 | FK33: 92.49758372 | FL33: 33.63548499 | FM33: 420.4435624 | FN33: 25.22661374 | FO33: 42.04435624 | FP33: 42.04435624 | FQ33: 8.408871247 | FR33: 25.22661374 | FS33: 8.408871247 | FT33: 16.81774249 | FU33: 8.408871247 | FV33: 8.408871247 | FW33: 151.3596825 | FX33: 16.81774249 | FY33: 109.3153262 | FZ33: 50.45322748 | GA33: 8.408871247 | GB33: 25.22661374 | GC33: 25.22661374 | GD33: 16.81774249 | GE33: 0 | GF33: 0 | GG33: 0 | GH33: 0
A34: 4 | B34: SWITCHGEAR | C34: > 33 kv & < = 66 kv ; circuit breaker | D34: 60.42416375 | E34: 57.20859091 | F34: 7.56363609 | G34: 2 | H34: 1 | I34: 0 | J34: 4 | K34: 0 | L34: 1 | M34: 7 | N34: 5 | O34: 8 | P34: 0 | Q34: 7 | R34: 8 | S34: 2 | T34: 6 | U34: 2 | V34: 5 | W34: 4 | X34: 5 | Y34: 4 | Z34: 3 | AA34: 0 | AB34: 0 | AC34: 2 | AD34: 0 | AE34: 0 | AF34: 0 | AG34: 0 | AH34: 2 | AI34: 0 | AJ34: 1 | AK34: 2 | AL34: 0 | AM34: 0 | AN34: 0 | AO34: 0 | AP34: 0 | AQ34: 0 | AR34: 0 | AS34: 0 | AT34: 0 | AU34: 0 | AV34: 0 | AW34: 2 | AX34: 0 | AY34: 0 | AZ34: 3 | BA34: 0 | BB34: 0 | BC34: 0 | BD34: 0 | BE34: 3 | BF34: 0 | BG34: 0 | BH34: 3 | BI34: 3 | BJ34: 4 | BK34: 3 | BL34: 0 | BM34: 0 | BN34: 1 | BO34: 0 | BP34: 1 | BQ34: 0 | BR34: 0 | BS34: 0 | BT34: 0 | BU34: 0 | BV34: 0 | BW34: 0 | BX34: 0 | BY34: 0 | BZ34: 0 | CA34: 0 | CB34: 0 | CC34: 0 | CD34: 0 | CE34: 0 | CF34: 0 | CG34: 0 | CH34: 0 | CI34: 0 | CJ34: 0 | CK34: 0 | CL34: 0 | CM34: 0 | CN34: 0 | CO34: 0 | CP34: 0 | CQ34: 0 | CR34: 0 | CS34: 0 | CT34: 0 | CV34: 60.42416375 | CW34: 0 | CX34: 241.696655 | CY34: 0 | CZ34: 60.42416375 | DA34: 422.9691463 | DB34: 302.1208188 | DC34: 483.39331 | DD34: 0 | DE34: 422.9691463 | DF34: 483.39331 | DG34: 120.8483275 | DH34: 362.5449825 | DI34: 120.8483275 | DJ34: 302.1208188 | DK34: 241.696655 | DL34: 302.1208188 | DM34: 241.696655 | DN34: 181.2724913 | DO34: 0 | DP34: 0 | DQ34: 120.8483275 | DR34: 0 | DS34: 0 | DT34: 0 | DU34: 0 | DV34: 120.8483275 | DW34: 0 | DX34: 60.42416375 | DY34: 120.8483275 | DZ34: 0 | EA34: 0 | EB34: 0 | EC34: 0 | ED34: 0 | EE34: 0 | EF34: 0 | EG34: 0 | EH34: 0 | EI34: 0 | EJ34: 0 | EK34: 120.8483275 | EL34: 0 | EM34: 0 | EN34: 181.2724913 | EO34: 0 | EP34: 0 | EQ34: 0 | ER34: 0 | ES34: 181.2724913 | ET34: 0 | EU34: 0 | EV34: 181.2724913 | EW34: 181.2724913 | EX34: 241.696655 | EY34: 181.2724913 | EZ34: 0 | FA34: 0 | FB34: 60.42416375 | FC34: 0 | FD34: 60.42416375 | FE34: 0 | FF34: 0 | FG34: 0 | FH34: 0 | FI34: 0 | FJ34: 0 | FK34: 0 | FL34: 0 | FM34: 0 | FN34: 0 | FO34: 0 | FP34: 0 | FQ34: 0 | FR34: 0 | FS34: 0 | FT34: 0 | FU34: 0 | FV34: 0 | FW34: 0 | FX34: 0 | FY34: 0 | FZ34: 0 | GA34: 0 | GB34: 0 | GC34: 0 | GD34: 0 | GE34: 0 | GF34: 0 | GG34: 0 | GH34: 0
A35: 4 | B35: SWITCHGEAR | C35: > 33 kv & < = 66 kv ; switch | D35: 50.26262448 | E35: 34.41057887 | F35: 5.866053091 | G35: 2 | H35: 1 | I35: 2 | J35: 9 | K35: 2 | L35: 4 | M35: 19 | N35: 9 | O35: 20 | P35: 2 | Q35: 2 | R35: 6 | S35: 2 | T35: 8 | U35: 7 | V35: 18 | W35: 12 | X35: 3 | Y35: 6 | Z35: 2 | AA35: 0 | AB35: 5 | AC35: 0 | AD35: 0 | AE35: 52 | AF35: 0 | AG35: 0 | AH35: 0 | AI35: 154 | AJ35: 0 | AK35: 0 | AL35: 0 | AM35: 0 | AN35: 0 | AO35: 0 | AP35: 0 | AQ35: 0 | AR35: 0 | AS35: 0 | AT35: 0 | AU35: 0 | AV35: 0 | AW35: 0 | AX35: 0 | AY35: 0 | AZ35: 0 | BA35: 0 | BB35: 0 | BC35: 3 | BD35: 0 | BE35: 0 | BF35: 2 | BG35: 0 | BH35: 0 | BI35: 1 | BJ35: 0 | BK35: 1 | BL35: 0 | BM35: 0 | BN35: 0 | BO35: 0 | BP35: 0 | BQ35: 0 | BR35: 0 | BS35: 0 | BT35: 0 | BU35: 0 | BV35: 0 | BW35: 0 | BX35: 0 | BY35: 0 | BZ35: 0 | CA35: 0 | CB35: 0 | CC35: 0 | CD35: 0 | CE35: 0 | CF35: 0 | CG35: 0 | CH35: 0 | CI35: 0 | CJ35: 0 | CK35: 0 | CL35: 0 | CM35: 0 | CN35: 0 | CO35: 0 | CP35: 0 | CQ35: 0 | CR35: 0 | CS35: 0 | CT35: 0 | CV35: 50.26262448 | CW35: 100.525249 | CX35: 452.3636203 | CY35: 100.525249 | CZ35: 201.0504979 | DA35: 954.9898651 | DB35: 452.3636203 | DC35: 1005.25249 | DD35: 100.525249 | DE35: 100.525249 | DF35: 301.5757469 | DG35: 100.525249 | DH35: 402.1009959 | DI35: 351.8383714 | DJ35: 904.7272407 | DK35: 603.1514938 | DL35: 150.7878734 | DM35: 301.5757469 | DN35: 100.525249 | DO35: 0 | DP35: 251.3131224 | DQ35: 0 | DR35: 0 | DS35: 2613.656473 | DT35: 0 | DU35: 0 | DV35: 0 | DW35: 7740.44417 | DX35: 0 | DY35: 0 | DZ35: 0 | EA35: 0 | EB35: 0 | EC35: 0 | ED35: 0 | EE35: 0 | EF35: 0 | EG35: 0 | EH35: 0 | EI35: 0 | EJ35: 0 | EK35: 0 | EL35: 0 | EM35: 0 | EN35: 0 | EO35: 0 | EP35: 0 | EQ35: 150.7878734 | ER35: 0 | ES35: 0 | ET35: 100.525249 | EU35: 0 | EV35: 0 | EW35: 50.26262448 | EX35: 0 | EY35: 50.26262448 | EZ35: 0 | FA35: 0 | FB35: 0 | FC35: 0 | FD35: 0 | FE35: 0 | FF35: 0 | FG35: 0 | FH35: 0 | FI35: 0 | FJ35: 0 | FK35: 0 | FL35: 0 | FM35: 0 | FN35: 0 | FO35: 0 | FP35: 0 | FQ35: 0 | FR35: 0 | FS35: 0 | FT35: 0 | FU35: 0 | FV35: 0 | FW35: 0 | FX35: 0 | FY35: 0 | FZ35: 0 | GA35: 0 | GB35: 0 | GC35: 0 | GD35: 0 | GE35: 0 | GF35: 0 | GG35: 0 | GH35: 0
A36: 5 | B36: TRANSFORMERS | C36: ground outdoor / indoor chamber mounted ; ˂ 22 kv ; > 60 kva and < = 600 kva ; multiple phase | D36: 14.48156933 | E36: 50.44605113 | F36: 7.102538358 | G36: 2 | H36: 13 | I36: 13 | J36: 15 | K36: 9 | L36: 9 | M36: 6 | N36: 8 | O36: 11 | P36: 7 | Q36: 10 | R36: 4 | S36: 1 | T36: 3 | U36: 0 | V36: 0 | W36: 1 | X36: 2 | Y36: 1 | Z36: 1 | AA36: 1 | AB36: 1 | AC36: 2 | AD36: 1 | AE36: 0 | AF36: 4 | AG36: 1 | AH36: 2 | AI36: 5 | AJ36: 1 | AK36: 5 | AL36: 4 | AM36: 2 | AN36: 6 | AO36: 3 | AP36: 6 | AQ36: 8 | AR36: 10 | AS36: 1 | AT36: 1 | AU36: 5 | AV36: 2 | AW36: 1 | AX36: 2 | AY36: 3 | AZ36: 6 | BA36: 6 | BB36: 8 | BC36: 6 | BD36: 3 | BE36: 2 | BF36: 2 | BG36: 1 | BH36: 8 | BI36: 2 | BJ36: 0 | BK36: 0 | BL36: 1 | BM36: 2 | BN36: 0 | BO36: 0 | BP36: 0 | BQ36: 1 | BR36: 0 | BS36: 0 | BT36: 1 | BU36: 1 | BV36: 0 | BW36: 0 | BX36: 0 | BY36: 0 | BZ36: 0 | CA36: 0 | CB36: 0 | CC36: 2 | CD36: 0 | CE36: 0 | CF36: 0 | CG36: 0 | CH36: 0 | CI36: 0 | CJ36: 0 | CK36: 0 | CL36: 0 | CM36: 0 | CN36: 0 | CO36: 0 | CP36: 0 | CQ36: 0 | CR36: 0 | CS36: 0 | CT36: 0 | CV36: 188.2604013 | CW36: 188.2604013 | CX36: 217.22354 | CY36: 130.334124 | CZ36: 130.334124 | DA36: 86.889416 | DB36: 115.8525547 | DC36: 159.2972627 | DD36: 101.3709853 | DE36: 144.8156933 | DF36: 57.92627733 | DG36: 14.48156933 | DH36: 43.444708 | DI36: 0 | DJ36: 0 | DK36: 14.48156933 | DL36: 28.96313867 | DM36: 14.48156933 | DN36: 14.48156933 | DO36: 14.48156933 | DP36: 14.48156933 | DQ36: 28.96313867 | DR36: 14.48156933 | DS36: 0 | DT36: 57.92627733 | DU36: 14.48156933 | DV36: 28.96313867 | DW36: 72.40784666 | DX36: 14.48156933 | DY36: 72.40784666 | DZ36: 57.92627733 | EA36: 28.96313867 | EB36: 86.889416 | EC36: 43.444708 | ED36: 86.889416 | EE36: 115.8525547 | EF36: 144.8156933 | EG36: 14.48156933 | EH36: 14.48156933 | EI36: 72.40784666 | EJ36: 28.96313867 | EK36: 14.48156933 | EL36: 28.96313867 | EM36: 43.444708 | EN36: 86.889416 | EO36: 86.889416 | EP36: 115.8525547 | EQ36: 86.889416 | ER36: 43.444708 | ES36: 28.96313867 | ET36: 28.96313867 | EU36: 14.48156933 | EV36: 115.8525547 | EW36: 28.96313867 | EX36: 0 | EY36: 0 | EZ36: 14.48156933 | FA36: 28.96313867 | FB36: 0 | FC36: 0 | FD36: 0 | FE36: 14.48156933 | FF36: 0 | FG36: 0 | FH36: 14.48156933 | FI36: 14.48156933 | FJ36: 0 | FK36: 0 | FL36: 0 | FM36: 0 | FN36: 0 | FO36: 0 | FP36: 0 | FQ36: 28.96313867 | FR36: 0 | FS36: 0 | FT36: 0 | FU36: 0 | FV36: 0 | FW36: 0 | FX36: 0 | FY36: 0 | FZ36: 0 | GA36: 0 | GB36: 0 | GC36: 0 | GD36: 0 | GE36: 0 | GF36: 0 | GG36: 0 | GH36: 0
A37: 5 | B37: TRANSFORMERS | C37: ground outdoor / indoor chamber mounted ; ˂ 22 kv ; > 600 kva ; multiple phase | D37: 34.93518199 | E37: 49.97462616 | F37: 7.069273383 | G37: 2 | H37: 4 | I37: 6 | J37: 8 | K37: 10 | L37: 19 | M37: 9 | N37: 5 | O37: 17 | P37: 7 | Q37: 11 | R37: 14 | S37: 15 | T37: 12 | U37: 17 | V37: 4 | W37: 4 | X37: 5 | Y37: 6 | Z37: 5 | AA37: 2 | AB37: 1 | AC37: 17 | AD37: 0 | AE37: 1 | AF37: 7 | AG37: 6 | AH37: 3 | AI37: 0 | AJ37: 7 | AK37: 9 | AL37: 7 | AM37: 6 | AN37: 12 | AO37: 5 | AP37: 3 | AQ37: 2 | AR37: 3 | AS37: 2 | AT37: 0 | AU37: 7 | AV37: 3 | AW37: 3 | AX37: 1 | AY37: 1 | AZ37: 6 | BA37: 2 | BB37: 1 | BC37: 3 | BD37: 0 | BE37: 4 | BF37: 0 | BG37: 0 | BH37: 0 | BI37: 0 | BJ37: 0 | BK37: 2 | BL37: 0 | BM37: 0 | BN37: 0 | BO37: 2 | BP37: 0 | BQ37: 0 | BR37: 0 | BS37: 0 | BT37: 0 | BU37: 0 | BV37: 0 | BW37: 0 | BX37: 0 | BY37: 0 | BZ37: 0 | CA37: 0 | CB37: 0 | CC37: 0 | CD37: 0 | CE37: 0 | CF37: 0 | CG37: 0 | CH37: 0 | CI37: 0 | CJ37: 0 | CK37: 0 | CL37: 0 | CM37: 0 | CN37: 0 | CO37: 0 | CP37: 0 | CQ37: 0 | CR37: 0 | CS37: 0 | CT37: 0 | CV37: 139.740728 | CW37: 209.611092 | CX37: 279.4814559 | CY37: 349.3518199 | CZ37: 663.7684578 | DA37: 314.4166379 | DB37: 174.67591 | DC37: 593.8980939 | DD37: 244.5462739 | DE37: 384.2870019 | DF37: 489.0925479 | DG37: 524.0277299 | DH37: 419.2221839 | DI37: 593.8980939 | DJ37: 139.740728 | DK37: 139.740728 | DL37: 174.67591 | DM37: 209.611092 | DN37: 174.67591 | DO37: 69.87036398 | DP37: 34.93518199 | DQ37: 593.8980939 | DR37: 0 | DS37: 34.93518199 | DT37: 244.5462739 | DU37: 209.611092 | DV37: 104.805546 | DW37: 0 | DX37: 244.5462739 | DY37: 314.4166379 | DZ37: 244.5462739 | EA37: 209.611092 | EB37: 419.2221839 | EC37: 174.67591 | ED37: 104.805546 | EE37: 69.87036398 | EF37: 104.805546 | EG37: 69.87036398 | EH37: 0 | EI37: 244.5462739 | EJ37: 104.805546 | EK37: 104.805546 | EL37: 34.93518199 | EM37: 34.93518199 | EN37: 209.611092 | EO37: 69.87036398 | EP37: 34.93518199 | EQ37: 104.805546 | ER37: 0 | ES37: 139.740728 | ET37: 0 | EU37: 0 | EV37: 0 | EW37: 0 | EX37: 0 | EY37: 69.87036398 | EZ37: 0 | FA37: 0 | FB37: 0 | FC37: 69.87036398 | FD37: 0 | FE37: 0 | FF37: 0 | FG37: 0 | FH37: 0 | FI37: 0 | FJ37: 0 | FK37: 0 | FL37: 0 | FM37: 0 | FN37: 0 | FO37: 0 | FP37: 0 | FQ37: 0 | FR37: 0 | FS37: 0 | FT37: 0 | FU37: 0 | FV37: 0 | FW37: 0 | FX37: 0 | FY37: 0 | FZ37: 0 | GA37: 0 | GB37: 0 | GC37: 0 | GD37: 0 | GE37: 0 | GF37: 0 | GG37: 0 | GH37: 0
A38: 5 | B38: TRANSFORMERS | C38: ground outdoor / indoor chamber mounted ; > = 22 kv & < = 33 kv ; < = 15 mva | D38: 24.22449708 | E38: 59.48691812 | F38: 7.712776291 | G38: 2 | H38: 31 | I38: 19 | J38: 29 | K38: 23 | L38: 22 | M38: 14 | N38: 22 | O38: 27 | P38: 13 | Q38: 17 | R38: 22 | S38: 18 | T38: 15 | U38: 13 | V38: 20 | W38: 14 | X38: 17 | Y38: 15 | Z38: 20 | AA38: 22 | AB38: 26 | AC38: 28 | AD38: 18 | AE38: 10 | AF38: 25 | AG38: 50 | AH38: 24 | AI38: 34 | AJ38: 40 | AK38: 85 | AL38: 79 | AM38: 71 | AN38: 57 | AO38: 46 | AP38: 27 | AQ38: 41 | AR38: 24 | AS38: 32 | AT38: 32 | AU38: 25 | AV38: 36 | AW38: 29 | AX38: 28 | AY38: 19 | AZ38: 16 | BA38: 14 | BB38: 16 | BC38: 10 | BD38: 6 | BE38: 16 | BF38: 6 | BG38: 5 | BH38: 7 | BI38: 6 | BJ38: 6 | BK38: 5 | BL38: 8 | BM38: 6 | BN38: 3 | BO38: 2 | BP38: 2 | BQ38: 0 | BR38: 1 | BS38: 2 | BT38: 1 | BU38: 0 | BV38: 0 | BW38: 1 | BX38: 3 | BY38: 1 | BZ38: 2 | CA38: 0 | CB38: 0 | CC38: 1 | CD38: 0 | CE38: 0 | CF38: 0 | CG38: 0 | CH38: 0 | CI38: 0 | CJ38: 0 | CK38: 0 | CL38: 0 | CM38: 2 | CN38: 0 | CO38: 0 | CP38: 0 | CQ38: 0 | CR38: 0 | CS38: 0 | CT38: 0 | CV38: 750.9594096 | CW38: 460.2654446 | CX38: 702.5104154 | CY38: 557.1634329 | CZ38: 532.9389358 | DA38: 339.1429592 | DB38: 532.9389358 | DC38: 654.0614213 | DD38: 314.9184621 | DE38: 411.8164504 | DF38: 532.9389358 | DG38: 436.0409475 | DH38: 363.3674563 | DI38: 314.9184621 | DJ38: 484.4899417 | DK38: 339.1429592 | DL38: 411.8164504 | DM38: 363.3674563 | DN38: 484.4899417 | DO38: 532.9389358 | DP38: 629.8369242 | DQ38: 678.2859183 | DR38: 436.0409475 | DS38: 242.2449708 | DT38: 605.6124271 | DU38: 1211.224854 | DV38: 581.38793 | DW38: 823.6329008 | DX38: 968.9798833 | DY38: 2059.082252 | DZ38: 1913.73527 | EA38: 1719.939293 | EB38: 1380.796334 | EC38: 1114.326866 | ED38: 654.0614213 | EE38: 993.2043804 | EF38: 581.38793 | EG38: 775.1839067 | EH38: 775.1839067 | EI38: 605.6124271 | EJ38: 872.081895 | EK38: 702.5104154 | EL38: 678.2859183 | EM38: 460.2654446 | EN38: 387.5919533 | EO38: 339.1429592 | EP38: 387.5919533 | EQ38: 242.2449708 | ER38: 145.3469825 | ES38: 387.5919533 | ET38: 145.3469825 | EU38: 121.1224854 | EV38: 169.5714796 | EW38: 145.3469825 | EX38: 145.3469825 | EY38: 121.1224854 | EZ38: 193.7959767 | FA38: 145.3469825 | FB38: 72.67349125 | FC38: 48.44899417 | FD38: 48.44899417 | FE38: 0 | FF38: 24.22449708 | FG38: 48.44899417 | FH38: 24.22449708 | FI38: 0 | FJ38: 0 | FK38: 24.22449708 | FL38: 72.67349125 | FM38: 24.22449708 | FN38: 48.44899417 | FO38: 0 | FP38: 0 | FQ38: 24.22449708 | FR38: 0 | FS38: 0 | FT38: 0 | FU38: 0 | FV38: 0 | FW38: 0 | FX38: 0 | FY38: 0 | FZ38: 0 | GA38: 48.44899417 | GB38: 0 | GC38: 0 | GD38: 0 | GE38: 0 | GF38: 0 | GG38: 0 | GH38: 0
A39: 5 | B39: TRANSFORMERS | C39: ground outdoor / indoor chamber mounted ; > 33 kv & < = 66 kv ; > 15 mva and < = 40 mva | D39: 680.3307187 | E39: 60.79661848 | F39: 7.797218637 | G39: 2 | H39: 1 | I39: 1 | J39: 3 | K39: 3 | L39: 0 | M39: 2 | N39: 2 | O39: 4 | P39: 3 | Q39: 2 | R39: 4 | S39: 1 | T39: 3 | U39: 2 | V39: 3 | W39: 2 | X39: 2 | Y39: 2 | Z39: 1 | AA39: 0 | AB39: 2 | AC39: 0 | AD39: 0 | AE39: 0 | AF39: 0 | AG39: 0 | AH39: 0 | AI39: 0 | AJ39: 0 | AK39: 0 | AL39: 1 | AM39: 0 | AN39: 0 | AO39: 2 | AP39: 1 | AQ39: 0 | AR39: 1 | AS39: 0 | AT39: 4 | AU39: 0 | AV39: 2 | AW39: 0 | AX39: 0 | AY39: 3 | AZ39: 2 | BA39: 0 | BB39: 0 | BC39: 2 | BD39: 0 | BE39: 1 | BF39: 8 | BG39: 1 | BH39: 9 | BI39: 3 | BJ39: 3 | BK39: 3 | BL39: 10 | BM39: 3 | BN39: 4 | BO39: 0 | BP39: 0 | BQ39: 2 | BR39: 0 | BS39: 0 | BT39: 0 | BU39: 0 | BV39: 0 | BW39: 0 | BX39: 0 | BY39: 0 | BZ39: 1 | CA39: 0 | CB39: 0 | CC39: 0 | CD39: 0 | CE39: 0 | CF39: 0 | CG39: 0 | CH39: 0 | CI39: 0 | CJ39: 0 | CK39: 0 | CL39: 0 | CM39: 0 | CN39: 0 | CO39: 0 | CP39: 0 | CQ39: 0 | CR39: 0 | CS39: 0 | CT39: 0 | CV39: 680.3307187 | CW39: 680.3307187 | CX39: 2040.992156 | CY39: 2040.992156 | CZ39: 0 | DA39: 1360.661437 | DB39: 1360.661437 | DC39: 2721.322875 | DD39: 2040.992156 | DE39: 1360.661437 | DF39: 2721.322875 | DG39: 680.3307187 | DH39: 2040.992156 | DI39: 1360.661437 | DJ39: 2040.992156 | DK39: 1360.661437 | DL39: 1360.661437 | DM39: 1360.661437 | DN39: 680.3307187 | DO39: 0 | DP39: 1360.661437 | DQ39: 0 | DR39: 0 | DS39: 0 | DT39: 0 | DU39: 0 | DV39: 0 | DW39: 0 | DX39: 0 | DY39: 0 | DZ39: 680.3307187 | EA39: 0 | EB39: 0 | EC39: 1360.661437 | ED39: 680.3307187 | EE39: 0 | EF39: 680.3307187 | EG39: 0 | EH39: 2721.322875 | EI39: 0 | EJ39: 1360.661437 | EK39: 0 | EL39: 0 | EM39: 2040.992156 | EN39: 1360.661437 | EO39: 0 | EP39: 0 | EQ39: 1360.661437 | ER39: 0 | ES39: 680.3307187 | ET39: 5442.64575 | EU39: 680.3307187 | EV39: 6122.976469 | EW39: 2040.992156 | EX39: 2040.992156 | EY39: 2040.992156 | EZ39: 6803.307187 | FA39: 2040.992156 | FB39: 2721.322875 | FC39: 0 | FD39: 0 | FE39: 1360.661437 | FF39: 0 | FG39: 0 | FH39: 0 | FI39: 0 | FJ39: 0 | FK39: 0 | FL39: 0 | FM39: 0 | FN39: 680.3307187 | FO39: 0 | FP39: 0 | FQ39: 0 | FR39: 0 | FS39: 0 | FT39: 0 | FU39: 0 | FV39: 0 | FW39: 0 | FX39: 0 | FY39: 0 | FZ39: 0 | GA39: 0 | GB39: 0 | GC39: 0 | GD39: 0 | GE39: 0 | GF39: 0 | GG39: 0 | GH39: 0
B40: TRANSFORMERS | C40: kiosk mounted ; < = 22 kv ; < = 60 kva ; multiple phase | E40: 39.61166025 | F40: 6.293779489 | G40: 2 | H40: 0 | I40: 0 | J40: 0 | K40: 0 | L40: 0 | M40: 0 | N40: 0 | O40: 0 | P40: 0 | Q40: 0 | R40: 0 | S40: 0 | T40: 0 | U40: 0 | V40: 0 | W40: 0 | X40: 0 | Y40: 0 | Z40: 0 | AA40: 0 | AB40: 0 | AC40: 0 | AD40: 0 | AE40: 5 | AF40: 0 | AG40: 0 | AH40: 3 | AI40: 18 | AJ40: 0 | AK40: 0 | AL40: 0 | AM40: 0 | AN40: 0 | AO40: 0 | AP40: 0 | AQ40: 0 | AR40: 0 | AS40: 0 | AT40: 0 | AU40: 0 | AV40: 0 | AW40: 0 | AX40: 0 | AY40: 0 | AZ40: 0 | BA40: 0 | BB40: 0 | BC40: 0 | BD40: 0 | BE40: 0 | BF40: 0 | BG40: 0 | BH40: 0 | BI40: 0 | BJ40: 0 | BK40: 0 | BL40: 0 | BM40: 0 | BN40: 0 | BO40: 0 | BP40: 0 | BQ40: 0 | BR40: 0 | BS40: 0 | BT40: 0 | BU40: 0 | BV40: 0 | BW40: 0 | BX40: 0 | BY40: 0 | BZ40: 0 | CA40: 0 | CB40: 0 | CC40: 0 | CD40: 0 | CE40: 0 | CF40: 0 | CG40: 0 | CH40: 0 | CI40: 0 | CJ40: 0 | CK40: 0 | CL40: 0 | CM40: 0 | CN40: 0 | CO40: 0 | CP40: 0 | CQ40: 0 | CR40: 0 | CS40: 0 | CT40: 0 | CV40: 0 | CW40: 0 | CX40: 0 | CY40: 0 | CZ40: 0 | DA40: 0 | DB40: 0 | DC40: 0 | DD40: 0 | DE40: 0 | DF40: 0 | DG40: 0 | DH40: 0 | DI40: 0 | DJ40: 0 | DK40: 0 | DL40: 0 | DM40: 0 | DN40: 0 | DO40: 0 | DP40: 0 | DQ40: 0 | DR40: 0 | DS40: 0 | DT40: 0 | DU40: 0 | DV40: 0 | DW40: 0 | DX40: 0 | DY40: 0 | DZ40: 0 | EA40: 0 | EB40: 0 | EC40: 0 | ED40: 0 | EE40: 0 | EF40: 0 | EG40: 0 | EH40: 0 | EI40: 0 | EJ40: 0 | EK40: 0 | EL40: 0 | EM40: 0 | EN40: 0 | EO40: 0 | EP40: 0 | EQ40: 0 | ER40: 0 | ES40: 0 | ET40: 0 | EU40: 0 | EV40: 0 | EW40: 0 | EX40: 0 | EY40: 0 | EZ40: 0 | FA40: 0 | FB40: 0 | FC40: 0 | FD40: 0 | FE40: 0 | FF40: 0 | FG40: 0 | FH40: 0 | FI40: 0 | FJ40: 0 | FK40: 0 | FL40: 0 | FM40: 0 | FN40: 0 | FO40: 0 | FP40: 0 | FQ40: 0 | FR40: 0 | FS40: 0 | FT40: 0 | FU40: 0 | FV40: 0 | FW40: 0 | FX40: 0 | FY40: 0 | FZ40: 0 | GA40: 0 | GB40: 0 | GC40: 0 | GD40: 0 | GE40: 0 | GF40: 0 | GG40: 0 | GH40: 0
A41: 5 | B41: TRANSFORMERS | C41: kiosk mounted ; < = 22 kv ; > 60 kva and < = 600 kva ; multiple phase | D41: 38.38493289 | E41: 39.61166025 | F41: 6.293779489 | G41: 2 | H41: 57 | I41: 70 | J41: 68 | K41: 74 | L41: 61 | M41: 61 | N41: 63 | O41: 67 | P41: 57 | Q41: 55 | R41: 98 | S41: 56 | T41: 65 | U41: 66 | V41: 60 | W41: 48 | X41: 58 | Y41: 65 | Z41: 40 | AA41: 46 | AB41: 35 | AC41: 27 | AD41: 33 | AE41: 19 | AF41: 22 | AG41: 25 | AH41: 16 | AI41: 25 | AJ41: 22 | AK41: 37 | AL41: 38 | AM41: 41 | AN41: 29 | AO41: 30 | AP41: 20 | AQ41: 20 | AR41: 10 | AS41: 13 | AT41: 9 | AU41: 7 | AV41: 16 | AW41: 35 | AX41: 15 | AY41: 11 | AZ41: 8 | BA41: 5 | BB41: 4 | BC41: 0 | BD41: 1 | BE41: 5 | BF41: 0 | BG41: 0 | BH41: 1 | BI41: 0 | BJ41: 0 | BK41: 0 | BL41: 0 | BM41: 0 | BN41: 0 | BO41: 0 | BP41: 0 | BQ41: 0 | BR41: 0 | BS41: 0 | BT41: 0 | BU41: 0 | BV41: 0 | BW41: 0 | BX41: 0 | BY41: 0 | BZ41: 0 | CA41: 0 | CB41: 0 | CC41: 0 | CD41: 0 | CE41: 0 | CF41: 0 | CG41: 0 | CH41: 0 | CI41: 0 | CJ41: 0 | CK41: 0 | CL41: 0 | CM41: 0 | CN41: 0 | CO41: 0 | CP41: 0 | CQ41: 0 | CR41: 0 | CS41: 0 | CT41: 0 | CV41: 2187.941175 | CW41: 2686.945303 | CX41: 2610.175437 | CY41: 2840.485034 | CZ41: 2341.480907 | DA41: 2341.480907 | DB41: 2418.250772 | DC41: 2571.790504 | DD41: 2187.941175 | DE41: 2111.171309 | DF41: 3761.723424 | DG41: 2149.556242 | DH41: 2495.020638 | DI41: 2533.405571 | DJ41: 2303.095974 | DK41: 1842.476779 | DL41: 2226.326108 | DM41: 2495.020638 | DN41: 1535.397316 | DO41: 1765.706913 | DP41: 1343.472651 | DQ41: 1036.393188 | DR41: 1266.702786 | DS41: 729.313725 | DT41: 844.4685237 | DU41: 959.6233224 | DV41: 614.1589263 | DW41: 959.6233224 | DX41: 844.4685237 | DY41: 1420.242517 | DZ41: 1458.62745 | EA41: 1573.782249 | EB41: 1113.163054 | EC41: 1151.547987 | ED41: 767.6986579 | EE41: 767.6986579 | EF41: 383.8493289 | EG41: 499.0041276 | EH41: 345.4643961 | EI41: 268.6945303 | EJ41: 614.1589263 | EK41: 1343.472651 | EL41: 575.7739934 | EM41: 422.2342618 | EN41: 307.0794632 | EO41: 191.9246645 | EP41: 153.5397316 | EQ41: 0 | ER41: 38.38493289 | ES41: 191.9246645 | ET41: 0 | EU41: 0 | EV41: 38.38493289 | EW41: 0 | EX41: 0 | EY41: 0 | EZ41: 0 | FA41: 0 | FB41: 0 | FC41: 0 | FD41: 0 | FE41: 0 | FF41: 0 | FG41: 0 | FH41: 0 | FI41: 0 | FJ41: 0 | FK41: 0 | FL41: 0 | FM41: 0 | FN41: 0 | FO41: 0 | FP41: 0 | FQ41: 0 | FR41: 0 | FS41: 0 | FT41: 0 | FU41: 0 | FV41: 0 | FW41: 0 | FX41: 0 | FY41: 0 | FZ41: 0 | GA41: 0 | GB41: 0 | GC41: 0 | GD41: 0 | GE41: 0 | GF41: 0 | GG41: 0 | GH41: 0
B42: TRANSFORMERS | C42: kiosk mounted ; < = 22 kv ; > 60 kva and < = 600 kva ; single phase | E42: 39.61166025 | F42: 6.293779489 | G42: 2 | H42: 0 | I42: 0 | J42: 0 | K42: 0 | L42: 0 | M42: 0 | N42: 0 | O42: 0 | P42: 0 | Q42: 0 | R42: 0 | S42: 1 | T42: 0 | U42: 0 | V42: 0 | W42: 0 | X42: 0 | Y42: 0 | Z42: 0 | AA42: 2 | AB42: 0 | AC42: 0 | AD42: 0 | AE42: 0 | AF42: 0 | AG42: 0 | AH42: 0 | AI42: 0 | AJ42: 0 | AK42: 0 | AL42: 0 | AM42: 0 | AN42: 0 | AO42: 0 | AP42: 0 | AQ42: 0 | AR42: 0 | AS42: 0 | AT42: 0 | AU42: 0 | AV42: 0 | AW42: 0 | AX42: 0 | AY42: 0 | AZ42: 0 | BA42: 0 | BB42: 0 | BC42: 0 | BD42: 0 | BE42: 0 | BF42: 0 | BG42: 0 | BH42: 0 | BI42: 0 | BJ42: 0 | BK42: 0 | BL42: 0 | BM42: 0 | BN42: 0 | BO42: 0 | BP42: 0 | BQ42: 0 | BR42: 0 | BS42: 0 | BT42: 0 | BU42: 0 | BV42: 0 | BW42: 0 | BX42: 0 | BY42: 0 | BZ42: 0 | CA42: 0 | CB42: 0 | CC42: 0 | CD42: 0 | CE42: 0 | CF42: 0 | CG42: 0 | CH42: 0 | CI42: 0 | CJ42: 0 | CK42: 0 | CL42: 0 | CM42: 0 | CN42: 0 | CO42: 0 | CP42: 0 | CQ42: 0 | CR42: 0 | CS42: 0 | CT42: 0 | CV42: 0 | CW42: 0 | CX42: 0 | CY42: 0 | CZ42: 0 | DA42: 0 | DB42: 0 | DC42: 0 | DD42: 0 | DE42: 0 | DF42: 0 | DG42: 0 | DH42: 0 | DI42: 0 | DJ42: 0 | DK42: 0 | DL42: 0 | DM42: 0 | DN42: 0 | DO42: 0 | DP42: 0 | DQ42: 0 | DR42: 0 | DS42: 0 | DT42: 0 | DU42: 0 | DV42: 0 | DW42: 0 | DX42: 0 | DY42: 0 | DZ42: 0 | EA42: 0 | EB42: 0 | EC42: 0 | ED42: 0 | EE42: 0 | EF42: 0 | EG42: 0 | EH42: 0 | EI42: 0 | EJ42: 0 | EK42: 0 | EL42: 0 | EM42: 0 | EN42: 0 | EO42: 0 | EP42: 0 | EQ42: 0 | ER42: 0 | ES42: 0 | ET42: 0 | EU42: 0 | EV42: 0 | EW42: 0 | EX42: 0 | EY42: 0 | EZ42: 0 | FA42: 0 | FB42: 0 | FC42: 0 | FD42: 0 | FE42: 0 | FF42: 0 | FG42: 0 | FH42: 0 | FI42: 0 | FJ42: 0 | FK42: 0 | FL42: 0 | FM42: 0 | FN42: 0 | FO42: 0 | FP42: 0 | FQ42: 0 | FR42: 0 | FS42: 0 | FT42: 0 | FU42: 0 | FV42: 0 | FW42: 0 | FX42: 0 | FY42: 0 | FZ42: 0 | GA42: 0 | GB42: 0 | GC42: 0 | GD42: 0 | GE42: 0 | GF42: 0 | GG42: 0 | GH42: 0
A43: 5 | B43: TRANSFORMERS | C43: kiosk mounted ; < = 22 kv ; > 600 kva ; multiple phase | D43: 70.95066419 | E43: 40.0803481 | F43: 6.330904209 | G43: 2 | H43: 26 | I43: 42 | J43: 26 | K43: 50 | L43: 26 | M43: 21 | N43: 31 | O43: 41 | P43: 36 | Q43: 30 | R43: 26 | S43: 43 | T43: 38 | U43: 37 | V43: 29 | W43: 30 | X43: 11 | Y43: 12 | Z43: 17 | AA43: 13 | AB43: 4 | AC43: 9 | AD43: 2 | AE43: 1 | AF43: 4 | AG43: 7 | AH43: 1 | AI43: 3 | AJ43: 3 | AK43: 6 | AL43: 2 | AM43: 1 | AN43: 5 | AO43: 0 | AP43: 2 | AQ43: 2 | AR43: 0 | AS43: 3 | AT43: 0 | AU43: 0 | AV43: 1 | AW43: 1 | AX43: 0 | AY43: 2 | AZ43: 0 | BA43: 1 | BB43: 0 | BC43: 0 | BD43: 0 | BE43: 2 | BF43: 0 | BG43: 0 | BH43: 0 | BI43: 0 | BJ43: 0 | BK43: 0 | BL43: 0 | BM43: 0 | BN43: 0 | BO43: 0 | BP43: 0 | BQ43: 0 | BR43: 0 | BS43: 0 | BT43: 0 | BU43: 0 | BV43: 0 | BW43: 0 | BX43: 0 | BY43: 0 | BZ43: 0 | CA43: 0 | CB43: 0 | CC43: 0 | CD43: 0 | CE43: 0 | CF43: 0 | CG43: 0 | CH43: 0 | CI43: 0 | CJ43: 0 | CK43: 0 | CL43: 0 | CM43: 0 | CN43: 0 | CO43: 0 | CP43: 0 | CQ43: 0 | CR43: 0 | CS43: 0 | CT43: 0 | CV43: 1844.717269 | CW43: 2979.927896 | CX43: 1844.717269 | CY43: 3547.53321 | CZ43: 1844.717269 | DA43: 1489.963948 | DB43: 2199.47059 | DC43: 2908.977232 | DD43: 2554.223911 | DE43: 2128.519926 | DF43: 1844.717269 | DG43: 3050.87856 | DH43: 2696.125239 | DI43: 2625.174575 | DJ43: 2057.569262 | DK43: 2128.519926 | DL43: 780.4573061 | DM43: 851.4079703 | DN43: 1206.161291 | DO43: 922.3586345 | DP43: 283.8026568 | DQ43: 638.5559777 | DR43: 141.9013284 | DS43: 70.95066419 | DT43: 283.8026568 | DU43: 496.6546494 | DV43: 70.95066419 | DW43: 212.8519926 | DX43: 212.8519926 | DY43: 425.7039852 | DZ43: 141.9013284 | EA43: 70.95066419 | EB43: 354.753321 | EC43: 0 | ED43: 141.9013284 | EE43: 141.9013284 | EF43: 0 | EG43: 212.8519926 | EH43: 0 | EI43: 0 | EJ43: 70.95066419 | EK43: 70.95066419 | EL43: 0 | EM43: 141.9013284 | EN43: 0 | EO43: 70.95066419 | EP43: 0 | EQ43: 0 | ER43: 0 | ES43: 141.9013284 | ET43: 0 | EU43: 0 | EV43: 0 | EW43: 0 | EX43: 0 | EY43: 0 | EZ43: 0 | FA43: 0 | FB43: 0 | FC43: 0 | FD43: 0 | FE43: 0 | FF43: 0 | FG43: 0 | FH43: 0 | FI43: 0 | FJ43: 0 | FK43: 0 | FL43: 0 | FM43: 0 | FN43: 0 | FO43: 0 | FP43: 0 | FQ43: 0 | FR43: 0 | FS43: 0 | FT43: 0 | FU43: 0 | FV43: 0 | FW43: 0 | FX43: 0 | FY43: 0 | FZ43: 0 | GA43: 0 | GB43: 0 | GC43: 0 | GD43: 0 | GE43: 0 | GF43: 0 | GG43: 0 | GH43: 0
A44: 5 | B44: TRANSFORMERS | C44: pole mounted ; < = 22 kv ; < = 60 kva ; multiple phase | D44: 7.456624728 | E44: 56.6480279 | F44: 7.526488418 | G44: 2 | H44: 9 | I44: 9 | J44: 10 | K44: 6 | L44: 10 | M44: 6 | N44: 10 | O44: 3 | P44: 7 | Q44: 4 | R44: 8 | S44: 3 | T44: 0 | U44: 13 | V44: 11 | W44: 3 | X44: 7 | Y44: 9 | Z44: 18 | AA44: 22 | AB44: 27 | AC44: 16 | AD44: 8 | AE44: 14 | AF44: 22 | AG44: 26 | AH44: 12 | AI44: 6 | AJ44: 12 | AK44: 32 | AL44: 36 | AM44: 16 | AN44: 17 | AO44: 30 | AP44: 21 | AQ44: 21 | AR44: 8 | AS44: 7 | AT44: 13 | AU44: 10 | AV44: 11 | AW44: 5 | AX44: 11 | AY44: 12 | AZ44: 5 | BA44: 5 | BB44: 5 | BC44: 3 | BD44: 6 | BE44: 6 | BF44: 3 | BG44: 8 | BH44: 2 | BI44: 2 | BJ44: 1 | BK44: 2 | BL44: 3 | BM44: 1 | BN44: 0 | BO44: 1 | BP44: 0 | BQ44: 0 | BR44: 1 | BS44: 1 | BT44: 0 | BU44: 0 | BV44: 0 | BW44: 0 | BX44: 0 | BY44: 0 | BZ44: 0 | CA44: 0 | CB44: 0 | CC44: 0 | CD44: 0 | CE44: 0 | CF44: 0 | CG44: 0 | CH44: 0 | CI44: 0 | CJ44: 0 | CK44: 1 | CL44: 1 | CM44: 0 | CN44: 0 | CO44: 0 | CP44: 0 | CQ44: 0 | CR44: 0 | CS44: 0 | CT44: 0 | CV44: 67.10962255 | CW44: 67.10962255 | CX44: 74.56624728 | CY44: 44.73974837 | CZ44: 74.56624728 | DA44: 44.73974837 | DB44: 74.56624728 | DC44: 22.36987418 | DD44: 52.19637309 | DE44: 29.82649891 | DF44: 59.65299782 | DG44: 22.36987418 | DH44: 0 | DI44: 96.93612146 | DJ44: 82.022872 | DK44: 22.36987418 | DL44: 52.19637309 | DM44: 67.10962255 | DN44: 134.2192451 | DO44: 164.045744 | DP44: 201.3288676 | DQ44: 119.3059956 | DR44: 59.65299782 | DS44: 104.3927462 | DT44: 164.045744 | DU44: 193.8722429 | DV44: 89.47949673 | DW44: 44.73974837 | DX44: 89.47949673 | DY44: 238.6119913 | DZ44: 268.4384902 | EA44: 119.3059956 | EB44: 126.7626204 | EC44: 223.6987418 | ED44: 156.5891193 | EE44: 156.5891193 | EF44: 59.65299782 | EG44: 52.19637309 | EH44: 96.93612146 | EI44: 74.56624728 | EJ44: 82.022872 | EK44: 37.28312364 | EL44: 82.022872 | EM44: 89.47949673 | EN44: 37.28312364 | EO44: 37.28312364 | EP44: 37.28312364 | EQ44: 22.36987418 | ER44: 44.73974837 | ES44: 44.73974837 | ET44: 22.36987418 | EU44: 59.65299782 | EV44: 14.91324946 | EW44: 14.91324946 | EX44: 7.456624728 | EY44: 14.91324946 | EZ44: 22.36987418 | FA44: 7.456624728 | FB44: 0 | FC44: 7.456624728 | FD44: 0 | FE44: 0 | FF44: 7.456624728 | FG44: 7.456624728 | FH44: 0 | FI44: 0 | FJ44: 0 | FK44: 0 | FL44: 0 | FM44: 0 | FN44: 0 | FO44: 0 | FP44: 0 | FQ44: 0 | FR44: 0 | FS44: 0 | FT44: 0 | FU44: 0 | FV44: 0 | FW44: 0 | FX44: 0 | FY44: 7.456624728 | FZ44: 7.456624728 | GA44: 0 | GB44: 0 | GC44: 0 | GD44: 0 | GE44: 0 | GF44: 0 | GG44: 0 | GH44: 0
A45: 5 | B45: TRANSFORMERS | C45: pole mounted ; < = 22 kv ; < = 60 kva ; single phase | D45: 7.326372918 | E45: 50.69641078 | F45: 7.120141205 | G45: 2 | H45: 18 | I45: 26 | J45: 31 | K45: 16 | L45: 18 | M45: 18 | N45: 22 | O45: 34 | P45: 27 | Q45: 27 | R45: 26 | S45: 17 | T45: 2 | U45: 28 | V45: 17 | W45: 16 | X45: 16 | Y45: 19 | Z45: 22 | AA45: 31 | AB45: 14 | AC45: 13 | AD45: 12 | AE45: 16 | AF45: 20 | AG45: 12 | AH45: 16 | AI45: 16 | AJ45: 18 | AK45: 57 | AL45: 59 | AM45: 67 | AN45: 64 | AO45: 71 | AP45: 85 | AQ45: 51 | AR45: 29 | AS45: 32 | AT45: 29 | AU45: 26 | AV45: 29 | AW45: 22 | AX45: 16 | AY45: 19 | AZ45: 6 | BA45: 1 | BB45: 5 | BC45: 10 | BD45: 10 | BE45: 7 | BF45: 4 | BG45: 4 | BH45: 1 | BI45: 2 | BJ45: 4 | BK45: 1 | BL45: 2 | BM45: 1 | BN45: 5 | BO45: 1 | BP45: 3 | BQ45: 1 | BR45: 0 | BS45: 2 | BT45: 0 | BU45: 1 | BV45: 0 | BW45: 0 | BX45: 0 | BY45: 0 | BZ45: 0 | CA45: 0 | CB45: 0 | CC45: 0 | CD45: 0 | CE45: 0 | CF45: 0 | CG45: 0 | CH45: 0 | CI45: 0 | CJ45: 0 | CK45: 0 | CL45: 0 | CM45: 0 | CN45: 0 | CO45: 0 | CP45: 0 | CQ45: 0 | CR45: 0 | CS45: 0 | CT45: 0 | CV45: 131.8747125 | CW45: 190.4856959 | CX45: 227.1175605 | CY45: 117.2219667 | CZ45: 131.8747125 | DA45: 131.8747125 | DB45: 161.1802042 | DC45: 249.0966792 | DD45: 197.8120688 | DE45: 197.8120688 | DF45: 190.4856959 | DG45: 124.5483396 | DH45: 14.65274584 | DI45: 205.1384417 | DJ45: 124.5483396 | DK45: 117.2219667 | DL45: 117.2219667 | DM45: 139.2010854 | DN45: 161.1802042 | DO45: 227.1175605 | DP45: 102.5692209 | DQ45: 95.24284794 | DR45: 87.91647502 | DS45: 117.2219667 | DT45: 146.5274584 | DU45: 87.91647502 | DV45: 117.2219667 | DW45: 117.2219667 | DX45: 131.8747125 | DY45: 417.6032563 | DZ45: 432.2560022 | EA45: 490.8669855 | EB45: 468.8878668 | EC45: 520.1724772 | ED45: 622.741698 | EE45: 373.6450188 | EF45: 212.4648146 | EG45: 234.4439334 | EH45: 212.4648146 | EI45: 190.4856959 | EJ45: 212.4648146 | EK45: 161.1802042 | EL45: 117.2219667 | EM45: 139.2010854 | EN45: 43.95823751 | EO45: 7.326372918 | EP45: 36.63186459 | EQ45: 73.26372918 | ER45: 73.26372918 | ES45: 51.28461043 | ET45: 29.30549167 | EU45: 29.30549167 | EV45: 7.326372918 | EW45: 14.65274584 | EX45: 29.30549167 | EY45: 7.326372918 | EZ45: 14.65274584 | FA45: 7.326372918 | FB45: 36.63186459 | FC45: 7.326372918 | FD45: 21.97911875 | FE45: 7.326372918 | FF45: 0 | FG45: 14.65274584 | FH45: 0 | FI45: 7.326372918 | FJ45: 0 | FK45: 0 | FL45: 0 | FM45: 0 | FN45: 0 | FO45: 0 | FP45: 0 | FQ45: 0 | FR45: 0 | FS45: 0 | FT45: 0 | FU45: 0 | FV45: 0 | FW45: 0 | FX45: 0 | FY45: 0 | FZ45: 0 | GA45: 0 | GB45: 0 | GC45: 0 | GD45: 0 | GE45: 0 | GF45: 0 | GG45: 0 | GH45: 0
A46: 5 | B46: TRANSFORMERS | C46: pole mounted ; < = 22 kv ; > 60 kva and < = 600 kva ; multiple phase | D46: 20.14880742 | E46: 54.2372596 | F46: 7.364595006 | G46: 2 | H46: 201 | I46: 194 | J46: 164 | K46: 231 | L46: 284 | M46: 258 | N46: 288 | O46: 305 | P46: 211 | Q46: 229 | R46: 617 | S46: 291 | T46: 264 | U46: 258 | V46: 109 | W46: 187 | X46: 190 | Y46: 188 | Z46: 201 | AA46: 114 | AB46: 92 | AC46: 58 | AD46: 43 | AE46: 34 | AF46: 45 | AG46: 53 | AH46: 62 | AI46: 57 | AJ46: 70 | AK46: 138 | AL46: 130 | AM46: 154 | AN46: 130 | AO46: 131 | AP46: 106 | AQ46: 69 | AR46: 69 | AS46: 79 | AT46: 75 | AU46: 67 | AV46: 77 | AW46: 96 | AX46: 117 | AY46: 116 | AZ46: 57 | BA46: 47 | BB46: 60 | BC46: 45 | BD46: 48 | BE46: 65 | BF46: 18 | BG46: 37 | BH46: 48 | BI46: 30 | BJ46: 24 | BK46: 27 | BL46: 16 | BM46: 16 | BN46: 12 | BO46: 22 | BP46: 7 | BQ46: 5 | BR46: 2 | BS46: 4 | BT46: 4 | BU46: 2 | BV46: 2 | BW46: 0 | BX46: 0 | BY46: 1 | BZ46: 0 | CA46: 0 | CB46: 0 | CC46: 0 | CD46: 0 | CE46: 0 | CF46: 0 | CG46: 0 | CH46: 0 | CI46: 0 | CJ46: 0 | CK46: 0 | CL46: 0 | CM46: 0 | CN46: 0 | CO46: 0 | CP46: 0 | CQ46: 0 | CR46: 0 | CS46: 0 | CT46: 0 | CV46: 4049.910291 | CW46: 3908.868639 | CX46: 3304.404417 | CY46: 4654.374514 | CZ46: 5722.261307 | DA46: 5198.392314 | DB46: 5802.856537 | DC46: 6145.386263 | DD46: 4251.398365 | DE46: 4614.076899 | DF46: 12431.81418 | DG46: 5863.302959 | DH46: 5319.285159 | DI46: 5198.392314 | DJ46: 2196.220009 | DK46: 3767.826987 | DL46: 3828.27341 | DM46: 3787.975795 | DN46: 4049.910291 | DO46: 2296.964046 | DP46: 1853.690283 | DQ46: 1168.63083 | DR46: 866.398719 | DS46: 685.0594522 | DT46: 906.6963338 | DU46: 1067.886793 | DV46: 1249.22606 | DW46: 1148.482023 | DX46: 1410.416519 | DY46: 2780.535424 | DZ46: 2619.344964 | EA46: 3102.916342 | EB46: 2619.344964 | EC46: 2639.493772 | ED46: 2135.773586 | EE46: 1390.267712 | EF46: 1390.267712 | EG46: 1591.755786 | EH46: 1511.160556 | EI46: 1349.970097 | EJ46: 1551.458171 | EK46: 1934.285512 | EL46: 2357.410468 | EM46: 2337.261661 | EN46: 1148.482023 | EO46: 946.9939487 | EP46: 1208.928445 | EQ46: 906.6963338 | ER46: 967.1427561 | ES46: 1309.672482 | ET46: 362.6785335 | EU46: 745.5058745 | EV46: 967.1427561 | EW46: 604.4642226 | EX46: 483.5713781 | EY46: 544.0178003 | EZ46: 322.3809187 | FA46: 322.3809187 | FB46: 241.785689 | FC46: 443.2737632 | FD46: 141.0416519 | FE46: 100.7440371 | FF46: 40.29761484 | FG46: 80.59522968 | FH46: 80.59522968 | FI46: 40.29761484 | FJ46: 40.29761484 | FK46: 0 | FL46: 0 | FM46: 20.14880742 | FN46: 0 | FO46: 0 | FP46: 0 | FQ46: 0 | FR46: 0 | FS46: 0 | FT46: 0 | FU46: 0 | FV46: 0 | FW46: 0 | FX46: 0 | FY46: 0 | FZ46: 0 | GA46: 0 | GB46: 0 | GC46: 0 | GD46: 0 | GE46: 0 | GF46: 0 | GG46: 0 | GH46: 0
A47: 5 | B47: TRANSFORMERS | C47: pole mounted ; < = 22 kv ; > 60 kva and < = 600 kva ; single phase | D47: 7.960358766 | E47: 30.09274818 | F47: 5.485685753 | G47: 2 | H47: 0 | I47: 0 | J47: 1 | K47: 9 | L47: 1 | M47: 1 | N47: 1 | O47: 2 | P47: 2 | Q47: 0 | R47: 0 | S47: 2 | T47: 1 | U47: 0 | V47: 3 | W47: 1 | X47: 0 | Y47: 2 | Z47: 0 | AA47: 3 | AB47: 1 | AC47: 1 | AD47: 0 | AE47: 0 | AF47: 2 | AG47: 1 | AH47: 1 | AI47: 1 | AJ47: 0 | AK47: 2 | AL47: 0 | AM47: 0 | AN47: 1 | AO47: 0 | AP47: 0 | AQ47: 0 | AR47: 0 | AS47: 0 | AT47: 0 | AU47: 0 | AV47: 0 | AW47: 0 | AX47: 0 | AY47: 0 | AZ47: 0 | BA47: 0 | BB47: 0 | BC47: 0 | BD47: 0 | BE47: 0 | BF47: 0 | BG47: 0 | BH47: 0 | BI47: 0 | BJ47: 0 | BK47: 0 | BL47: 0 | BM47: 0 | BN47: 0 | BO47: 0 | BP47: 0 | BQ47: 0 | BR47: 0 | BS47: 0 | BT47: 0 | BU47: 0 | BV47: 0 | BW47: 0 | BX47: 0 | BY47: 0 | BZ47: 0 | CA47: 0 | CB47: 0 | CC47: 0 | CD47: 0 | CE47: 0 | CF47: 0 | CG47: 0 | CH47: 0 | CI47: 0 | CJ47: 0 | CK47: 0 | CL47: 0 | CM47: 0 | CN47: 0 | CO47: 0 | CP47: 0 | CQ47: 0 | CR47: 0 | CS47: 0 | CT47: 0 | CV47: 0 | CW47: 0 | CX47: 7.960358766 | CY47: 71.6432289 | CZ47: 7.960358766 | DA47: 7.960358766 | DB47: 7.960358766 | DC47: 15.92071753 | DD47: 15.92071753 | DE47: 0 | DF47: 0 | DG47: 15.92071753 | DH47: 7.960358766 | DI47: 0 | DJ47: 23.8810763 | DK47: 7.960358766 | DL47: 0 | DM47: 15.92071753 | DN47: 0 | DO47: 23.8810763 | DP47: 7.960358766 | DQ47: 7.960358766 | DR47: 0 | DS47: 0 | DT47: 15.92071753 | DU47: 7.960358766 | DV47: 7.960358766 | DW47: 7.960358766 | DX47: 0 | DY47: 15.92071753 | DZ47: 0 | EA47: 0 | EB47: 7.960358766 | EC47: 0 | ED47: 0 | EE47: 0 | EF47: 0 | EG47: 0 | EH47: 0 | EI47: 0 | EJ47: 0 | EK47: 0 | EL47: 0 | EM47: 0 | EN47: 0 | EO47: 0 | EP47: 0 | EQ47: 0 | ER47: 0 | ES47: 0 | ET47: 0 | EU47: 0 | EV47: 0 | EW47: 0 | EX47: 0 | EY47: 0 | EZ47: 0 | FA47: 0 | FB47: 0 | FC47: 0 | FD47: 0 | FE47: 0 | FF47: 0 | FG47: 0 | FH47: 0 | FI47: 0 | FJ47: 0 | FK47: 0 | FL47: 0 | FM47: 0 | FN47: 0 | FO47: 0 | FP47: 0 | FQ47: 0 | FR47: 0 | FS47: 0 | FT47: 0 | FU47: 0 | FV47: 0 | FW47: 0 | FX47: 0 | FY47: 0 | FZ47: 0 | GA47: 0 | GB47: 0 | GC47: 0 | GD47: 0 | GE47: 0 | GF47: 0 | GG47: 0 | GH47: 0
A48: 5 | B48: TRANSFORMERS | C48: pole mounted ; < = 22 kv ; > 600 kva ; multiple phase | D48: 7.960358766 | E48: 30.09274818 | F48: 5.485685753 | G48: 2 | H48: 0 | I48: 0 | J48: 0 | K48: 0 | L48: 0 | M48: 0 | N48: 0 | O48: 0 | P48: 0 | Q48: 0 | R48: 0 | S48: 0 | T48: 0 | U48: 0 | V48: 0 | W48: 0 | X48: 0 | Y48: 0 | Z48: 0 | AA48: 0 | AB48: 0 | AC48: 0 | AD48: 0 | AE48: 0 | AF48: 0 | AG48: 0 | AH48: 0 | AI48: 0 | AJ48: 0 | AK48: 0 | AL48: 0 | AM48: 0 | AN48: 0 | AO48: 0 | AP48: 0 | AQ48: 0 | AR48: 0 | AS48: 0 | AT48: 0 | AU48: 0 | AV48: 0 | AW48: 0 | AX48: 0 | AY48: 0 | AZ48: 0 | BA48: 0 | BB48: 0 | BC48: 0 | BD48: 0 | BE48: 1 | BF48: 0 | BG48: 0 | BH48: 0 | BI48: 0 | BJ48: 0 | BK48: 0 | BL48: 0 | BM48: 0 | BN48: 0 | BO48: 0 | BP48: 0 | BQ48: 0 | BR48: 0 | BS48: 0 | BT48: 0 | BU48: 0 | BV48: 0 | BW48: 0 | BX48: 0 | BY48: 0 | BZ48: 0 | CA48: 0 | CB48: 0 | CC48: 0 | CD48: 0 | CE48: 0 | CF48: 0 | CG48: 0 | CH48: 0 | CI48: 0 | CJ48: 0 | CK48: 0 | CL48: 0 | CM48: 0 | CN48: 0 | CO48: 0 | CP48: 0 | CQ48: 0 | CR48: 0 | CS48: 0 | CT48: 0 | CV48: 0 | CW48: 0 | CX48: 0 | CY48: 0 | CZ48: 0 | DA48: 0 | DB48: 0 | DC48: 0 | DD48: 0 | DE48: 0 | DF48: 0 | DG48: 0 | DH48: 0 | DI48: 0 | DJ48: 0 | DK48: 0 | DL48: 0 | DM48: 0 | DN48: 0 | DO48: 0 | DP48: 0 | DQ48: 0 | DR48: 0 | DS48: 0 | DT48: 0 | DU48: 0 | DV48: 0 | DW48: 0 | DX48: 0 | DY48: 0 | DZ48: 0 | EA48: 0 | EB48: 0 | EC48: 0 | ED48: 0 | EE48: 0 | EF48: 0 | EG48: 0 | EH48: 0 | EI48: 0 | EJ48: 0 | EK48: 0 | EL48: 0 | EM48: 0 | EN48: 0 | EO48: 0 | EP48: 0 | EQ48: 0 | ER48: 0 | ES48: 7.960358766 | ET48: 0 | EU48: 0 | EV48: 0 | EW48: 0 | EX48: 0 | EY48: 0 | EZ48: 0 | FA48: 0 | FB48: 0 | FC48: 0 | FD48: 0 | FE48: 0 | FF48: 0 | FG48: 0 | FH48: 0 | FI48: 0 | FJ48: 0 | FK48: 0 | FL48: 0 | FM48: 0 | FN48: 0 | FO48: 0 | FP48: 0 | FQ48: 0 | FR48: 0 | FS48: 0 | FT48: 0 | FU48: 0 | FV48: 0 | FW48: 0 | FX48: 0 | FY48: 0 | FZ48: 0 | GA48: 0 | GB48: 0 | GC48: 0 | GD48: 0 | GE48: 0 | GF48: 0 | GG48: 0 | GH48: 0
A49: 6 | B49: UNDERGROUND CABLES | C49: ˂ = 1 kv | D49: 143.9777769 | E49: 61.86790906 | F49: 7.865615619 | G49: 2 | H49: 30.875 | I49: 36.487 | J49: 32.659 | K49: 40.114 | L49: 33.47 | M49: 36.792 | N49: 41.18 | O49: 49.85 | P49: 68.682 | Q49: 52.51 | R49: 58.842 | S49: 71.195 | T49: 68.563 | U49: 68.282 | V49: 67.539 | W49: 69.233 | X49: 76.941 | Y49: 87.265 | Z49: 59.632 | AA49: 99.89 | AB49: 107.771 | AC49: 130.214 | AD49: 58.651 | AE49: 37.277 | AF49: 69.199 | AG49: 68.324 | AH49: 40.181 | AI49: 30.935 | AJ49: 38.274 | AK49: 71.458 | AL49: 66.744 | AM49: 55.725 | AN49: 71.552 | AO49: 67.5 | AP49: 53.324 | AQ49: 67.569 | AR49: 65.039 | AS49: 42.323 | AT49: 30.511 | AU49: 35.904 | AV49: 27.662 | AW49: 42.442 | AX49: 58.906 | AY49: 56.468 | AZ49: 31.987 | BA49: 44.497 | BB49: 21.531 | BC49: 14.138 | BD49: 12.716 | BE49: 2.658 | BF49: 0.801 | BG49: 0.579 | BH49: 1.804 | BI49: 0.66 | BJ49: 0.428 | BK49: 0.418 | BL49: 0.086 | BM49: 0.519 | BN49: 0.25 | BO49: 0.54 | BP49: 0.091 | BQ49: 0.1 | BR49: 0 | BS49: 0 | BT49: 0.11 | BU49: 0.205 | BV49: 0.009 | BW49: 0 | BX49: 0 | BY49: 0.315 | BZ49: 0.137 | CA49: 0.049 | CB49: 0.213 | CC49: 0 | CD49: 0 | CE49: 0 | CF49: 0 | CG49: 0 | CH49: 0 | CI49: 0.292 | CJ49: 0 | CK49: 0 | CL49: 0 | CM49: 0 | CN49: 0 | CO49: 0 | CP49: 0 | CQ49: 0 | CR49: 0 | CS49: 0 | CT49: 0.024 | CV49: 4445.313863 | CW49: 5253.317147 | CX49: 4702.170217 | CY49: 5775.524544 | CZ49: 4818.936194 | DA49: 5297.230369 | DB49: 5929.004854 | DC49: 7177.29218 | DD49: 9888.681675 | DE49: 7560.273067 | DF49: 8471.94035 | DG49: 10250.49783 | DH49: 9871.54832 | DI49: 9831.090565 | DJ49: 9724.115076 | DK49: 9968.01343 | DL49: 11077.79414 | DM49: 12564.2207 | DN49: 8585.682794 | DO49: 14381.94014 | DP49: 15516.629 | DQ49: 18747.92225 | DR49: 8444.440595 | DS49: 5367.059591 | DT49: 9963.118186 | DU49: 9837.137631 | DV49: 5785.171055 | DW49: 4453.952529 | DX49: 5510.605434 | DY49: 10288.36398 | DZ49: 9609.652744 | EA49: 8023.16162 | EB49: 10301.8979 | EC49: 9718.499943 | ED49: 7677.470977 | EE49: 9728.43441 | EF49: 9364.170634 | EG49: 6093.571453 | EH49: 4392.905952 | EI49: 5169.378103 | EJ49: 3982.713266 | EK49: 6110.704809 | EL49: 8481.154928 | EM49: 8130.137108 | EN49: 4605.417151 | EO49: 6406.57914 | EP49: 3099.985515 | EQ49: 2035.55781 | ER49: 1830.821411 | ES49: 382.6929311 | ET49: 115.3261993 | EU49: 83.36313284 | EV49: 259.7359096 | EW49: 95.02533278 | EX49: 61.62248853 | EY49: 60.18271076 | EZ49: 12.38208882 | FA49: 74.72446623 | FB49: 35.99444423 | FC49: 77.74799954 | FD49: 13.1019777 | FE49: 14.39777769 | FF49: 0 | FG49: 0 | FH49: 15.83755546 | FI49: 29.51544427 | FJ49: 1.295799992 | FK49: 0 | FL49: 0 | FM49: 45.35299973 | FN49: 19.72495544 | FO49: 7.05491107 | FP49: 30.66726649 | FQ49: 0 | FR49: 0 | FS49: 0 | FT49: 0 | FU49: 0 | FV49: 0 | FW49: 42.04151086 | FX49: 0 | FY49: 0 | FZ49: 0 | GA49: 0 | GB49: 0 | GC49: 0 | GD49: 0 | GE49: 0 | GF49: 0 | GG49: 0 | GH49: 3.455466646
A50: 6 | B50: UNDERGROUND CABLES | C50: > 1 kv & < = 11 kv | D50: 793.5310837 | E50: 79.56556653 | F50: 8.919953281 | G50: 2 | H50: 5.246 | I50: 3.026 | J50: 7.893 | K50: 10.359 | L50: 13.23 | M50: 7.81 | N50: 9.422 | O50: 8.774 | P50: 8.059 | Q50: 8.897 | R50: 7.724 | S50: 4.718 | T50: 4.645 | U50: 8.61 | V50: 18.233 | W50: 2.6 | X50: 3.302 | Y50: 2.716 | Z50: 2.889 | AA50: 2.003 | AB50: 2.599 | AC50: 1.535 | AD50: 2.431 | AE50: 1.296 | AF50: 0.104 | AG50: 0.54 | AH50: 1.522 | AI50: 0.882 | AJ50: 0.909 | AK50: 0.875 | AL50: 1.599 | AM50: 1.806 | AN50: 0.907 | AO50: 0.3 | AP50: 4.391 | AQ50: 3.647 | AR50: 1.513 | AS50: 1.483 | AT50: 2.34 | AU50: 0.889 | AV50: 0.666 | AW50: 0.732 | AX50: 0.454 | AY50: 0.307 | AZ50: 1.051 | BA50: 0.488 | BB50: 1.5 | BC50: 1.028 | BD50: 1.377 | BE50: 0.213 | BF50: 4.133 | BG50: 3.245 | BH50: 2.822 | BI50: 1.436 | BJ50: 2.37 | BK50: 2.467 | BL50: 2.165 | BM50: 5.544 | BN50: 3.51 | BO50: 3.987 | BP50: 3.568 | BQ50: 4.856 | BR50: 0 | BS50: 0.162 | BT50: 1.275 | BU50: 0 | BV50: 0 | BW50: 0 | BX50: 0.061 | BY50: 0.376 | BZ50: 0.521 | CA50: 0 | CB50: 0 | CC50: 0 | CD50: 0 | CE50: 0.126 | CF50: 0 | CG50: 0 | CH50: 0.324 | CI50: 1.038 | CJ50: 0.025 | CK50: 0 | CL50: 0 | CM50: 0.052 | CN50: 0 | CO50: 0.823 | CP50: 1.569 | CQ50: 0.206 | CR50: 0 | CS50: 0 | CT50: 0 | CV50: 4162.864065 | CW50: 2401.225059 | CX50: 6263.340843 | CY50: 8220.188496 | CZ50: 10498.41624 | DA50: 6197.477763 | DB50: 7476.64987 | DC50: 6962.441728 | DD50: 6395.067003 | DE50: 7060.046051 | DF50: 6129.23409 | DG50: 3743.879653 | DH50: 3685.951884 | DI50: 6832.30263 | DJ50: 14468.45225 | DK50: 2063.180818 | DL50: 2620.239638 | DM50: 2155.230423 | DN50: 2292.511301 | DO50: 1589.442761 | DP50: 2062.387286 | DQ50: 1218.070213 | DR50: 1929.074064 | DS50: 1028.416284 | DT50: 82.5272327 | DU50: 428.5067852 | DV50: 1207.754309 | DW50: 699.8944158 | DX50: 721.3197551 | DY50: 694.3396982 | DZ50: 1268.856203 | EA50: 1433.117137 | EB50: 719.7326929 | EC50: 238.0593251 | ED50: 3484.394988 | EE50: 2894.007862 | EF50: 1200.61253 | EG50: 1176.806597 | EH50: 1856.862736 | EI50: 705.4491334 | EJ50: 528.4917017 | EK50: 580.8647532 | EL50: 360.263112 | EM50: 243.6140427 | EN50: 834.0011689 | EO50: 387.2431688 | EP50: 1190.296625 | EQ50: 815.749954 | ER50: 1092.692302 | ES50: 169.0221208 | ET50: 3279.663969 | EU50: 2575.008366 | EV50: 2239.344718 | EW50: 1139.510636 | EX50: 1880.668668 | EY50: 1957.641183 | EZ50: 1717.994796 | FA50: 4399.336328 | FB50: 2785.294104 | FC50: 3163.808431 | FD50: 2831.318907 | FE50: 3853.386942 | FF50: 0 | FG50: 128.5520356 | FH50: 1011.752132 | FI50: 0 | FJ50: 0 | FK50: 0 | FL50: 48.4053961 | FM50: 298.3676875 | FN50: 413.4296946 | FO50: 0 | FP50: 0 | FQ50: 0 | FR50: 0 | FS50: 99.98491654 | FT50: 0 | FU50: 0 | FV50: 257.1040711 | FW50: 823.6852648 | FX50: 19.83827709 | FY50: 0 | FZ50: 0 | GA50: 41.26361635 | GB50: 0 | GC50: 653.0760819 | GD50: 1245.05027 | GE50: 163.4674032 | GF50: 0 | GG50: 0 | GH50: 0
A51: 6 | B51: UNDERGROUND CABLES | C51: > 11 kv & < = 22 kv | D51: 631.0637389 | E51: 69.96516743 | F51: 8.364518362 | G51: 2 | H51: 16.035 | I51: 21.003 | J51: 22.078 | K51: 28.933 | L51: 32.501 | M51: 33.138 | N51: 24.403 | O51: 31.744 | P51: 23.332 | Q51: 28.564 | R51: 26.498 | S51: 28.969 | T51: 30.641 | U51: 38.612 | V51: 49.646 | W51: 30.03 | X51: 24.927 | Y51: 28.199 | Z51: 26.534 | AA51: 23.319 | AB51: 27.804 | AC51: 13.325 | AD51: 10.804 | AE51: 5.668 | AF51: 4.284 | AG51: 3.641 | AH51: 1.377 | AI51: 3.83 | AJ51: 2.411 | AK51: 4.672 | AL51: 10.272 | AM51: 10.739 | AN51: 9.611 | AO51: 9.658 | AP51: 4.958 | AQ51: 3.578 | AR51: 17.996 | AS51: 2.373 | AT51: 3.068 | AU51: 5.777 | AV51: 4.167 | AW51: 15.67 | AX51: 14.123 | AY51: 23.628 | AZ51: 18.7 | BA51: 4.446 | BB51: 10.865 | BC51: 9.863 | BD51: 9.853 | BE51: 6.12 | BF51: 5.291 | BG51: 3.951 | BH51: 3.058 | BI51: 8.3 | BJ51: 5.566 | BK51: 5.252 | BL51: 5.101 | BM51: 2.973 | BN51: 2.748 | BO51: 6.782 | BP51: 5.221 | BQ51: 0.339 | BR51: 2.53 | BS51: 2.771 | BT51: 1.042 | BU51: 0.05 | BV51: 0 | BW51: 0.141 | BX51: 0.152 | BY51: 1.921 | BZ51: 3.797 | CA51: 1.784 | CB51: 1.727 | CC51: 0.294 | CD51: 2.768 | CE51: 0.144 | CF51: 0 | CG51: 0 | CH51: 0.333 | CI51: 0.404 | CJ51: 0.308 | CK51: 0 | CL51: 0.223 | CM51: 0 | CN51: 0 | CO51: 0 | CP51: 0 | CQ51: 0 | CR51: 0 | CS51: 0 | CT51: 0 | CV51: 10119.10705 | CW51: 13254.23171 | CX51: 13932.62523 | CY51: 18258.56716 | CZ51: 20510.20258 | DA51: 20912.19018 | DB51: 15399.84842 | DC51: 20032.48733 | DD51: 14723.97916 | DE51: 18025.70464 | DF51: 16721.92695 | DG51: 18281.28545 | DH51: 19336.42402 | DI51: 24366.63309 | DJ51: 31329.79038 | DK51: 18950.84408 | DL51: 15730.52582 | DM51: 17795.36637 | DN51: 16744.64525 | DO51: 14715.77533 | DP51: 17546.0962 | DQ51: 8408.924321 | DR51: 6818.012635 | DS51: 3576.869272 | DT51: 2703.477057 | DU51: 2297.703073 | DV51: 868.9747684 | DW51: 2416.97412 | DX51: 1521.494674 | DY51: 2948.329788 | DZ51: 6482.286726 | EA51: 6776.993492 | EB51: 6065.153594 | EC51: 6094.81359 | ED51: 3128.814017 | EE51: 2257.946058 | EF51: 11356.62304 | EG51: 1497.514252 | EH51: 1936.103551 | EI51: 3645.65522 | EJ51: 2629.6426 | EK51: 9888.768788 | EL51: 8912.513184 | EM51: 14910.77402 | EN51: 11800.89192 | EO51: 2805.709383 | EP51: 6856.507523 | EQ51: 6224.181657 | ER51: 6217.871019 | ES51: 3862.110082 | ET51: 3338.958242 | EU51: 2493.332832 | EV51: 1929.792914 | EW51: 5237.829033 | EX51: 3512.500771 | EY51: 3314.346757 | EZ51: 3219.056132 | FA51: 1876.152496 | FB51: 1734.163154 | FC51: 4279.874277 | FD51: 3294.783781 | FE51: 213.9306075 | FF51: 1596.591259 | FG51: 1748.67762 | FH51: 657.5684159 | FI51: 31.55318694 | FJ51: 0 | FK51: 88.97998718 | FL51: 95.92168831 | FM51: 1212.273442 | FN51: 2396.149017 | FO51: 1125.81771 | FP51: 1089.847077 | FQ51: 185.5327392 | FR51: 1746.784429 | FS51: 90.8731784 | FT51: 0 | FU51: 0 | FV51: 210.144225 | FW51: 254.9497505 | FX51: 194.3676316 | FY51: 0 | FZ51: 140.7272138 | GA51: 0 | GB51: 0 | GC51: 0 | GD51: 0 | GE51: 0 | GF51: 0 | GG51: 0 | GH51: 0
B52: UNDERGROUND CABLES | C52: > 33 kv & < = 66 kv | D52: 660.02032 | E52: 24.23626227 | F52: 4.923033848 | G52: 2 | H52: 0.175 | I52: 0 | J52: 0.11 | K52: 0.214 | L52: 0 | M52: 0 | N52: 0 | O52: 0.362 | P52: 0 | Q52: 0.345 | R52: 0.753 | S52: 0.263 | T52: 0.158 | U52: 0 | V52: 0 | W52: 0 | X52: 0.742 | Y52: 0 | Z52: 0.343 | AA52: 0 | AB52: 0.033 | AC52: 0.102 | AD52: 0 | AE52: 0 | AF52: 0 | AG52: 0 | AH52: 0 | AI52: 0 | AJ52: 0 | AK52: 0 | AL52: 0 | AM52: 0 | AN52: 0 | AO52: 0 | AP52: 0 | AQ52: 0 | AR52: 0 | AS52: 0 | AT52: 0 | AU52: 0 | AV52: 0 | AW52: 0 | AX52: 0 | AY52: 0 | AZ52: 0 | BA52: 0 | BB52: 0 | BC52: 0 | BD52: 0 | BE52: 0 | BF52: 0 | BG52: 0 | BH52: 0 | BI52: 0 | BJ52: 0 | BK52: 0 | BL52: 0 | BM52: 0 | BN52: 0 | BO52: 0 | BP52: 0 | BQ52: 0 | BR52: 0 | BS52: 0 | BT52: 0 | BU52: 0 | BV52: 0 | BW52: 0 | BX52: 0 | BY52: 0 | BZ52: 0 | CA52: 0 | CB52: 0 | CC52: 0 | CD52: 0 | CE52: 0 | CF52: 0 | CG52: 0 | CH52: 0 | CI52: 0 | CJ52: 0 | CK52: 0 | CL52: 0 | CM52: 0 | CN52: 0 | CO52: 0 | CP52: 0 | CQ52: 0 | CR52: 0 | CS52: 0 | CT52: 0 | CV52: 115.503556 | CW52: 0 | CX52: 72.6022352 | CY52: 141.2443485 | CZ52: 0 | DA52: 0 | DB52: 0 | DC52: 238.9273559 | DD52: 0 | DE52: 227.7070104 | DF52: 496.995301 | DG52: 173.5853442 | DH52: 104.2832106 | DI52: 0 | DJ52: 0 | DK52: 0 | DL52: 489.7350775 | DM52: 0 | DN52: 226.3869698 | DO52: 0 | DP52: 21.78067056 | DQ52: 67.32207264 | DR52: 0 | DS52: 0 | DT52: 0 | DU52: 0 | DV52: 0 | DW52: 0 | DX52: 0 | DY52: 0 | DZ52: 0 | EA52: 0 | EB52: 0 | EC52: 0 | ED52: 0 | EE52: 0 | EF52: 0 | EG52: 0 | EH52: 0 | EI52: 0 | EJ52: 0 | EK52: 0 | EL52: 0 | EM52: 0 | EN52: 0 | EO52: 0 | EP52: 0 | EQ52: 0 | ER52: 0 | ES52: 0 | ET52: 0 | EU52: 0 | EV52: 0 | EW52: 0 | EX52: 0 | EY52: 0 | EZ52: 0 | FA52: 0 | FB52: 0 | FC52: 0 | FD52: 0 | FE52: 0 | FF52: 0 | FG52: 0 | FH52: 0 | FI52: 0 | FJ52: 0 | FK52: 0 | FL52: 0 | FM52: 0 | FN52: 0 | FO52: 0 | FP52: 0 | FQ52: 0 | FR52: 0 | FS52: 0 | FT52: 0 | FU52: 0 | FV52: 0 | FW52: 0 | FX52: 0 | FY52: 0 | FZ52: 0 | GA52: 0 | GB52: 0 | GC52: 0 | GD52: 0 | GE52: 0 | GF52: 0 | GG52: 0 | GH52: 0
CV53: 0 | CW53: 0 | CX53: 0 | CY53: 0 | CZ53: 0 | DA53: 0 | DB53: 0 | DC53: 0 | DD53: 0 | DE53: 0 | DF53: 0 | DG53: 0 | DH53: 0 | DI53: 0 | DJ53: 0 | DK53: 0 | DL53: 0 | DM53: 0 | DN53: 0 | DO53: 0 | DP53: 0 | DQ53: 0 | DR53: 0 | DS53: 0 | DT53: 0 | DU53: 0 | DV53: 0 | DW53: 0 | DX53: 0 | DY53: 0 | DZ53: 0 | EA53: 0 | EB53: 0 | EC53: 0 | ED53: 0 | EE53: 0 | EF53: 0 | EG53: 0 | EH53: 0 | EI53: 0 | EJ53: 0 | EK53: 0 | EL53: 0 | EM53: 0 | EN53: 0 | EO53: 0 | EP53: 0 | EQ53: 0 | ER53: 0 | ES53: 0 | ET53: 0 | EU53: 0 | EV53: 0 | EW53: 0 | EX53: 0 | EY53: 0 | EZ53: 0 | FA53: 0 | FB53: 0 | FC53: 0 | FD53: 0 | FE53: 0 | FF53: 0 | FG53: 0 | FH53: 0 | FI53: 0 | FJ53: 0 | FK53: 0 | FL53: 0 | FM53: 0 | FN53: 0 | FO53: 0 | FP53: 0 | FQ53: 0 | FR53: 0 | FS53: 0 | FT53: 0 | FU53: 0 | FV53: 0 | FW53: 0 | FX53: 0 | FY53: 0 | FZ53: 0 | GA53: 0 | GB53: 0 | GC53: 0 | GD53: 0 | GE53: 0 | GF53: 0 | GG53: 0 | GH53: 0
CV54: 0 | CW54: 0 | CX54: 0 | CY54: 0 | CZ54: 0 | DA54: 0 | DB54: 0 | DC54: 0 | DD54: 0 | DE54: 0 | DF54: 0 | DG54: 0 | DH54: 0 | DI54: 0 | DJ54: 0 | DK54: 0 | DL54: 0 | DM54: 0 | DN54: 0 | DO54: 0 | DP54: 0 | DQ54: 0 | DR54: 0 | DS54: 0 | DT54: 0 | DU54: 0 | DV54: 0 | DW54: 0 | DX54: 0 | DY54: 0 | DZ54: 0 | EA54: 0 | EB54: 0 | EC54: 0 | ED54: 0 | EE54: 0 | EF54: 0 | EG54: 0 | EH54: 0 | EI54: 0 | EJ54: 0 | EK54: 0 | EL54: 0 | EM54: 0 | EN54: 0 | EO54: 0 | EP54: 0 | EQ54: 0 | ER54: 0 | ES54: 0 | ET54: 0 | EU54: 0 | EV54: 0 | EW54: 0 | EX54: 0 | EY54: 0 | EZ54: 0 | FA54: 0 | FB54: 0 | FC54: 0 | FD54: 0 | FE54: 0 | FF54: 0 | FG54: 0 | FH54: 0 | FI54: 0 | FJ54: 0 | FK54: 0 | FL54: 0 | FM54: 0 | FN54: 0 | FO54: 0 | FP54: 0 | FQ54: 0 | FR54: 0 | FS54: 0 | FT54: 0 | FU54: 0 | FV54: 0 | FW54: 0 | FX54: 0 | FY54: 0 | FZ54: 0 | GA54: 0 | GB54: 0 | GC54: 0 | GD54: 0 | GE54: 0 | GF54: 0 | GG54: 0 | GH54: 0
CV55: 0 | CW55: 0 | CX55: 0 | CY55: 0 | CZ55: 0 | DA55: 0 | DB55: 0 | DC55: 0 | DD55: 0 | DE55: 0 | DF55: 0 | DG55: 0 | DH55: 0 | DI55: 0 | DJ55: 0 | DK55: 0 | DL55: 0 | DM55: 0 | DN55: 0 | DO55: 0 | DP55: 0 | DQ55: 0 | DR55: 0 | DS55: 0 | DT55: 0 | DU55: 0 | DV55: 0 | DW55: 0 | DX55: 0 | DY55: 0 | DZ55: 0 | EA55: 0 | EB55: 0 | EC55: 0 | ED55: 0 | EE55: 0 | EF55: 0 | EG55: 0 | EH55: 0 | EI55: 0 | EJ55: 0 | EK55: 0 | EL55: 0 | EM55: 0 | EN55: 0 | EO55: 0 | EP55: 0 | EQ55: 0 | ER55: 0 | ES55: 0 | ET55: 0 | EU55: 0 | EV55: 0 | EW55: 0 | EX55: 0 | EY55: 0 | EZ55: 0 | FA55: 0 | FB55: 0 | FC55: 0 | FD55: 0 | FE55: 0 | FF55: 0 | FG55: 0 | FH55: 0 | FI55: 0 | FJ55: 0 | FK55: 0 | FL55: 0 | FM55: 0 | FN55: 0 | FO55: 0 | FP55: 0 | FQ55: 0 | FR55: 0 | FS55: 0 | FT55: 0 | FU55: 0 | FV55: 0 | FW55: 0 | FX55: 0 | FY55: 0 | FZ55: 0 | GA55: 0 | GB55: 0 | GC55: 0 | GD55: 0 | GE55: 0 | GF55: 0 | GG55: 0 | GH55: 0
CV56: 0 | CW56: 0 | CX56: 0 | CY56: 0 | CZ56: 0 | DA56: 0 | DB56: 0 | DC56: 0 | DD56: 0 | DE56: 0 | DF56: 0 | DG56: 0 | DH56: 0 | DI56: 0 | DJ56: 0 | DK56: 0 | DL56: 0 | DM56: 0 | DN56: 0 | DO56: 0 | DP56: 0 | DQ56: 0 | DR56: 0 | DS56: 0 | DT56: 0 | DU56: 0 | DV56: 0 | DW56: 0 | DX56: 0 | DY56: 0 | DZ56: 0 | EA56: 0 | EB56: 0 | EC56: 0 | ED56: 0 | EE56: 0 | EF56: 0 | EG56: 0 | EH56: 0 | EI56: 0 | EJ56: 0 | EK56: 0 | EL56: 0 | EM56: 0 | EN56: 0 | EO56: 0 | EP56: 0 | EQ56: 0 | ER56: 0 | ES56: 0 | ET56: 0 | EU56: 0 | EV56: 0 | EW56: 0 | EX56: 0 | EY56: 0 | EZ56: 0 | FA56: 0 | FB56: 0 | FC56: 0 | FD56: 0 | FE56: 0 | FF56: 0 | FG56: 0 | FH56: 0 | FI56: 0 | FJ56: 0 | FK56: 0 | FL56: 0 | FM56: 0 | FN56: 0 | FO56: 0 | FP56: 0 | FQ56: 0 | FR56: 0 | FS56: 0 | FT56: 0 | FU56: 0 | FV56: 0 | FW56: 0 | FX56: 0 | FY56: 0 | FZ56: 0 | GA56: 0 | GB56: 0 | GC56: 0 | GD56: 0 | GE56: 0 | GF56: 0 | GG56: 0 | GH56: 0
CV57: 0 | CW57: 0 | CX57: 0 | CY57: 0 | CZ57: 0 | DA57: 0 | DB57: 0 | DC57: 0 | DD57: 0 | DE57: 0 | DF57: 0 | DG57: 0 | DH57: 0 | DI57: 0 | DJ57: 0 | DK57: 0 | DL57: 0 | DM57: 0 | DN57: 0 | DO57: 0 | DP57: 0 | DQ57: 0 | DR57: 0 | DS57: 0 | DT57: 0 | DU57: 0 | DV57: 0 | DW57: 0 | DX57: 0 | DY57: 0 | DZ57: 0 | EA57: 0 | EB57: 0 | EC57: 0 | ED57: 0 | EE57: 0 | EF57: 0 | EG57: 0 | EH57: 0 | EI57: 0 | EJ57: 0 | EK57: 0 | EL57: 0 | EM57: 0 | EN57: 0 | EO57: 0 | EP57: 0 | EQ57: 0 | ER57: 0 | ES57: 0 | ET57: 0 | EU57: 0 | EV57: 0 | EW57: 0 | EX57: 0 | EY57: 0 | EZ57: 0 | FA57: 0 | FB57: 0 | FC57: 0 | FD57: 0 | FE57: 0 | FF57: 0 | FG57: 0 | FH57: 0 | FI57: 0 | FJ57: 0 | FK57: 0 | FL57: 0 | FM57: 0 | FN57: 0 | FO57: 0 | FP57: 0 | FQ57: 0 | FR57: 0 | FS57: 0 | FT57: 0 | FU57: 0 | FV57: 0 | FW57: 0 | FX57: 0 | FY57: 0 | FZ57: 0 | GA57: 0 | GB57: 0 | GC57: 0 | GD57: 0 | GE57: 0 | GF57: 0 | GG57: 0 | GH57: 0
CV58: 0 | CW58: 0 | CX58: 0 | CY58: 0 | CZ58: 0 | DA58: 0 | DB58: 0 | DC58: 0 | DD58: 0 | DE58: 0 | DF58: 0 | DG58: 0 | DH58: 0 | DI58: 0 | DJ58: 0 | DK58: 0 | DL58: 0 | DM58: 0 | DN58: 0 | DO58: 0 | DP58: 0 | DQ58: 0 | DR58: 0 | DS58: 0 | DT58: 0 | DU58: 0 | DV58: 0 | DW58: 0 | DX58: 0 | DY58: 0 | DZ58: 0 | EA58: 0 | EB58: 0 | EC58: 0 | ED58: 0 | EE58: 0 | EF58: 0 | EG58: 0 | EH58: 0 | EI58: 0 | EJ58: 0 | EK58: 0 | EL58: 0 | EM58: 0 | EN58: 0 | EO58: 0 | EP58: 0 | EQ58: 0 | ER58: 0 | ES58: 0 | ET58: 0 | EU58: 0 | EV58: 0 | EW58: 0 | EX58: 0 | EY58: 0 | EZ58: 0 | FA58: 0 | FB58: 0 | FC58: 0 | FD58: 0 | FE58: 0 | FF58: 0 | FG58: 0 | FH58: 0 | FI58: 0 | FJ58: 0 | FK58: 0 | FL58: 0 | FM58: 0 | FN58: 0 | FO58: 0 | FP58: 0 | FQ58: 0 | FR58: 0 | FS58: 0 | FT58: 0 | FU58: 0 | FV58: 0 | FW58: 0 | FX58: 0 | FY58: 0 | FZ58: 0 | GA58: 0 | GB58: 0 | GC58: 0 | GD58: 0 | GE58: 0 | GF58: 0 | GG58: 0 | GH58: 0
CV59: 0 | CW59: 0 | CX59: 0 | CY59: 0 | CZ59: 0 | DA59: 0 | DB59: 0 | DC59: 0 | DD59: 0 | DE59: 0 | DF59: 0 | DG59: 0 | DH59: 0 | DI59: 0 | DJ59: 0 | DK59: 0 | DL59: 0 | DM59: 0 | DN59: 0 | DO59: 0 | DP59: 0 | DQ59: 0 | DR59: 0 | DS59: 0 | DT59: 0 | DU59: 0 | DV59: 0 | DW59: 0 | DX59: 0 | DY59: 0 | DZ59: 0 | EA59: 0 | EB59: 0 | EC59: 0 | ED59: 0 | EE59: 0 | EF59: 0 | EG59: 0 | EH59: 0 | EI59: 0 | EJ59: 0 | EK59: 0 | EL59: 0 | EM59: 0 | EN59: 0 | EO59: 0 | EP59: 0 | EQ59: 0 | ER59: 0 | ES59: 0 | ET59: 0 | EU59: 0 | EV59: 0 | EW59: 0 | EX59: 0 | EY59: 0 | EZ59: 0 | FA59: 0 | FB59: 0 | FC59: 0 | FD59: 0 | FE59: 0 | FF59: 0 | FG59: 0 | FH59: 0 | FI59: 0 | FJ59: 0 | FK59: 0 | FL59: 0 | FM59: 0 | FN59: 0 | FO59: 0 | FP59: 0 | FQ59: 0 | FR59: 0 | FS59: 0 | FT59: 0 | FU59: 0 | FV59: 0 | FW59: 0 | FX59: 0 | FY59: 0 | FZ59: 0 | GA59: 0 | GB59: 0 | GC59: 0 | GD59: 0 | GE59: 0 | GF59: 0 | GG59: 0 | GH59: 0
CV60: 0 | CW60: 0 | CX60: 0 | CY60: 0 | CZ60: 0 | DA60: 0 | DB60: 0 | DC60: 0 | DD60: 0 | DE60: 0 | DF60: 0 | DG60: 0 | DH60: 0 | DI60: 0 | DJ60: 0 | DK60: 0 | DL60: 0 | DM60: 0 | DN60: 0 | DO60: 0 | DP60: 0 | DQ60: 0 | DR60: 0 | DS60: 0 | DT60: 0 | DU60: 0 | DV60: 0 | DW60: 0 | DX60: 0 | DY60: 0 | DZ60: 0 | EA60: 0 | EB60: 0 | EC60: 0 | ED60: 0 | EE60: 0 | EF60: 0 | EG60: 0 | EH60: 0 | EI60: 0 | EJ60: 0 | EK60: 0 | EL60: 0 | EM60: 0 | EN60: 0 | EO60: 0 | EP60: 0 | EQ60: 0 | ER60: 0 | ES60: 0 | ET60: 0 | EU60: 0 | EV60: 0 | EW60: 0 | EX60: 0 | EY60: 0 | EZ60: 0 | FA60: 0 | FB60: 0 | FC60: 0 | FD60: 0 | FE60: 0 | FF60: 0 | FG60: 0 | FH60: 0 | FI60: 0 | FJ60: 0 | FK60: 0 | FL60: 0 | FM60: 0 | FN60: 0 | FO60: 0 | FP60: 0 | FQ60: 0 | FR60: 0 | FS60: 0 | FT60: 0 | FU60: 0 | FV60: 0 | FW60: 0 | FX60: 0 | FY60: 0 | FZ60: 0 | GA60: 0 | GB60: 0 | GC60: 0 | GD60: 0 | GE60: 0 | GF60: 0 | GG60: 0 | GH60: 0
CV61: 0 | CW61: 0 | CX61: 0 | CY61: 0 | CZ61: 0 | DA61: 0 | DB61: 0 | DC61: 0 | DD61: 0 | DE61: 0 | DF61: 0 | DG61: 0 | DH61: 0 | DI61: 0 | DJ61: 0 | DK61: 0 | DL61: 0 | DM61: 0 | DN61: 0 | DO61: 0 | DP61: 0 | DQ61: 0 | DR61: 0 | DS61: 0 | DT61: 0 | DU61: 0 | DV61: 0 | DW61: 0 | DX61: 0 | DY61: 0 | DZ61: 0 | EA61: 0 | EB61: 0 | EC61: 0 | ED61: 0 | EE61: 0 | EF61: 0 | EG61: 0 | EH61: 0 | EI61: 0 | EJ61: 0 | EK61: 0 | EL61: 0 | EM61: 0 | EN61: 0 | EO61: 0 | EP61: 0 | EQ61: 0 | ER61: 0 | ES61: 0 | ET61: 0 | EU61: 0 | EV61: 0 | EW61: 0 | EX61: 0 | EY61: 0 | EZ61: 0 | FA61: 0 | FB61: 0 | FC61: 0 | FD61: 0 | FE61: 0 | FF61: 0 | FG61: 0 | FH61: 0 | FI61: 0 | FJ61: 0 | FK61: 0 | FL61: 0 | FM61: 0 | FN61: 0 | FO61: 0 | FP61: 0 | FQ61: 0 | FR61: 0 | FS61: 0 | FT61: 0 | FU61: 0 | FV61: 0 | FW61: 0 | FX61: 0 | FY61: 0 | FZ61: 0 | GA61: 0 | GB61: 0 | GC61: 0 | GD61: 0 | GE61: 0 | GF61: 0 | GG61: 0 | GH61: 0
CV62: 0 | CW62: 0 | CX62: 0 | CY62: 0 | CZ62: 0 | DA62: 0 | DB62: 0 | DC62: 0 | DD62: 0 | DE62: 0 | DF62: 0 | DG62: 0 | DH62: 0 | DI62: 0 | DJ62: 0 | DK62: 0 | DL62: 0 | DM62: 0 | DN62: 0 | DO62: 0 | DP62: 0 | DQ62: 0 | DR62: 0 | DS62: 0 | DT62: 0 | DU62: 0 | DV62: 0 | DW62: 0 | DX62: 0 | DY62: 0 | DZ62: 0 | EA62: 0 | EB62: 0 | EC62: 0 | ED62: 0 | EE62: 0 | EF62: 0 | EG62: 0 | EH62: 0 | EI62: 0 | EJ62: 0 | EK62: 0 | EL62: 0 | EM62: 0 | EN62: 0 | EO62: 0 | EP62: 0 | EQ62: 0 | ER62: 0 | ES62: 0 | ET62: 0 | EU62: 0 | EV62: 0 | EW62: 0 | EX62: 0 | EY62: 0 | EZ62: 0 | FA62: 0 | FB62: 0 | FC62: 0 | FD62: 0 | FE62: 0 | FF62: 0 | FG62: 0 | FH62: 0 | FI62: 0 | FJ62: 0 | FK62: 0 | FL62: 0 | FM62: 0 | FN62: 0 | FO62: 0 | FP62: 0 | FQ62: 0 | FR62: 0 | FS62: 0 | FT62: 0 | FU62: 0 | FV62: 0 | FW62: 0 | FX62: 0 | FY62: 0 | FZ62: 0 | GA62: 0 | GB62: 0 | GC62: 0 | GD62: 0 | GE62: 0 | GF62: 0 | GG62: 0 | GH62: 0
CV63: 0 | CW63: 0 | CX63: 0 | CY63: 0 | CZ63: 0 | DA63: 0 | DB63: 0 | DC63: 0 | DD63: 0 | DE63: 0 | DF63: 0 | DG63: 0 | DH63: 0 | DI63: 0 | DJ63: 0 | DK63: 0 | DL63: 0 | DM63: 0 | DN63: 0 | DO63: 0 | DP63: 0 | DQ63: 0 | DR63: 0 | DS63: 0 | DT63: 0 | DU63: 0 | DV63: 0 | DW63: 0 | DX63: 0 | DY63: 0 | DZ63: 0 | EA63: 0 | EB63: 0 | EC63: 0 | ED63: 0 | EE63: 0 | EF63: 0 | EG63: 0 | EH63: 0 | EI63: 0 | EJ63: 0 | EK63: 0 | EL63: 0 | EM63: 0 | EN63: 0 | EO63: 0 | EP63: 0 | EQ63: 0 | ER63: 0 | ES63: 0 | ET63: 0 | EU63: 0 | EV63: 0 | EW63: 0 | EX63: 0 | EY63: 0 | EZ63: 0 | FA63: 0 | FB63: 0 | FC63: 0 | FD63: 0 | FE63: 0 | FF63: 0 | FG63: 0 | FH63: 0 | FI63: 0 | FJ63: 0 | FK63: 0 | FL63: 0 | FM63: 0 | FN63: 0 | FO63: 0 | FP63: 0 | FQ63: 0 | FR63: 0 | FS63: 0 | FT63: 0 | FU63: 0 | FV63: 0 | FW63: 0 | FX63: 0 | FY63: 0 | FZ63: 0 | GA63: 0 | GB63: 0 | GC63: 0 | GD63: 0 | GE63: 0 | GF63: 0 | GG63: 0 | GH63: 0
CV64: 0 | CW64: 0 | CX64: 0 | CY64: 0 | CZ64: 0 | DA64: 0 | DB64: 0 | DC64: 0 | DD64: 0 | DE64: 0 | DF64: 0 | DG64: 0 | DH64: 0 | DI64: 0 | DJ64: 0 | DK64: 0 | DL64: 0 | DM64: 0 | DN64: 0 | DO64: 0 | DP64: 0 | DQ64: 0 | DR64: 0 | DS64: 0 | DT64: 0 | DU64: 0 | DV64: 0 | DW64: 0 | DX64: 0 | DY64: 0 | DZ64: 0 | EA64: 0 | EB64: 0 | EC64: 0 | ED64: 0 | EE64: 0 | EF64: 0 | EG64: 0 | EH64: 0 | EI64: 0 | EJ64: 0 | EK64: 0 | EL64: 0 | EM64: 0 | EN64: 0 | EO64: 0 | EP64: 0 | EQ64: 0 | ER64: 0 | ES64: 0 | ET64: 0 | EU64: 0 | EV64: 0 | EW64: 0 | EX64: 0 | EY64: 0 | EZ64: 0 | FA64: 0 | FB64: 0 | FC64: 0 | FD64: 0 | FE64: 0 | FF64: 0 | FG64: 0 | FH64: 0 | FI64: 0 | FJ64: 0 | FK64: 0 | FL64: 0 | FM64: 0 | FN64: 0 | FO64: 0 | FP64: 0 | FQ64: 0 | FR64: 0 | FS64: 0 | FT64: 0 | FU64: 0 | FV64: 0 | FW64: 0 | FX64: 0 | FY64: 0 | FZ64: 0 | GA64: 0 | GB64: 0 | GC64: 0 | GD64: 0 | GE64: 0 | GF64: 0 | GG64: 0 | GH64: 0
CV65: 0 | CW65: 0 | CX65: 0 | CY65: 0 | CZ65: 0 | DA65: 0 | DB65: 0 | DC65: 0 | DD65: 0 | DE65: 0 | DF65: 0 | DG65: 0 | DH65: 0 | DI65: 0 | DJ65: 0 | DK65: 0 | DL65: 0 | DM65: 0 | DN65: 0 | DO65: 0 | DP65: 0 | DQ65: 0 | DR65: 0 | DS65: 0 | DT65: 0 | DU65: 0 | DV65: 0 | DW65: 0 | DX65: 0 | DY65: 0 | DZ65: 0 | EA65: 0 | EB65: 0 | EC65: 0 | ED65: 0 | EE65: 0 | EF65: 0 | EG65: 0 | EH65: 0 | EI65: 0 | EJ65: 0 | EK65: 0 | EL65: 0 | EM65: 0 | EN65: 0 | EO65: 0 | EP65: 0 | EQ65: 0 | ER65: 0 | ES65: 0 | ET65: 0 | EU65: 0 | EV65: 0 | EW65: 0 | EX65: 0 | EY65: 0 | EZ65: 0 | FA65: 0 | FB65: 0 | FC65: 0 | FD65: 0 | FE65: 0 | FF65: 0 | FG65: 0 | FH65: 0 | FI65: 0 | FJ65: 0 | FK65: 0 | FL65: 0 | FM65: 0 | FN65: 0 | FO65: 0 | FP65: 0 | FQ65: 0 | FR65: 0 | FS65: 0 | FT65: 0 | FU65: 0 | FV65: 0 | FW65: 0 | FX65: 0 | FY65: 0 | FZ65: 0 | GA65: 0 | GB65: 0 | GC65: 0 | GD65: 0 | GE65: 0 | GF65: 0 | GG65: 0 | GH65: 0
CV66: =IFERROR($D66*H66,"") -> 0 | CW66: =IFERROR($D66*I66,"") -> 0 | CX66: =IFERROR($D66*J66,"") -> 0 | CY66: =IFERROR($D66*K66,"") -> 0 | CZ66: =IFERROR($D66*L66,"") -> 0 | DA66: =IFERROR($D66*M66,"") -> 0 | DB66: =IFERROR($D66*N66,"") -> 0 | DC66: =IFERROR($D66*O66,"") -> 0 | DD66: =IFERROR($D66*P66,"") -> 0 | DE66: =IFERROR($D66*Q66,"") -> 0 | DF66: =IFERROR($D66*R66,"") -> 0 | DG66: =IFERROR($D66*S66,"") -> 0 | DH66: =IFERROR($D66*T66,"") -> 0 | DI66: =IFERROR($D66*U66,"") -> 0 | DJ66: =IFERROR($D66*V66,"") -> 0 | DK66: =IFERROR($D66*W66,"") -> 0 | DL66: =IFERROR($D66*X66,"") -> 0 | DM66: =IFERROR($D66*Y66,"") -> 0 | DN66: =IFERROR($D66*Z66,"") -> 0 | DO66: =IFERROR($D66*AA66,"") -> 0 | DP66: =IFERROR($D66*AB66,"") -> 0 | DQ66: =IFERROR($D66*AC66,"") -> 0 | DR66: =IFERROR($D66*AD66,"") -> 0 | DS66: =IFERROR($D66*AE66,"") -> 0 | DT66: =IFERROR($D66*AF66,"") -> 0 | DU66: =IFERROR($D66*AG66,"") -> 0 | DV66: =IFERROR($D66*AH66,"") -> 0 | DW66: =IFERROR($D66*AI66,"") -> 0 | DX66: =IFERROR($D66*AJ66,"") -> 0 | DY66: =IFERROR($D66*AK66,"") -> 0 | DZ66: =IFERROR($D66*AL66,"") -> 0 | EA66: =IFERROR($D66*AM66,"") -> 0 | EB66: =IFERROR($D66*AN66,"") -> 0 | EC66: =IFERROR($D66*AO66,"") -> 0 | ED66: =IFERROR($D66*AP66,"") -> 0 | EE66: =IFERROR($D66*AQ66,"") -> 0 | EF66: =IFERROR($D66*AR66,"") -> 0 | EG66: =IFERROR($D66*AS66,"") -> 0 | EH66: =IFERROR($D66*AT66,"") -> 0 | EI66: =IFERROR($D66*AU66,"") -> 0 | EJ66: =IFERROR($D66*AV66,"") -> 0 | EK66: =IFERROR($D66*AW66,"") -> 0 | EL66: =IFERROR($D66*AX66,"") -> 0 | EM66: =IFERROR($D66*AY66,"") -> 0 | EN66: =IFERROR($D66*AZ66,"") -> 0 | EO66: =IFERROR($D66*BA66,"") -> 0 | EP66: =IFERROR($D66*BB66,"") -> 0 | EQ66: =IFERROR($D66*BC66,"") -> 0 | ER66: =IFERROR($D66*BD66,"") -> 0 | ES66: =IFERROR($D66*BE66,"") -> 0 | ET66: =IFERROR($D66*BF66,"") -> 0 | EU66: =IFERROR($D66*BG66,"") -> 0 | EV66: =IFERROR($D66*BH66,"") -> 0 | EW66: =IFERROR($D66*BI66,"") -> 0 | EX66: =IFERROR($D66*BJ66,"") -> 0 | EY66: =IFERROR($D66*BK66,"") -> 0 | EZ66: =IFERROR($D66*BL66,"") -> 0 | FA66: =IFERROR($D66*BM66,"") -> 0 | FB66: =IFERROR($D66*BN66,"") -> 0 | FC66: =IFERROR($D66*BO66,"") -> 0 | FD66: =IFERROR($D66*BP66,"") -> 0 | FE66: =IFERROR($D66*BQ66,"") -> 0 | FF66: =IFERROR($D66*BR66,"") -> 0 | FG66: =IFERROR($D66*BS66,"") -> 0 | FH66: =IFERROR($D66*BT66,"") -> 0 | FI66: =IFERROR($D66*BU66,"") -> 0 | FJ66: =IFERROR($D66*BV66,"") -> 0 | FK66: =IFERROR($D66*BW66,"") -> 0 | FL66: =IFERROR($D66*BX66,"") -> 0 | FM66: =IFERROR($D66*BY66,"") -> 0 | FN66: =IFERROR($D66*BZ66,"") -> 0 | FO66: =IFERROR($D66*CA66,"") -> 0 | FP66: =IFERROR($D66*CB66,"") -> 0 | FQ66: =IFERROR($D66*CC66,"") -> 0 | FR66: =IFERROR($D66*CD66,"") -> 0 | FS66: =IFERROR($D66*CE66,"") -> 0 | FT66: =IFERROR($D66*CF66,"") -> 0 | FU66: =IFERROR($D66*CG66,"") -> 0 | FV66: =IFERROR($D66*CH66,"") -> 0 | FW66: =IFERROR($D66*CI66,"") -> 0 | FX66: =IFERROR($D66*CJ66,"") -> 0 | FY66: =IFERROR($D66*CK66,"") -> 0 | FZ66: =IFERROR($D66*CL66,"") -> 0 | GA66: =IFERROR($D66*CM66,"") -> 0 | GB66: =IFERROR($D66*CN66,"") -> 0 | GC66: =IFERROR($D66*CO66,"") -> 0 | GD66: =IFERROR($D66*CP66,"") -> 0 | GE66: =IFERROR($D66*CQ66,"") -> 0 | GF66: =IFERROR($D66*CR66,"") -> 0 | GG66: =IFERROR($D66*CS66,"") -> 0 | GH66: =IFERROR($D66*CT66,"") -> 0
CV67: 0 | CW67: 0 | CX67: 0 | CY67: 0 | CZ67: 0 | DA67: 0 | DB67: 0 | DC67: 0 | DD67: 0 | DE67: 0 | DF67: 0 | DG67: 0 | DH67: 0 | DI67: 0 | DJ67: 0 | DK67: 0 | DL67: 0 | DM67: 0 | DN67: 0 | DO67: 0 | DP67: 0 | DQ67: 0 | DR67: 0 | DS67: 0 | DT67: 0 | DU67: 0 | DV67: 0 | DW67: 0 | DX67: 0 | DY67: 0 | DZ67: 0 | EA67: 0 | EB67: 0 | EC67: 0 | ED67: 0 | EE67: 0 | EF67: 0 | EG67: 0 | EH67: 0 | EI67: 0 | EJ67: 0 | EK67: 0 | EL67: 0 | EM67: 0 | EN67: 0 | EO67: 0 | EP67: 0 | EQ67: 0 | ER67: 0 | ES67: 0 | ET67: 0 | EU67: 0 | EV67: 0 | EW67: 0 | EX67: 0 | EY67: 0 | EZ67: 0 | FA67: 0 | FB67: 0 | FC67: 0 | FD67: 0 | FE67: 0 | FF67: 0 | FG67: 0 | FH67: 0 | FI67: 0 | FJ67: 0 | FK67: 0 | FL67: 0 | FM67: 0 | FN67: 0 | FO67: 0 | FP67: 0 | FQ67: 0 | FR67: 0 | FS67: 0 | FT67: 0 | FU67: 0 | FV67: 0 | FW67: 0 | FX67: 0 | FY67: 0 | FZ67: 0 | GA67: 0 | GB67: 0 | GC67: 0 | GD67: 0 | GE67: 0 | GF67: 0 | GG67: 0 | GH67: 0
CV68: 0 | CW68: 0 | CX68: 0 | CY68: 0 | CZ68: 0 | DA68: 0 | DB68: 0 | DC68: 0 | DD68: 0 | DE68: 0 | DF68: 0 | DG68: 0 | DH68: 0 | DI68: 0 | DJ68: 0 | DK68: 0 | DL68: 0 | DM68: 0 | DN68: 0 | DO68: 0 | DP68: 0 | DQ68: 0 | DR68: 0 | DS68: 0 | DT68: 0 | DU68: 0 | DV68: 0 | DW68: 0 | DX68: 0 | DY68: 0 | DZ68: 0 | EA68: 0 | EB68: 0 | EC68: 0 | ED68: 0 | EE68: 0 | EF68: 0 | EG68: 0 | EH68: 0 | EI68: 0 | EJ68: 0 | EK68: 0 | EL68: 0 | EM68: 0 | EN68: 0 | EO68: 0 | EP68: 0 | EQ68: 0 | ER68: 0 | ES68: 0 | ET68: 0 | EU68: 0 | EV68: 0 | EW68: 0 | EX68: 0 | EY68: 0 | EZ68: 0 | FA68: 0 | FB68: 0 | FC68: 0 | FD68: 0 | FE68: 0 | FF68: 0 | FG68: 0 | FH68: 0 | FI68: 0 | FJ68: 0 | FK68: 0 | FL68: 0 | FM68: 0 | FN68: 0 | FO68: 0 | FP68: 0 | FQ68: 0 | FR68: 0 | FS68: 0 | FT68: 0 | FU68: 0 | FV68: 0 | FW68: 0 | FX68: 0 | FY68: 0 | FZ68: 0 | GA68: 0 | GB68: 0 | GC68: 0 | GD68: 0 | GE68: 0 | GF68: 0 | GG68: 0 | GH68: 0
CV69: 0 | CW69: 0 | CX69: 0 | CY69: 0 | CZ69: 0 | DA69: 0 | DB69: 0 | DC69: 0 | DD69: 0 | DE69: 0 | DF69: 0 | DG69: 0 | DH69: 0 | DI69: 0 | DJ69: 0 | DK69: 0 | DL69: 0 | DM69: 0 | DN69: 0 | DO69: 0 | DP69: 0 | DQ69: 0 | DR69: 0 | DS69: 0 | DT69: 0 | DU69: 0 | DV69: 0 | DW69: 0 | DX69: 0 | DY69: 0 | DZ69: 0 | EA69: 0 | EB69: 0 | EC69: 0 | ED69: 0 | EE69: 0 | EF69: 0 | EG69: 0 | EH69: 0 | EI69: 0 | EJ69: 0 | EK69: 0 | EL69: 0 | EM69: 0 | EN69: 0 | EO69: 0 | EP69: 0 | EQ69: 0 | ER69: 0 | ES69: 0 | ET69: 0 | EU69: 0 | EV69: 0 | EW69: 0 | EX69: 0 | EY69: 0 | EZ69: 0 | FA69: 0 | FB69: 0 | FC69: 0 | FD69: 0 | FE69: 0 | FF69: 0 | FG69: 0 | FH69: 0 | FI69: 0 | FJ69: 0 | FK69: 0 | FL69: 0 | FM69: 0 | FN69: 0 | FO69: 0 | FP69: 0 | FQ69: 0 | FR69: 0 | FS69: 0 | FT69: 0 | FU69: 0 | FV69: 0 | FW69: 0 | FX69: 0 | FY69: 0 | FZ69: 0 | GA69: 0 | GB69: 0 | GC69: 0 | GD69: 0 | GE69: 0 | GF69: 0 | GG69: 0 | GH69: 0
CV70: 0 | CW70: 0 | CX70: 0 | CY70: 0 | CZ70: 0 | DA70: 0 | DB70: 0 | DC70: 0 | DD70: 0 | DE70: 0 | DF70: 0 | DG70: 0 | DH70: 0 | DI70: 0 | DJ70: 0 | DK70: 0 | DL70: 0 | DM70: 0 | DN70: 0 | DO70: 0 | DP70: 0 | DQ70: 0 | DR70: 0 | DS70: 0 | DT70: 0 | DU70: 0 | DV70: 0 | DW70: 0 | DX70: 0 | DY70: 0 | DZ70: 0 | EA70: 0 | EB70: 0 | EC70: 0 | ED70: 0 | EE70: 0 | EF70: 0 | EG70: 0 | EH70: 0 | EI70: 0 | EJ70: 0 | EK70: 0 | EL70: 0 | EM70: 0 | EN70: 0 | EO70: 0 | EP70: 0 | EQ70: 0 | ER70: 0 | ES70: 0 | ET70: 0 | EU70: 0 | EV70: 0 | EW70: 0 | EX70: 0 | EY70: 0 | EZ70: 0 | FA70: 0 | FB70: 0 | FC70: 0 | FD70: 0 | FE70: 0 | FF70: 0 | FG70: 0 | FH70: 0 | FI70: 0 | FJ70: 0 | FK70: 0 | FL70: 0 | FM70: 0 | FN70: 0 | FO70: 0 | FP70: 0 | FQ70: 0 | FR70: 0 | FS70: 0 | FT70: 0 | FU70: 0 | FV70: 0 | FW70: 0 | FX70: 0 | FY70: 0 | FZ70: 0 | GA70: 0 | GB70: 0 | GC70: 0 | GD70: 0 | GE70: 0 | GF70: 0 | GG70: 0 | GH70: 0
CV71: 0 | CW71: 0 | CX71: 0 | CY71: 0 | CZ71: 0 | DA71: 0 | DB71: 0 | DC71: 0 | DD71: 0 | DE71: 0 | DF71: 0 | DG71: 0 | DH71: 0 | DI71: 0 | DJ71: 0 | DK71: 0 | DL71: 0 | DM71: 0 | DN71: 0 | DO71: 0 | DP71: 0 | DQ71: 0 | DR71: 0 | DS71: 0 | DT71: 0 | DU71: 0 | DV71: 0 | DW71: 0 | DX71: 0 | DY71: 0 | DZ71: 0 | EA71: 0 | EB71: 0 | EC71: 0 | ED71: 0 | EE71: 0 | EF71: 0 | EG71: 0 | EH71: 0 | EI71: 0 | EJ71: 0 | EK71: 0 | EL71: 0 | EM71: 0 | EN71: 0 | EO71: 0 | EP71: 0 | EQ71: 0 | ER71: 0 | ES71: 0 | ET71: 0 | EU71: 0 | EV71: 0 | EW71: 0 | EX71: 0 | EY71: 0 | EZ71: 0 | FA71: 0 | FB71: 0 | FC71: 0 | FD71: 0 | FE71: 0 | FF71: 0 | FG71: 0 | FH71: 0 | FI71: 0 | FJ71: 0 | FK71: 0 | FL71: 0 | FM71: 0 | FN71: 0 | FO71: 0 | FP71: 0 | FQ71: 0 | FR71: 0 | FS71: 0 | FT71: 0 | FU71: 0 | FV71: 0 | FW71: 0 | FX71: 0 | FY71: 0 | FZ71: 0 | GA71: 0 | GB71: 0 | GC71: 0 | GD71: 0 | GE71: 0 | GF71: 0 | GG71: 0 | GH71: 0
CV72: 0 | CW72: 0 | CX72: 0 | CY72: 0 | CZ72: 0 | DA72: 0 | DB72: 0 | DC72: 0 | DD72: 0 | DE72: 0 | DF72: 0 | DG72: 0 | DH72: 0 | DI72: 0 | DJ72: 0 | DK72: 0 | DL72: 0 | DM72: 0 | DN72: 0 | DO72: 0 | DP72: 0 | DQ72: 0 | DR72: 0 | DS72: 0 | DT72: 0 | DU72: 0 | DV72: 0 | DW72: 0 | DX72: 0 | DY72: 0 | DZ72: 0 | EA72: 0 | EB72: 0 | EC72: 0 | ED72: 0 | EE72: 0 | EF72: 0 | EG72: 0 | EH72: 0 | EI72: 0 | EJ72: 0 | EK72: 0 | EL72: 0 | EM72: 0 | EN72: 0 | EO72: 0 | EP72: 0 | EQ72: 0 | ER72: 0 | ES72: 0 | ET72: 0 | EU72: 0 | EV72: 0 | EW72: 0 | EX72: 0 | EY72: 0 | EZ72: 0 | FA72: 0 | FB72: 0 | FC72: 0 | FD72: 0 | FE72: 0 | FF72: 0 | FG72: 0 | FH72: 0 | FI72: 0 | FJ72: 0 | FK72: 0 | FL72: 0 | FM72: 0 | FN72: 0 | FO72: 0 | FP72: 0 | FQ72: 0 | FR72: 0 | FS72: 0 | FT72: 0 | FU72: 0 | FV72: 0 | FW72: 0 | FX72: 0 | FY72: 0 | FZ72: 0 | GA72: 0 | GB72: 0 | GC72: 0 | GD72: 0 | GE72: 0 | GF72: 0 | GG72: 0 | GH72: 0
CV73: 0 | CW73: 0 | CX73: 0 | CY73: 0 | CZ73: 0 | DA73: 0 | DB73: 0 | DC73: 0 | DD73: 0 | DE73: 0 | DF73: 0 | DG73: 0 | DH73: 0 | DI73: 0 | DJ73: 0 | DK73: 0 | DL73: 0 | DM73: 0 | DN73: 0 | DO73: 0 | DP73: 0 | DQ73: 0 | DR73: 0 | DS73: 0 | DT73: 0 | DU73: 0 | DV73: 0 | DW73: 0 | DX73: 0 | DY73: 0 | DZ73: 0 | EA73: 0 | EB73: 0 | EC73: 0 | ED73: 0 | EE73: 0 | EF73: 0 | EG73: 0 | EH73: 0 | EI73: 0 | EJ73: 0 | EK73: 0 | EL73: 0 | EM73: 0 | EN73: 0 | EO73: 0 | EP73: 0 | EQ73: 0 | ER73: 0 | ES73: 0 | ET73: 0 | EU73: 0 | EV73: 0 | EW73: 0 | EX73: 0 | EY73: 0 | EZ73: 0 | FA73: 0 | FB73: 0 | FC73: 0 | FD73: 0 | FE73: 0 | FF73: 0 | FG73: 0 | FH73: 0 | FI73: 0 | FJ73: 0 | FK73: 0 | FL73: 0 | FM73: 0 | FN73: 0 | FO73: 0 | FP73: 0 | FQ73: 0 | FR73: 0 | FS73: 0 | FT73: 0 | FU73: 0 | FV73: 0 | FW73: 0 | FX73: 0 | FY73: 0 | FZ73: 0 | GA73: 0 | GB73: 0 | GC73: 0 | GD73: 0 | GE73: 0 | GF73: 0 | GG73: 0 | GH73: 0
CV74: 0 | CW74: 0 | CX74: 0 | CY74: 0 | CZ74: 0 | DA74: 0 | DB74: 0 | DC74: 0 | DD74: 0 | DE74: 0 | DF74: 0 | DG74: 0 | DH74: 0 | DI74: 0 | DJ74: 0 | DK74: 0 | DL74: 0 | DM74: 0 | DN74: 0 | DO74: 0 | DP74: 0 | DQ74: 0 | DR74: 0 | DS74: 0 | DT74: 0 | DU74: 0 | DV74: 0 | DW74: 0 | DX74: 0 | DY74: 0 | DZ74: 0 | EA74: 0 | EB74: 0 | EC74: 0 | ED74: 0 | EE74: 0 | EF74: 0 | EG74: 0 | EH74: 0 | EI74: 0 | EJ74: 0 | EK74: 0 | EL74: 0 | EM74: 0 | EN74: 0 | EO74: 0 | EP74: 0 | EQ74: 0 | ER74: 0 | ES74: 0 | ET74: 0 | EU74: 0 | EV74: 0 | EW74: 0 | EX74: 0 | EY74: 0 | EZ74: 0 | FA74: 0 | FB74: 0 | FC74: 0 | FD74: 0 | FE74: 0 | FF74: 0 | FG74: 0 | FH74: 0 | FI74: 0 | FJ74: 0 | FK74: 0 | FL74: 0 | FM74: 0 | FN74: 0 | FO74: 0 | FP74: 0 | FQ74: 0 | FR74: 0 | FS74: 0 | FT74: 0 | FU74: 0 | FV74: 0 | FW74: 0 | FX74: 0 | FY74: 0 | FZ74: 0 | GA74: 0 | GB74: 0 | GC74: 0 | GD74: 0 | GE74: 0 | GF74: 0 | GG74: 0 | GH74: 0
CV75: 0 | CW75: 0 | CX75: 0 | CY75: 0 | CZ75: 0 | DA75: 0 | DB75: 0 | DC75: 0 | DD75: 0 | DE75: 0 | DF75: 0 | DG75: 0 | DH75: 0 | DI75: 0 | DJ75: 0 | DK75: 0 | DL75: 0 | DM75: 0 | DN75: 0 | DO75: 0 | DP75: 0 | DQ75: 0 | DR75: 0 | DS75: 0 | DT75: 0 | DU75: 0 | DV75: 0 | DW75: 0 | DX75: 0 | DY75: 0 | DZ75: 0 | EA75: 0 | EB75: 0 | EC75: 0 | ED75: 0 | EE75: 0 | EF75: 0 | EG75: 0 | EH75: 0 | EI75: 0 | EJ75: 0 | EK75: 0 | EL75: 0 | EM75: 0 | EN75: 0 | EO75: 0 | EP75: 0 | EQ75: 0 | ER75: 0 | ES75: 0 | ET75: 0 | EU75: 0 | EV75: 0 | EW75: 0 | EX75: 0 | EY75: 0 | EZ75: 0 | FA75: 0 | FB75: 0 | FC75: 0 | FD75: 0 | FE75: 0 | FF75: 0 | FG75: 0 | FH75: 0 | FI75: 0 | FJ75: 0 | FK75: 0 | FL75: 0 | FM75: 0 | FN75: 0 | FO75: 0 | FP75: 0 | FQ75: 0 | FR75: 0 | FS75: 0 | FT75: 0 | FU75: 0 | FV75: 0 | FW75: 0 | FX75: 0 | FY75: 0 | FZ75: 0 | GA75: 0 | GB75: 0 | GC75: 0 | GD75: 0 | GE75: 0 | GF75: 0 | GG75: 0 | GH75: 0
CV76: 0 | CW76: 0 | CX76: 0 | CY76: 0 | CZ76: 0 | DA76: 0 | DB76: 0 | DC76: 0 | DD76: 0 | DE76: 0 | DF76: 0 | DG76: 0 | DH76: 0 | DI76: 0 | DJ76: 0 | DK76: 0 | DL76: 0 | DM76: 0 | DN76: 0 | DO76: 0 | DP76: 0 | DQ76: 0 | DR76: 0 | DS76: 0 | DT76: 0 | DU76: 0 | DV76: 0 | DW76: 0 | DX76: 0 | DY76: 0 | DZ76: 0 | EA76: 0 | EB76: 0 | EC76: 0 | ED76: 0 | EE76: 0 | EF76: 0 | EG76: 0 | EH76: 0 | EI76: 0 | EJ76: 0 | EK76: 0 | EL76: 0 | EM76: 0 | EN76: 0 | EO76: 0 | EP76: 0 | EQ76: 0 | ER76: 0 | ES76: 0 | ET76: 0 | EU76: 0 | EV76: 0 | EW76: 0 | EX76: 0 | EY76: 0 | EZ76: 0 | FA76: 0 | FB76: 0 | FC76: 0 | FD76: 0 | FE76: 0 | FF76: 0 | FG76: 0 | FH76: 0 | FI76: 0 | FJ76: 0 | FK76: 0 | FL76: 0 | FM76: 0 | FN76: 0 | FO76: 0 | FP76: 0 | FQ76: 0 | FR76: 0 | FS76: 0 | FT76: 0 | FU76: 0 | FV76: 0 | FW76: 0 | FX76: 0 | FY76: 0 | FZ76: 0 | GA76: 0 | GB76: 0 | GC76: 0 | GD76: 0 | GE76: 0 | GF76: 0 | GG76: 0 | GH76: 0
CV77: 0 | CW77: 0 | CX77: 0 | CY77: 0 | CZ77: 0 | DA77: 0 | DB77: 0 | DC77: 0 | DD77: 0 | DE77: 0 | DF77: 0 | DG77: 0 | DH77: 0 | DI77: 0 | DJ77: 0 | DK77: 0 | DL77: 0 | DM77: 0 | DN77: 0 | DO77: 0 | DP77: 0 | DQ77: 0 | DR77: 0 | DS77: 0 | DT77: 0 | DU77: 0 | DV77: 0 | DW77: 0 | DX77: 0 | DY77: 0 | DZ77: 0 | EA77: 0 | EB77: 0 | EC77: 0 | ED77: 0 | EE77: 0 | EF77: 0 | EG77: 0 | EH77: 0 | EI77: 0 | EJ77: 0 | EK77: 0 | EL77: 0 | EM77: 0 | EN77: 0 | EO77: 0 | EP77: 0 | EQ77: 0 | ER77: 0 | ES77: 0 | ET77: 0 | EU77: 0 | EV77: 0 | EW77: 0 | EX77: 0 | EY77: 0 | EZ77: 0 | FA77: 0 | FB77: 0 | FC77: 0 | FD77: 0 | FE77: 0 | FF77: 0 | FG77: 0 | FH77: 0 | FI77: 0 | FJ77: 0 | FK77: 0 | FL77: 0 | FM77: 0 | FN77: 0 | FO77: 0 | FP77: 0 | FQ77: 0 | FR77: 0 | FS77: 0 | FT77: 0 | FU77: 0 | FV77: 0 | FW77: 0 | FX77: 0 | FY77: 0 | FZ77: 0 | GA77: 0 | GB77: 0 | GC77: 0 | GD77: 0 | GE77: 0 | GF77: 0 | GG77: 0 | GH77: 0
CV78: 0 | CW78: 0 | CX78: 0 | CY78: 0 | CZ78: 0 | DA78: 0 | DB78: 0 | DC78: 0 | DD78: 0 | DE78: 0 | DF78: 0 | DG78: 0 | DH78: 0 | DI78: 0 | DJ78: 0 | DK78: 0 | DL78: 0 | DM78: 0 | DN78: 0 | DO78: 0 | DP78: 0 | DQ78: 0 | DR78: 0 | DS78: 0 | DT78: 0 | DU78: 0 | DV78: 0 | DW78: 0 | DX78: 0 | DY78: 0 | DZ78: 0 | EA78: 0 | EB78: 0 | EC78: 0 | ED78: 0 | EE78: 0 | EF78: 0 | EG78: 0 | EH78: 0 | EI78: 0 | EJ78: 0 | EK78: 0 | EL78: 0 | EM78: 0 | EN78: 0 | EO78: 0 | EP78: 0 | EQ78: 0 | ER78: 0 | ES78: 0 | ET78: 0 | EU78: 0 | EV78: 0 | EW78: 0 | EX78: 0 | EY78: 0 | EZ78: 0 | FA78: 0 | FB78: 0 | FC78: 0 | FD78: 0 | FE78: 0 | FF78: 0 | FG78: 0 | FH78: 0 | FI78: 0 | FJ78: 0 | FK78: 0 | FL78: 0 | FM78: 0 | FN78: 0 | FO78: 0 | FP78: 0 | FQ78: 0 | FR78: 0 | FS78: 0 | FT78: 0 | FU78: 0 | FV78: 0 | FW78: 0 | FX78: 0 | FY78: 0 | FZ78: 0 | GA78: 0 | GB78: 0 | GC78: 0 | GD78: 0 | GE78: 0 | GF78: 0 | GG78: 0 | GH78: 0
CV79: 0 | CW79: 0 | CX79: 0 | CY79: 0 | CZ79: 0 | DA79: 0 | DB79: 0 | DC79: 0 | DD79: 0 | DE79: 0 | DF79: 0 | DG79: 0 | DH79: 0 | DI79: 0 | DJ79: 0 | DK79: 0 | DL79: 0 | DM79: 0 | DN79: 0 | DO79: 0 | DP79: 0 | DQ79: 0 | DR79: 0 | DS79: 0 | DT79: 0 | DU79: 0 | DV79: 0 | DW79: 0 | DX79: 0 | DY79: 0 | DZ79: 0 | EA79: 0 | EB79: 0 | EC79: 0 | ED79: 0 | EE79: 0 | EF79: 0 | EG79: 0 | EH79: 0 | EI79: 0 | EJ79: 0 | EK79: 0 | EL79: 0 | EM79: 0 | EN79: 0 | EO79: 0 | EP79: 0 | EQ79: 0 | ER79: 0 | ES79: 0 | ET79: 0 | EU79: 0 | EV79: 0 | EW79: 0 | EX79: 0 | EY79: 0 | EZ79: 0 | FA79: 0 | FB79: 0 | FC79: 0 | FD79: 0 | FE79: 0 | FF79: 0 | FG79: 0 | FH79: 0 | FI79: 0 | FJ79: 0 | FK79: 0 | FL79: 0 | FM79: 0 | FN79: 0 | FO79: 0 | FP79: 0 | FQ79: 0 | FR79: 0 | FS79: 0 | FT79: 0 | FU79: 0 | FV79: 0 | FW79: 0 | FX79: 0 | FY79: 0 | FZ79: 0 | GA79: 0 | GB79: 0 | GC79: 0 | GD79: 0 | GE79: 0 | GF79: 0 | GG79: 0 | GH79: 0
CV80: 0 | CW80: 0 | CX80: 0 | CY80: 0 | CZ80: 0 | DA80: 0 | DB80: 0 | DC80: 0 | DD80: 0 | DE80: 0 | DF80: 0 | DG80: 0 | DH80: 0 | DI80: 0 | DJ80: 0 | DK80: 0 | DL80: 0 | DM80: 0 | DN80: 0 | DO80: 0 | DP80: 0 | DQ80: 0 | DR80: 0 | DS80: 0 | DT80: 0 | DU80: 0 | DV80: 0 | DW80: 0 | DX80: 0 | DY80: 0 | DZ80: 0 | EA80: 0 | EB80: 0 | EC80: 0 | ED80: 0 | EE80: 0 | EF80: 0 | EG80: 0 | EH80: 0 | EI80: 0 | EJ80: 0 | EK80: 0 | EL80: 0 | EM80: 0 | EN80: 0 | EO80: 0 | EP80: 0 | EQ80: 0 | ER80: 0 | ES80: 0 | ET80: 0 | EU80: 0 | EV80: 0 | EW80: 0 | EX80: 0 | EY80: 0 | EZ80: 0 | FA80: 0 | FB80: 0 | FC80: 0 | FD80: 0 | FE80: 0 | FF80: 0 | FG80: 0 | FH80: 0 | FI80: 0 | FJ80: 0 | FK80: 0 | FL80: 0 | FM80: 0 | FN80: 0 | FO80: 0 | FP80: 0 | FQ80: 0 | FR80: 0 | FS80: 0 | FT80: 0 | FU80: 0 | FV80: 0 | FW80: 0 | FX80: 0 | FY80: 0 | FZ80: 0 | GA80: 0 | GB80: 0 | GC80: 0 | GD80: 0 | GE80: 0 | GF80: 0 | GG80: 0 | GH80: 0
CV81: 0 | CW81: 0 | CX81: 0 | CY81: 0 | CZ81: 0 | DA81: 0 | DB81: 0 | DC81: 0 | DD81: 0 | DE81: 0 | DF81: 0 | DG81: 0 | DH81: 0 | DI81: 0 | DJ81: 0 | DK81: 0 | DL81: 0 | DM81: 0 | DN81: 0 | DO81: 0 | DP81: 0 | DQ81: 0 | DR81: 0 | DS81: 0 | DT81: 0 | DU81: 0 | DV81: 0 | DW81: 0 | DX81: 0 | DY81: 0 | DZ81: 0 | EA81: 0 | EB81: 0 | EC81: 0 | ED81: 0 | EE81: 0 | EF81: 0 | EG81: 0 | EH81: 0 | EI81: 0 | EJ81: 0 | EK81: 0 | EL81: 0 | EM81: 0 | EN81: 0 | EO81: 0 | EP81: 0 | EQ81: 0 | ER81: 0 | ES81: 0 | ET81: 0 | EU81: 0 | EV81: 0 | EW81: 0 | EX81: 0 | EY81: 0 | EZ81: 0 | FA81: 0 | FB81: 0 | FC81: 0 | FD81: 0 | FE81: 0 | FF81: 0 | FG81: 0 | FH81: 0 | FI81: 0 | FJ81: 0 | FK81: 0 | FL81: 0 | FM81: 0 | FN81: 0 | FO81: 0 | FP81: 0 | FQ81: 0 | FR81: 0 | FS81: 0 | FT81: 0 | FU81: 0 | FV81: 0 | FW81: 0 | FX81: 0 | FY81: 0 | FZ81: 0 | GA81: 0 | GB81: 0 | GC81: 0 | GD81: 0 | GE81: 0 | GF81: 0 | GG81: 0 | GH81: 0
CV82: 0 | CW82: 0 | CX82: 0 | CY82: 0 | CZ82: 0 | DA82: 0 | DB82: 0 | DC82: 0 | DD82: 0 | DE82: 0 | DF82: 0 | DG82: 0 | DH82: 0 | DI82: 0 | DJ82: 0 | DK82: 0 | DL82: 0 | DM82: 0 | DN82: 0 | DO82: 0 | DP82: 0 | DQ82: 0 | DR82: 0 | DS82: 0 | DT82: 0 | DU82: 0 | DV82: 0 | DW82: 0 | DX82: 0 | DY82: 0 | DZ82: 0 | EA82: 0 | EB82: 0 | EC82: 0 | ED82: 0 | EE82: 0 | EF82: 0 | EG82: 0 | EH82: 0 | EI82: 0 | EJ82: 0 | EK82: 0 | EL82: 0 | EM82: 0 | EN82: 0 | EO82: 0 | EP82: 0 | EQ82: 0 | ER82: 0 | ES82: 0 | ET82: 0 | EU82: 0 | EV82: 0 | EW82: 0 | EX82: 0 | EY82: 0 | EZ82: 0 | FA82: 0 | FB82: 0 | FC82: 0 | FD82: 0 | FE82: 0 | FF82: 0 | FG82: 0 | FH82: 0 | FI82: 0 | FJ82: 0 | FK82: 0 | FL82: 0 | FM82: 0 | FN82: 0 | FO82: 0 | FP82: 0 | FQ82: 0 | FR82: 0 | FS82: 0 | FT82: 0 | FU82: 0 | FV82: 0 | FW82: 0 | FX82: 0 | FY82: 0 | FZ82: 0 | GA82: 0 | GB82: 0 | GC82: 0 | GD82: 0 | GE82: 0 | GF82: 0 | GG82: 0 | GH82: 0
CV83: 0 | CW83: 0 | CX83: 0 | CY83: 0 | CZ83: 0 | DA83: 0 | DB83: 0 | DC83: 0 | DD83: 0 | DE83: 0 | DF83: 0 | DG83: 0 | DH83: 0 | DI83: 0 | DJ83: 0 | DK83: 0 | DL83: 0 | DM83: 0 | DN83: 0 | DO83: 0 | DP83: 0 | DQ83: 0 | DR83: 0 | DS83: 0 | DT83: 0 | DU83: 0 | DV83: 0 | DW83: 0 | DX83: 0 | DY83: 0 | DZ83: 0 | EA83: 0 | EB83: 0 | EC83: 0 | ED83: 0 | EE83: 0 | EF83: 0 | EG83: 0 | EH83: 0 | EI83: 0 | EJ83: 0 | EK83: 0 | EL83: 0 | EM83: 0 | EN83: 0 | EO83: 0 | EP83: 0 | EQ83: 0 | ER83: 0 | ES83: 0 | ET83: 0 | EU83: 0 | EV83: 0 | EW83: 0 | EX83: 0 | EY83: 0 | EZ83: 0 | FA83: 0 | FB83: 0 | FC83: 0 | FD83: 0 | FE83: 0 | FF83: 0 | FG83: 0 | FH83: 0 | FI83: 0 | FJ83: 0 | FK83: 0 | FL83: 0 | FM83: 0 | FN83: 0 | FO83: 0 | FP83: 0 | FQ83: 0 | FR83: 0 | FS83: 0 | FT83: 0 | FU83: 0 | FV83: 0 | FW83: 0 | FX83: 0 | FY83: 0 | FZ83: 0 | GA83: 0 | GB83: 0 | GC83: 0 | GD83: 0 | GE83: 0 | GF83: 0 | GG83: 0 | GH83: 0
CV84: 0 | CW84: 0 | CX84: 0 | CY84: 0 | CZ84: 0 | DA84: 0 | DB84: 0 | DC84: 0 | DD84: 0 | DE84: 0 | DF84: 0 | DG84: 0 | DH84: 0 | DI84: 0 | DJ84: 0 | DK84: 0 | DL84: 0 | DM84: 0 | DN84: 0 | DO84: 0 | DP84: 0 | DQ84: 0 | DR84: 0 | DS84: 0 | DT84: 0 | DU84: 0 | DV84: 0 | DW84: 0 | DX84: 0 | DY84: 0 | DZ84: 0 | EA84: 0 | EB84: 0 | EC84: 0 | ED84: 0 | EE84: 0 | EF84: 0 | EG84: 0 | EH84: 0 | EI84: 0 | EJ84: 0 | EK84: 0 | EL84: 0 | EM84: 0 | EN84: 0 | EO84: 0 | EP84: 0 | EQ84: 0 | ER84: 0 | ES84: 0 | ET84: 0 | EU84: 0 | EV84: 0 | EW84: 0 | EX84: 0 | EY84: 0 | EZ84: 0 | FA84: 0 | FB84: 0 | FC84: 0 | FD84: 0 | FE84: 0 | FF84: 0 | FG84: 0 | FH84: 0 | FI84: 0 | FJ84: 0 | FK84: 0 | FL84: 0 | FM84: 0 | FN84: 0 | FO84: 0 | FP84: 0 | FQ84: 0 | FR84: 0 | FS84: 0 | FT84: 0 | FU84: 0 | FV84: 0 | FW84: 0 | FX84: 0 | FY84: 0 | FZ84: 0 | GA84: 0 | GB84: 0 | GC84: 0 | GD84: 0 | GE84: 0 | GF84: 0 | GG84: 0 | GH84: 0
CV85: 0 | CW85: 0 | CX85: 0 | CY85: 0 | CZ85: 0 | DA85: 0 | DB85: 0 | DC85: 0 | DD85: 0 | DE85: 0 | DF85: 0 | DG85: 0 | DH85: 0 | DI85: 0 | DJ85: 0 | DK85: 0 | DL85: 0 | DM85: 0 | DN85: 0 | DO85: 0 | DP85: 0 | DQ85: 0 | DR85: 0 | DS85: 0 | DT85: 0 | DU85: 0 | DV85: 0 | DW85: 0 | DX85: 0 | DY85: 0 | DZ85: 0 | EA85: 0 | EB85: 0 | EC85: 0 | ED85: 0 | EE85: 0 | EF85: 0 | EG85: 0 | EH85: 0 | EI85: 0 | EJ85: 0 | EK85: 0 | EL85: 0 | EM85: 0 | EN85: 0 | EO85: 0 | EP85: 0 | EQ85: 0 | ER85: 0 | ES85: 0 | ET85: 0 | EU85: 0 | EV85: 0 | EW85: 0 | EX85: 0 | EY85: 0 | EZ85: 0 | FA85: 0 | FB85: 0 | FC85: 0 | FD85: 0 | FE85: 0 | FF85: 0 | FG85: 0 | FH85: 0 | FI85: 0 | FJ85: 0 | FK85: 0 | FL85: 0 | FM85: 0 | FN85: 0 | FO85: 0 | FP85: 0 | FQ85: 0 | FR85: 0 | FS85: 0 | FT85: 0 | FU85: 0 | FV85: 0 | FW85: 0 | FX85: 0 | FY85: 0 | FZ85: 0 | GA85: 0 | GB85: 0 | GC85: 0 | GD85: 0 | GE85: 0 | GF85: 0 | GG85: 0 | GH85: 0
CV86: =IFERROR($D86*H86,"") -> 0 | CW86: =IFERROR($D86*I86,"") -> 0 | CX86: =IFERROR($D86*J86,"") -> 0 | CY86: =IFERROR($D86*K86,"") -> 0 | CZ86: =IFERROR($D86*L86,"") -> 0 | DA86: =IFERROR($D86*M86,"") -> 0 | DB86: =IFERROR($D86*N86,"") -> 0 | DC86: =IFERROR($D86*O86,"") -> 0 | DD86: =IFERROR($D86*P86,"") -> 0 | DE86: =IFERROR($D86*Q86,"") -> 0 | DF86: =IFERROR($D86*R86,"") -> 0 | DG86: =IFERROR($D86*S86,"") -> 0 | DH86: =IFERROR($D86*T86,"") -> 0 | DI86: =IFERROR($D86*U86,"") -> 0 | DJ86: =IFERROR($D86*V86,"") -> 0 | DK86: =IFERROR($D86*W86,"") -> 0 | DL86: =IFERROR($D86*X86,"") -> 0 | DM86: =IFERROR($D86*Y86,"") -> 0 | DN86: =IFERROR($D86*Z86,"") -> 0 | DO86: =IFERROR($D86*AA86,"") -> 0 | DP86: =IFERROR($D86*AB86,"") -> 0 | DQ86: =IFERROR($D86*AC86,"") -> 0 | DR86: =IFERROR($D86*AD86,"") -> 0 | DS86: =IFERROR($D86*AE86,"") -> 0 | DT86: =IFERROR($D86*AF86,"") -> 0 | DU86: =IFERROR($D86*AG86,"") -> 0 | DV86: =IFERROR($D86*AH86,"") -> 0 | DW86: =IFERROR($D86*AI86,"") -> 0 | DX86: =IFERROR($D86*AJ86,"") -> 0 | DY86: =IFERROR($D86*AK86,"") -> 0 | DZ86: =IFERROR($D86*AL86,"") -> 0 | EA86: =IFERROR($D86*AM86,"") -> 0 | EB86: =IFERROR($D86*AN86,"") -> 0 | EC86: =IFERROR($D86*AO86,"") -> 0 | ED86: =IFERROR($D86*AP86,"") -> 0 | EE86: =IFERROR($D86*AQ86,"") -> 0 | EF86: =IFERROR($D86*AR86,"") -> 0 | EG86: =IFERROR($D86*AS86,"") -> 0 | EH86: =IFERROR($D86*AT86,"") -> 0 | EI86: =IFERROR($D86*AU86,"") -> 0 | EJ86: =IFERROR($D86*AV86,"") -> 0 | EK86: =IFERROR($D86*AW86,"") -> 0 | EL86: =IFERROR($D86*AX86,"") -> 0 | EM86: =IFERROR($D86*AY86,"") -> 0 | EN86: =IFERROR($D86*AZ86,"") -> 0 | EO86: =IFERROR($D86*BA86,"") -> 0 | EP86: =IFERROR($D86*BB86,"") -> 0 | EQ86: =IFERROR($D86*BC86,"") -> 0 | ER86: =IFERROR($D86*BD86,"") -> 0 | ES86: =IFERROR($D86*BE86,"") -> 0 | ET86: =IFERROR($D86*BF86,"") -> 0 | EU86: =IFERROR($D86*BG86,"") -> 0 | EV86: =IFERROR($D86*BH86,"") -> 0 | EW86: =IFERROR($D86*BI86,"") -> 0 | EX86: =IFERROR($D86*BJ86,"") -> 0 | EY86: =IFERROR($D86*BK86,"") -> 0 | EZ86: =IFERROR($D86*BL86,"") -> 0 | FA86: =IFERROR($D86*BM86,"") -> 0 | FB86: =IFERROR($D86*BN86,"") -> 0 | FC86: =IFERROR($D86*BO86,"") -> 0 | FD86: =IFERROR($D86*BP86,"") -> 0 | FE86: =IFERROR($D86*BQ86,"") -> 0 | FF86: =IFERROR($D86*BR86,"") -> 0 | FG86: =IFERROR($D86*BS86,"") -> 0 | FH86: =IFERROR($D86*BT86,"") -> 0 | FI86: =IFERROR($D86*BU86,"") -> 0 | FJ86: =IFERROR($D86*BV86,"") -> 0 | FK86: =IFERROR($D86*BW86,"") -> 0 | FL86: =IFERROR($D86*BX86,"") -> 0 | FM86: =IFERROR($D86*BY86,"") -> 0 | FN86: =IFERROR($D86*BZ86,"") -> 0 | FO86: =IFERROR($D86*CA86,"") -> 0 | FP86: =IFERROR($D86*CB86,"") -> 0 | FQ86: =IFERROR($D86*CC86,"") -> 0 | FR86: =IFERROR($D86*CD86,"") -> 0 | FS86: =IFERROR($D86*CE86,"") -> 0 | FT86: =IFERROR($D86*CF86,"") -> 0 | FU86: =IFERROR($D86*CG86,"") -> 0 | FV86: =IFERROR($D86*CH86,"") -> 0 | FW86: =IFERROR($D86*CI86,"") -> 0 | FX86: =IFERROR($D86*CJ86,"") -> 0 | FY86: =IFERROR($D86*CK86,"") -> 0 | FZ86: =IFERROR($D86*CL86,"") -> 0 | GA86: =IFERROR($D86*CM86,"") -> 0 | GB86: =IFERROR($D86*CN86,"") -> 0 | GC86: =IFERROR($D86*CO86,"") -> 0 | GD86: =IFERROR($D86*CP86,"") -> 0 | GE86: =IFERROR($D86*CQ86,"") -> 0 | GF86: =IFERROR($D86*CR86,"") -> 0 | GG86: =IFERROR($D86*CS86,"") -> 0 | GH86: =IFERROR($D86*CT86,"") -> 0
CV87: 0 | CW87: 0 | CX87: 0 | CY87: 0 | CZ87: 0 | DA87: 0 | DB87: 0 | DC87: 0 | DD87: 0 | DE87: 0 | DF87: 0 | DG87: 0 | DH87: 0 | DI87: 0 | DJ87: 0 | DK87: 0 | DL87: 0 | DM87: 0 | DN87: 0 | DO87: 0 | DP87: 0 | DQ87: 0 | DR87: 0 | DS87: 0 | DT87: 0 | DU87: 0 | DV87: 0 | DW87: 0 | DX87: 0 | DY87: 0 | DZ87: 0 | EA87: 0 | EB87: 0 | EC87: 0 | ED87: 0 | EE87: 0 | EF87: 0 | EG87: 0 | EH87: 0 | EI87: 0 | EJ87: 0 | EK87: 0 | EL87: 0 | EM87: 0 | EN87: 0 | EO87: 0 | EP87: 0 | EQ87: 0 | ER87: 0 | ES87: 0 | ET87: 0 | EU87: 0 | EV87: 0 | EW87: 0 | EX87: 0 | EY87: 0 | EZ87: 0 | FA87: 0 | FB87: 0 | FC87: 0 | FD87: 0 | FE87: 0 | FF87: 0 | FG87: 0 | FH87: 0 | FI87: 0 | FJ87: 0 | FK87: 0 | FL87: 0 | FM87: 0 | FN87: 0 | FO87: 0 | FP87: 0 | FQ87: 0 | FR87: 0 | FS87: 0 | FT87: 0 | FU87: 0 | FV87: 0 | FW87: 0 | FX87: 0 | FY87: 0 | FZ87: 0 | GA87: 0 | GB87: 0 | GC87: 0 | GD87: 0 | GE87: 0 | GF87: 0 | GG87: 0 | GH87: 0
CV88: 0 | CW88: 0 | CX88: 0 | CY88: 0 | CZ88: 0 | DA88: 0 | DB88: 0 | DC88: 0 | DD88: 0 | DE88: 0 | DF88: 0 | DG88: 0 | DH88: 0 | DI88: 0 | DJ88: 0 | DK88: 0 | DL88: 0 | DM88: 0 | DN88: 0 | DO88: 0 | DP88: 0 | DQ88: 0 | DR88: 0 | DS88: 0 | DT88: 0 | DU88: 0 | DV88: 0 | DW88: 0 | DX88: 0 | DY88: 0 | DZ88: 0 | EA88: 0 | EB88: 0 | EC88: 0 | ED88: 0 | EE88: 0 | EF88: 0 | EG88: 0 | EH88: 0 | EI88: 0 | EJ88: 0 | EK88: 0 | EL88: 0 | EM88: 0 | EN88: 0 | EO88: 0 | EP88: 0 | EQ88: 0 | ER88: 0 | ES88: 0 | ET88: 0 | EU88: 0 | EV88: 0 | EW88: 0 | EX88: 0 | EY88: 0 | EZ88: 0 | FA88: 0 | FB88: 0 | FC88: 0 | FD88: 0 | FE88: 0 | FF88: 0 | FG88: 0 | FH88: 0 | FI88: 0 | FJ88: 0 | FK88: 0 | FL88: 0 | FM88: 0 | FN88: 0 | FO88: 0 | FP88: 0 | FQ88: 0 | FR88: 0 | FS88: 0 | FT88: 0 | FU88: 0 | FV88: 0 | FW88: 0 | FX88: 0 | FY88: 0 | FZ88: 0 | GA88: 0 | GB88: 0 | GC88: 0 | GD88: 0 | GE88: 0 | GF88: 0 | GG88: 0 | GH88: 0
CV89: 0 | CW89: 0 | CX89: 0 | CY89: 0 | CZ89: 0 | DA89: 0 | DB89: 0 | DC89: 0 | DD89: 0 | DE89: 0 | DF89: 0 | DG89: 0 | DH89: 0 | DI89: 0 | DJ89: 0 | DK89: 0 | DL89: 0 | DM89: 0 | DN89: 0 | DO89: 0 | DP89: 0 | DQ89: 0 | DR89: 0 | DS89: 0 | DT89: 0 | DU89: 0 | DV89: 0 | DW89: 0 | DX89: 0 | DY89: 0 | DZ89: 0 | EA89: 0 | EB89: 0 | EC89: 0 | ED89: 0 | EE89: 0 | EF89: 0 | EG89: 0 | EH89: 0 | EI89: 0 | EJ89: 0 | EK89: 0 | EL89: 0 | EM89: 0 | EN89: 0 | EO89: 0 | EP89: 0 | EQ89: 0 | ER89: 0 | ES89: 0 | ET89: 0 | EU89: 0 | EV89: 0 | EW89: 0 | EX89: 0 | EY89: 0 | EZ89: 0 | FA89: 0 | FB89: 0 | FC89: 0 | FD89: 0 | FE89: 0 | FF89: 0 | FG89: 0 | FH89: 0 | FI89: 0 | FJ89: 0 | FK89: 0 | FL89: 0 | FM89: 0 | FN89: 0 | FO89: 0 | FP89: 0 | FQ89: 0 | FR89: 0 | FS89: 0 | FT89: 0 | FU89: 0 | FV89: 0 | FW89: 0 | FX89: 0 | FY89: 0 | FZ89: 0 | GA89: 0 | GB89: 0 | GC89: 0 | GD89: 0 | GE89: 0 | GF89: 0 | GG89: 0 | GH89: 0
CV90: 0 | CW90: 0 | CX90: 0 | CY90: 0 | CZ90: 0 | DA90: 0 | DB90: 0 | DC90: 0 | DD90: 0 | DE90: 0 | DF90: 0 | DG90: 0 | DH90: 0 | DI90: 0 | DJ90: 0 | DK90: 0 | DL90: 0 | DM90: 0 | DN90: 0 | DO90: 0 | DP90: 0 | DQ90: 0 | DR90: 0 | DS90: 0 | DT90: 0 | DU90: 0 | DV90: 0 | DW90: 0 | DX90: 0 | DY90: 0 | DZ90: 0 | EA90: 0 | EB90: 0 | EC90: 0 | ED90: 0 | EE90: 0 | EF90: 0 | EG90: 0 | EH90: 0 | EI90: 0 | EJ90: 0 | EK90: 0 | EL90: 0 | EM90: 0 | EN90: 0 | EO90: 0 | EP90: 0 | EQ90: 0 | ER90: 0 | ES90: 0 | ET90: 0 | EU90: 0 | EV90: 0 | EW90: 0 | EX90: 0 | EY90: 0 | EZ90: 0 | FA90: 0 | FB90: 0 | FC90: 0 | FD90: 0 | FE90: 0 | FF90: 0 | FG90: 0 | FH90: 0 | FI90: 0 | FJ90: 0 | FK90: 0 | FL90: 0 | FM90: 0 | FN90: 0 | FO90: 0 | FP90: 0 | FQ90: 0 | FR90: 0 | FS90: 0 | FT90: 0 | FU90: 0 | FV90: 0 | FW90: 0 | FX90: 0 | FY90: 0 | FZ90: 0 | GA90: 0 | GB90: 0 | GC90: 0 | GD90: 0 | GE90: 0 | GF90: 0 | GG90: 0 | GH90: 0
CV91: 0 | CW91: 0 | CX91: 0 | CY91: 0 | CZ91: 0 | DA91: 0 | DB91: 0 | DC91: 0 | DD91: 0 | DE91: 0 | DF91: 0 | DG91: 0 | DH91: 0 | DI91: 0 | DJ91: 0 | DK91: 0 | DL91: 0 | DM91: 0 | DN91: 0 | DO91: 0 | DP91: 0 | DQ91: 0 | DR91: 0 | DS91: 0 | DT91: 0 | DU91: 0 | DV91: 0 | DW91: 0 | DX91: 0 | DY91: 0 | DZ91: 0 | EA91: 0 | EB91: 0 | EC91: 0 | ED91: 0 | EE91: 0 | EF91: 0 | EG91: 0 | EH91: 0 | EI91: 0 | EJ91: 0 | EK91: 0 | EL91: 0 | EM91: 0 | EN91: 0 | EO91: 0 | EP91: 0 | EQ91: 0 | ER91: 0 | ES91: 0 | ET91: 0 | EU91: 0 | EV91: 0 | EW91: 0 | EX91: 0 | EY91: 0 | EZ91: 0 | FA91: 0 | FB91: 0 | FC91: 0 | FD91: 0 | FE91: 0 | FF91: 0 | FG91: 0 | FH91: 0 | FI91: 0 | FJ91: 0 | FK91: 0 | FL91: 0 | FM91: 0 | FN91: 0 | FO91: 0 | FP91: 0 | FQ91: 0 | FR91: 0 | FS91: 0 | FT91: 0 | FU91: 0 | FV91: 0 | FW91: 0 | FX91: 0 | FY91: 0 | FZ91: 0 | GA91: 0 | GB91: 0 | GC91: 0 | GD91: 0 | GE91: 0 | GF91: 0 | GG91: 0 | GH91: 0
CV92: 0 | CW92: 0 | CX92: 0 | CY92: 0 | CZ92: 0 | DA92: 0 | DB92: 0 | DC92: 0 | DD92: 0 | DE92: 0 | DF92: 0 | DG92: 0 | DH92: 0 | DI92: 0 | DJ92: 0 | DK92: 0 | DL92: 0 | DM92: 0 | DN92: 0 | DO92: 0 | DP92: 0 | DQ92: 0 | DR92: 0 | DS92: 0 | DT92: 0 | DU92: 0 | DV92: 0 | DW92: 0 | DX92: 0 | DY92: 0 | DZ92: 0 | EA92: 0 | EB92: 0 | EC92: 0 | ED92: 0 | EE92: 0 | EF92: 0 | EG92: 0 | EH92: 0 | EI92: 0 | EJ92: 0 | EK92: 0 | EL92: 0 | EM92: 0 | EN92: 0 | EO92: 0 | EP92: 0 | EQ92: 0 | ER92: 0 | ES92: 0 | ET92: 0 | EU92: 0 | EV92: 0 | EW92: 0 | EX92: 0 | EY92: 0 | EZ92: 0 | FA92: 0 | FB92: 0 | FC92: 0 | FD92: 0 | FE92: 0 | FF92: 0 | FG92: 0 | FH92: 0 | FI92: 0 | FJ92: 0 | FK92: 0 | FL92: 0 | FM92: 0 | FN92: 0 | FO92: 0 | FP92: 0 | FQ92: 0 | FR92: 0 | FS92: 0 | FT92: 0 | FU92: 0 | FV92: 0 | FW92: 0 | FX92: 0 | FY92: 0 | FZ92: 0 | GA92: 0 | GB92: 0 | GC92: 0 | GD92: 0 | GE92: 0 | GF92: 0 | GG92: 0 | GH92: 0
CV93: 0 | CW93: 0 | CX93: 0 | CY93: 0 | CZ93: 0 | DA93: 0 | DB93: 0 | DC93: 0 | DD93: 0 | DE93: 0 | DF93: 0 | DG93: 0 | DH93: 0 | DI93: 0 | DJ93: 0 | DK93: 0 | DL93: 0 | DM93: 0 | DN93: 0 | DO93: 0 | DP93: 0 | DQ93: 0 | DR93: 0 | DS93: 0 | DT93: 0 | DU93: 0 | DV93: 0 | DW93: 0 | DX93: 0 | DY93: 0 | DZ93: 0 | EA93: 0 | EB93: 0 | EC93: 0 | ED93: 0 | EE93: 0 | EF93: 0 | EG93: 0 | EH93: 0 | EI93: 0 | EJ93: 0 | EK93: 0 | EL93: 0 | EM93: 0 | EN93: 0 | EO93: 0 | EP93: 0 | EQ93: 0 | ER93: 0 | ES93: 0 | ET93: 0 | EU93: 0 | EV93: 0 | EW93: 0 | EX93: 0 | EY93: 0 | EZ93: 0 | FA93: 0 | FB93: 0 | FC93: 0 | FD93: 0 | FE93: 0 | FF93: 0 | FG93: 0 | FH93: 0 | FI93: 0 | FJ93: 0 | FK93: 0 | FL93: 0 | FM93: 0 | FN93: 0 | FO93: 0 | FP93: 0 | FQ93: 0 | FR93: 0 | FS93: 0 | FT93: 0 | FU93: 0 | FV93: 0 | FW93: 0 | FX93: 0 | FY93: 0 | FZ93: 0 | GA93: 0 | GB93: 0 | GC93: 0 | GD93: 0 | GE93: 0 | GF93: 0 | GG93: 0 | GH93: 0
CV94: 0 | CW94: 0 | CX94: 0 | CY94: 0 | CZ94: 0 | DA94: 0 | DB94: 0 | DC94: 0 | DD94: 0 | DE94: 0 | DF94: 0 | DG94: 0 | DH94: 0 | DI94: 0 | DJ94: 0 | DK94: 0 | DL94: 0 | DM94: 0 | DN94: 0 | DO94: 0 | DP94: 0 | DQ94: 0 | DR94: 0 | DS94: 0 | DT94: 0 | DU94: 0 | DV94: 0 | DW94: 0 | DX94: 0 | DY94: 0 | DZ94: 0 | EA94: 0 | EB94: 0 | EC94: 0 | ED94: 0 | EE94: 0 | EF94: 0 | EG94: 0 | EH94: 0 | EI94: 0 | EJ94: 0 | EK94: 0 | EL94: 0 | EM94: 0 | EN94: 0 | EO94: 0 | EP94: 0 | EQ94: 0 | ER94: 0 | ES94: 0 | ET94: 0 | EU94: 0 | EV94: 0 | EW94: 0 | EX94: 0 | EY94: 0 | EZ94: 0 | FA94: 0 | FB94: 0 | FC94: 0 | FD94: 0 | FE94: 0 | FF94: 0 | FG94: 0 | FH94: 0 | FI94: 0 | FJ94: 0 | FK94: 0 | FL94: 0 | FM94: 0 | FN94: 0 | FO94: 0 | FP94: 0 | FQ94: 0 | FR94: 0 | FS94: 0 | FT94: 0 | FU94: 0 | FV94: 0 | FW94: 0 | FX94: 0 | FY94: 0 | FZ94: 0 | GA94: 0 | GB94: 0 | GC94: 0 | GD94: 0 | GE94: 0 | GF94: 0 | GG94: 0 | GH94: 0
CV95: 0 | CW95: 0 | CX95: 0 | CY95: 0 | CZ95: 0 | DA95: 0 | DB95: 0 | DC95: 0 | DD95: 0 | DE95: 0 | DF95: 0 | DG95: 0 | DH95: 0 | DI95: 0 | DJ95: 0 | DK95: 0 | DL95: 0 | DM95: 0 | DN95: 0 | DO95: 0 | DP95: 0 | DQ95: 0 | DR95: 0 | DS95: 0 | DT95: 0 | DU95: 0 | DV95: 0 | DW95: 0 | DX95: 0 | DY95: 0 | DZ95: 0 | EA95: 0 | EB95: 0 | EC95: 0 | ED95: 0 | EE95: 0 | EF95: 0 | EG95: 0 | EH95: 0 | EI95: 0 | EJ95: 0 | EK95: 0 | EL95: 0 | EM95: 0 | EN95: 0 | EO95: 0 | EP95: 0 | EQ95: 0 | ER95: 0 | ES95: 0 | ET95: 0 | EU95: 0 | EV95: 0 | EW95: 0 | EX95: 0 | EY95: 0 | EZ95: 0 | FA95: 0 | FB95: 0 | FC95: 0 | FD95: 0 | FE95: 0 | FF95: 0 | FG95: 0 | FH95: 0 | FI95: 0 | FJ95: 0 | FK95: 0 | FL95: 0 | FM95: 0 | FN95: 0 | FO95: 0 | FP95: 0 | FQ95: 0 | FR95: 0 | FS95: 0 | FT95: 0 | FU95: 0 | FV95: 0 | FW95: 0 | FX95: 0 | FY95: 0 | FZ95: 0 | GA95: 0 | GB95: 0 | GC95: 0 | GD95: 0 | GE95: 0 | GF95: 0 | GG95: 0 | GH95: 0
CV96: 0 | CW96: 0 | CX96: 0 | CY96: 0 | CZ96: 0 | DA96: 0 | DB96: 0 | DC96: 0 | DD96: 0 | DE96: 0 | DF96: 0 | DG96: 0 | DH96: 0 | DI96: 0 | DJ96: 0 | DK96: 0 | DL96: 0 | DM96: 0 | DN96: 0 | DO96: 0 | DP96: 0 | DQ96: 0 | DR96: 0 | DS96: 0 | DT96: 0 | DU96: 0 | DV96: 0 | DW96: 0 | DX96: 0 | DY96: 0 | DZ96: 0 | EA96: 0 | EB96: 0 | EC96: 0 | ED96: 0 | EE96: 0 | EF96: 0 | EG96: 0 | EH96: 0 | EI96: 0 | EJ96: 0 | EK96: 0 | EL96: 0 | EM96: 0 | EN96: 0 | EO96: 0 | EP96: 0 | EQ96: 0 | ER96: 0 | ES96: 0 | ET96: 0 | EU96: 0 | EV96: 0 | EW96: 0 | EX96: 0 | EY96: 0 | EZ96: 0 | FA96: 0 | FB96: 0 | FC96: 0 | FD96: 0 | FE96: 0 | FF96: 0 | FG96: 0 | FH96: 0 | FI96: 0 | FJ96: 0 | FK96: 0 | FL96: 0 | FM96: 0 | FN96: 0 | FO96: 0 | FP96: 0 | FQ96: 0 | FR96: 0 | FS96: 0 | FT96: 0 | FU96: 0 | FV96: 0 | FW96: 0 | FX96: 0 | FY96: 0 | FZ96: 0 | GA96: 0 | GB96: 0 | GC96: 0 | GD96: 0 | GE96: 0 | GF96: 0 | GG96: 0 | GH96: 0
CV97: 0 | CW97: 0 | CX97: 0 | CY97: 0 | CZ97: 0 | DA97: 0 | DB97: 0 | DC97: 0 | DD97: 0 | DE97: 0 | DF97: 0 | DG97: 0 | DH97: 0 | DI97: 0 | DJ97: 0 | DK97: 0 | DL97: 0 | DM97: 0 | DN97: 0 | DO97: 0 | DP97: 0 | DQ97: 0 | DR97: 0 | DS97: 0 | DT97: 0 | DU97: 0 | DV97: 0 | DW97: 0 | DX97: 0 | DY97: 0 | DZ97: 0 | EA97: 0 | EB97: 0 | EC97: 0 | ED97: 0 | EE97: 0 | EF97: 0 | EG97: 0 | EH97: 0 | EI97: 0 | EJ97: 0 | EK97: 0 | EL97: 0 | EM97: 0 | EN97: 0 | EO97: 0 | EP97: 0 | EQ97: 0 | ER97: 0 | ES97: 0 | ET97: 0 | EU97: 0 | EV97: 0 | EW97: 0 | EX97: 0 | EY97: 0 | EZ97: 0 | FA97: 0 | FB97: 0 | FC97: 0 | FD97: 0 | FE97: 0 | FF97: 0 | FG97: 0 | FH97: 0 | FI97: 0 | FJ97: 0 | FK97: 0 | FL97: 0 | FM97: 0 | FN97: 0 | FO97: 0 | FP97: 0 | FQ97: 0 | FR97: 0 | FS97: 0 | FT97: 0 | FU97: 0 | FV97: 0 | FW97: 0 | FX97: 0 | FY97: 0 | FZ97: 0 | GA97: 0 | GB97: 0 | GC97: 0 | GD97: 0 | GE97: 0 | GF97: 0 | GG97: 0 | GH97: 0
CV98: 0 | CW98: 0 | CX98: 0 | CY98: 0 | CZ98: 0 | DA98: 0 | DB98: 0 | DC98: 0 | DD98: 0 | DE98: 0 | DF98: 0 | DG98: 0 | DH98: 0 | DI98: 0 | DJ98: 0 | DK98: 0 | DL98: 0 | DM98: 0 | DN98: 0 | DO98: 0 | DP98: 0 | DQ98: 0 | DR98: 0 | DS98: 0 | DT98: 0 | DU98: 0 | DV98: 0 | DW98: 0 | DX98: 0 | DY98: 0 | DZ98: 0 | EA98: 0 | EB98: 0 | EC98: 0 | ED98: 0 | EE98: 0 | EF98: 0 | EG98: 0 | EH98: 0 | EI98: 0 | EJ98: 0 | EK98: 0 | EL98: 0 | EM98: 0 | EN98: 0 | EO98: 0 | EP98: 0 | EQ98: 0 | ER98: 0 | ES98: 0 | ET98: 0 | EU98: 0 | EV98: 0 | EW98: 0 | EX98: 0 | EY98: 0 | EZ98: 0 | FA98: 0 | FB98: 0 | FC98: 0 | FD98: 0 | FE98: 0 | FF98: 0 | FG98: 0 | FH98: 0 | FI98: 0 | FJ98: 0 | FK98: 0 | FL98: 0 | FM98: 0 | FN98: 0 | FO98: 0 | FP98: 0 | FQ98: 0 | FR98: 0 | FS98: 0 | FT98: 0 | FU98: 0 | FV98: 0 | FW98: 0 | FX98: 0 | FY98: 0 | FZ98: 0 | GA98: 0 | GB98: 0 | GC98: 0 | GD98: 0 | GE98: 0 | GF98: 0 | GG98: 0 | GH98: 0
CV99: 0 | CW99: 0 | CX99: 0 | CY99: 0 | CZ99: 0 | DA99: 0 | DB99: 0 | DC99: 0 | DD99: 0 | DE99: 0 | DF99: 0 | DG99: 0 | DH99: 0 | DI99: 0 | DJ99: 0 | DK99: 0 | DL99: 0 | DM99: 0 | DN99: 0 | DO99: 0 | DP99: 0 | DQ99: 0 | DR99: 0 | DS99: 0 | DT99: 0 | DU99: 0 | DV99: 0 | DW99: 0 | DX99: 0 | DY99: 0 | DZ99: 0 | EA99: 0 | EB99: 0 | EC99: 0 | ED99: 0 | EE99: 0 | EF99: 0 | EG99: 0 | EH99: 0 | EI99: 0 | EJ99: 0 | EK99: 0 | EL99: 0 | EM99: 0 | EN99: 0 | EO99: 0 | EP99: 0 | EQ99: 0 | ER99: 0 | ES99: 0 | ET99: 0 | EU99: 0 | EV99: 0 | EW99: 0 | EX99: 0 | EY99: 0 | EZ99: 0 | FA99: 0 | FB99: 0 | FC99: 0 | FD99: 0 | FE99: 0 | FF99: 0 | FG99: 0 | FH99: 0 | FI99: 0 | FJ99: 0 | FK99: 0 | FL99: 0 | FM99: 0 | FN99: 0 | FO99: 0 | FP99: 0 | FQ99: 0 | FR99: 0 | FS99: 0 | FT99: 0 | FU99: 0 | FV99: 0 | FW99: 0 | FX99: 0 | FY99: 0 | FZ99: 0 | GA99: 0 | GB99: 0 | GC99: 0 | GD99: 0 | GE99: 0 | GF99: 0 | GG99: 0 | GH99: 0
CV100: 0 | CW100: 0 | CX100: 0 | CY100: 0 | CZ100: 0 | DA100: 0 | DB100: 0 | DC100: 0 | DD100: 0 | DE100: 0 | DF100: 0 | DG100: 0 | DH100: 0 | DI100: 0 | DJ100: 0 | DK100: 0 | DL100: 0 | DM100: 0 | DN100: 0 | DO100: 0 | DP100: 0 | DQ100: 0 | DR100: 0 | DS100: 0 | DT100: 0 | DU100: 0 | DV100: 0 | DW100: 0 | DX100: 0 | DY100: 0 | DZ100: 0 | EA100: 0 | EB100: 0 | EC100: 0 | ED100: 0 | EE100: 0 | EF100: 0 | EG100: 0 | EH100: 0 | EI100: 0 | EJ100: 0 | EK100: 0 | EL100: 0 | EM100: 0 | EN100: 0 | EO100: 0 | EP100: 0 | EQ100: 0 | ER100: 0 | ES100: 0 | ET100: 0 | EU100: 0 | EV100: 0 | EW100: 0 | EX100: 0 | EY100: 0 | EZ100: 0 | FA100: 0 | FB100: 0 | FC100: 0 | FD100: 0 | FE100: 0 | FF100: 0 | FG100: 0 | FH100: 0 | FI100: 0 | FJ100: 0 | FK100: 0 | FL100: 0 | FM100: 0 | FN100: 0 | FO100: 0 | FP100: 0 | FQ100: 0 | FR100: 0 | FS100: 0 | FT100: 0 | FU100: 0 | FV100: 0 | FW100: 0 | FX100: 0 | FY100: 0 | FZ100: 0 | GA100: 0 | GB100: 0 | GC100: 0 | GD100: 0 | GE100: 0 | GF100: 0 | GG100: 0 | GH100: 0
CV101: 0 | CW101: 0 | CX101: 0 | CY101: 0 | CZ101: 0 | DA101: 0 | DB101: 0 | DC101: 0 | DD101: 0 | DE101: 0 | DF101: 0 | DG101: 0 | DH101: 0 | DI101: 0 | DJ101: 0 | DK101: 0 | DL101: 0 | DM101: 0 | DN101: 0 | DO101: 0 | DP101: 0 | DQ101: 0 | DR101: 0 | DS101: 0 | DT101: 0 | DU101: 0 | DV101: 0 | DW101: 0 | DX101: 0 | DY101: 0 | DZ101: 0 | EA101: 0 | EB101: 0 | EC101: 0 | ED101: 0 | EE101: 0 | EF101: 0 | EG101: 0 | EH101: 0 | EI101: 0 | EJ101: 0 | EK101: 0 | EL101: 0 | EM101: 0 | EN101: 0 | EO101: 0 | EP101: 0 | EQ101: 0 | ER101: 0 | ES101: 0 | ET101: 0 | EU101: 0 | EV101: 0 | EW101: 0 | EX101: 0 | EY101: 0 | EZ101: 0 | FA101: 0 | FB101: 0 | FC101: 0 | FD101: 0 | FE101: 0 | FF101: 0 | FG101: 0 | FH101: 0 | FI101: 0 | FJ101: 0 | FK101: 0 | FL101: 0 | FM101: 0 | FN101: 0 | FO101: 0 | FP101: 0 | FQ101: 0 | FR101: 0 | FS101: 0 | FT101: 0 | FU101: 0 | FV101: 0 | FW101: 0 | FX101: 0 | FY101: 0 | FZ101: 0 | GA101: 0 | GB101: 0 | GC101: 0 | GD101: 0 | GE101: 0 | GF101: 0 | GG101: 0 | GH101: 0
CV102: 0 | CW102: 0 | CX102: 0 | CY102: 0 | CZ102: 0 | DA102: 0 | DB102: 0 | DC102: 0 | DD102: 0 | DE102: 0 | DF102: 0 | DG102: 0 | DH102: 0 | DI102: 0 | DJ102: 0 | DK102: 0 | DL102: 0 | DM102: 0 | DN102: 0 | DO102: 0 | DP102: 0 | DQ102: 0 | DR102: 0 | DS102: 0 | DT102: 0 | DU102: 0 | DV102: 0 | DW102: 0 | DX102: 0 | DY102: 0 | DZ102: 0 | EA102: 0 | EB102: 0 | EC102: 0 | ED102: 0 | EE102: 0 | EF102: 0 | EG102: 0 | EH102: 0 | EI102: 0 | EJ102: 0 | EK102: 0 | EL102: 0 | EM102: 0 | EN102: 0 | EO102: 0 | EP102: 0 | EQ102: 0 | ER102: 0 | ES102: 0 | ET102: 0 | EU102: 0 | EV102: 0 | EW102: 0 | EX102: 0 | EY102: 0 | EZ102: 0 | FA102: 0 | FB102: 0 | FC102: 0 | FD102: 0 | FE102: 0 | FF102: 0 | FG102: 0 | FH102: 0 | FI102: 0 | FJ102: 0 | FK102: 0 | FL102: 0 | FM102: 0 | FN102: 0 | FO102: 0 | FP102: 0 | FQ102: 0 | FR102: 0 | FS102: 0 | FT102: 0 | FU102: 0 | FV102: 0 | FW102: 0 | FX102: 0 | FY102: 0 | FZ102: 0 | GA102: 0 | GB102: 0 | GC102: 0 | GD102: 0 | GE102: 0 | GF102: 0 | GG102: 0 | GH102: 0
CV103: 0 | CW103: 0 | CX103: 0 | CY103: 0 | CZ103: 0 | DA103: 0 | DB103: 0 | DC103: 0 | DD103: 0 | DE103: 0 | DF103: 0 | DG103: 0 | DH103: 0 | DI103: 0 | DJ103: 0 | DK103: 0 | DL103: 0 | DM103: 0 | DN103: 0 | DO103: 0 | DP103: 0 | DQ103: 0 | DR103: 0 | DS103: 0 | DT103: 0 | DU103: 0 | DV103: 0 | DW103: 0 | DX103: 0 | DY103: 0 | DZ103: 0 | EA103: 0 | EB103: 0 | EC103: 0 | ED103: 0 | EE103: 0 | EF103: 0 | EG103: 0 | EH103: 0 | EI103: 0 | EJ103: 0 | EK103: 0 | EL103: 0 | EM103: 0 | EN103: 0 | EO103: 0 | EP103: 0 | EQ103: 0 | ER103: 0 | ES103: 0 | ET103: 0 | EU103: 0 | EV103: 0 | EW103: 0 | EX103: 0 | EY103: 0 | EZ103: 0 | FA103: 0 | FB103: 0 | FC103: 0 | FD103: 0 | FE103: 0 | FF103: 0 | FG103: 0 | FH103: 0 | FI103: 0 | FJ103: 0 | FK103: 0 | FL103: 0 | FM103: 0 | FN103: 0 | FO103: 0 | FP103: 0 | FQ103: 0 | FR103: 0 | FS103: 0 | FT103: 0 | FU103: 0 | FV103: 0 | FW103: 0 | FX103: 0 | FY103: 0 | FZ103: 0 | GA103: 0 | GB103: 0 | GC103: 0 | GD103: 0 | GE103: 0 | GF103: 0 | GG103: 0 | GH103: 0
CV104: 0 | CW104: 0 | CX104: 0 | CY104: 0 | CZ104: 0 | DA104: 0 | DB104: 0 | DC104: 0 | DD104: 0 | DE104: 0 | DF104: 0 | DG104: 0 | DH104: 0 | DI104: 0 | DJ104: 0 | DK104: 0 | DL104: 0 | DM104: 0 | DN104: 0 | DO104: 0 | DP104: 0 | DQ104: 0 | DR104: 0 | DS104: 0 | DT104: 0 | DU104: 0 | DV104: 0 | DW104: 0 | DX104: 0 | DY104: 0 | DZ104: 0 | EA104: 0 | EB104: 0 | EC104: 0 | ED104: 0 | EE104: 0 | EF104: 0 | EG104: 0 | EH104: 0 | EI104: 0 | EJ104: 0 | EK104: 0 | EL104: 0 | EM104: 0 | EN104: 0 | EO104: 0 | EP104: 0 | EQ104: 0 | ER104: 0 | ES104: 0 | ET104: 0 | EU104: 0 | EV104: 0 | EW104: 0 | EX104: 0 | EY104: 0 | EZ104: 0 | FA104: 0 | FB104: 0 | FC104: 0 | FD104: 0 | FE104: 0 | FF104: 0 | FG104: 0 | FH104: 0 | FI104: 0 | FJ104: 0 | FK104: 0 | FL104: 0 | FM104: 0 | FN104: 0 | FO104: 0 | FP104: 0 | FQ104: 0 | FR104: 0 | FS104: 0 | FT104: 0 | FU104: 0 | FV104: 0 | FW104: 0 | FX104: 0 | FY104: 0 | FZ104: 0 | GA104: 0 | GB104: 0 | GC104: 0 | GD104: 0 | GE104: 0 | GF104: 0 | GG104: 0 | GH104: 0
CV105: 0 | CW105: 0 | CX105: 0 | CY105: 0 | CZ105: 0 | DA105: 0 | DB105: 0 | DC105: 0 | DD105: 0 | DE105: 0 | DF105: 0 | DG105: 0 | DH105: 0 | DI105: 0 | DJ105: 0 | DK105: 0 | DL105: 0 | DM105: 0 | DN105: 0 | DO105: 0 | DP105: 0 | DQ105: 0 | DR105: 0 | DS105: 0 | DT105: 0 | DU105: 0 | DV105: 0 | DW105: 0 | DX105: 0 | DY105: 0 | DZ105: 0 | EA105: 0 | EB105: 0 | EC105: 0 | ED105: 0 | EE105: 0 | EF105: 0 | EG105: 0 | EH105: 0 | EI105: 0 | EJ105: 0 | EK105: 0 | EL105: 0 | EM105: 0 | EN105: 0 | EO105: 0 | EP105: 0 | EQ105: 0 | ER105: 0 | ES105: 0 | ET105: 0 | EU105: 0 | EV105: 0 | EW105: 0 | EX105: 0 | EY105: 0 | EZ105: 0 | FA105: 0 | FB105: 0 | FC105: 0 | FD105: 0 | FE105: 0 | FF105: 0 | FG105: 0 | FH105: 0 | FI105: 0 | FJ105: 0 | FK105: 0 | FL105: 0 | FM105: 0 | FN105: 0 | FO105: 0 | FP105: 0 | FQ105: 0 | FR105: 0 | FS105: 0 | FT105: 0 | FU105: 0 | FV105: 0 | FW105: 0 | FX105: 0 | FY105: 0 | FZ105: 0 | GA105: 0 | GB105: 0 | GC105: 0 | GD105: 0 | GE105: 0 | GF105: 0 | GG105: 0 | GH105: 0
CV106: 0 | CW106: 0 | CX106: 0 | CY106: 0 | CZ106: 0 | DA106: 0 | DB106: 0 | DC106: 0 | DD106: 0 | DE106: 0 | DF106: 0 | DG106: 0 | DH106: 0 | DI106: 0 | DJ106: 0 | DK106: 0 | DL106: 0 | DM106: 0 | DN106: 0 | DO106: 0 | DP106: 0 | DQ106: 0 | DR106: 0 | DS106: 0 | DT106: 0 | DU106: 0 | DV106: 0 | DW106: 0 | DX106: 0 | DY106: 0 | DZ106: 0 | EA106: 0 | EB106: 0 | EC106: 0 | ED106: 0 | EE106: 0 | EF106: 0 | EG106: 0 | EH106: 0 | EI106: 0 | EJ106: 0 | EK106: 0 | EL106: 0 | EM106: 0 | EN106: 0 | EO106: 0 | EP106: 0 | EQ106: 0 | ER106: 0 | ES106: 0 | ET106: 0 | EU106: 0 | EV106: 0 | EW106: 0 | EX106: 0 | EY106: 0 | EZ106: 0 | FA106: 0 | FB106: 0 | FC106: 0 | FD106: 0 | FE106: 0 | FF106: 0 | FG106: 0 | FH106: 0 | FI106: 0 | FJ106: 0 | FK106: 0 | FL106: 0 | FM106: 0 | FN106: 0 | FO106: 0 | FP106: 0 | FQ106: 0 | FR106: 0 | FS106: 0 | FT106: 0 | FU106: 0 | FV106: 0 | FW106: 0 | FX106: 0 | FY106: 0 | FZ106: 0 | GA106: 0 | GB106: 0 | GC106: 0 | GD106: 0 | GE106: 0 | GF106: 0 | GG106: 0 | GH106: 0
CV107: 0 | CW107: 0 | CX107: 0 | CY107: 0 | CZ107: 0 | DA107: 0 | DB107: 0 | DC107: 0 | DD107: 0 | DE107: 0 | DF107: 0 | DG107: 0 | DH107: 0 | DI107: 0 | DJ107: 0 | DK107: 0 | DL107: 0 | DM107: 0 | DN107: 0 | DO107: 0 | DP107: 0 | DQ107: 0 | DR107: 0 | DS107: 0 | DT107: 0 | DU107: 0 | DV107: 0 | DW107: 0 | DX107: 0 | DY107: 0 | DZ107: 0 | EA107: 0 | EB107: 0 | EC107: 0 | ED107: 0 | EE107: 0 | EF107: 0 | EG107: 0 | EH107: 0 | EI107: 0 | EJ107: 0 | EK107: 0 | EL107: 0 | EM107: 0 | EN107: 0 | EO107: 0 | EP107: 0 | EQ107: 0 | ER107: 0 | ES107: 0 | ET107: 0 | EU107: 0 | EV107: 0 | EW107: 0 | EX107: 0 | EY107: 0 | EZ107: 0 | FA107: 0 | FB107: 0 | FC107: 0 | FD107: 0 | FE107: 0 | FF107: 0 | FG107: 0 | FH107: 0 | FI107: 0 | FJ107: 0 | FK107: 0 | FL107: 0 | FM107: 0 | FN107: 0 | FO107: 0 | FP107: 0 | FQ107: 0 | FR107: 0 | FS107: 0 | FT107: 0 | FU107: 0 | FV107: 0 | FW107: 0 | FX107: 0 | FY107: 0 | FZ107: 0 | GA107: 0 | GB107: 0 | GC107: 0 | GD107: 0 | GE107: 0 | GF107: 0 | GG107: 0 | GH107: 0
CV108: 0 | CW108: 0 | CX108: 0 | CY108: 0 | CZ108: 0 | DA108: 0 | DB108: 0 | DC108: 0 | DD108: 0 | DE108: 0 | DF108: 0 | DG108: 0 | DH108: 0 | DI108: 0 | DJ108: 0 | DK108: 0 | DL108: 0 | DM108: 0 | DN108: 0 | DO108: 0 | DP108: 0 | DQ108: 0 | DR108: 0 | DS108: 0 | DT108: 0 | DU108: 0 | DV108: 0 | DW108: 0 | DX108: 0 | DY108: 0 | DZ108: 0 | EA108: 0 | EB108: 0 | EC108: 0 | ED108: 0 | EE108: 0 | EF108: 0 | EG108: 0 | EH108: 0 | EI108: 0 | EJ108: 0 | EK108: 0 | EL108: 0 | EM108: 0 | EN108: 0 | EO108: 0 | EP108: 0 | EQ108: 0 | ER108: 0 | ES108: 0 | ET108: 0 | EU108: 0 | EV108: 0 | EW108: 0 | EX108: 0 | EY108: 0 | EZ108: 0 | FA108: 0 | FB108: 0 | FC108: 0 | FD108: 0 | FE108: 0 | FF108: 0 | FG108: 0 | FH108: 0 | FI108: 0 | FJ108: 0 | FK108: 0 | FL108: 0 | FM108: 0 | FN108: 0 | FO108: 0 | FP108: 0 | FQ108: 0 | FR108: 0 | FS108: 0 | FT108: 0 | FU108: 0 | FV108: 0 | FW108: 0 | FX108: 0 | FY108: 0 | FZ108: 0 | GA108: 0 | GB108: 0 | GC108: 0 | GD108: 0 | GE108: 0 | GF108: 0 | GG108: 0 | GH108: 0
CV109: 0 | CW109: 0 | CX109: 0 | CY109: 0 | CZ109: 0 | DA109: 0 | DB109: 0 | DC109: 0 | DD109: 0 | DE109: 0 | DF109: 0 | DG109: 0 | DH109: 0 | DI109: 0 | DJ109: 0 | DK109: 0 | DL109: 0 | DM109: 0 | DN109: 0 | DO109: 0 | DP109: 0 | DQ109: 0 | DR109: 0 | DS109: 0 | DT109: 0 | DU109: 0 | DV109: 0 | DW109: 0 | DX109: 0 | DY109: 0 | DZ109: 0 | EA109: 0 | EB109: 0 | EC109: 0 | ED109: 0 | EE109: 0 | EF109: 0 | EG109: 0 | EH109: 0 | EI109: 0 | EJ109: 0 | EK109: 0 | EL109: 0 | EM109: 0 | EN109: 0 | EO109: 0 | EP109: 0 | EQ109: 0 | ER109: 0 | ES109: 0 | ET109: 0 | EU109: 0 | EV109: 0 | EW109: 0 | EX109: 0 | EY109: 0 | EZ109: 0 | FA109: 0 | FB109: 0 | FC109: 0 | FD109: 0 | FE109: 0 | FF109: 0 | FG109: 0 | FH109: 0 | FI109: 0 | FJ109: 0 | FK109: 0 | FL109: 0 | FM109: 0 | FN109: 0 | FO109: 0 | FP109: 0 | FQ109: 0 | FR109: 0 | FS109: 0 | FT109: 0 | FU109: 0 | FV109: 0 | FW109: 0 | FX109: 0 | FY109: 0 | FZ109: 0 | GA109: 0 | GB109: 0 | GC109: 0 | GD109: 0 | GE109: 0 | GF109: 0 | GG109: 0 | GH109: 0
CV110: 0 | CW110: 0 | CX110: 0 | CY110: 0 | CZ110: 0 | DA110: 0 | DB110: 0 | DC110: 0 | DD110: 0 | DE110: 0 | DF110: 0 | DG110: 0 | DH110: 0 | DI110: 0 | DJ110: 0 | DK110: 0 | DL110: 0 | DM110: 0 | DN110: 0 | DO110: 0 | DP110: 0 | DQ110: 0 | DR110: 0 | DS110: 0 | DT110: 0 | DU110: 0 | DV110: 0 | DW110: 0 | DX110: 0 | DY110: 0 | DZ110: 0 | EA110: 0 | EB110: 0 | EC110: 0 | ED110: 0 | EE110: 0 | EF110: 0 | EG110: 0 | EH110: 0 | EI110: 0 | EJ110: 0 | EK110: 0 | EL110: 0 | EM110: 0 | EN110: 0 | EO110: 0 | EP110: 0 | EQ110: 0 | ER110: 0 | ES110: 0 | ET110: 0 | EU110: 0 | EV110: 0 | EW110: 0 | EX110: 0 | EY110: 0 | EZ110: 0 | FA110: 0 | FB110: 0 | FC110: 0 | FD110: 0 | FE110: 0 | FF110: 0 | FG110: 0 | FH110: 0 | FI110: 0 | FJ110: 0 | FK110: 0 | FL110: 0 | FM110: 0 | FN110: 0 | FO110: 0 | FP110: 0 | FQ110: 0 | FR110: 0 | FS110: 0 | FT110: 0 | FU110: 0 | FV110: 0 | FW110: 0 | FX110: 0 | FY110: 0 | FZ110: 0 | GA110: 0 | GB110: 0 | GC110: 0 | GD110: 0 | GE110: 0 | GF110: 0 | GG110: 0 | GH110: 0
CV111: 0 | CW111: 0 | CX111: 0 | CY111: 0 | CZ111: 0 | DA111: 0 | DB111: 0 | DC111: 0 | DD111: 0 | DE111: 0 | DF111: 0 | DG111: 0 | DH111: 0 | DI111: 0 | DJ111: 0 | DK111: 0 | DL111: 0 | DM111: 0 | DN111: 0 | DO111: 0 | DP111: 0 | DQ111: 0 | DR111: 0 | DS111: 0 | DT111: 0 | DU111: 0 | DV111: 0 | DW111: 0 | DX111: 0 | DY111: 0 | DZ111: 0 | EA111: 0 | EB111: 0 | EC111: 0 | ED111: 0 | EE111: 0 | EF111: 0 | EG111: 0 | EH111: 0 | EI111: 0 | EJ111: 0 | EK111: 0 | EL111: 0 | EM111: 0 | EN111: 0 | EO111: 0 | EP111: 0 | EQ111: 0 | ER111: 0 | ES111: 0 | ET111: 0 | EU111: 0 | EV111: 0 | EW111: 0 | EX111: 0 | EY111: 0 | EZ111: 0 | FA111: 0 | FB111: 0 | FC111: 0 | FD111: 0 | FE111: 0 | FF111: 0 | FG111: 0 | FH111: 0 | FI111: 0 | FJ111: 0 | FK111: 0 | FL111: 0 | FM111: 0 | FN111: 0 | FO111: 0 | FP111: 0 | FQ111: 0 | FR111: 0 | FS111: 0 | FT111: 0 | FU111: 0 | FV111: 0 | FW111: 0 | FX111: 0 | FY111: 0 | FZ111: 0 | GA111: 0 | GB111: 0 | GC111: 0 | GD111: 0 | GE111: 0 | GF111: 0 | GG111: 0 | GH111: 0
CV112: 0 | CW112: 0 | CX112: 0 | CY112: 0 | CZ112: 0 | DA112: 0 | DB112: 0 | DC112: 0 | DD112: 0 | DE112: 0 | DF112: 0 | DG112: 0 | DH112: 0 | DI112: 0 | DJ112: 0 | DK112: 0 | DL112: 0 | DM112: 0 | DN112: 0 | DO112: 0 | DP112: 0 | DQ112: 0 | DR112: 0 | DS112: 0 | DT112: 0 | DU112: 0 | DV112: 0 | DW112: 0 | DX112: 0 | DY112: 0 | DZ112: 0 | EA112: 0 | EB112: 0 | EC112: 0 | ED112: 0 | EE112: 0 | EF112: 0 | EG112: 0 | EH112: 0 | EI112: 0 | EJ112: 0 | EK112: 0 | EL112: 0 | EM112: 0 | EN112: 0 | EO112: 0 | EP112: 0 | EQ112: 0 | ER112: 0 | ES112: 0 | ET112: 0 | EU112: 0 | EV112: 0 | EW112: 0 | EX112: 0 | EY112: 0 | EZ112: 0 | FA112: 0 | FB112: 0 | FC112: 0 | FD112: 0 | FE112: 0 | FF112: 0 | FG112: 0 | FH112: 0 | FI112: 0 | FJ112: 0 | FK112: 0 | FL112: 0 | FM112: 0 | FN112: 0 | FO112: 0 | FP112: 0 | FQ112: 0 | FR112: 0 | FS112: 0 | FT112: 0 | FU112: 0 | FV112: 0 | FW112: 0 | FX112: 0 | FY112: 0 | FZ112: 0 | GA112: 0 | GB112: 0 | GC112: 0 | GD112: 0 | GE112: 0 | GF112: 0 | GG112: 0 | GH112: 0
CV113: 0 | CW113: 0 | CX113: 0 | CY113: 0 | CZ113: 0 | DA113: 0 | DB113: 0 | DC113: 0 | DD113: 0 | DE113: 0 | DF113: 0 | DG113: 0 | DH113: 0 | DI113: 0 | DJ113: 0 | DK113: 0 | DL113: 0 | DM113: 0 | DN113: 0 | DO113: 0 | DP113: 0 | DQ113: 0 | DR113: 0 | DS113: 0 | DT113: 0 | DU113: 0 | DV113: 0 | DW113: 0 | DX113: 0 | DY113: 0 | DZ113: 0 | EA113: 0 | EB113: 0 | EC113: 0 | ED113: 0 | EE113: 0 | EF113: 0 | EG113: 0 | EH113: 0 | EI113: 0 | EJ113: 0 | EK113: 0 | EL113: 0 | EM113: 0 | EN113: 0 | EO113: 0 | EP113: 0 | EQ113: 0 | ER113: 0 | ES113: 0 | ET113: 0 | EU113: 0 | EV113: 0 | EW113: 0 | EX113: 0 | EY113: 0 | EZ113: 0 | FA113: 0 | FB113: 0 | FC113: 0 | FD113: 0 | FE113: 0 | FF113: 0 | FG113: 0 | FH113: 0 | FI113: 0 | FJ113: 0 | FK113: 0 | FL113: 0 | FM113: 0 | FN113: 0 | FO113: 0 | FP113: 0 | FQ113: 0 | FR113: 0 | FS113: 0 | FT113: 0 | FU113: 0 | FV113: 0 | FW113: 0 | FX113: 0 | FY113: 0 | FZ113: 0 | GA113: 0 | GB113: 0 | GC113: 0 | GD113: 0 | GE113: 0 | GF113: 0 | GG113: 0 | GH113: 0
CV114: 0 | CW114: 0 | CX114: 0 | CY114: 0 | CZ114: 0 | DA114: 0 | DB114: 0 | DC114: 0 | DD114: 0 | DE114: 0 | DF114: 0 | DG114: 0 | DH114: 0 | DI114: 0 | DJ114: 0 | DK114: 0 | DL114: 0 | DM114: 0 | DN114: 0 | DO114: 0 | DP114: 0 | DQ114: 0 | DR114: 0 | DS114: 0 | DT114: 0 | DU114: 0 | DV114: 0 | DW114: 0 | DX114: 0 | DY114: 0 | DZ114: 0 | EA114: 0 | EB114: 0 | EC114: 0 | ED114: 0 | EE114: 0 | EF114: 0 | EG114: 0 | EH114: 0 | EI114: 0 | EJ114: 0 | EK114: 0 | EL114: 0 | EM114: 0 | EN114: 0 | EO114: 0 | EP114: 0 | EQ114: 0 | ER114: 0 | ES114: 0 | ET114: 0 | EU114: 0 | EV114: 0 | EW114: 0 | EX114: 0 | EY114: 0 | EZ114: 0 | FA114: 0 | FB114: 0 | FC114: 0 | FD114: 0 | FE114: 0 | FF114: 0 | FG114: 0 | FH114: 0 | FI114: 0 | FJ114: 0 | FK114: 0 | FL114: 0 | FM114: 0 | FN114: 0 | FO114: 0 | FP114: 0 | FQ114: 0 | FR114: 0 | FS114: 0 | FT114: 0 | FU114: 0 | FV114: 0 | FW114: 0 | FX114: 0 | FY114: 0 | FZ114: 0 | GA114: 0 | GB114: 0 | GC114: 0 | GD114: 0 | GE114: 0 | GF114: 0 | GG114: 0 | GH114: 0
CV115: 0 | CW115: 0 | CX115: 0 | CY115: 0 | CZ115: 0 | DA115: 0 | DB115: 0 | DC115: 0 | DD115: 0 | DE115: 0 | DF115: 0 | DG115: 0 | DH115: 0 | DI115: 0 | DJ115: 0 | DK115: 0 | DL115: 0 | DM115: 0 | DN115: 0 | DO115: 0 | DP115: 0 | DQ115: 0 | DR115: 0 | DS115: 0 | DT115: 0 | DU115: 0 | DV115: 0 | DW115: 0 | DX115: 0 | DY115: 0 | DZ115: 0 | EA115: 0 | EB115: 0 | EC115: 0 | ED115: 0 | EE115: 0 | EF115: 0 | EG115: 0 | EH115: 0 | EI115: 0 | EJ115: 0 | EK115: 0 | EL115: 0 | EM115: 0 | EN115: 0 | EO115: 0 | EP115: 0 | EQ115: 0 | ER115: 0 | ES115: 0 | ET115: 0 | EU115: 0 | EV115: 0 | EW115: 0 | EX115: 0 | EY115: 0 | EZ115: 0 | FA115: 0 | FB115: 0 | FC115: 0 | FD115: 0 | FE115: 0 | FF115: 0 | FG115: 0 | FH115: 0 | FI115: 0 | FJ115: 0 | FK115: 0 | FL115: 0 | FM115: 0 | FN115: 0 | FO115: 0 | FP115: 0 | FQ115: 0 | FR115: 0 | FS115: 0 | FT115: 0 | FU115: 0 | FV115: 0 | FW115: 0 | FX115: 0 | FY115: 0 | FZ115: 0 | GA115: 0 | GB115: 0 | GC115: 0 | GD115: 0 | GE115: 0 | GF115: 0 | GG115: 0 | GH115: 0
CV116: 0 | CW116: 0 | CX116: 0 | CY116: 0 | CZ116: 0 | DA116: 0 | DB116: 0 | DC116: 0 | DD116: 0 | DE116: 0 | DF116: 0 | DG116: 0 | DH116: 0 | DI116: 0 | DJ116: 0 | DK116: 0 | DL116: 0 | DM116: 0 | DN116: 0 | DO116: 0 | DP116: 0 | DQ116: 0 | DR116: 0 | DS116: 0 | DT116: 0 | DU116: 0 | DV116: 0 | DW116: 0 | DX116: 0 | DY116: 0 | DZ116: 0 | EA116: 0 | EB116: 0 | EC116: 0 | ED116: 0 | EE116: 0 | EF116: 0 | EG116: 0 | EH116: 0 | EI116: 0 | EJ116: 0 | EK116: 0 | EL116: 0 | EM116: 0 | EN116: 0 | EO116: 0 | EP116: 0 | EQ116: 0 | ER116: 0 | ES116: 0 | ET116: 0 | EU116: 0 | EV116: 0 | EW116: 0 | EX116: 0 | EY116: 0 | EZ116: 0 | FA116: 0 | FB116: 0 | FC116: 0 | FD116: 0 | FE116: 0 | FF116: 0 | FG116: 0 | FH116: 0 | FI116: 0 | FJ116: 0 | FK116: 0 | FL116: 0 | FM116: 0 | FN116: 0 | FO116: 0 | FP116: 0 | FQ116: 0 | FR116: 0 | FS116: 0 | FT116: 0 | FU116: 0 | FV116: 0 | FW116: 0 | FX116: 0 | FY116: 0 | FZ116: 0 | GA116: 0 | GB116: 0 | GC116: 0 | GD116: 0 | GE116: 0 | GF116: 0 | GG116: 0 | GH116: 0
CV117: 0 | CW117: 0 | CX117: 0 | CY117: 0 | CZ117: 0 | DA117: 0 | DB117: 0 | DC117: 0 | DD117: 0 | DE117: 0 | DF117: 0 | DG117: 0 | DH117: 0 | DI117: 0 | DJ117: 0 | DK117: 0 | DL117: 0 | DM117: 0 | DN117: 0 | DO117: 0 | DP117: 0 | DQ117: 0 | DR117: 0 | DS117: 0 | DT117: 0 | DU117: 0 | DV117: 0 | DW117: 0 | DX117: 0 | DY117: 0 | DZ117: 0 | EA117: 0 | EB117: 0 | EC117: 0 | ED117: 0 | EE117: 0 | EF117: 0 | EG117: 0 | EH117: 0 | EI117: 0 | EJ117: 0 | EK117: 0 | EL117: 0 | EM117: 0 | EN117: 0 | EO117: 0 | EP117: 0 | EQ117: 0 | ER117: 0 | ES117: 0 | ET117: 0 | EU117: 0 | EV117: 0 | EW117: 0 | EX117: 0 | EY117: 0 | EZ117: 0 | FA117: 0 | FB117: 0 | FC117: 0 | FD117: 0 | FE117: 0 | FF117: 0 | FG117: 0 | FH117: 0 | FI117: 0 | FJ117: 0 | FK117: 0 | FL117: 0 | FM117: 0 | FN117: 0 | FO117: 0 | FP117: 0 | FQ117: 0 | FR117: 0 | FS117: 0 | FT117: 0 | FU117: 0 | FV117: 0 | FW117: 0 | FX117: 0 | FY117: 0 | FZ117: 0 | GA117: 0 | GB117: 0 | GC117: 0 | GD117: 0 | GE117: 0 | GF117: 0 | GG117: 0 | GH117: 0
CV118: 0 | CW118: 0 | CX118: 0 | CY118: 0 | CZ118: 0 | DA118: 0 | DB118: 0 | DC118: 0 | DD118: 0 | DE118: 0 | DF118: 0 | DG118: 0 | DH118: 0 | DI118: 0 | DJ118: 0 | DK118: 0 | DL118: 0 | DM118: 0 | DN118: 0 | DO118: 0 | DP118: 0 | DQ118: 0 | DR118: 0 | DS118: 0 | DT118: 0 | DU118: 0 | DV118: 0 | DW118: 0 | DX118: 0 | DY118: 0 | DZ118: 0 | EA118: 0 | EB118: 0 | EC118: 0 | ED118: 0 | EE118: 0 | EF118: 0 | EG118: 0 | EH118: 0 | EI118: 0 | EJ118: 0 | EK118: 0 | EL118: 0 | EM118: 0 | EN118: 0 | EO118: 0 | EP118: 0 | EQ118: 0 | ER118: 0 | ES118: 0 | ET118: 0 | EU118: 0 | EV118: 0 | EW118: 0 | EX118: 0 | EY118: 0 | EZ118: 0 | FA118: 0 | FB118: 0 | FC118: 0 | FD118: 0 | FE118: 0 | FF118: 0 | FG118: 0 | FH118: 0 | FI118: 0 | FJ118: 0 | FK118: 0 | FL118: 0 | FM118: 0 | FN118: 0 | FO118: 0 | FP118: 0 | FQ118: 0 | FR118: 0 | FS118: 0 | FT118: 0 | FU118: 0 | FV118: 0 | FW118: 0 | FX118: 0 | FY118: 0 | FZ118: 0 | GA118: 0 | GB118: 0 | GC118: 0 | GD118: 0 | GE118: 0 | GF118: 0 | GG118: 0 | GH118: 0
CV119: 0 | CW119: 0 | CX119: 0 | CY119: 0 | CZ119: 0 | DA119: 0 | DB119: 0 | DC119: 0 | DD119: 0 | DE119: 0 | DF119: 0 | DG119: 0 | DH119: 0 | DI119: 0 | DJ119: 0 | DK119: 0 | DL119: 0 | DM119: 0 | DN119: 0 | DO119: 0 | DP119: 0 | DQ119: 0 | DR119: 0 | DS119: 0 | DT119: 0 | DU119: 0 | DV119: 0 | DW119: 0 | DX119: 0 | DY119: 0 | DZ119: 0 | EA119: 0 | EB119: 0 | EC119: 0 | ED119: 0 | EE119: 0 | EF119: 0 | EG119: 0 | EH119: 0 | EI119: 0 | EJ119: 0 | EK119: 0 | EL119: 0 | EM119: 0 | EN119: 0 | EO119: 0 | EP119: 0 | EQ119: 0 | ER119: 0 | ES119: 0 | ET119: 0 | EU119: 0 | EV119: 0 | EW119: 0 | EX119: 0 | EY119: 0 | EZ119: 0 | FA119: 0 | FB119: 0 | FC119: 0 | FD119: 0 | FE119: 0 | FF119: 0 | FG119: 0 | FH119: 0 | FI119: 0 | FJ119: 0 | FK119: 0 | FL119: 0 | FM119: 0 | FN119: 0 | FO119: 0 | FP119: 0 | FQ119: 0 | FR119: 0 | FS119: 0 | FT119: 0 | FU119: 0 | FV119: 0 | FW119: 0 | FX119: 0 | FY119: 0 | FZ119: 0 | GA119: 0 | GB119: 0 | GC119: 0 | GD119: 0 | GE119: 0 | GF119: 0 | GG119: 0 | GH119: 0
CV120: 0 | CW120: 0 | CX120: 0 | CY120: 0 | CZ120: 0 | DA120: 0 | DB120: 0 | DC120: 0 | DD120: 0 | DE120: 0 | DF120: 0 | DG120: 0 | DH120: 0 | DI120: 0 | DJ120: 0 | DK120: 0 | DL120: 0 | DM120: 0 | DN120: 0 | DO120: 0 | DP120: 0 | DQ120: 0 | DR120: 0 | DS120: 0 | DT120: 0 | DU120: 0 | DV120: 0 | DW120: 0 | DX120: 0 | DY120: 0 | DZ120: 0 | EA120: 0 | EB120: 0 | EC120: 0 | ED120: 0 | EE120: 0 | EF120: 0 | EG120: 0 | EH120: 0 | EI120: 0 | EJ120: 0 | EK120: 0 | EL120: 0 | EM120: 0 | EN120: 0 | EO120: 0 | EP120: 0 | EQ120: 0 | ER120: 0 | ES120: 0 | ET120: 0 | EU120: 0 | EV120: 0 | EW120: 0 | EX120: 0 | EY120: 0 | EZ120: 0 | FA120: 0 | FB120: 0 | FC120: 0 | FD120: 0 | FE120: 0 | FF120: 0 | FG120: 0 | FH120: 0 | FI120: 0 | FJ120: 0 | FK120: 0 | FL120: 0 | FM120: 0 | FN120: 0 | FO120: 0 | FP120: 0 | FQ120: 0 | FR120: 0 | FS120: 0 | FT120: 0 | FU120: 0 | FV120: 0 | FW120: 0 | FX120: 0 | FY120: 0 | FZ120: 0 | GA120: 0 | GB120: 0 | GC120: 0 | GD120: 0 | GE120: 0 | GF120: 0 | GG120: 0 | GH120: 0
CV121: 0 | CW121: 0 | CX121: 0 | CY121: 0 | CZ121: 0 | DA121: 0 | DB121: 0 | DC121: 0 | DD121: 0 | DE121: 0 | DF121: 0 | DG121: 0 | DH121: 0 | DI121: 0 | DJ121: 0 | DK121: 0 | DL121: 0 | DM121: 0 | DN121: 0 | DO121: 0 | DP121: 0 | DQ121: 0 | DR121: 0 | DS121: 0 | DT121: 0 | DU121: 0 | DV121: 0 | DW121: 0 | DX121: 0 | DY121: 0 | DZ121: 0 | EA121: 0 | EB121: 0 | EC121: 0 | ED121: 0 | EE121: 0 | EF121: 0 | EG121: 0 | EH121: 0 | EI121: 0 | EJ121: 0 | EK121: 0 | EL121: 0 | EM121: 0 | EN121: 0 | EO121: 0 | EP121: 0 | EQ121: 0 | ER121: 0 | ES121: 0 | ET121: 0 | EU121: 0 | EV121: 0 | EW121: 0 | EX121: 0 | EY121: 0 | EZ121: 0 | FA121: 0 | FB121: 0 | FC121: 0 | FD121: 0 | FE121: 0 | FF121: 0 | FG121: 0 | FH121: 0 | FI121: 0 | FJ121: 0 | FK121: 0 | FL121: 0 | FM121: 0 | FN121: 0 | FO121: 0 | FP121: 0 | FQ121: 0 | FR121: 0 | FS121: 0 | FT121: 0 | FU121: 0 | FV121: 0 | FW121: 0 | FX121: 0 | FY121: 0 | FZ121: 0 | GA121: 0 | GB121: 0 | GC121: 0 | GD121: 0 | GE121: 0 | GF121: 0 | GG121: 0 | GH121: 0
CV122: 0 | CW122: 0 | CX122: 0 | CY122: 0 | CZ122: 0 | DA122: 0 | DB122: 0 | DC122: 0 | DD122: 0 | DE122: 0 | DF122: 0 | DG122: 0 | DH122: 0 | DI122: 0 | DJ122: 0 | DK122: 0 | DL122: 0 | DM122: 0 | DN122: 0 | DO122: 0 | DP122: 0 | DQ122: 0 | DR122: 0 | DS122: 0 | DT122: 0 | DU122: 0 | DV122: 0 | DW122: 0 | DX122: 0 | DY122: 0 | DZ122: 0 | EA122: 0 | EB122: 0 | EC122: 0 | ED122: 0 | EE122: 0 | EF122: 0 | EG122: 0 | EH122: 0 | EI122: 0 | EJ122: 0 | EK122: 0 | EL122: 0 | EM122: 0 | EN122: 0 | EO122: 0 | EP122: 0 | EQ122: 0 | ER122: 0 | ES122: 0 | ET122: 0 | EU122: 0 | EV122: 0 | EW122: 0 | EX122: 0 | EY122: 0 | EZ122: 0 | FA122: 0 | FB122: 0 | FC122: 0 | FD122: 0 | FE122: 0 | FF122: 0 | FG122: 0 | FH122: 0 | FI122: 0 | FJ122: 0 | FK122: 0 | FL122: 0 | FM122: 0 | FN122: 0 | FO122: 0 | FP122: 0 | FQ122: 0 | FR122: 0 | FS122: 0 | FT122: 0 | FU122: 0 | FV122: 0 | FW122: 0 | FX122: 0 | FY122: 0 | FZ122: 0 | GA122: 0 | GB122: 0 | GC122: 0 | GD122: 0 | GE122: 0 | GF122: 0 | GG122: 0 | GH122: 0
CV123: 0 | CW123: 0 | CX123: 0 | CY123: 0 | CZ123: 0 | DA123: 0 | DB123: 0 | DC123: 0 | DD123: 0 | DE123: 0 | DF123: 0 | DG123: 0 | DH123: 0 | DI123: 0 | DJ123: 0 | DK123: 0 | DL123: 0 | DM123: 0 | DN123: 0 | DO123: 0 | DP123: 0 | DQ123: 0 | DR123: 0 | DS123: 0 | DT123: 0 | DU123: 0 | DV123: 0 | DW123: 0 | DX123: 0 | DY123: 0 | DZ123: 0 | EA123: 0 | EB123: 0 | EC123: 0 | ED123: 0 | EE123: 0 | EF123: 0 | EG123: 0 | EH123: 0 | EI123: 0 | EJ123: 0 | EK123: 0 | EL123: 0 | EM123: 0 | EN123: 0 | EO123: 0 | EP123: 0 | EQ123: 0 | ER123: 0 | ES123: 0 | ET123: 0 | EU123: 0 | EV123: 0 | EW123: 0 | EX123: 0 | EY123: 0 | EZ123: 0 | FA123: 0 | FB123: 0 | FC123: 0 | FD123: 0 | FE123: 0 | FF123: 0 | FG123: 0 | FH123: 0 | FI123: 0 | FJ123: 0 | FK123: 0 | FL123: 0 | FM123: 0 | FN123: 0 | FO123: 0 | FP123: 0 | FQ123: 0 | FR123: 0 | FS123: 0 | FT123: 0 | FU123: 0 | FV123: 0 | FW123: 0 | FX123: 0 | FY123: 0 | FZ123: 0 | GA123: 0 | GB123: 0 | GC123: 0 | GD123: 0 | GE123: 0 | GF123: 0 | GG123: 0 | GH123: 0
CV124: 0 | CW124: 0 | CX124: 0 | CY124: 0 | CZ124: 0 | DA124: 0 | DB124: 0 | DC124: 0 | DD124: 0 | DE124: 0 | DF124: 0 | DG124: 0 | DH124: 0 | DI124: 0 | DJ124: 0 | DK124: 0 | DL124: 0 | DM124: 0 | DN124: 0 | DO124: 0 | DP124: 0 | DQ124: 0 | DR124: 0 | DS124: 0 | DT124: 0 | DU124: 0 | DV124: 0 | DW124: 0 | DX124: 0 | DY124: 0 | DZ124: 0 | EA124: 0 | EB124: 0 | EC124: 0 | ED124: 0 | EE124: 0 | EF124: 0 | EG124: 0 | EH124: 0 | EI124: 0 | EJ124: 0 | EK124: 0 | EL124: 0 | EM124: 0 | EN124: 0 | EO124: 0 | EP124: 0 | EQ124: 0 | ER124: 0 | ES124: 0 | ET124: 0 | EU124: 0 | EV124: 0 | EW124: 0 | EX124: 0 | EY124: 0 | EZ124: 0 | FA124: 0 | FB124: 0 | FC124: 0 | FD124: 0 | FE124: 0 | FF124: 0 | FG124: 0 | FH124: 0 | FI124: 0 | FJ124: 0 | FK124: 0 | FL124: 0 | FM124: 0 | FN124: 0 | FO124: 0 | FP124: 0 | FQ124: 0 | FR124: 0 | FS124: 0 | FT124: 0 | FU124: 0 | FV124: 0 | FW124: 0 | FX124: 0 | FY124: 0 | FZ124: 0 | GA124: 0 | GB124: 0 | GC124: 0 | GD124: 0 | GE124: 0 | GF124: 0 | GG124: 0 | GH124: 0
CV125: 0 | CW125: 0 | CX125: 0 | CY125: 0 | CZ125: 0 | DA125: 0 | DB125: 0 | DC125: 0 | DD125: 0 | DE125: 0 | DF125: 0 | DG125: 0 | DH125: 0 | DI125: 0 | DJ125: 0 | DK125: 0 | DL125: 0 | DM125: 0 | DN125: 0 | DO125: 0 | DP125: 0 | DQ125: 0 | DR125: 0 | DS125: 0 | DT125: 0 | DU125: 0 | DV125: 0 | DW125: 0 | DX125: 0 | DY125: 0 | DZ125: 0 | EA125: 0 | EB125: 0 | EC125: 0 | ED125: 0 | EE125: 0 | EF125: 0 | EG125: 0 | EH125: 0 | EI125: 0 | EJ125: 0 | EK125: 0 | EL125: 0 | EM125: 0 | EN125: 0 | EO125: 0 | EP125: 0 | EQ125: 0 | ER125: 0 | ES125: 0 | ET125: 0 | EU125: 0 | EV125: 0 | EW125: 0 | EX125: 0 | EY125: 0 | EZ125: 0 | FA125: 0 | FB125: 0 | FC125: 0 | FD125: 0 | FE125: 0 | FF125: 0 | FG125: 0 | FH125: 0 | FI125: 0 | FJ125: 0 | FK125: 0 | FL125: 0 | FM125: 0 | FN125: 0 | FO125: 0 | FP125: 0 | FQ125: 0 | FR125: 0 | FS125: 0 | FT125: 0 | FU125: 0 | FV125: 0 | FW125: 0 | FX125: 0 | FY125: 0 | FZ125: 0 | GA125: 0 | GB125: 0 | GC125: 0 | GD125: 0 | GE125: 0 | GF125: 0 | GG125: 0 | GH125: 0
CV126: 0 | CW126: 0 | CX126: 0 | CY126: 0 | CZ126: 0 | DA126: 0 | DB126: 0 | DC126: 0 | DD126: 0 | DE126: 0 | DF126: 0 | DG126: 0 | DH126: 0 | DI126: 0 | DJ126: 0 | DK126: 0 | DL126: 0 | DM126: 0 | DN126: 0 | DO126: 0 | DP126: 0 | DQ126: 0 | DR126: 0 | DS126: 0 | DT126: 0 | DU126: 0 | DV126: 0 | DW126: 0 | DX126: 0 | DY126: 0 | DZ126: 0 | EA126: 0 | EB126: 0 | EC126: 0 | ED126: 0 | EE126: 0 | EF126: 0 | EG126: 0 | EH126: 0 | EI126: 0 | EJ126: 0 | EK126: 0 | EL126: 0 | EM126: 0 | EN126: 0 | EO126: 0 | EP126: 0 | EQ126: 0 | ER126: 0 | ES126: 0 | ET126: 0 | EU126: 0 | EV126: 0 | EW126: 0 | EX126: 0 | EY126: 0 | EZ126: 0 | FA126: 0 | FB126: 0 | FC126: 0 | FD126: 0 | FE126: 0 | FF126: 0 | FG126: 0 | FH126: 0 | FI126: 0 | FJ126: 0 | FK126: 0 | FL126: 0 | FM126: 0 | FN126: 0 | FO126: 0 | FP126: 0 | FQ126: 0 | FR126: 0 | FS126: 0 | FT126: 0 | FU126: 0 | FV126: 0 | FW126: 0 | FX126: 0 | FY126: 0 | FZ126: 0 | GA126: 0 | GB126: 0 | GC126: 0 | GD126: 0 | GE126: 0 | GF126: 0 | GG126: 0 | GH126: 0
CV127: 0 | CW127: 0 | CX127: 0 | CY127: 0 | CZ127: 0 | DA127: 0 | DB127: 0 | DC127: 0 | DD127: 0 | DE127: 0 | DF127: 0 | DG127: 0 | DH127: 0 | DI127: 0 | DJ127: 0 | DK127: 0 | DL127: 0 | DM127: 0 | DN127: 0 | DO127: 0 | DP127: 0 | DQ127: 0 | DR127: 0 | DS127: 0 | DT127: 0 | DU127: 0 | DV127: 0 | DW127: 0 | DX127: 0 | DY127: 0 | DZ127: 0 | EA127: 0 | EB127: 0 | EC127: 0 | ED127: 0 | EE127: 0 | EF127: 0 | EG127: 0 | EH127: 0 | EI127: 0 | EJ127: 0 | EK127: 0 | EL127: 0 | EM127: 0 | EN127: 0 | EO127: 0 | EP127: 0 | EQ127: 0 | ER127: 0 | ES127: 0 | ET127: 0 | EU127: 0 | EV127: 0 | EW127: 0 | EX127: 0 | EY127: 0 | EZ127: 0 | FA127: 0 | FB127: 0 | FC127: 0 | FD127: 0 | FE127: 0 | FF127: 0 | FG127: 0 | FH127: 0 | FI127: 0 | FJ127: 0 | FK127: 0 | FL127: 0 | FM127: 0 | FN127: 0 | FO127: 0 | FP127: 0 | FQ127: 0 | FR127: 0 | FS127: 0 | FT127: 0 | FU127: 0 | FV127: 0 | FW127: 0 | FX127: 0 | FY127: 0 | FZ127: 0 | GA127: 0 | GB127: 0 | GC127: 0 | GD127: 0 | GE127: 0 | GF127: 0 | GG127: 0 | GH127: 0
CV128: 0 | CW128: 0 | CX128: 0 | CY128: 0 | CZ128: 0 | DA128: 0 | DB128: 0 | DC128: 0 | DD128: 0 | DE128: 0 | DF128: 0 | DG128: 0 | DH128: 0 | DI128: 0 | DJ128: 0 | DK128: 0 | DL128: 0 | DM128: 0 | DN128: 0 | DO128: 0 | DP128: 0 | DQ128: 0 | DR128: 0 | DS128: 0 | DT128: 0 | DU128: 0 | DV128: 0 | DW128: 0 | DX128: 0 | DY128: 0 | DZ128: 0 | EA128: 0 | EB128: 0 | EC128: 0 | ED128: 0 | EE128: 0 | EF128: 0 | EG128: 0 | EH128: 0 | EI128: 0 | EJ128: 0 | EK128: 0 | EL128: 0 | EM128: 0 | EN128: 0 | EO128: 0 | EP128: 0 | EQ128: 0 | ER128: 0 | ES128: 0 | ET128: 0 | EU128: 0 | EV128: 0 | EW128: 0 | EX128: 0 | EY128: 0 | EZ128: 0 | FA128: 0 | FB128: 0 | FC128: 0 | FD128: 0 | FE128: 0 | FF128: 0 | FG128: 0 | FH128: 0 | FI128: 0 | FJ128: 0 | FK128: 0 | FL128: 0 | FM128: 0 | FN128: 0 | FO128: 0 | FP128: 0 | FQ128: 0 | FR128: 0 | FS128: 0 | FT128: 0 | FU128: 0 | FV128: 0 | FW128: 0 | FX128: 0 | FY128: 0 | FZ128: 0 | GA128: 0 | GB128: 0 | GC128: 0 | GD128: 0 | GE128: 0 | GF128: 0 | GG128: 0 | GH128: 0
CV129: 0 | CW129: 0 | CX129: 0 | CY129: 0 | CZ129: 0 | DA129: 0 | DB129: 0 | DC129: 0 | DD129: 0 | DE129: 0 | DF129: 0 | DG129: 0 | DH129: 0 | DI129: 0 | DJ129: 0 | DK129: 0 | DL129: 0 | DM129: 0 | DN129: 0 | DO129: 0 | DP129: 0 | DQ129: 0 | DR129: 0 | DS129: 0 | DT129: 0 | DU129: 0 | DV129: 0 | DW129: 0 | DX129: 0 | DY129: 0 | DZ129: 0 | EA129: 0 | EB129: 0 | EC129: 0 | ED129: 0 | EE129: 0 | EF129: 0 | EG129: 0 | EH129: 0 | EI129: 0 | EJ129: 0 | EK129: 0 | EL129: 0 | EM129: 0 | EN129: 0 | EO129: 0 | EP129: 0 | EQ129: 0 | ER129: 0 | ES129: 0 | ET129: 0 | EU129: 0 | EV129: 0 | EW129: 0 | EX129: 0 | EY129: 0 | EZ129: 0 | FA129: 0 | FB129: 0 | FC129: 0 | FD129: 0 | FE129: 0 | FF129: 0 | FG129: 0 | FH129: 0 | FI129: 0 | FJ129: 0 | FK129: 0 | FL129: 0 | FM129: 0 | FN129: 0 | FO129: 0 | FP129: 0 | FQ129: 0 | FR129: 0 | FS129: 0 | FT129: 0 | FU129: 0 | FV129: 0 | FW129: 0 | FX129: 0 | FY129: 0 | FZ129: 0 | GA129: 0 | GB129: 0 | GC129: 0 | GD129: 0 | GE129: 0 | GF129: 0 | GG129: 0 | GH129: 0
CV130: 0 | CW130: 0 | CX130: 0 | CY130: 0 | CZ130: 0 | DA130: 0 | DB130: 0 | DC130: 0 | DD130: 0 | DE130: 0 | DF130: 0 | DG130: 0 | DH130: 0 | DI130: 0 | DJ130: 0 | DK130: 0 | DL130: 0 | DM130: 0 | DN130: 0 | DO130: 0 | DP130: 0 | DQ130: 0 | DR130: 0 | DS130: 0 | DT130: 0 | DU130: 0 | DV130: 0 | DW130: 0 | DX130: 0 | DY130: 0 | DZ130: 0 | EA130: 0 | EB130: 0 | EC130: 0 | ED130: 0 | EE130: 0 | EF130: 0 | EG130: 0 | EH130: 0 | EI130: 0 | EJ130: 0 | EK130: 0 | EL130: 0 | EM130: 0 | EN130: 0 | EO130: 0 | EP130: 0 | EQ130: 0 | ER130: 0 | ES130: 0 | ET130: 0 | EU130: 0 | EV130: 0 | EW130: 0 | EX130: 0 | EY130: 0 | EZ130: 0 | FA130: 0 | FB130: 0 | FC130: 0 | FD130: 0 | FE130: 0 | FF130: 0 | FG130: 0 | FH130: 0 | FI130: 0 | FJ130: 0 | FK130: 0 | FL130: 0 | FM130: 0 | FN130: 0 | FO130: 0 | FP130: 0 | FQ130: 0 | FR130: 0 | FS130: 0 | FT130: 0 | FU130: 0 | FV130: 0 | FW130: 0 | FX130: 0 | FY130: 0 | FZ130: 0 | GA130: 0 | GB130: 0 | GC130: 0 | GD130: 0 | GE130: 0 | GF130: 0 | GG130: 0 | GH130: 0
CV131: 0 | CW131: 0 | CX131: 0 | CY131: 0 | CZ131: 0 | DA131: 0 | DB131: 0 | DC131: 0 | DD131: 0 | DE131: 0 | DF131: 0 | DG131: 0 | DH131: 0 | DI131: 0 | DJ131: 0 | DK131: 0 | DL131: 0 | DM131: 0 | DN131: 0 | DO131: 0 | DP131: 0 | DQ131: 0 | DR131: 0 | DS131: 0 | DT131: 0 | DU131: 0 | DV131: 0 | DW131: 0 | DX131: 0 | DY131: 0 | DZ131: 0 | EA131: 0 | EB131: 0 | EC131: 0 | ED131: 0 | EE131: 0 | EF131: 0 | EG131: 0 | EH131: 0 | EI131: 0 | EJ131: 0 | EK131: 0 | EL131: 0 | EM131: 0 | EN131: 0 | EO131: 0 | EP131: 0 | EQ131: 0 | ER131: 0 | ES131: 0 | ET131: 0 | EU131: 0 | EV131: 0 | EW131: 0 | EX131: 0 | EY131: 0 | EZ131: 0 | FA131: 0 | FB131: 0 | FC131: 0 | FD131: 0 | FE131: 0 | FF131: 0 | FG131: 0 | FH131: 0 | FI131: 0 | FJ131: 0 | FK131: 0 | FL131: 0 | FM131: 0 | FN131: 0 | FO131: 0 | FP131: 0 | FQ131: 0 | FR131: 0 | FS131: 0 | FT131: 0 | FU131: 0 | FV131: 0 | FW131: 0 | FX131: 0 | FY131: 0 | FZ131: 0 | GA131: 0 | GB131: 0 | GC131: 0 | GD131: 0 | GE131: 0 | GF131: 0 | GG131: 0 | GH131: 0
CV132: 0 | CW132: 0 | CX132: 0 | CY132: 0 | CZ132: 0 | DA132: 0 | DB132: 0 | DC132: 0 | DD132: 0 | DE132: 0 | DF132: 0 | DG132: 0 | DH132: 0 | DI132: 0 | DJ132: 0 | DK132: 0 | DL132: 0 | DM132: 0 | DN132: 0 | DO132: 0 | DP132: 0 | DQ132: 0 | DR132: 0 | DS132: 0 | DT132: 0 | DU132: 0 | DV132: 0 | DW132: 0 | DX132: 0 | DY132: 0 | DZ132: 0 | EA132: 0 | EB132: 0 | EC132: 0 | ED132: 0 | EE132: 0 | EF132: 0 | EG132: 0 | EH132: 0 | EI132: 0 | EJ132: 0 | EK132: 0 | EL132: 0 | EM132: 0 | EN132: 0 | EO132: 0 | EP132: 0 | EQ132: 0 | ER132: 0 | ES132: 0 | ET132: 0 | EU132: 0 | EV132: 0 | EW132: 0 | EX132: 0 | EY132: 0 | EZ132: 0 | FA132: 0 | FB132: 0 | FC132: 0 | FD132: 0 | FE132: 0 | FF132: 0 | FG132: 0 | FH132: 0 | FI132: 0 | FJ132: 0 | FK132: 0 | FL132: 0 | FM132: 0 | FN132: 0 | FO132: 0 | FP132: 0 | FQ132: 0 | FR132: 0 | FS132: 0 | FT132: 0 | FU132: 0 | FV132: 0 | FW132: 0 | FX132: 0 | FY132: 0 | FZ132: 0 | GA132: 0 | GB132: 0 | GC132: 0 | GD132: 0 | GE132: 0 | GF132: 0 | GG132: 0 | GH132: 0
CV133: 0 | CW133: 0 | CX133: 0 | CY133: 0 | CZ133: 0 | DA133: 0 | DB133: 0 | DC133: 0 | DD133: 0 | DE133: 0 | DF133: 0 | DG133: 0 | DH133: 0 | DI133: 0 | DJ133: 0 | DK133: 0 | DL133: 0 | DM133: 0 | DN133: 0 | DO133: 0 | DP133: 0 | DQ133: 0 | DR133: 0 | DS133: 0 | DT133: 0 | DU133: 0 | DV133: 0 | DW133: 0 | DX133: 0 | DY133: 0 | DZ133: 0 | EA133: 0 | EB133: 0 | EC133: 0 | ED133: 0 | EE133: 0 | EF133: 0 | EG133: 0 | EH133: 0 | EI133: 0 | EJ133: 0 | EK133: 0 | EL133: 0 | EM133: 0 | EN133: 0 | EO133: 0 | EP133: 0 | EQ133: 0 | ER133: 0 | ES133: 0 | ET133: 0 | EU133: 0 | EV133: 0 | EW133: 0 | EX133: 0 | EY133: 0 | EZ133: 0 | FA133: 0 | FB133: 0 | FC133: 0 | FD133: 0 | FE133: 0 | FF133: 0 | FG133: 0 | FH133: 0 | FI133: 0 | FJ133: 0 | FK133: 0 | FL133: 0 | FM133: 0 | FN133: 0 | FO133: 0 | FP133: 0 | FQ133: 0 | FR133: 0 | FS133: 0 | FT133: 0 | FU133: 0 | FV133: 0 | FW133: 0 | FX133: 0 | FY133: 0 | FZ133: 0 | GA133: 0 | GB133: 0 | GC133: 0 | GD133: 0 | GE133: 0 | GF133: 0 | GG133: 0 | GH133: 0
CV134: 0 | CW134: =IFERROR($D134*I134,"") -> 0 | CX134: =IFERROR($D134*J134,"") -> 0 | CY134: =IFERROR($D134*K134,"") -> 0 | CZ134: =IFERROR($D134*L134,"") -> 0 | DA134: =IFERROR($D134*M134,"") -> 0 | DB134: =IFERROR($D134*N134,"") -> 0 | DC134: =IFERROR($D134*O134,"") -> 0 | DD134: =IFERROR($D134*P134,"") -> 0 | DE134: =IFERROR($D134*Q134,"") -> 0 | DF134: =IFERROR($D134*R134,"") -> 0 | DG134: =IFERROR($D134*S134,"") -> 0 | DH134: =IFERROR($D134*T134,"") -> 0 | DI134: =IFERROR($D134*U134,"") -> 0 | DJ134: =IFERROR($D134*V134,"") -> 0 | DK134: =IFERROR($D134*W134,"") -> 0 | DL134: =IFERROR($D134*X134,"") -> 0 | DM134: =IFERROR($D134*Y134,"") -> 0 | DN134: =IFERROR($D134*Z134,"") -> 0 | DO134: =IFERROR($D134*AA134,"") -> 0 | DP134: =IFERROR($D134*AB134,"") -> 0 | DQ134: =IFERROR($D134*AC134,"") -> 0 | DR134: =IFERROR($D134*AD134,"") -> 0 | DS134: =IFERROR($D134*AE134,"") -> 0 | DT134: =IFERROR($D134*AF134,"") -> 0 | DU134: =IFERROR($D134*AG134,"") -> 0 | DV134: =IFERROR($D134*AH134,"") -> 0 | DW134: =IFERROR($D134*AI134,"") -> 0 | DX134: =IFERROR($D134*AJ134,"") -> 0 | DY134: =IFERROR($D134*AK134,"") -> 0 | DZ134: =IFERROR($D134*AL134,"") -> 0 | EA134: =IFERROR($D134*AM134,"") -> 0 | EB134: =IFERROR($D134*AN134,"") -> 0 | EC134: =IFERROR($D134*AO134,"") -> 0 | ED134: =IFERROR($D134*AP134,"") -> 0 | EE134: =IFERROR($D134*AQ134,"") -> 0 | EF134: =IFERROR($D134*AR134,"") -> 0 | EG134: =IFERROR($D134*AS134,"") -> 0 | EH134: =IFERROR($D134*AT134,"") -> 0 | EI134: =IFERROR($D134*AU134,"") -> 0 | EJ134: =IFERROR($D134*AV134,"") -> 0 | EK134: =IFERROR($D134*AW134,"") -> 0 | EL134: =IFERROR($D134*AX134,"") -> 0 | EM134: =IFERROR($D134*AY134,"") -> 0 | EN134: =IFERROR($D134*AZ134,"") -> 0 | EO134: =IFERROR($D134*BA134,"") -> 0 | EP134: =IFERROR($D134*BB134,"") -> 0 | EQ134: =IFERROR($D134*BC134,"") -> 0 | ER134: =IFERROR($D134*BD134,"") -> 0 | ES134: =IFERROR($D134*BE134,"") -> 0 | ET134: =IFERROR($D134*BF134,"") -> 0 | EU134: =IFERROR($D134*BG134,"") -> 0 | EV134: =IFERROR($D134*BH134,"") -> 0 | EW134: =IFERROR($D134*BI134,"") -> 0 | EX134: =IFERROR($D134*BJ134,"") -> 0 | EY134: =IFERROR($D134*BK134,"") -> 0 | EZ134: =IFERROR($D134*BL134,"") -> 0 | FA134: =IFERROR($D134*BM134,"") -> 0 | FB134: =IFERROR($D134*BN134,"") -> 0 | FC134: =IFERROR($D134*BO134,"") -> 0 | FD134: =IFERROR($D134*BP134,"") -> 0 | FE134: =IFERROR($D134*BQ134,"") -> 0 | FF134: =IFERROR($D134*BR134,"") -> 0 | FG134: =IFERROR($D134*BS134,"") -> 0 | FH134: =IFERROR($D134*BT134,"") -> 0 | FI134: =IFERROR($D134*BU134,"") -> 0 | FJ134: =IFERROR($D134*BV134,"") -> 0 | FK134: =IFERROR($D134*BW134,"") -> 0 | FL134: =IFERROR($D134*BX134,"") -> 0 | FM134: =IFERROR($D134*BY134,"") -> 0 | FN134: =IFERROR($D134*BZ134,"") -> 0 | FO134: =IFERROR($D134*CA134,"") -> 0 | FP134: =IFERROR($D134*CB134,"") -> 0 | FQ134: =IFERROR($D134*CC134,"") -> 0 | FR134: =IFERROR($D134*CD134,"") -> 0 | FS134: =IFERROR($D134*CE134,"") -> 0 | FT134: =IFERROR($D134*CF134,"") -> 0 | FU134: =IFERROR($D134*CG134,"") -> 0 | FV134: =IFERROR($D134*CH134,"") -> 0 | FW134: =IFERROR($D134*CI134,"") -> 0 | FX134: =IFERROR($D134*CJ134,"") -> 0 | FY134: =IFERROR($D134*CK134,"") -> 0 | FZ134: =IFERROR($D134*CL134,"") -> 0 | GA134: =IFERROR($D134*CM134,"") -> 0 | GB134: =IFERROR($D134*CN134,"") -> 0 | GC134: =IFERROR($D134*CO134,"") -> 0 | GD134: =IFERROR($D134*CP134,"") -> 0 | GE134: =IFERROR($D134*CQ134,"") -> 0 | GF134: =IFERROR($D134*CR134,"") -> 0 | GG134: =IFERROR($D134*CS134,"") -> 0 | GH134: =IFERROR($D134*CT134,"") -> 0
CV135: =IFERROR($D135*H135,"") -> 0 | CW135: 0 | CX135: 0 | CY135: 0 | CZ135: 0 | DA135: 0 | DB135: 0 | DC135: 0 | DD135: 0 | DE135: 0 | DF135: 0 | DG135: 0 | DH135: 0 | DI135: 0 | DJ135: 0 | DK135: 0 | DL135: 0 | DM135: 0 | DN135: 0 | DO135: 0 | DP135: 0 | DQ135: 0 | DR135: 0 | DS135: 0 | DT135: 0 | DU135: 0 | DV135: 0 | DW135: 0 | DX135: 0 | DY135: 0 | DZ135: 0 | EA135: 0 | EB135: 0 | EC135: 0 | ED135: 0 | EE135: 0 | EF135: 0 | EG135: 0 | EH135: 0 | EI135: 0 | EJ135: 0 | EK135: 0 | EL135: 0 | EM135: 0 | EN135: 0 | EO135: 0 | EP135: 0 | EQ135: 0 | ER135: 0 | ES135: 0 | ET135: 0 | EU135: 0 | EV135: 0 | EW135: 0 | EX135: 0 | EY135: 0 | EZ135: 0 | FA135: 0 | FB135: 0 | FC135: 0 | FD135: 0 | FE135: 0 | FF135: 0 | FG135: 0 | FH135: 0 | FI135: 0 | FJ135: 0 | FK135: 0 | FL135: 0 | FM135: 0 | FN135: 0 | FO135: 0 | FP135: 0 | FQ135: 0 | FR135: 0 | FS135: 0 | FT135: 0 | FU135: 0 | FV135: 0 | FW135: 0 | FX135: 0 | FY135: 0 | FZ135: 0 | GA135: 0 | GB135: 0 | GC135: 0 | GD135: 0 | GE135: 0 | GF135: 0 | GG135: 0 | GH135: 0
CV136: 0 | CW136: 0 | CX136: 0 | CY136: 0 | CZ136: 0 | DA136: 0 | DB136: 0 | DC136: 0 | DD136: 0 | DE136: 0 | DF136: 0 | DG136: 0 | DH136: 0 | DI136: 0 | DJ136: 0 | DK136: 0 | DL136: 0 | DM136: 0 | DN136: 0 | DO136: 0 | DP136: 0 | DQ136: 0 | DR136: 0 | DS136: 0 | DT136: 0 | DU136: 0 | DV136: 0 | DW136: 0 | DX136: 0 | DY136: 0 | DZ136: 0 | EA136: 0 | EB136: 0 | EC136: 0 | ED136: 0 | EE136: 0 | EF136: 0 | EG136: 0 | EH136: 0 | EI136: 0 | EJ136: 0 | EK136: 0 | EL136: 0 | EM136: 0 | EN136: 0 | EO136: 0 | EP136: 0 | EQ136: 0 | ER136: 0 | ES136: 0 | ET136: 0 | EU136: 0 | EV136: 0 | EW136: 0 | EX136: 0 | EY136: 0 | EZ136: 0 | FA136: 0 | FB136: 0 | FC136: 0 | FD136: 0 | FE136: 0 | FF136: 0 | FG136: 0 | FH136: 0 | FI136: 0 | FJ136: 0 | FK136: 0 | FL136: 0 | FM136: 0 | FN136: 0 | FO136: 0 | FP136: 0 | FQ136: 0 | FR136: 0 | FS136: 0 | FT136: 0 | FU136: 0 | FV136: 0 | FW136: 0 | FX136: 0 | FY136: 0 | FZ136: 0 | GA136: 0 | GB136: 0 | GC136: 0 | GD136: 0 | GE136: 0 | GF136: 0 | GG136: 0 | GH136: 0
CV137: 0 | CW137: 0 | CX137: 0 | CY137: 0 | CZ137: 0 | DA137: 0 | DB137: 0 | DC137: 0 | DD137: 0 | DE137: 0 | DF137: 0 | DG137: 0 | DH137: 0 | DI137: 0 | DJ137: 0 | DK137: 0 | DL137: 0 | DM137: 0 | DN137: 0 | DO137: 0 | DP137: 0 | DQ137: 0 | DR137: 0 | DS137: 0 | DT137: 0 | DU137: 0 | DV137: 0 | DW137: 0 | DX137: 0 | DY137: 0 | DZ137: 0 | EA137: 0 | EB137: 0 | EC137: 0 | ED137: 0 | EE137: 0 | EF137: 0 | EG137: 0 | EH137: 0 | EI137: 0 | EJ137: 0 | EK137: 0 | EL137: 0 | EM137: 0 | EN137: 0 | EO137: 0 | EP137: 0 | EQ137: 0 | ER137: 0 | ES137: 0 | ET137: 0 | EU137: 0 | EV137: 0 | EW137: 0 | EX137: 0 | EY137: 0 | EZ137: 0 | FA137: 0 | FB137: 0 | FC137: 0 | FD137: 0 | FE137: 0 | FF137: 0 | FG137: 0 | FH137: 0 | FI137: 0 | FJ137: 0 | FK137: 0 | FL137: 0 | FM137: 0 | FN137: 0 | FO137: 0 | FP137: 0 | FQ137: 0 | FR137: 0 | FS137: 0 | FT137: 0 | FU137: 0 | FV137: 0 | FW137: 0 | FX137: 0 | FY137: 0 | FZ137: 0 | GA137: 0 | GB137: 0 | GC137: 0 | GD137: 0 | GE137: 0 | GF137: 0 | GG137: 0 | GH137: 0
CV138: 0 | CW138: 0 | CX138: 0 | CY138: 0 | CZ138: 0 | DA138: 0 | DB138: 0 | DC138: 0 | DD138: 0 | DE138: 0 | DF138: 0 | DG138: 0 | DH138: 0 | DI138: 0 | DJ138: 0 | DK138: 0 | DL138: 0 | DM138: 0 | DN138: 0 | DO138: 0 | DP138: 0 | DQ138: 0 | DR138: 0 | DS138: 0 | DT138: 0 | DU138: 0 | DV138: 0 | DW138: 0 | DX138: 0 | DY138: 0 | DZ138: 0 | EA138: 0 | EB138: 0 | EC138: 0 | ED138: 0 | EE138: 0 | EF138: 0 | EG138: 0 | EH138: 0 | EI138: 0 | EJ138: 0 | EK138: 0 | EL138: 0 | EM138: 0 | EN138: 0 | EO138: 0 | EP138: 0 | EQ138: 0 | ER138: 0 | ES138: 0 | ET138: 0 | EU138: 0 | EV138: 0 | EW138: 0 | EX138: 0 | EY138: 0 | EZ138: 0 | FA138: 0 | FB138: 0 | FC138: 0 | FD138: 0 | FE138: 0 | FF138: 0 | FG138: 0 | FH138: 0 | FI138: 0 | FJ138: 0 | FK138: 0 | FL138: 0 | FM138: 0 | FN138: 0 | FO138: 0 | FP138: 0 | FQ138: 0 | FR138: 0 | FS138: 0 | FT138: 0 | FU138: 0 | FV138: 0 | FW138: 0 | FX138: 0 | FY138: 0 | FZ138: 0 | GA138: 0 | GB138: 0 | GC138: 0 | GD138: 0 | GE138: 0 | GF138: 0 | GG138: 0 | GH138: 0
CV139: 0 | CW139: 0 | CX139: 0 | CY139: 0 | CZ139: 0 | DA139: 0 | DB139: 0 | DC139: 0 | DD139: 0 | DE139: 0 | DF139: 0 | DG139: 0 | DH139: 0 | DI139: 0 | DJ139: 0 | DK139: 0 | DL139: 0 | DM139: 0 | DN139: 0 | DO139: 0 | DP139: 0 | DQ139: 0 | DR139: 0 | DS139: 0 | DT139: 0 | DU139: 0 | DV139: 0 | DW139: 0 | DX139: 0 | DY139: 0 | DZ139: 0 | EA139: 0 | EB139: 0 | EC139: 0 | ED139: 0 | EE139: 0 | EF139: 0 | EG139: 0 | EH139: 0 | EI139: 0 | EJ139: 0 | EK139: 0 | EL139: 0 | EM139: 0 | EN139: 0 | EO139: 0 | EP139: 0 | EQ139: 0 | ER139: 0 | ES139: 0 | ET139: 0 | EU139: 0 | EV139: 0 | EW139: 0 | EX139: 0 | EY139: 0 | EZ139: 0 | FA139: 0 | FB139: 0 | FC139: 0 | FD139: 0 | FE139: 0 | FF139: 0 | FG139: 0 | FH139: 0 | FI139: 0 | FJ139: 0 | FK139: 0 | FL139: 0 | FM139: 0 | FN139: 0 | FO139: 0 | FP139: 0 | FQ139: 0 | FR139: 0 | FS139: 0 | FT139: 0 | FU139: 0 | FV139: 0 | FW139: 0 | FX139: 0 | FY139: 0 | FZ139: 0 | GA139: 0 | GB139: 0 | GC139: 0 | GD139: 0 | GE139: 0 | GF139: 0 | GG139: 0 | GH139: 0
CV140: 0 | CW140: 0 | CX140: 0 | CY140: 0 | CZ140: 0 | DA140: 0 | DB140: 0 | DC140: 0 | DD140: 0 | DE140: 0 | DF140: 0 | DG140: 0 | DH140: 0 | DI140: 0 | DJ140: 0 | DK140: 0 | DL140: 0 | DM140: 0 | DN140: 0 | DO140: 0 | DP140: 0 | DQ140: 0 | DR140: 0 | DS140: 0 | DT140: 0 | DU140: 0 | DV140: 0 | DW140: 0 | DX140: 0 | DY140: 0 | DZ140: 0 | EA140: 0 | EB140: 0 | EC140: 0 | ED140: 0 | EE140: 0 | EF140: 0 | EG140: 0 | EH140: 0 | EI140: 0 | EJ140: 0 | EK140: 0 | EL140: 0 | EM140: 0 | EN140: 0 | EO140: 0 | EP140: 0 | EQ140: 0 | ER140: 0 | ES140: 0 | ET140: 0 | EU140: 0 | EV140: 0 | EW140: 0 | EX140: 0 | EY140: 0 | EZ140: 0 | FA140: 0 | FB140: 0 | FC140: 0 | FD140: 0 | FE140: 0 | FF140: 0 | FG140: 0 | FH140: 0 | FI140: 0 | FJ140: 0 | FK140: 0 | FL140: 0 | FM140: 0 | FN140: 0 | FO140: 0 | FP140: 0 | FQ140: 0 | FR140: 0 | FS140: 0 | FT140: 0 | FU140: 0 | FV140: 0 | FW140: 0 | FX140: 0 | FY140: 0 | FZ140: 0 | GA140: 0 | GB140: 0 | GC140: 0 | GD140: 0 | GE140: 0 | GF140: 0 | GG140: 0 | GH140: 0
CV141: 0 | CW141: 0 | CX141: 0 | CY141: 0 | CZ141: 0 | DA141: 0 | DB141: 0 | DC141: 0 | DD141: 0 | DE141: 0 | DF141: 0 | DG141: 0 | DH141: 0 | DI141: 0 | DJ141: 0 | DK141: 0 | DL141: 0 | DM141: 0 | DN141: 0 | DO141: 0 | DP141: 0 | DQ141: 0 | DR141: 0 | DS141: 0 | DT141: 0 | DU141: 0 | DV141: 0 | DW141: 0 | DX141: 0 | DY141: 0 | DZ141: 0 | EA141: 0 | EB141: 0 | EC141: 0 | ED141: 0 | EE141: 0 | EF141: 0 | EG141: 0 | EH141: 0 | EI141: 0 | EJ141: 0 | EK141: 0 | EL141: 0 | EM141: 0 | EN141: 0 | EO141: 0 | EP141: 0 | EQ141: 0 | ER141: 0 | ES141: 0 | ET141: 0 | EU141: 0 | EV141: 0 | EW141: 0 | EX141: 0 | EY141: 0 | EZ141: 0 | FA141: 0 | FB141: 0 | FC141: 0 | FD141: 0 | FE141: 0 | FF141: 0 | FG141: 0 | FH141: 0 | FI141: 0 | FJ141: 0 | FK141: 0 | FL141: 0 | FM141: 0 | FN141: 0 | FO141: 0 | FP141: 0 | FQ141: 0 | FR141: 0 | FS141: 0 | FT141: 0 | FU141: 0 | FV141: 0 | FW141: 0 | FX141: 0 | FY141: 0 | FZ141: 0 | GA141: 0 | GB141: 0 | GC141: 0 | GD141: 0 | GE141: 0 | GF141: 0 | GG141: 0 | GH141: 0
CV142: 0 | CW142: 0 | CX142: 0 | CY142: 0 | CZ142: 0 | DA142: 0 | DB142: 0 | DC142: 0 | DD142: 0 | DE142: 0 | DF142: 0 | DG142: 0 | DH142: 0 | DI142: 0 | DJ142: 0 | DK142: 0 | DL142: 0 | DM142: 0 | DN142: 0 | DO142: 0 | DP142: 0 | DQ142: 0 | DR142: 0 | DS142: 0 | DT142: 0 | DU142: 0 | DV142: 0 | DW142: 0 | DX142: 0 | DY142: 0 | DZ142: 0 | EA142: 0 | EB142: 0 | EC142: 0 | ED142: 0 | EE142: 0 | EF142: 0 | EG142: 0 | EH142: 0 | EI142: 0 | EJ142: 0 | EK142: 0 | EL142: 0 | EM142: 0 | EN142: 0 | EO142: 0 | EP142: 0 | EQ142: 0 | ER142: 0 | ES142: 0 | ET142: 0 | EU142: 0 | EV142: 0 | EW142: 0 | EX142: 0 | EY142: 0 | EZ142: 0 | FA142: 0 | FB142: 0 | FC142: 0 | FD142: 0 | FE142: 0 | FF142: 0 | FG142: 0 | FH142: 0 | FI142: 0 | FJ142: 0 | FK142: 0 | FL142: 0 | FM142: 0 | FN142: 0 | FO142: 0 | FP142: 0 | FQ142: 0 | FR142: 0 | FS142: 0 | FT142: 0 | FU142: 0 | FV142: 0 | FW142: 0 | FX142: 0 | FY142: 0 | FZ142: 0 | GA142: 0 | GB142: 0 | GC142: 0 | GD142: 0 | GE142: 0 | GF142: 0 | GG142: 0 | GH142: 0
CV143: 0 | CW143: 0 | CX143: 0 | CY143: 0 | CZ143: 0 | DA143: 0 | DB143: 0 | DC143: 0 | DD143: 0 | DE143: 0 | DF143: 0 | DG143: 0 | DH143: 0 | DI143: 0 | DJ143: 0 | DK143: 0 | DL143: 0 | DM143: 0 | DN143: 0 | DO143: 0 | DP143: 0 | DQ143: 0 | DR143: 0 | DS143: 0 | DT143: 0 | DU143: 0 | DV143: 0 | DW143: 0 | DX143: 0 | DY143: 0 | DZ143: 0 | EA143: 0 | EB143: 0 | EC143: 0 | ED143: 0 | EE143: 0 | EF143: 0 | EG143: 0 | EH143: 0 | EI143: 0 | EJ143: 0 | EK143: 0 | EL143: 0 | EM143: 0 | EN143: 0 | EO143: 0 | EP143: 0 | EQ143: 0 | ER143: 0 | ES143: 0 | ET143: 0 | EU143: 0 | EV143: 0 | EW143: 0 | EX143: 0 | EY143: 0 | EZ143: 0 | FA143: 0 | FB143: 0 | FC143: 0 | FD143: 0 | FE143: 0 | FF143: 0 | FG143: 0 | FH143: 0 | FI143: 0 | FJ143: 0 | FK143: 0 | FL143: 0 | FM143: 0 | FN143: 0 | FO143: 0 | FP143: 0 | FQ143: 0 | FR143: 0 | FS143: 0 | FT143: 0 | FU143: 0 | FV143: 0 | FW143: 0 | FX143: 0 | FY143: 0 | FZ143: 0 | GA143: 0 | GB143: 0 | GC143: 0 | GD143: 0 | GE143: 0 | GF143: 0 | GG143: 0 | GH143: 0
CV144: 0 | CW144: 0 | CX144: 0 | CY144: 0 | CZ144: 0 | DA144: 0 | DB144: 0 | DC144: 0 | DD144: 0 | DE144: 0 | DF144: 0 | DG144: 0 | DH144: 0 | DI144: 0 | DJ144: 0 | DK144: 0 | DL144: 0 | DM144: 0 | DN144: 0 | DO144: 0 | DP144: 0 | DQ144: 0 | DR144: 0 | DS144: 0 | DT144: 0 | DU144: 0 | DV144: 0 | DW144: 0 | DX144: 0 | DY144: 0 | DZ144: 0 | EA144: 0 | EB144: 0 | EC144: 0 | ED144: 0 | EE144: 0 | EF144: 0 | EG144: 0 | EH144: 0 | EI144: 0 | EJ144: 0 | EK144: 0 | EL144: 0 | EM144: 0 | EN144: 0 | EO144: 0 | EP144: 0 | EQ144: 0 | ER144: 0 | ES144: 0 | ET144: 0 | EU144: 0 | EV144: 0 | EW144: 0 | EX144: 0 | EY144: 0 | EZ144: 0 | FA144: 0 | FB144: 0 | FC144: 0 | FD144: 0 | FE144: 0 | FF144: 0 | FG144: 0 | FH144: 0 | FI144: 0 | FJ144: 0 | FK144: 0 | FL144: 0 | FM144: 0 | FN144: 0 | FO144: 0 | FP144: 0 | FQ144: 0 | FR144: 0 | FS144: 0 | FT144: 0 | FU144: 0 | FV144: 0 | FW144: 0 | FX144: 0 | FY144: 0 | FZ144: 0 | GA144: 0 | GB144: 0 | GC144: 0 | GD144: 0 | GE144: 0 | GF144: 0 | GG144: 0 | GH144: 0
CV145: 0 | CW145: 0 | CX145: 0 | CY145: 0 | CZ145: 0 | DA145: 0 | DB145: 0 | DC145: 0 | DD145: 0 | DE145: 0 | DF145: 0 | DG145: 0 | DH145: 0 | DI145: 0 | DJ145: 0 | DK145: 0 | DL145: 0 | DM145: 0 | DN145: 0 | DO145: 0 | DP145: 0 | DQ145: 0 | DR145: 0 | DS145: 0 | DT145: 0 | DU145: 0 | DV145: 0 | DW145: 0 | DX145: 0 | DY145: 0 | DZ145: 0 | EA145: 0 | EB145: 0 | EC145: 0 | ED145: 0 | EE145: 0 | EF145: 0 | EG145: 0 | EH145: 0 | EI145: 0 | EJ145: 0 | EK145: 0 | EL145: 0 | EM145: 0 | EN145: 0 | EO145: 0 | EP145: 0 | EQ145: 0 | ER145: 0 | ES145: 0 | ET145: 0 | EU145: 0 | EV145: 0 | EW145: 0 | EX145: 0 | EY145: 0 | EZ145: 0 | FA145: 0 | FB145: 0 | FC145: 0 | FD145: 0 | FE145: 0 | FF145: 0 | FG145: 0 | FH145: 0 | FI145: 0 | FJ145: 0 | FK145: 0 | FL145: 0 | FM145: 0 | FN145: 0 | FO145: 0 | FP145: 0 | FQ145: 0 | FR145: 0 | FS145: 0 | FT145: 0 | FU145: 0 | FV145: 0 | FW145: 0 | FX145: 0 | FY145: 0 | FZ145: 0 | GA145: 0 | GB145: 0 | GC145: 0 | GD145: 0 | GE145: 0 | GF145: 0 | GG145: 0 | GH145: 0
CV146: 0 | CW146: 0 | CX146: 0 | CY146: 0 | CZ146: 0 | DA146: 0 | DB146: 0 | DC146: 0 | DD146: 0 | DE146: 0 | DF146: 0 | DG146: 0 | DH146: 0 | DI146: 0 | DJ146: 0 | DK146: 0 | DL146: 0 | DM146: 0 | DN146: 0 | DO146: 0 | DP146: 0 | DQ146: 0 | DR146: 0 | DS146: 0 | DT146: 0 | DU146: 0 | DV146: 0 | DW146: 0 | DX146: 0 | DY146: 0 | DZ146: 0 | EA146: 0 | EB146: 0 | EC146: 0 | ED146: 0 | EE146: 0 | EF146: 0 | EG146: 0 | EH146: 0 | EI146: 0 | EJ146: 0 | EK146: 0 | EL146: 0 | EM146: 0 | EN146: 0 | EO146: 0 | EP146: 0 | EQ146: 0 | ER146: 0 | ES146: 0 | ET146: 0 | EU146: 0 | EV146: 0 | EW146: 0 | EX146: 0 | EY146: 0 | EZ146: 0 | FA146: 0 | FB146: 0 | FC146: 0 | FD146: 0 | FE146: 0 | FF146: 0 | FG146: 0 | FH146: 0 | FI146: 0 | FJ146: 0 | FK146: 0 | FL146: 0 | FM146: 0 | FN146: 0 | FO146: 0 | FP146: 0 | FQ146: 0 | FR146: 0 | FS146: 0 | FT146: 0 | FU146: 0 | FV146: 0 | FW146: 0 | FX146: 0 | FY146: 0 | FZ146: 0 | GA146: 0 | GB146: 0 | GC146: 0 | GD146: 0 | GE146: 0 | GF146: 0 | GG146: 0 | GH146: 0
CV147: 0 | CW147: 0 | CX147: 0 | CY147: 0 | CZ147: 0 | DA147: 0 | DB147: 0 | DC147: 0 | DD147: 0 | DE147: 0 | DF147: 0 | DG147: 0 | DH147: 0 | DI147: 0 | DJ147: 0 | DK147: 0 | DL147: 0 | DM147: 0 | DN147: 0 | DO147: 0 | DP147: 0 | DQ147: 0 | DR147: 0 | DS147: 0 | DT147: 0 | DU147: 0 | DV147: 0 | DW147: 0 | DX147: 0 | DY147: 0 | DZ147: 0 | EA147: 0 | EB147: 0 | EC147: 0 | ED147: 0 | EE147: 0 | EF147: 0 | EG147: 0 | EH147: 0 | EI147: 0 | EJ147: 0 | EK147: 0 | EL147: 0 | EM147: 0 | EN147: 0 | EO147: 0 | EP147: 0 | EQ147: 0 | ER147: 0 | ES147: 0 | ET147: 0 | EU147: 0 | EV147: 0 | EW147: 0 | EX147: 0 | EY147: 0 | EZ147: 0 | FA147: 0 | FB147: 0 | FC147: 0 | FD147: 0 | FE147: 0 | FF147: 0 | FG147: 0 | FH147: 0 | FI147: 0 | FJ147: 0 | FK147: 0 | FL147: 0 | FM147: 0 | FN147: 0 | FO147: 0 | FP147: 0 | FQ147: 0 | FR147: 0 | FS147: 0 | FT147: 0 | FU147: 0 | FV147: 0 | FW147: 0 | FX147: 0 | FY147: 0 | FZ147: 0 | GA147: 0 | GB147: 0 | GC147: 0 | GD147: 0 | GE147: 0 | GF147: 0 | GG147: 0 | GH147: 0
CV148: 0 | CW148: 0 | CX148: 0 | CY148: 0 | CZ148: 0 | DA148: 0 | DB148: 0 | DC148: 0 | DD148: 0 | DE148: 0 | DF148: 0 | DG148: 0 | DH148: 0 | DI148: 0 | DJ148: 0 | DK148: 0 | DL148: 0 | DM148: 0 | DN148: 0 | DO148: 0 | DP148: 0 | DQ148: 0 | DR148: 0 | DS148: 0 | DT148: 0 | DU148: 0 | DV148: 0 | DW148: 0 | DX148: 0 | DY148: 0 | DZ148: 0 | EA148: 0 | EB148: 0 | EC148: 0 | ED148: 0 | EE148: 0 | EF148: 0 | EG148: 0 | EH148: 0 | EI148: 0 | EJ148: 0 | EK148: 0 | EL148: 0 | EM148: 0 | EN148: 0 | EO148: 0 | EP148: 0 | EQ148: 0 | ER148: 0 | ES148: 0 | ET148: 0 | EU148: 0 | EV148: 0 | EW148: 0 | EX148: 0 | EY148: 0 | EZ148: 0 | FA148: 0 | FB148: 0 | FC148: 0 | FD148: 0 | FE148: 0 | FF148: 0 | FG148: 0 | FH148: 0 | FI148: 0 | FJ148: 0 | FK148: 0 | FL148: 0 | FM148: 0 | FN148: 0 | FO148: 0 | FP148: 0 | FQ148: 0 | FR148: 0 | FS148: 0 | FT148: 0 | FU148: 0 | FV148: 0 | FW148: 0 | FX148: 0 | FY148: 0 | FZ148: 0 | GA148: 0 | GB148: 0 | GC148: 0 | GD148: 0 | GE148: 0 | GF148: 0 | GG148: 0 | GH148: 0
CV149: 0 | CW149: 0 | CX149: 0 | CY149: 0 | CZ149: 0 | DA149: 0 | DB149: 0 | DC149: 0 | DD149: 0 | DE149: 0 | DF149: 0 | DG149: 0 | DH149: 0 | DI149: 0 | DJ149: 0 | DK149: 0 | DL149: 0 | DM149: 0 | DN149: 0 | DO149: 0 | DP149: 0 | DQ149: 0 | DR149: 0 | DS149: 0 | DT149: 0 | DU149: 0 | DV149: 0 | DW149: 0 | DX149: 0 | DY149: 0 | DZ149: 0 | EA149: 0 | EB149: 0 | EC149: 0 | ED149: 0 | EE149: 0 | EF149: 0 | EG149: 0 | EH149: 0 | EI149: 0 | EJ149: 0 | EK149: 0 | EL149: 0 | EM149: 0 | EN149: 0 | EO149: 0 | EP149: 0 | EQ149: 0 | ER149: 0 | ES149: 0 | ET149: 0 | EU149: 0 | EV149: 0 | EW149: 0 | EX149: 0 | EY149: 0 | EZ149: 0 | FA149: 0 | FB149: 0 | FC149: 0 | FD149: 0 | FE149: 0 | FF149: 0 | FG149: 0 | FH149: 0 | FI149: 0 | FJ149: 0 | FK149: 0 | FL149: 0 | FM149: 0 | FN149: 0 | FO149: 0 | FP149: 0 | FQ149: 0 | FR149: 0 | FS149: 0 | FT149: 0 | FU149: 0 | FV149: 0 | FW149: 0 | FX149: 0 | FY149: 0 | FZ149: 0 | GA149: 0 | GB149: 0 | GC149: 0 | GD149: 0 | GE149: 0 | GF149: 0 | GG149: 0 | GH149: 0
CV150: 0 | CW150: 0 | CX150: 0 | CY150: 0 | CZ150: 0 | DA150: 0 | DB150: 0 | DC150: 0 | DD150: 0 | DE150: 0 | DF150: 0 | DG150: 0 | DH150: 0 | DI150: 0 | DJ150: 0 | DK150: 0 | DL150: 0 | DM150: 0 | DN150: 0 | DO150: 0 | DP150: 0 | DQ150: 0 | DR150: 0 | DS150: 0 | DT150: 0 | DU150: 0 | DV150: 0 | DW150: 0 | DX150: 0 | DY150: 0 | DZ150: 0 | EA150: 0 | EB150: 0 | EC150: 0 | ED150: 0 | EE150: 0 | EF150: 0 | EG150: 0 | EH150: 0 | EI150: 0 | EJ150: 0 | EK150: 0 | EL150: 0 | EM150: 0 | EN150: 0 | EO150: 0 | EP150: 0 | EQ150: 0 | ER150: 0 | ES150: 0 | ET150: 0 | EU150: 0 | EV150: 0 | EW150: 0 | EX150: 0 | EY150: 0 | EZ150: 0 | FA150: 0 | FB150: 0 | FC150: 0 | FD150: 0 | FE150: 0 | FF150: 0 | FG150: 0 | FH150: 0 | FI150: 0 | FJ150: 0 | FK150: 0 | FL150: 0 | FM150: 0 | FN150: 0 | FO150: 0 | FP150: 0 | FQ150: 0 | FR150: 0 | FS150: 0 | FT150: 0 | FU150: 0 | FV150: 0 | FW150: 0 | FX150: 0 | FY150: 0 | FZ150: 0 | GA150: 0 | GB150: 0 | GC150: 0 | GD150: 0 | GE150: 0 | GF150: 0 | GG150: 0 | GH150: 0
CV151: 0 | CW151: 0 | CX151: 0 | CY151: 0 | CZ151: 0 | DA151: 0 | DB151: 0 | DC151: 0 | DD151: 0 | DE151: 0 | DF151: 0 | DG151: 0 | DH151: 0 | DI151: 0 | DJ151: 0 | DK151: 0 | DL151: 0 | DM151: 0 | DN151: 0 | DO151: 0 | DP151: 0 | DQ151: 0 | DR151: 0 | DS151: 0 | DT151: 0 | DU151: 0 | DV151: 0 | DW151: 0 | DX151: 0 | DY151: 0 | DZ151: 0 | EA151: 0 | EB151: 0 | EC151: 0 | ED151: 0 | EE151: 0 | EF151: 0 | EG151: 0 | EH151: 0 | EI151: 0 | EJ151: 0 | EK151: 0 | EL151: 0 | EM151: 0 | EN151: 0 | EO151: 0 | EP151: 0 | EQ151: 0 | ER151: 0 | ES151: 0 | ET151: 0 | EU151: 0 | EV151: 0 | EW151: 0 | EX151: 0 | EY151: 0 | EZ151: 0 | FA151: 0 | FB151: 0 | FC151: 0 | FD151: 0 | FE151: 0 | FF151: 0 | FG151: 0 | FH151: 0 | FI151: 0 | FJ151: 0 | FK151: 0 | FL151: 0 | FM151: 0 | FN151: 0 | FO151: 0 | FP151: 0 | FQ151: 0 | FR151: 0 | FS151: 0 | FT151: 0 | FU151: 0 | FV151: 0 | FW151: 0 | FX151: 0 | FY151: 0 | FZ151: 0 | GA151: 0 | GB151: 0 | GC151: 0 | GD151: 0 | GE151: 0 | GF151: 0 | GG151: 0 | GH151: 0
CV152: 0 | CW152: 0 | CX152: 0 | CY152: 0 | CZ152: 0 | DA152: 0 | DB152: 0 | DC152: 0 | DD152: 0 | DE152: 0 | DF152: 0 | DG152: 0 | DH152: 0 | DI152: 0 | DJ152: 0 | DK152: 0 | DL152: 0 | DM152: 0 | DN152: 0 | DO152: 0 | DP152: 0 | DQ152: 0 | DR152: 0 | DS152: 0 | DT152: 0 | DU152: 0 | DV152: 0 | DW152: 0 | DX152: 0 | DY152: 0 | DZ152: 0 | EA152: 0 | EB152: 0 | EC152: 0 | ED152: 0 | EE152: 0 | EF152: 0 | EG152: 0 | EH152: 0 | EI152: 0 | EJ152: 0 | EK152: 0 | EL152: 0 | EM152: 0 | EN152: 0 | EO152: 0 | EP152: 0 | EQ152: 0 | ER152: 0 | ES152: 0 | ET152: 0 | EU152: 0 | EV152: 0 | EW152: 0 | EX152: 0 | EY152: 0 | EZ152: 0 | FA152: 0 | FB152: 0 | FC152: 0 | FD152: 0 | FE152: 0 | FF152: 0 | FG152: 0 | FH152: 0 | FI152: 0 | FJ152: 0 | FK152: 0 | FL152: 0 | FM152: 0 | FN152: 0 | FO152: 0 | FP152: 0 | FQ152: 0 | FR152: 0 | FS152: 0 | FT152: 0 | FU152: 0 | FV152: 0 | FW152: 0 | FX152: 0 | FY152: 0 | FZ152: 0 | GA152: 0 | GB152: 0 | GC152: 0 | GD152: 0 | GE152: 0 | GF152: 0 | GG152: 0 | GH152: 0
CV153: 0 | CW153: 0 | CX153: 0 | CY153: 0 | CZ153: 0 | DA153: 0 | DB153: 0 | DC153: 0 | DD153: 0 | DE153: 0 | DF153: 0 | DG153: 0 | DH153: 0 | DI153: 0 | DJ153: 0 | DK153: 0 | DL153: 0 | DM153: 0 | DN153: 0 | DO153: 0 | DP153: 0 | DQ153: 0 | DR153: 0 | DS153: 0 | DT153: 0 | DU153: 0 | DV153: 0 | DW153: 0 | DX153: 0 | DY153: 0 | DZ153: 0 | EA153: 0 | EB153: 0 | EC153: 0 | ED153: 0 | EE153: 0 | EF153: 0 | EG153: 0 | EH153: 0 | EI153: 0 | EJ153: 0 | EK153: 0 | EL153: 0 | EM153: 0 | EN153: 0 | EO153: 0 | EP153: 0 | EQ153: 0 | ER153: 0 | ES153: 0 | ET153: 0 | EU153: 0 | EV153: 0 | EW153: 0 | EX153: 0 | EY153: 0 | EZ153: 0 | FA153: 0 | FB153: 0 | FC153: 0 | FD153: 0 | FE153: 0 | FF153: 0 | FG153: 0 | FH153: 0 | FI153: 0 | FJ153: 0 | FK153: 0 | FL153: 0 | FM153: 0 | FN153: 0 | FO153: 0 | FP153: 0 | FQ153: 0 | FR153: 0 | FS153: 0 | FT153: 0 | FU153: 0 | FV153: 0 | FW153: 0 | FX153: 0 | FY153: 0 | FZ153: 0 | GA153: 0 | GB153: 0 | GC153: 0 | GD153: 0 | GE153: 0 | GF153: 0 | GG153: 0 | GH153: 0
CV154: 0 | CW154: 0 | CX154: 0 | CY154: 0 | CZ154: 0 | DA154: 0 | DB154: 0 | DC154: 0 | DD154: 0 | DE154: 0 | DF154: 0 | DG154: 0 | DH154: 0 | DI154: 0 | DJ154: 0 | DK154: 0 | DL154: 0 | DM154: 0 | DN154: 0 | DO154: 0 | DP154: 0 | DQ154: 0 | DR154: 0 | DS154: 0 | DT154: 0 | DU154: 0 | DV154: 0 | DW154: 0 | DX154: 0 | DY154: 0 | DZ154: 0 | EA154: 0 | EB154: 0 | EC154: 0 | ED154: 0 | EE154: 0 | EF154: 0 | EG154: 0 | EH154: 0 | EI154: 0 | EJ154: 0 | EK154: 0 | EL154: 0 | EM154: 0 | EN154: 0 | EO154: 0 | EP154: 0 | EQ154: 0 | ER154: 0 | ES154: 0 | ET154: 0 | EU154: 0 | EV154: 0 | EW154: 0 | EX154: 0 | EY154: 0 | EZ154: 0 | FA154: 0 | FB154: 0 | FC154: 0 | FD154: 0 | FE154: 0 | FF154: 0 | FG154: 0 | FH154: 0 | FI154: 0 | FJ154: 0 | FK154: 0 | FL154: 0 | FM154: 0 | FN154: 0 | FO154: 0 | FP154: 0 | FQ154: 0 | FR154: 0 | FS154: 0 | FT154: 0 | FU154: 0 | FV154: 0 | FW154: 0 | FX154: 0 | FY154: 0 | FZ154: 0 | GA154: 0 | GB154: 0 | GC154: 0 | GD154: 0 | GE154: 0 | GF154: 0 | GG154: 0 | GH154: 0
CV155: 0 | CW155: 0 | CX155: 0 | CY155: 0 | CZ155: 0 | DA155: 0 | DB155: 0 | DC155: 0 | DD155: 0 | DE155: 0 | DF155: 0 | DG155: 0 | DH155: 0 | DI155: 0 | DJ155: 0 | DK155: 0 | DL155: 0 | DM155: 0 | DN155: 0 | DO155: 0 | DP155: 0 | DQ155: 0 | DR155: 0 | DS155: 0 | DT155: 0 | DU155: 0 | DV155: 0 | DW155: 0 | DX155: 0 | DY155: 0 | DZ155: 0 | EA155: 0 | EB155: 0 | EC155: 0 | ED155: 0 | EE155: 0 | EF155: 0 | EG155: 0 | EH155: 0 | EI155: 0 | EJ155: 0 | EK155: 0 | EL155: 0 | EM155: 0 | EN155: 0 | EO155: 0 | EP155: 0 | EQ155: 0 | ER155: 0 | ES155: 0 | ET155: 0 | EU155: 0 | EV155: 0 | EW155: 0 | EX155: 0 | EY155: 0 | EZ155: 0 | FA155: 0 | FB155: 0 | FC155: 0 | FD155: 0 | FE155: 0 | FF155: 0 | FG155: 0 | FH155: 0 | FI155: 0 | FJ155: 0 | FK155: 0 | FL155: 0 | FM155: 0 | FN155: 0 | FO155: 0 | FP155: 0 | FQ155: 0 | FR155: 0 | FS155: 0 | FT155: 0 | FU155: 0 | FV155: 0 | FW155: 0 | FX155: 0 | FY155: 0 | FZ155: 0 | GA155: 0 | GB155: 0 | GC155: 0 | GD155: 0 | GE155: 0 | GF155: 0 | GG155: 0 | GH155: 0
CV156: 0 | CW156: 0 | CX156: 0 | CY156: 0 | CZ156: 0 | DA156: 0 | DB156: 0 | DC156: 0 | DD156: 0 | DE156: 0 | DF156: 0 | DG156: 0 | DH156: 0 | DI156: 0 | DJ156: 0 | DK156: 0 | DL156: 0 | DM156: 0 | DN156: 0 | DO156: 0 | DP156: 0 | DQ156: 0 | DR156: 0 | DS156: 0 | DT156: 0 | DU156: 0 | DV156: 0 | DW156: 0 | DX156: 0 | DY156: 0 | DZ156: 0 | EA156: 0 | EB156: 0 | EC156: 0 | ED156: 0 | EE156: 0 | EF156: 0 | EG156: 0 | EH156: 0 | EI156: 0 | EJ156: 0 | EK156: 0 | EL156: 0 | EM156: 0 | EN156: 0 | EO156: 0 | EP156: 0 | EQ156: 0 | ER156: 0 | ES156: 0 | ET156: 0 | EU156: 0 | EV156: 0 | EW156: 0 | EX156: 0 | EY156: 0 | EZ156: 0 | FA156: 0 | FB156: 0 | FC156: 0 | FD156: 0 | FE156: 0 | FF156: 0 | FG156: 0 | FH156: 0 | FI156: 0 | FJ156: 0 | FK156: 0 | FL156: 0 | FM156: 0 | FN156: 0 | FO156: 0 | FP156: 0 | FQ156: 0 | FR156: 0 | FS156: 0 | FT156: 0 | FU156: 0 | FV156: 0 | FW156: 0 | FX156: 0 | FY156: 0 | FZ156: 0 | GA156: 0 | GB156: 0 | GC156: 0 | GD156: 0 | GE156: 0 | GF156: 0 | GG156: 0 | GH156: 0
CV157: 0 | CW157: 0 | CX157: 0 | CY157: 0 | CZ157: 0 | DA157: 0 | DB157: 0 | DC157: 0 | DD157: 0 | DE157: 0 | DF157: 0 | DG157: 0 | DH157: 0 | DI157: 0 | DJ157: 0 | DK157: 0 | DL157: 0 | DM157: 0 | DN157: 0 | DO157: 0 | DP157: 0 | DQ157: 0 | DR157: 0 | DS157: 0 | DT157: 0 | DU157: 0 | DV157: 0 | DW157: 0 | DX157: 0 | DY157: 0 | DZ157: 0 | EA157: 0 | EB157: 0 | EC157: 0 | ED157: 0 | EE157: 0 | EF157: 0 | EG157: 0 | EH157: 0 | EI157: 0 | EJ157: 0 | EK157: 0 | EL157: 0 | EM157: 0 | EN157: 0 | EO157: 0 | EP157: 0 | EQ157: 0 | ER157: 0 | ES157: 0 | ET157: 0 | EU157: 0 | EV157: 0 | EW157: 0 | EX157: 0 | EY157: 0 | EZ157: 0 | FA157: 0 | FB157: 0 | FC157: 0 | FD157: 0 | FE157: 0 | FF157: 0 | FG157: 0 | FH157: 0 | FI157: 0 | FJ157: 0 | FK157: 0 | FL157: 0 | FM157: 0 | FN157: 0 | FO157: 0 | FP157: 0 | FQ157: 0 | FR157: 0 | FS157: 0 | FT157: 0 | FU157: 0 | FV157: 0 | FW157: 0 | FX157: 0 | FY157: 0 | FZ157: 0 | GA157: 0 | GB157: 0 | GC157: 0 | GD157: 0 | GE157: 0 | GF157: 0 | GG157: 0 | GH157: 0
CV158: 0 | CW158: 0 | CX158: 0 | CY158: 0 | CZ158: 0 | DA158: 0 | DB158: 0 | DC158: 0 | DD158: 0 | DE158: 0 | DF158: 0 | DG158: 0 | DH158: 0 | DI158: 0 | DJ158: 0 | DK158: 0 | DL158: 0 | DM158: 0 | DN158: 0 | DO158: 0 | DP158: 0 | DQ158: 0 | DR158: 0 | DS158: 0 | DT158: 0 | DU158: 0 | DV158: 0 | DW158: 0 | DX158: 0 | DY158: 0 | DZ158: 0 | EA158: 0 | EB158: 0 | EC158: 0 | ED158: 0 | EE158: 0 | EF158: 0 | EG158: 0 | EH158: 0 | EI158: 0 | EJ158: 0 | EK158: 0 | EL158: 0 | EM158: 0 | EN158: 0 | EO158: 0 | EP158: 0 | EQ158: 0 | ER158: 0 | ES158: 0 | ET158: 0 | EU158: 0 | EV158: 0 | EW158: 0 | EX158: 0 | EY158: 0 | EZ158: 0 | FA158: 0 | FB158: 0 | FC158: 0 | FD158: 0 | FE158: 0 | FF158: 0 | FG158: 0 | FH158: 0 | FI158: 0 | FJ158: 0 | FK158: 0 | FL158: 0 | FM158: 0 | FN158: 0 | FO158: 0 | FP158: 0 | FQ158: 0 | FR158: 0 | FS158: 0 | FT158: 0 | FU158: 0 | FV158: 0 | FW158: 0 | FX158: 0 | FY158: 0 | FZ158: 0 | GA158: 0 | GB158: 0 | GC158: 0 | GD158: 0 | GE158: 0 | GF158: 0 | GG158: 0 | GH158: 0
CV159: 0 | CW159: 0 | CX159: 0 | CY159: 0 | CZ159: 0 | DA159: 0 | DB159: 0 | DC159: 0 | DD159: 0 | DE159: 0 | DF159: 0 | DG159: 0 | DH159: 0 | DI159: 0 | DJ159: 0 | DK159: 0 | DL159: 0 | DM159: 0 | DN159: 0 | DO159: 0 | DP159: 0 | DQ159: 0 | DR159: 0 | DS159: 0 | DT159: 0 | DU159: 0 | DV159: 0 | DW159: 0 | DX159: 0 | DY159: 0 | DZ159: 0 | EA159: 0 | EB159: 0 | EC159: 0 | ED159: 0 | EE159: 0 | EF159: 0 | EG159: 0 | EH159: 0 | EI159: 0 | EJ159: 0 | EK159: 0 | EL159: 0 | EM159: 0 | EN159: 0 | EO159: 0 | EP159: 0 | EQ159: 0 | ER159: 0 | ES159: 0 | ET159: 0 | EU159: 0 | EV159: 0 | EW159: 0 | EX159: 0 | EY159: 0 | EZ159: 0 | FA159: 0 | FB159: 0 | FC159: 0 | FD159: 0 | FE159: 0 | FF159: 0 | FG159: 0 | FH159: 0 | FI159: 0 | FJ159: 0 | FK159: 0 | FL159: 0 | FM159: 0 | FN159: 0 | FO159: 0 | FP159: 0 | FQ159: 0 | FR159: 0 | FS159: 0 | FT159: 0 | FU159: 0 | FV159: 0 | FW159: 0 | FX159: 0 | FY159: 0 | FZ159: 0 | GA159: 0 | GB159: 0 | GC159: 0 | GD159: 0 | GE159: 0 | GF159: 0 | GG159: 0 | GH159: 0
CV160: 0 | CW160: 0 | CX160: 0 | CY160: 0 | CZ160: 0 | DA160: 0 | DB160: 0 | DC160: 0 | DD160: 0 | DE160: 0 | DF160: 0 | DG160: 0 | DH160: 0 | DI160: 0 | DJ160: 0 | DK160: 0 | DL160: 0 | DM160: 0 | DN160: 0 | DO160: 0 | DP160: 0 | DQ160: 0 | DR160: 0 | DS160: 0 | DT160: 0 | DU160: 0 | DV160: 0 | DW160: 0 | DX160: 0 | DY160: 0 | DZ160: 0 | EA160: 0 | EB160: 0 | EC160: 0 | ED160: 0 | EE160: 0 | EF160: 0 | EG160: 0 | EH160: 0 | EI160: 0 | EJ160: 0 | EK160: 0 | EL160: 0 | EM160: 0 | EN160: 0 | EO160: 0 | EP160: 0 | EQ160: 0 | ER160: 0 | ES160: 0 | ET160: 0 | EU160: 0 | EV160: 0 | EW160: 0 | EX160: 0 | EY160: 0 | EZ160: 0 | FA160: 0 | FB160: 0 | FC160: 0 | FD160: 0 | FE160: 0 | FF160: 0 | FG160: 0 | FH160: 0 | FI160: 0 | FJ160: 0 | FK160: 0 | FL160: 0 | FM160: 0 | FN160: 0 | FO160: 0 | FP160: 0 | FQ160: 0 | FR160: 0 | FS160: 0 | FT160: 0 | FU160: 0 | FV160: 0 | FW160: 0 | FX160: 0 | FY160: 0 | FZ160: 0 | GA160: 0 | GB160: 0 | GC160: 0 | GD160: 0 | GE160: 0 | GF160: 0 | GG160: 0 | GH160: 0
CV161: 0 | CW161: 0 | CX161: 0 | CY161: 0 | CZ161: 0 | DA161: 0 | DB161: 0 | DC161: 0 | DD161: 0 | DE161: 0 | DF161: 0 | DG161: 0 | DH161: 0 | DI161: 0 | DJ161: 0 | DK161: 0 | DL161: 0 | DM161: 0 | DN161: 0 | DO161: 0 | DP161: 0 | DQ161: 0 | DR161: 0 | DS161: 0 | DT161: 0 | DU161: 0 | DV161: 0 | DW161: 0 | DX161: 0 | DY161: 0 | DZ161: 0 | EA161: 0 | EB161: 0 | EC161: 0 | ED161: 0 | EE161: 0 | EF161: 0 | EG161: 0 | EH161: 0 | EI161: 0 | EJ161: 0 | EK161: 0 | EL161: 0 | EM161: 0 | EN161: 0 | EO161: 0 | EP161: 0 | EQ161: 0 | ER161: 0 | ES161: 0 | ET161: 0 | EU161: 0 | EV161: 0 | EW161: 0 | EX161: 0 | EY161: 0 | EZ161: 0 | FA161: 0 | FB161: 0 | FC161: 0 | FD161: 0 | FE161: 0 | FF161: 0 | FG161: 0 | FH161: 0 | FI161: 0 | FJ161: 0 | FK161: 0 | FL161: 0 | FM161: 0 | FN161: 0 | FO161: 0 | FP161: 0 | FQ161: 0 | FR161: 0 | FS161: 0 | FT161: 0 | FU161: 0 | FV161: 0 | FW161: 0 | FX161: 0 | FY161: 0 | FZ161: 0 | GA161: 0 | GB161: 0 | GC161: 0 | GD161: 0 | GE161: 0 | GF161: 0 | GG161: 0 | GH161: 0
CV162: 0 | CW162: 0 | CX162: 0 | CY162: 0 | CZ162: 0 | DA162: 0 | DB162: 0 | DC162: 0 | DD162: 0 | DE162: 0 | DF162: 0 | DG162: 0 | DH162: 0 | DI162: 0 | DJ162: 0 | DK162: 0 | DL162: 0 | DM162: 0 | DN162: 0 | DO162: 0 | DP162: 0 | DQ162: 0 | DR162: 0 | DS162: 0 | DT162: 0 | DU162: 0 | DV162: 0 | DW162: 0 | DX162: 0 | DY162: 0 | DZ162: 0 | EA162: 0 | EB162: 0 | EC162: 0 | ED162: 0 | EE162: 0 | EF162: 0 | EG162: 0 | EH162: 0 | EI162: 0 | EJ162: 0 | EK162: 0 | EL162: 0 | EM162: 0 | EN162: 0 | EO162: 0 | EP162: 0 | EQ162: 0 | ER162: 0 | ES162: 0 | ET162: 0 | EU162: 0 | EV162: 0 | EW162: 0 | EX162: 0 | EY162: 0 | EZ162: 0 | FA162: 0 | FB162: 0 | FC162: 0 | FD162: 0 | FE162: 0 | FF162: 0 | FG162: 0 | FH162: 0 | FI162: 0 | FJ162: 0 | FK162: 0 | FL162: 0 | FM162: 0 | FN162: 0 | FO162: 0 | FP162: 0 | FQ162: 0 | FR162: 0 | FS162: 0 | FT162: 0 | FU162: 0 | FV162: 0 | FW162: 0 | FX162: 0 | FY162: 0 | FZ162: 0 | GA162: 0 | GB162: 0 | GC162: 0 | GD162: 0 | GE162: 0 | GF162: 0 | GG162: 0 | GH162: 0
CV163: 0 | CW163: 0 | CX163: 0 | CY163: 0 | CZ163: 0 | DA163: 0 | DB163: 0 | DC163: 0 | DD163: 0 | DE163: 0 | DF163: 0 | DG163: 0 | DH163: 0 | DI163: 0 | DJ163: 0 | DK163: 0 | DL163: 0 | DM163: 0 | DN163: 0 | DO163: 0 | DP163: 0 | DQ163: 0 | DR163: 0 | DS163: 0 | DT163: 0 | DU163: 0 | DV163: 0 | DW163: 0 | DX163: 0 | DY163: 0 | DZ163: 0 | EA163: 0 | EB163: 0 | EC163: 0 | ED163: 0 | EE163: 0 | EF163: 0 | EG163: 0 | EH163: 0 | EI163: 0 | EJ163: 0 | EK163: 0 | EL163: 0 | EM163: 0 | EN163: 0 | EO163: 0 | EP163: 0 | EQ163: 0 | ER163: 0 | ES163: 0 | ET163: 0 | EU163: 0 | EV163: 0 | EW163: 0 | EX163: 0 | EY163: 0 | EZ163: 0 | FA163: 0 | FB163: 0 | FC163: 0 | FD163: 0 | FE163: 0 | FF163: 0 | FG163: 0 | FH163: 0 | FI163: 0 | FJ163: 0 | FK163: 0 | FL163: 0 | FM163: 0 | FN163: 0 | FO163: 0 | FP163: 0 | FQ163: 0 | FR163: 0 | FS163: 0 | FT163: 0 | FU163: 0 | FV163: 0 | FW163: 0 | FX163: 0 | FY163: 0 | FZ163: 0 | GA163: 0 | GB163: 0 | GC163: 0 | GD163: 0 | GE163: 0 | GF163: 0 | GG163: 0 | GH163: 0
CV164: 0 | CW164: 0 | CX164: 0 | CY164: 0 | CZ164: 0 | DA164: 0 | DB164: 0 | DC164: 0 | DD164: 0 | DE164: 0 | DF164: 0 | DG164: 0 | DH164: 0 | DI164: 0 | DJ164: 0 | DK164: 0 | DL164: 0 | DM164: 0 | DN164: 0 | DO164: 0 | DP164: 0 | DQ164: 0 | DR164: 0 | DS164: 0 | DT164: 0 | DU164: 0 | DV164: 0 | DW164: 0 | DX164: 0 | DY164: 0 | DZ164: 0 | EA164: 0 | EB164: 0 | EC164: 0 | ED164: 0 | EE164: 0 | EF164: 0 | EG164: 0 | EH164: 0 | EI164: 0 | EJ164: 0 | EK164: 0 | EL164: 0 | EM164: 0 | EN164: 0 | EO164: 0 | EP164: 0 | EQ164: 0 | ER164: 0 | ES164: 0 | ET164: 0 | EU164: 0 | EV164: 0 | EW164: 0 | EX164: 0 | EY164: 0 | EZ164: 0 | FA164: 0 | FB164: 0 | FC164: 0 | FD164: 0 | FE164: 0 | FF164: 0 | FG164: 0 | FH164: 0 | FI164: 0 | FJ164: 0 | FK164: 0 | FL164: 0 | FM164: 0 | FN164: 0 | FO164: 0 | FP164: 0 | FQ164: 0 | FR164: 0 | FS164: 0 | FT164: 0 | FU164: 0 | FV164: 0 | FW164: 0 | FX164: 0 | FY164: 0 | FZ164: 0 | GA164: 0 | GB164: 0 | GC164: 0 | GD164: 0 | GE164: 0 | GF164: 0 | GG164: 0 | GH164: 0
CV165: 0 | CW165: 0 | CX165: 0 | CY165: 0 | CZ165: 0 | DA165: 0 | DB165: 0 | DC165: 0 | DD165: 0 | DE165: 0 | DF165: 0 | DG165: 0 | DH165: 0 | DI165: 0 | DJ165: 0 | DK165: 0 | DL165: 0 | DM165: 0 | DN165: 0 | DO165: 0 | DP165: 0 | DQ165: 0 | DR165: 0 | DS165: 0 | DT165: 0 | DU165: 0 | DV165: 0 | DW165: 0 | DX165: 0 | DY165: 0 | DZ165: 0 | EA165: 0 | EB165: 0 | EC165: 0 | ED165: 0 | EE165: 0 | EF165: 0 | EG165: 0 | EH165: 0 | EI165: 0 | EJ165: 0 | EK165: 0 | EL165: 0 | EM165: 0 | EN165: 0 | EO165: 0 | EP165: 0 | EQ165: 0 | ER165: 0 | ES165: 0 | ET165: 0 | EU165: 0 | EV165: 0 | EW165: 0 | EX165: 0 | EY165: 0 | EZ165: 0 | FA165: 0 | FB165: 0 | FC165: 0 | FD165: 0 | FE165: 0 | FF165: 0 | FG165: 0 | FH165: 0 | FI165: 0 | FJ165: 0 | FK165: 0 | FL165: 0 | FM165: 0 | FN165: 0 | FO165: 0 | FP165: 0 | FQ165: 0 | FR165: 0 | FS165: 0 | FT165: 0 | FU165: 0 | FV165: 0 | FW165: 0 | FX165: 0 | FY165: 0 | FZ165: 0 | GA165: 0 | GB165: 0 | GC165: 0 | GD165: 0 | GE165: 0 | GF165: 0 | GG165: 0 | GH165: 0
CV166: 0 | CW166: 0 | CX166: 0 | CY166: 0 | CZ166: 0 | DA166: 0 | DB166: 0 | DC166: 0 | DD166: 0 | DE166: 0 | DF166: 0 | DG166: 0 | DH166: 0 | DI166: 0 | DJ166: 0 | DK166: 0 | DL166: 0 | DM166: 0 | DN166: 0 | DO166: 0 | DP166: 0 | DQ166: 0 | DR166: 0 | DS166: 0 | DT166: 0 | DU166: 0 | DV166: 0 | DW166: 0 | DX166: 0 | DY166: 0 | DZ166: 0 | EA166: 0 | EB166: 0 | EC166: 0 | ED166: 0 | EE166: 0 | EF166: 0 | EG166: 0 | EH166: 0 | EI166: 0 | EJ166: 0 | EK166: 0 | EL166: 0 | EM166: 0 | EN166: 0 | EO166: 0 | EP166: 0 | EQ166: 0 | ER166: 0 | ES166: 0 | ET166: 0 | EU166: 0 | EV166: 0 | EW166: 0 | EX166: 0 | EY166: 0 | EZ166: 0 | FA166: 0 | FB166: 0 | FC166: 0 | FD166: 0 | FE166: 0 | FF166: 0 | FG166: 0 | FH166: 0 | FI166: 0 | FJ166: 0 | FK166: 0 | FL166: 0 | FM166: 0 | FN166: 0 | FO166: 0 | FP166: 0 | FQ166: 0 | FR166: 0 | FS166: 0 | FT166: 0 | FU166: 0 | FV166: 0 | FW166: 0 | FX166: 0 | FY166: 0 | FZ166: 0 | GA166: 0 | GB166: 0 | GC166: 0 | GD166: 0 | GE166: 0 | GF166: 0 | GG166: 0 | GH166: 0
CV167: 0 | CW167: 0 | CX167: 0 | CY167: 0 | CZ167: 0 | DA167: 0 | DB167: 0 | DC167: 0 | DD167: 0 | DE167: 0 | DF167: 0 | DG167: 0 | DH167: 0 | DI167: 0 | DJ167: 0 | DK167: 0 | DL167: 0 | DM167: 0 | DN167: 0 | DO167: 0 | DP167: 0 | DQ167: 0 | DR167: 0 | DS167: 0 | DT167: 0 | DU167: 0 | DV167: 0 | DW167: 0 | DX167: 0 | DY167: 0 | DZ167: 0 | EA167: 0 | EB167: 0 | EC167: 0 | ED167: 0 | EE167: 0 | EF167: 0 | EG167: 0 | EH167: 0 | EI167: 0 | EJ167: 0 | EK167: 0 | EL167: 0 | EM167: 0 | EN167: 0 | EO167: 0 | EP167: 0 | EQ167: 0 | ER167: 0 | ES167: 0 | ET167: 0 | EU167: 0 | EV167: 0 | EW167: 0 | EX167: 0 | EY167: 0 | EZ167: 0 | FA167: 0 | FB167: 0 | FC167: 0 | FD167: 0 | FE167: 0 | FF167: 0 | FG167: 0 | FH167: 0 | FI167: 0 | FJ167: 0 | FK167: 0 | FL167: 0 | FM167: 0 | FN167: 0 | FO167: 0 | FP167: 0 | FQ167: 0 | FR167: 0 | FS167: 0 | FT167: 0 | FU167: 0 | FV167: 0 | FW167: 0 | FX167: 0 | FY167: 0 | FZ167: 0 | GA167: 0 | GB167: 0 | GC167: 0 | GD167: 0 | GE167: 0 | GF167: 0 | GG167: 0 | GH167: 0
CV168: 0 | CW168: 0 | CX168: 0 | CY168: 0 | CZ168: 0 | DA168: 0 | DB168: 0 | DC168: 0 | DD168: 0 | DE168: 0 | DF168: 0 | DG168: 0 | DH168: 0 | DI168: 0 | DJ168: 0 | DK168: 0 | DL168: 0 | DM168: 0 | DN168: 0 | DO168: 0 | DP168: 0 | DQ168: 0 | DR168: 0 | DS168: 0 | DT168: 0 | DU168: 0 | DV168: 0 | DW168: 0 | DX168: 0 | DY168: 0 | DZ168: 0 | EA168: 0 | EB168: 0 | EC168: 0 | ED168: 0 | EE168: 0 | EF168: 0 | EG168: 0 | EH168: 0 | EI168: 0 | EJ168: 0 | EK168: 0 | EL168: 0 | EM168: 0 | EN168: 0 | EO168: 0 | EP168: 0 | EQ168: 0 | ER168: 0 | ES168: 0 | ET168: 0 | EU168: 0 | EV168: 0 | EW168: 0 | EX168: 0 | EY168: 0 | EZ168: 0 | FA168: 0 | FB168: 0 | FC168: 0 | FD168: 0 | FE168: 0 | FF168: 0 | FG168: 0 | FH168: 0 | FI168: 0 | FJ168: 0 | FK168: 0 | FL168: 0 | FM168: 0 | FN168: 0 | FO168: 0 | FP168: 0 | FQ168: 0 | FR168: 0 | FS168: 0 | FT168: 0 | FU168: 0 | FV168: 0 | FW168: 0 | FX168: 0 | FY168: 0 | FZ168: 0 | GA168: 0 | GB168: 0 | GC168: 0 | GD168: 0 | GE168: 0 | GF168: 0 | GG168: 0 | GH168: 0
CV169: 0 | CW169: 0 | CX169: 0 | CY169: 0 | CZ169: 0 | DA169: 0 | DB169: 0 | DC169: 0 | DD169: 0 | DE169: 0 | DF169: 0 | DG169: 0 | DH169: 0 | DI169: 0 | DJ169: 0 | DK169: 0 | DL169: 0 | DM169: 0 | DN169: 0 | DO169: 0 | DP169: 0 | DQ169: 0 | DR169: 0 | DS169: 0 | DT169: 0 | DU169: 0 | DV169: 0 | DW169: 0 | DX169: 0 | DY169: 0 | DZ169: 0 | EA169: 0 | EB169: 0 | EC169: 0 | ED169: 0 | EE169: 0 | EF169: 0 | EG169: 0 | EH169: 0 | EI169: 0 | EJ169: 0 | EK169: 0 | EL169: 0 | EM169: 0 | EN169: 0 | EO169: 0 | EP169: 0 | EQ169: 0 | ER169: 0 | ES169: 0 | ET169: 0 | EU169: 0 | EV169: 0 | EW169: 0 | EX169: 0 | EY169: 0 | EZ169: 0 | FA169: 0 | FB169: 0 | FC169: 0 | FD169: 0 | FE169: 0 | FF169: 0 | FG169: 0 | FH169: 0 | FI169: 0 | FJ169: 0 | FK169: 0 | FL169: 0 | FM169: 0 | FN169: 0 | FO169: 0 | FP169: 0 | FQ169: 0 | FR169: 0 | FS169: 0 | FT169: 0 | FU169: 0 | FV169: 0 | FW169: 0 | FX169: 0 | FY169: 0 | FZ169: 0 | GA169: 0 | GB169: 0 | GC169: 0 | GD169: 0 | GE169: 0 | GF169: 0 | GG169: 0 | GH169: 0
CV170: 0 | CW170: 0 | CX170: 0 | CY170: 0 | CZ170: 0 | DA170: 0 | DB170: 0 | DC170: 0 | DD170: 0 | DE170: 0 | DF170: 0 | DG170: 0 | DH170: 0 | DI170: 0 | DJ170: 0 | DK170: 0 | DL170: 0 | DM170: 0 | DN170: 0 | DO170: 0 | DP170: 0 | DQ170: 0 | DR170: 0 | DS170: 0 | DT170: 0 | DU170: 0 | DV170: 0 | DW170: 0 | DX170: 0 | DY170: 0 | DZ170: 0 | EA170: 0 | EB170: 0 | EC170: 0 | ED170: 0 | EE170: 0 | EF170: 0 | EG170: 0 | EH170: 0 | EI170: 0 | EJ170: 0 | EK170: 0 | EL170: 0 | EM170: 0 | EN170: 0 | EO170: 0 | EP170: 0 | EQ170: 0 | ER170: 0 | ES170: 0 | ET170: 0 | EU170: 0 | EV170: 0 | EW170: 0 | EX170: 0 | EY170: 0 | EZ170: 0 | FA170: 0 | FB170: 0 | FC170: 0 | FD170: 0 | FE170: 0 | FF170: 0 | FG170: 0 | FH170: 0 | FI170: 0 | FJ170: 0 | FK170: 0 | FL170: 0 | FM170: 0 | FN170: 0 | FO170: 0 | FP170: 0 | FQ170: 0 | FR170: 0 | FS170: 0 | FT170: 0 | FU170: 0 | FV170: 0 | FW170: 0 | FX170: 0 | FY170: 0 | FZ170: 0 | GA170: 0 | GB170: 0 | GC170: 0 | GD170: 0 | GE170: 0 | GF170: 0 | GG170: 0 | GH170: 0
CV171: 0 | CW171: 0 | CX171: 0 | CY171: 0 | CZ171: 0 | DA171: 0 | DB171: 0 | DC171: 0 | DD171: 0 | DE171: 0 | DF171: 0 | DG171: 0 | DH171: 0 | DI171: 0 | DJ171: 0 | DK171: 0 | DL171: 0 | DM171: 0 | DN171: 0 | DO171: 0 | DP171: 0 | DQ171: 0 | DR171: 0 | DS171: 0 | DT171: 0 | DU171: 0 | DV171: 0 | DW171: 0 | DX171: 0 | DY171: 0 | DZ171: 0 | EA171: 0 | EB171: 0 | EC171: 0 | ED171: 0 | EE171: 0 | EF171: 0 | EG171: 0 | EH171: 0 | EI171: 0 | EJ171: 0 | EK171: 0 | EL171: 0 | EM171: 0 | EN171: 0 | EO171: 0 | EP171: 0 | EQ171: 0 | ER171: 0 | ES171: 0 | ET171: 0 | EU171: 0 | EV171: 0 | EW171: 0 | EX171: 0 | EY171: 0 | EZ171: 0 | FA171: 0 | FB171: 0 | FC171: 0 | FD171: 0 | FE171: 0 | FF171: 0 | FG171: 0 | FH171: 0 | FI171: 0 | FJ171: 0 | FK171: 0 | FL171: 0 | FM171: 0 | FN171: 0 | FO171: 0 | FP171: 0 | FQ171: 0 | FR171: 0 | FS171: 0 | FT171: 0 | FU171: 0 | FV171: 0 | FW171: 0 | FX171: 0 | FY171: 0 | FZ171: 0 | GA171: 0 | GB171: 0 | GC171: 0 | GD171: 0 | GE171: 0 | GF171: 0 | GG171: 0 | GH171: 0
CV172: 0 | CW172: 0 | CX172: 0 | CY172: 0 | CZ172: 0 | DA172: 0 | DB172: 0 | DC172: 0 | DD172: 0 | DE172: 0 | DF172: 0 | DG172: 0 | DH172: 0 | DI172: 0 | DJ172: 0 | DK172: 0 | DL172: 0 | DM172: 0 | DN172: 0 | DO172: 0 | DP172: 0 | DQ172: 0 | DR172: 0 | DS172: 0 | DT172: 0 | DU172: 0 | DV172: 0 | DW172: 0 | DX172: 0 | DY172: 0 | DZ172: 0 | EA172: 0 | EB172: 0 | EC172: 0 | ED172: 0 | EE172: 0 | EF172: 0 | EG172: 0 | EH172: 0 | EI172: 0 | EJ172: 0 | EK172: 0 | EL172: 0 | EM172: 0 | EN172: 0 | EO172: 0 | EP172: 0 | EQ172: 0 | ER172: 0 | ES172: 0 | ET172: 0 | EU172: 0 | EV172: 0 | EW172: 0 | EX172: 0 | EY172: 0 | EZ172: 0 | FA172: 0 | FB172: 0 | FC172: 0 | FD172: 0 | FE172: 0 | FF172: 0 | FG172: 0 | FH172: 0 | FI172: 0 | FJ172: 0 | FK172: 0 | FL172: 0 | FM172: 0 | FN172: 0 | FO172: 0 | FP172: 0 | FQ172: 0 | FR172: 0 | FS172: 0 | FT172: 0 | FU172: 0 | FV172: 0 | FW172: 0 | FX172: 0 | FY172: 0 | FZ172: 0 | GA172: 0 | GB172: 0 | GC172: 0 | GD172: 0 | GE172: 0 | GF172: 0 | GG172: 0 | GH172: 0
CV173: 0 | CW173: 0 | CX173: 0 | CY173: 0 | CZ173: 0 | DA173: 0 | DB173: 0 | DC173: 0 | DD173: 0 | DE173: 0 | DF173: 0 | DG173: 0 | DH173: 0 | DI173: 0 | DJ173: 0 | DK173: 0 | DL173: 0 | DM173: 0 | DN173: 0 | DO173: 0 | DP173: 0 | DQ173: 0 | DR173: 0 | DS173: 0 | DT173: 0 | DU173: 0 | DV173: 0 | DW173: 0 | DX173: 0 | DY173: 0 | DZ173: 0 | EA173: 0 | EB173: 0 | EC173: 0 | ED173: 0 | EE173: 0 | EF173: 0 | EG173: 0 | EH173: 0 | EI173: 0 | EJ173: 0 | EK173: 0 | EL173: 0 | EM173: 0 | EN173: 0 | EO173: 0 | EP173: 0 | EQ173: 0 | ER173: 0 | ES173: 0 | ET173: 0 | EU173: 0 | EV173: 0 | EW173: 0 | EX173: 0 | EY173: 0 | EZ173: 0 | FA173: 0 | FB173: 0 | FC173: 0 | FD173: 0 | FE173: 0 | FF173: 0 | FG173: 0 | FH173: 0 | FI173: 0 | FJ173: 0 | FK173: 0 | FL173: 0 | FM173: 0 | FN173: 0 | FO173: 0 | FP173: 0 | FQ173: 0 | FR173: 0 | FS173: 0 | FT173: 0 | FU173: 0 | FV173: 0 | FW173: 0 | FX173: 0 | FY173: 0 | FZ173: 0 | GA173: 0 | GB173: 0 | GC173: 0 | GD173: 0 | GE173: 0 | GF173: 0 | GG173: 0 | GH173: 0
CV174: 0 | CW174: 0 | CX174: 0 | CY174: 0 | CZ174: 0 | DA174: 0 | DB174: 0 | DC174: 0 | DD174: 0 | DE174: 0 | DF174: 0 | DG174: 0 | DH174: 0 | DI174: 0 | DJ174: 0 | DK174: 0 | DL174: 0 | DM174: 0 | DN174: 0 | DO174: 0 | DP174: 0 | DQ174: 0 | DR174: 0 | DS174: 0 | DT174: 0 | DU174: 0 | DV174: 0 | DW174: 0 | DX174: 0 | DY174: 0 | DZ174: 0 | EA174: 0 | EB174: 0 | EC174: 0 | ED174: 0 | EE174: 0 | EF174: 0 | EG174: 0 | EH174: 0 | EI174: 0 | EJ174: 0 | EK174: 0 | EL174: 0 | EM174: 0 | EN174: 0 | EO174: 0 | EP174: 0 | EQ174: 0 | ER174: 0 | ES174: 0 | ET174: 0 | EU174: 0 | EV174: 0 | EW174: 0 | EX174: 0 | EY174: 0 | EZ174: 0 | FA174: 0 | FB174: 0 | FC174: 0 | FD174: 0 | FE174: 0 | FF174: 0 | FG174: 0 | FH174: 0 | FI174: 0 | FJ174: 0 | FK174: 0 | FL174: 0 | FM174: 0 | FN174: 0 | FO174: 0 | FP174: 0 | FQ174: 0 | FR174: 0 | FS174: 0 | FT174: 0 | FU174: 0 | FV174: 0 | FW174: 0 | FX174: 0 | FY174: 0 | FZ174: 0 | GA174: 0 | GB174: 0 | GC174: 0 | GD174: 0 | GE174: 0 | GF174: 0 | GG174: 0 | GH174: 0
CV175: 0 | CW175: 0 | CX175: 0 | CY175: 0 | CZ175: 0 | DA175: 0 | DB175: 0 | DC175: 0 | DD175: 0 | DE175: 0 | DF175: 0 | DG175: 0 | DH175: 0 | DI175: 0 | DJ175: 0 | DK175: 0 | DL175: 0 | DM175: 0 | DN175: 0 | DO175: 0 | DP175: 0 | DQ175: 0 | DR175: 0 | DS175: 0 | DT175: 0 | DU175: 0 | DV175: 0 | DW175: 0 | DX175: 0 | DY175: 0 | DZ175: 0 | EA175: 0 | EB175: 0 | EC175: 0 | ED175: 0 | EE175: 0 | EF175: 0 | EG175: 0 | EH175: 0 | EI175: 0 | EJ175: 0 | EK175: 0 | EL175: 0 | EM175: 0 | EN175: 0 | EO175: 0 | EP175: 0 | EQ175: 0 | ER175: 0 | ES175: 0 | ET175: 0 | EU175: 0 | EV175: 0 | EW175: 0 | EX175: 0 | EY175: 0 | EZ175: 0 | FA175: 0 | FB175: 0 | FC175: 0 | FD175: 0 | FE175: 0 | FF175: 0 | FG175: 0 | FH175: 0 | FI175: 0 | FJ175: 0 | FK175: 0 | FL175: 0 | FM175: 0 | FN175: 0 | FO175: 0 | FP175: 0 | FQ175: 0 | FR175: 0 | FS175: 0 | FT175: 0 | FU175: 0 | FV175: 0 | FW175: 0 | FX175: 0 | FY175: 0 | FZ175: 0 | GA175: 0 | GB175: 0 | GC175: 0 | GD175: 0 | GE175: 0 | GF175: 0 | GG175: 0 | GH175: 0
CV176: 0 | CW176: 0 | CX176: 0 | CY176: 0 | CZ176: 0 | DA176: 0 | DB176: 0 | DC176: 0 | DD176: 0 | DE176: 0 | DF176: 0 | DG176: 0 | DH176: 0 | DI176: 0 | DJ176: 0 | DK176: 0 | DL176: 0 | DM176: 0 | DN176: 0 | DO176: 0 | DP176: 0 | DQ176: 0 | DR176: 0 | DS176: 0 | DT176: 0 | DU176: 0 | DV176: 0 | DW176: 0 | DX176: 0 | DY176: 0 | DZ176: 0 | EA176: 0 | EB176: 0 | EC176: 0 | ED176: 0 | EE176: 0 | EF176: 0 | EG176: 0 | EH176: 0 | EI176: 0 | EJ176: 0 | EK176: 0 | EL176: 0 | EM176: 0 | EN176: 0 | EO176: 0 | EP176: 0 | EQ176: 0 | ER176: 0 | ES176: 0 | ET176: 0 | EU176: 0 | EV176: 0 | EW176: 0 | EX176: 0 | EY176: 0 | EZ176: 0 | FA176: 0 | FB176: 0 | FC176: 0 | FD176: 0 | FE176: 0 | FF176: 0 | FG176: 0 | FH176: 0 | FI176: 0 | FJ176: 0 | FK176: 0 | FL176: 0 | FM176: 0 | FN176: 0 | FO176: 0 | FP176: 0 | FQ176: 0 | FR176: 0 | FS176: 0 | FT176: 0 | FU176: 0 | FV176: 0 | FW176: 0 | FX176: 0 | FY176: 0 | FZ176: 0 | GA176: 0 | GB176: 0 | GC176: 0 | GD176: 0 | GE176: 0 | GF176: 0 | GG176: 0 | GH176: 0
CV177: 0 | CW177: 0 | CX177: 0 | CY177: 0 | CZ177: 0 | DA177: 0 | DB177: 0 | DC177: 0 | DD177: 0 | DE177: 0 | DF177: 0 | DG177: 0 | DH177: 0 | DI177: 0 | DJ177: 0 | DK177: 0 | DL177: 0 | DM177: 0 | DN177: 0 | DO177: 0 | DP177: 0 | DQ177: 0 | DR177: 0 | DS177: 0 | DT177: 0 | DU177: 0 | DV177: 0 | DW177: 0 | DX177: 0 | DY177: 0 | DZ177: 0 | EA177: 0 | EB177: 0 | EC177: 0 | ED177: 0 | EE177: 0 | EF177: 0 | EG177: 0 | EH177: 0 | EI177: 0 | EJ177: 0 | EK177: 0 | EL177: 0 | EM177: 0 | EN177: 0 | EO177: 0 | EP177: 0 | EQ177: 0 | ER177: 0 | ES177: 0 | ET177: 0 | EU177: 0 | EV177: 0 | EW177: 0 | EX177: 0 | EY177: 0 | EZ177: 0 | FA177: 0 | FB177: 0 | FC177: 0 | FD177: 0 | FE177: 0 | FF177: 0 | FG177: 0 | FH177: 0 | FI177: 0 | FJ177: 0 | FK177: 0 | FL177: 0 | FM177: 0 | FN177: 0 | FO177: 0 | FP177: 0 | FQ177: 0 | FR177: 0 | FS177: 0 | FT177: 0 | FU177: 0 | FV177: 0 | FW177: 0 | FX177: 0 | FY177: 0 | FZ177: 0 | GA177: 0 | GB177: 0 | GC177: 0 | GD177: 0 | GE177: 0 | GF177: 0 | GG177: 0 | GH177: 0
CV178: 0 | CW178: 0 | CX178: 0 | CY178: 0 | CZ178: 0 | DA178: 0 | DB178: 0 | DC178: 0 | DD178: 0 | DE178: 0 | DF178: 0 | DG178: 0 | DH178: 0 | DI178: 0 | DJ178: 0 | DK178: 0 | DL178: 0 | DM178: 0 | DN178: 0 | DO178: 0 | DP178: 0 | DQ178: 0 | DR178: 0 | DS178: 0 | DT178: 0 | DU178: 0 | DV178: 0 | DW178: 0 | DX178: 0 | DY178: 0 | DZ178: 0 | EA178: 0 | EB178: 0 | EC178: 0 | ED178: 0 | EE178: 0 | EF178: 0 | EG178: 0 | EH178: 0 | EI178: 0 | EJ178: 0 | EK178: 0 | EL178: 0 | EM178: 0 | EN178: 0 | EO178: 0 | EP178: 0 | EQ178: 0 | ER178: 0 | ES178: 0 | ET178: 0 | EU178: 0 | EV178: 0 | EW178: 0 | EX178: 0 | EY178: 0 | EZ178: 0 | FA178: 0 | FB178: 0 | FC178: 0 | FD178: 0 | FE178: 0 | FF178: 0 | FG178: 0 | FH178: 0 | FI178: 0 | FJ178: 0 | FK178: 0 | FL178: 0 | FM178: 0 | FN178: 0 | FO178: 0 | FP178: 0 | FQ178: 0 | FR178: 0 | FS178: 0 | FT178: 0 | FU178: 0 | FV178: 0 | FW178: 0 | FX178: 0 | FY178: 0 | FZ178: 0 | GA178: 0 | GB178: 0 | GC178: 0 | GD178: 0 | GE178: 0 | GF178: 0 | GG178: 0 | GH178: 0
CV179: 0 | CW179: 0 | CX179: 0 | CY179: 0 | CZ179: 0 | DA179: 0 | DB179: 0 | DC179: 0 | DD179: 0 | DE179: 0 | DF179: 0 | DG179: 0 | DH179: 0 | DI179: 0 | DJ179: 0 | DK179: 0 | DL179: 0 | DM179: 0 | DN179: 0 | DO179: 0 | DP179: 0 | DQ179: 0 | DR179: 0 | DS179: 0 | DT179: 0 | DU179: 0 | DV179: 0 | DW179: 0 | DX179: 0 | DY179: 0 | DZ179: 0 | EA179: 0 | EB179: 0 | EC179: 0 | ED179: 0 | EE179: 0 | EF179: 0 | EG179: 0 | EH179: 0 | EI179: 0 | EJ179: 0 | EK179: 0 | EL179: 0 | EM179: 0 | EN179: 0 | EO179: 0 | EP179: 0 | EQ179: 0 | ER179: 0 | ES179: 0 | ET179: 0 | EU179: 0 | EV179: 0 | EW179: 0 | EX179: 0 | EY179: 0 | EZ179: 0 | FA179: 0 | FB179: 0 | FC179: 0 | FD179: 0 | FE179: 0 | FF179: 0 | FG179: 0 | FH179: 0 | FI179: 0 | FJ179: 0 | FK179: 0 | FL179: 0 | FM179: 0 | FN179: 0 | FO179: 0 | FP179: 0 | FQ179: 0 | FR179: 0 | FS179: 0 | FT179: 0 | FU179: 0 | FV179: 0 | FW179: 0 | FX179: 0 | FY179: 0 | FZ179: 0 | GA179: 0 | GB179: 0 | GC179: 0 | GD179: 0 | GE179: 0 | GF179: 0 | GG179: 0 | GH179: 0
CV180: 0 | CW180: 0 | CX180: 0 | CY180: 0 | CZ180: 0 | DA180: 0 | DB180: 0 | DC180: 0 | DD180: 0 | DE180: 0 | DF180: 0 | DG180: 0 | DH180: 0 | DI180: 0 | DJ180: 0 | DK180: 0 | DL180: 0 | DM180: 0 | DN180: 0 | DO180: 0 | DP180: 0 | DQ180: 0 | DR180: 0 | DS180: 0 | DT180: 0 | DU180: 0 | DV180: 0 | DW180: 0 | DX180: 0 | DY180: 0 | DZ180: 0 | EA180: 0 | EB180: 0 | EC180: 0 | ED180: 0 | EE180: 0 | EF180: 0 | EG180: 0 | EH180: 0 | EI180: 0 | EJ180: 0 | EK180: 0 | EL180: 0 | EM180: 0 | EN180: 0 | EO180: 0 | EP180: 0 | EQ180: 0 | ER180: 0 | ES180: 0 | ET180: 0 | EU180: 0 | EV180: 0 | EW180: 0 | EX180: 0 | EY180: 0 | EZ180: 0 | FA180: 0 | FB180: 0 | FC180: 0 | FD180: 0 | FE180: 0 | FF180: 0 | FG180: 0 | FH180: 0 | FI180: 0 | FJ180: 0 | FK180: 0 | FL180: 0 | FM180: 0 | FN180: 0 | FO180: 0 | FP180: 0 | FQ180: 0 | FR180: 0 | FS180: 0 | FT180: 0 | FU180: 0 | FV180: 0 | FW180: 0 | FX180: 0 | FY180: 0 | FZ180: 0 | GA180: 0 | GB180: 0 | GC180: 0 | GD180: 0 | GE180: 0 | GF180: 0 | GG180: 0 | GH180: 0
CV181: 0 | CW181: 0 | CX181: 0 | CY181: 0 | CZ181: 0 | DA181: 0 | DB181: 0 | DC181: 0 | DD181: 0 | DE181: 0 | DF181: 0 | DG181: 0 | DH181: 0 | DI181: 0 | DJ181: 0 | DK181: 0 | DL181: 0 | DM181: 0 | DN181: 0 | DO181: 0 | DP181: 0 | DQ181: 0 | DR181: 0 | DS181: 0 | DT181: 0 | DU181: 0 | DV181: 0 | DW181: 0 | DX181: 0 | DY181: 0 | DZ181: 0 | EA181: 0 | EB181: 0 | EC181: 0 | ED181: 0 | EE181: 0 | EF181: 0 | EG181: 0 | EH181: 0 | EI181: 0 | EJ181: 0 | EK181: 0 | EL181: 0 | EM181: 0 | EN181: 0 | EO181: 0 | EP181: 0 | EQ181: 0 | ER181: 0 | ES181: 0 | ET181: 0 | EU181: 0 | EV181: 0 | EW181: 0 | EX181: 0 | EY181: 0 | EZ181: 0 | FA181: 0 | FB181: 0 | FC181: 0 | FD181: 0 | FE181: 0 | FF181: 0 | FG181: 0 | FH181: 0 | FI181: 0 | FJ181: 0 | FK181: 0 | FL181: 0 | FM181: 0 | FN181: 0 | FO181: 0 | FP181: 0 | FQ181: 0 | FR181: 0 | FS181: 0 | FT181: 0 | FU181: 0 | FV181: 0 | FW181: 0 | FX181: 0 | FY181: 0 | FZ181: 0 | GA181: 0 | GB181: 0 | GC181: 0 | GD181: 0 | GE181: 0 | GF181: 0 | GG181: 0 | GH181: 0
CV182: 0 | CW182: 0 | CX182: 0 | CY182: 0 | CZ182: 0 | DA182: 0 | DB182: 0 | DC182: 0 | DD182: 0 | DE182: 0 | DF182: 0 | DG182: 0 | DH182: 0 | DI182: 0 | DJ182: 0 | DK182: 0 | DL182: 0 | DM182: 0 | DN182: 0 | DO182: 0 | DP182: 0 | DQ182: 0 | DR182: 0 | DS182: 0 | DT182: 0 | DU182: 0 | DV182: 0 | DW182: 0 | DX182: 0 | DY182: 0 | DZ182: 0 | EA182: 0 | EB182: 0 | EC182: 0 | ED182: 0 | EE182: 0 | EF182: 0 | EG182: 0 | EH182: 0 | EI182: 0 | EJ182: 0 | EK182: 0 | EL182: 0 | EM182: 0 | EN182: 0 | EO182: 0 | EP182: 0 | EQ182: 0 | ER182: 0 | ES182: 0 | ET182: 0 | EU182: 0 | EV182: 0 | EW182: 0 | EX182: 0 | EY182: 0 | EZ182: 0 | FA182: 0 | FB182: 0 | FC182: 0 | FD182: 0 | FE182: 0 | FF182: 0 | FG182: 0 | FH182: 0 | FI182: 0 | FJ182: 0 | FK182: 0 | FL182: 0 | FM182: 0 | FN182: 0 | FO182: 0 | FP182: 0 | FQ182: 0 | FR182: 0 | FS182: 0 | FT182: 0 | FU182: 0 | FV182: 0 | FW182: 0 | FX182: 0 | FY182: 0 | FZ182: 0 | GA182: 0 | GB182: 0 | GC182: 0 | GD182: 0 | GE182: 0 | GF182: 0 | GG182: 0 | GH182: 0
CV183: 0 | CW183: 0 | CX183: 0 | CY183: 0 | CZ183: 0 | DA183: 0 | DB183: 0 | DC183: 0 | DD183: 0 | DE183: 0 | DF183: 0 | DG183: 0 | DH183: 0 | DI183: 0 | DJ183: 0 | DK183: 0 | DL183: 0 | DM183: 0 | DN183: 0 | DO183: 0 | DP183: 0 | DQ183: 0 | DR183: 0 | DS183: 0 | DT183: 0 | DU183: 0 | DV183: 0 | DW183: 0 | DX183: 0 | DY183: 0 | DZ183: 0 | EA183: 0 | EB183: 0 | EC183: 0 | ED183: 0 | EE183: 0 | EF183: 0 | EG183: 0 | EH183: 0 | EI183: 0 | EJ183: 0 | EK183: 0 | EL183: 0 | EM183: 0 | EN183: 0 | EO183: 0 | EP183: 0 | EQ183: 0 | ER183: 0 | ES183: 0 | ET183: 0 | EU183: 0 | EV183: 0 | EW183: 0 | EX183: 0 | EY183: 0 | EZ183: 0 | FA183: 0 | FB183: 0 | FC183: 0 | FD183: 0 | FE183: 0 | FF183: 0 | FG183: 0 | FH183: 0 | FI183: 0 | FJ183: 0 | FK183: 0 | FL183: 0 | FM183: 0 | FN183: 0 | FO183: 0 | FP183: 0 | FQ183: 0 | FR183: 0 | FS183: 0 | FT183: 0 | FU183: 0 | FV183: 0 | FW183: 0 | FX183: 0 | FY183: 0 | FZ183: 0 | GA183: 0 | GB183: 0 | GC183: 0 | GD183: 0 | GE183: 0 | GF183: 0 | GG183: 0 | GH183: 0
CV184: 0 | CW184: 0 | CX184: 0 | CY184: 0 | CZ184: 0 | DA184: 0 | DB184: 0 | DC184: 0 | DD184: 0 | DE184: 0 | DF184: 0 | DG184: 0 | DH184: 0 | DI184: 0 | DJ184: 0 | DK184: 0 | DL184: 0 | DM184: 0 | DN184: 0 | DO184: 0 | DP184: 0 | DQ184: 0 | DR184: 0 | DS184: 0 | DT184: 0 | DU184: 0 | DV184: 0 | DW184: 0 | DX184: 0 | DY184: 0 | DZ184: 0 | EA184: 0 | EB184: 0 | EC184: 0 | ED184: 0 | EE184: 0 | EF184: 0 | EG184: 0 | EH184: 0 | EI184: 0 | EJ184: 0 | EK184: 0 | EL184: 0 | EM184: 0 | EN184: 0 | EO184: 0 | EP184: 0 | EQ184: 0 | ER184: 0 | ES184: 0 | ET184: 0 | EU184: 0 | EV184: 0 | EW184: 0 | EX184: 0 | EY184: 0 | EZ184: 0 | FA184: 0 | FB184: 0 | FC184: 0 | FD184: 0 | FE184: 0 | FF184: 0 | FG184: 0 | FH184: 0 | FI184: 0 | FJ184: 0 | FK184: 0 | FL184: 0 | FM184: 0 | FN184: 0 | FO184: 0 | FP184: 0 | FQ184: 0 | FR184: 0 | FS184: 0 | FT184: 0 | FU184: 0 | FV184: 0 | FW184: 0 | FX184: 0 | FY184: 0 | FZ184: 0 | GA184: 0 | GB184: 0 | GC184: 0 | GD184: 0 | GE184: 0 | GF184: 0 | GG184: 0 | GH184: 0
CV185: 0 | CW185: 0 | CX185: 0 | CY185: 0 | CZ185: 0 | DA185: 0 | DB185: 0 | DC185: 0 | DD185: 0 | DE185: 0 | DF185: 0 | DG185: 0 | DH185: 0 | DI185: 0 | DJ185: 0 | DK185: 0 | DL185: 0 | DM185: 0 | DN185: 0 | DO185: 0 | DP185: 0 | DQ185: 0 | DR185: 0 | DS185: 0 | DT185: 0 | DU185: 0 | DV185: 0 | DW185: 0 | DX185: 0 | DY185: 0 | DZ185: 0 | EA185: 0 | EB185: 0 | EC185: 0 | ED185: 0 | EE185: 0 | EF185: 0 | EG185: 0 | EH185: 0 | EI185: 0 | EJ185: 0 | EK185: 0 | EL185: 0 | EM185: 0 | EN185: 0 | EO185: 0 | EP185: 0 | EQ185: 0 | ER185: 0 | ES185: 0 | ET185: 0 | EU185: 0 | EV185: 0 | EW185: 0 | EX185: 0 | EY185: 0 | EZ185: 0 | FA185: 0 | FB185: 0 | FC185: 0 | FD185: 0 | FE185: 0 | FF185: 0 | FG185: 0 | FH185: 0 | FI185: 0 | FJ185: 0 | FK185: 0 | FL185: 0 | FM185: 0 | FN185: 0 | FO185: 0 | FP185: 0 | FQ185: 0 | FR185: 0 | FS185: 0 | FT185: 0 | FU185: 0 | FV185: 0 | FW185: 0 | FX185: 0 | FY185: 0 | FZ185: 0 | GA185: 0 | GB185: 0 | GC185: 0 | GD185: 0 | GE185: 0 | GF185: 0 | GG185: 0 | GH185: 0
CV186: 0 | CW186: 0 | CX186: 0 | CY186: 0 | CZ186: 0 | DA186: 0 | DB186: 0 | DC186: 0 | DD186: 0 | DE186: 0 | DF186: 0 | DG186: 0 | DH186: 0 | DI186: 0 | DJ186: 0 | DK186: 0 | DL186: 0 | DM186: 0 | DN186: 0 | DO186: 0 | DP186: 0 | DQ186: 0 | DR186: 0 | DS186: 0 | DT186: 0 | DU186: 0 | DV186: 0 | DW186: 0 | DX186: 0 | DY186: 0 | DZ186: 0 | EA186: 0 | EB186: 0 | EC186: 0 | ED186: 0 | EE186: 0 | EF186: 0 | EG186: 0 | EH186: 0 | EI186: 0 | EJ186: 0 | EK186: 0 | EL186: 0 | EM186: 0 | EN186: 0 | EO186: 0 | EP186: 0 | EQ186: 0 | ER186: 0 | ES186: 0 | ET186: 0 | EU186: 0 | EV186: 0 | EW186: 0 | EX186: 0 | EY186: 0 | EZ186: 0 | FA186: 0 | FB186: 0 | FC186: 0 | FD186: 0 | FE186: 0 | FF186: 0 | FG186: 0 | FH186: 0 | FI186: 0 | FJ186: 0 | FK186: 0 | FL186: 0 | FM186: 0 | FN186: 0 | FO186: 0 | FP186: 0 | FQ186: 0 | FR186: 0 | FS186: 0 | FT186: 0 | FU186: 0 | FV186: 0 | FW186: 0 | FX186: 0 | FY186: 0 | FZ186: 0 | GA186: 0 | GB186: 0 | GC186: 0 | GD186: 0 | GE186: 0 | GF186: 0 | GG186: 0 | GH186: 0
CV187: 0 | CW187: 0 | CX187: 0 | CY187: 0 | CZ187: 0 | DA187: 0 | DB187: 0 | DC187: 0 | DD187: 0 | DE187: 0 | DF187: 0 | DG187: 0 | DH187: 0 | DI187: 0 | DJ187: 0 | DK187: 0 | DL187: 0 | DM187: 0 | DN187: 0 | DO187: 0 | DP187: 0 | DQ187: 0 | DR187: 0 | DS187: 0 | DT187: 0 | DU187: 0 | DV187: 0 | DW187: 0 | DX187: 0 | DY187: 0 | DZ187: 0 | EA187: 0 | EB187: 0 | EC187: 0 | ED187: 0 | EE187: 0 | EF187: 0 | EG187: 0 | EH187: 0 | EI187: 0 | EJ187: 0 | EK187: 0 | EL187: 0 | EM187: 0 | EN187: 0 | EO187: 0 | EP187: 0 | EQ187: 0 | ER187: 0 | ES187: 0 | ET187: 0 | EU187: 0 | EV187: 0 | EW187: 0 | EX187: 0 | EY187: 0 | EZ187: 0 | FA187: 0 | FB187: 0 | FC187: 0 | FD187: 0 | FE187: 0 | FF187: 0 | FG187: 0 | FH187: 0 | FI187: 0 | FJ187: 0 | FK187: 0 | FL187: 0 | FM187: 0 | FN187: 0 | FO187: 0 | FP187: 0 | FQ187: 0 | FR187: 0 | FS187: 0 | FT187: 0 | FU187: 0 | FV187: 0 | FW187: 0 | FX187: 0 | FY187: 0 | FZ187: 0 | GA187: 0 | GB187: 0 | GC187: 0 | GD187: 0 | GE187: 0 | GF187: 0 | GG187: 0 | GH187: 0
CV188: 0 | CW188: 0 | CX188: 0 | CY188: 0 | CZ188: 0 | DA188: 0 | DB188: 0 | DC188: 0 | DD188: 0 | DE188: 0 | DF188: 0 | DG188: 0 | DH188: 0 | DI188: 0 | DJ188: 0 | DK188: 0 | DL188: 0 | DM188: 0 | DN188: 0 | DO188: 0 | DP188: 0 | DQ188: 0 | DR188: 0 | DS188: 0 | DT188: 0 | DU188: 0 | DV188: 0 | DW188: 0 | DX188: 0 | DY188: 0 | DZ188: 0 | EA188: 0 | EB188: 0 | EC188: 0 | ED188: 0 | EE188: 0 | EF188: 0 | EG188: 0 | EH188: 0 | EI188: 0 | EJ188: 0 | EK188: 0 | EL188: 0 | EM188: 0 | EN188: 0 | EO188: 0 | EP188: 0 | EQ188: 0 | ER188: 0 | ES188: 0 | ET188: 0 | EU188: 0 | EV188: 0 | EW188: 0 | EX188: 0 | EY188: 0 | EZ188: 0 | FA188: 0 | FB188: 0 | FC188: 0 | FD188: 0 | FE188: 0 | FF188: 0 | FG188: 0 | FH188: 0 | FI188: 0 | FJ188: 0 | FK188: 0 | FL188: 0 | FM188: 0 | FN188: 0 | FO188: 0 | FP188: 0 | FQ188: 0 | FR188: 0 | FS188: 0 | FT188: 0 | FU188: 0 | FV188: 0 | FW188: 0 | FX188: 0 | FY188: 0 | FZ188: 0 | GA188: 0 | GB188: 0 | GC188: 0 | GD188: 0 | GE188: 0 | GF188: 0 | GG188: 0 | GH188: 0
CV189: 0 | CW189: 0 | CX189: 0 | CY189: 0 | CZ189: 0 | DA189: 0 | DB189: 0 | DC189: 0 | DD189: 0 | DE189: 0 | DF189: 0 | DG189: 0 | DH189: 0 | DI189: 0 | DJ189: 0 | DK189: 0 | DL189: 0 | DM189: 0 | DN189: 0 | DO189: 0 | DP189: 0 | DQ189: 0 | DR189: 0 | DS189: 0 | DT189: 0 | DU189: 0 | DV189: 0 | DW189: 0 | DX189: 0 | DY189: 0 | DZ189: 0 | EA189: 0 | EB189: 0 | EC189: 0 | ED189: 0 | EE189: 0 | EF189: 0 | EG189: 0 | EH189: 0 | EI189: 0 | EJ189: 0 | EK189: 0 | EL189: 0 | EM189: 0 | EN189: 0 | EO189: 0 | EP189: 0 | EQ189: 0 | ER189: 0 | ES189: 0 | ET189: 0 | EU189: 0 | EV189: 0 | EW189: 0 | EX189: 0 | EY189: 0 | EZ189: 0 | FA189: 0 | FB189: 0 | FC189: 0 | FD189: 0 | FE189: 0 | FF189: 0 | FG189: 0 | FH189: 0 | FI189: 0 | FJ189: 0 | FK189: 0 | FL189: 0 | FM189: 0 | FN189: 0 | FO189: 0 | FP189: 0 | FQ189: 0 | FR189: 0 | FS189: 0 | FT189: 0 | FU189: 0 | FV189: 0 | FW189: 0 | FX189: 0 | FY189: 0 | FZ189: 0 | GA189: 0 | GB189: 0 | GC189: 0 | GD189: 0 | GE189: 0 | GF189: 0 | GG189: 0 | GH189: 0
CV190: 0 | CW190: 0 | CX190: 0 | CY190: 0 | CZ190: 0 | DA190: 0 | DB190: 0 | DC190: 0 | DD190: 0 | DE190: 0 | DF190: 0 | DG190: 0 | DH190: 0 | DI190: 0 | DJ190: 0 | DK190: 0 | DL190: 0 | DM190: 0 | DN190: 0 | DO190: 0 | DP190: 0 | DQ190: 0 | DR190: 0 | DS190: 0 | DT190: 0 | DU190: 0 | DV190: 0 | DW190: 0 | DX190: 0 | DY190: 0 | DZ190: 0 | EA190: 0 | EB190: 0 | EC190: 0 | ED190: 0 | EE190: 0 | EF190: 0 | EG190: 0 | EH190: 0 | EI190: 0 | EJ190: 0 | EK190: 0 | EL190: 0 | EM190: 0 | EN190: 0 | EO190: 0 | EP190: 0 | EQ190: 0 | ER190: 0 | ES190: 0 | ET190: 0 | EU190: 0 | EV190: 0 | EW190: 0 | EX190: 0 | EY190: 0 | EZ190: 0 | FA190: 0 | FB190: 0 | FC190: 0 | FD190: 0 | FE190: 0 | FF190: 0 | FG190: 0 | FH190: 0 | FI190: 0 | FJ190: 0 | FK190: 0 | FL190: 0 | FM190: 0 | FN190: 0 | FO190: 0 | FP190: 0 | FQ190: 0 | FR190: 0 | FS190: 0 | FT190: 0 | FU190: 0 | FV190: 0 | FW190: 0 | FX190: 0 | FY190: 0 | FZ190: 0 | GA190: 0 | GB190: 0 | GC190: 0 | GD190: 0 | GE190: 0 | GF190: 0 | GG190: 0 | GH190: 0

Sheet Historical scenario - output
D1: Replacement expenditure forecast ($,000) | X1: Replacement quantity forecast (#)
D2: 1 | E2: 2 | F2: 3 | G2: 4 | H2: 5 | I2: 6 | J2: 7 | K2: 8 | L2: 9 | M2: 10 | N2: 11 | O2: 12 | P2: 13 | Q2: 14 | R2: 15 | S2: 16 | T2: 17 | U2: 18 | V2: 19 | W2: 20 | X2: 1 | Y2: 2 | Z2: 3 | AA2: 4 | AB2: 5 | AC2: 6 | AD2: 7 | AE2: 8 | AF2: 9 | AG2: 10 | AH2: 11 | AI2: 12 | AJ2: 13 | AK2: 14 | AL2: 15 | AM2: 16 | AN2: 17 | AO2: 18 | AP2: 19 | AQ2: 20
A5: ID | B5: Asset group | D5: 2020 | E5: 2021 | F5: 2022 | G5: 2023 | H5: 2024 | I5: 2025 | J5: 2026 | K5: 2027 | L5: 2028 | M5: 2029 | N5: 2030 | O5: 2031 | P5: 2032 | Q5: 2033 | R5: 2034 | S5: 2035 | T5: 2036 | U5: 2037 | V5: 2038 | W5: 2039 | X5: 2020 | Y5: 2021 | Z5: 2022 | AA5: 2023 | AB5: 2024 | AC5: 2025 | AD5: 2026 | AE5: 2027 | AF5: 2028 | AG5: 2029 | AH5: 2030 | AI5: 2031 | AJ5: 2032 | AK5: 2033 | AL5: 2034 | AM5: 2035 | AN5: 2036 | AO5: 2037 | AP5: 2038 | AQ5: 2039
A6: 1 | B6: OVERHEAD CONDUCTORS | D6: =IFERROR(IF($A6="","",SUMIFS(D$21:D$175,$A$21:$A$175,$A6)),"") -> 5793.340107 | E6: =IFERROR(IF($A6="","",SUMIFS(E$21:E$175,$A$21:$A$175,$A6)),"") -> 5631.346684 | F6: 5602.527189 | G6: 5700.194098 | H6: 5918.686153 | I6: 6253.454311 | J6: 6700.976507 | K6: 7258.550994 | L6: 7924.0198 | M6: 8695.46942 | N6: 9570.946456 | O6: 10548.2134 | P6: 11624.55598 | Q6: 12796.64078 | R6: 14060.41181 | S6: 15411.00962 | T6: 16842.69623 | U6: =IFERROR(IF($A6="","",SUMIFS(U$21:U$175,$A$21:$A$175,$A6)),"") -> 18348.77486 | V6: 19921.50334 | W6: 21552.01288 | X6: =IFERROR(IF($A6="","",SUMIFS(X$21:X$175,$A$21:$A$175,$A6)),"") -> 22.93892279 | Y6: =IFERROR(IF($A6="","",SUMIFS(Y$21:Y$175,$A$21:$A$175,$A6)),"") -> 22.99727485 | Z6: 23.51379221 | AA6: 24.46080874 | AB6: 25.81261967 | AC6: 27.5458915 | AD6: 29.63959871 | AE6: 32.07464509 | AF6: 34.83332772 | AG6: 37.8987822 | AH6: 41.25451174 | AI6: 44.88405813 | AJ6: 48.77082357 | AK6: 52.89800935 | AL6: 57.24860384 | AM6: 61.80533609 | AN6: 66.55051386 | AO6: =IFERROR(IF($A6="","",SUMIFS(AO$21:AO$175,$A$21:$A$175,$A6)),"") -> 71.46568693 | AP6: 76.53111571 | AQ6: 81.72507349
A7: 2 | B7: POLES | D7: =IFERROR(IF($A7="","",SUMIFS(D$21:D$175,$A$21:$A$175,$A7)),"") -> 9486.533782 | E7: 9315.741408 | F7: 9391.895468 | G7: 9635.513063 | H7: 10016.12905 | I7: 10503.76961 | J7: 11076.52674 | K7: 11714.40755 | L7: 12399.1748 | M7: 13114.72615 | N7: 13847.44462 | O7: 14586.50941 | P7: 15323.94193 | Q7: 16054.41949 | R7: 16774.90402 | S7: 17484.1722 | T7: 18182.33604 | U7: 18870.42025 | V7: 19550.02592 | W7: 20223.06954 | X7: 1500.659226 | Y7: 1465.143673 | Z7: 1455.83941 | AA7: 1466.676492 | AB7: 1495.600763 | AC7: 1540.420359 | AD7: 1599.445505 | AE7: 1670.962583 | AF7: 1753.224756 | AG7: 1844.493401 | AH7: 1943.081317 | AI7: 2047.396175 | AJ7: 2155.964323 | AK7: 2267.437084 | AL7: 2380.582992 | AM7: 2494.272782 | AN7: 2607.464216 | AO7: 2719.191897 | AP7: 2828.564101 | AQ7: 2934.765156
A8: 3 | B8: SERVICE LINES | D8: 2647.903526 | E8: 2519.942924 | F8: 2384.959042 | G8: 2248.238102 | H8: 2114.466303 | I8: 1987.537749 | J8: 1870.440514 | K8: 1765.218527 | L8: 1673.001822 | M8: 1594.094572 | N8: 1528.108827 | O8: 1474.1317 | P8: 1430.914215 | Q8: 1397.071022 | R8: 1371.281221 | S8: 1352.481673 | T8: 1340.045325 | U8: 1333.938091 | V8: 1334.84872 | W8: 1344.286539 | X8: 4078.18026 | Y8: 3881.334493 | Z8: 3674.093528 | AA8: 3464.441318 | AB8: 3259.463537 | AC8: 3065.056168 | AD8: 2885.751165 | AE8: 2724.656151 | AF8: 2583.497358 | AG8: 2462.750168 | AH8: 2361.839308 | AI8: 2279.390308 | AJ8: 2213.51448 | AK8: 2162.111025 | AL8: 2123.171362 | AM8: 2095.07248 | AN8: 2076.847737 | AO8: 2068.425189 | AP8: 2070.824869 | AQ8: 2086.307236
A9: 4 | B9: SWITCHGEAR | D9: 6801.722914 | E9: 6651.553231 | F9: 6620.133536 | G9: 6660.181647 | H9: 6736.368852 | I9: 6822.683046 | J9: 6900.672239 | K9: 6958.240076 | L9: 6988.728073 | M9: 6990.092306 | N9: 6964.05927 | O9: 6915.218539 | P9: 6850.069603 | Q9: 6776.080073 | R9: 6700.82889 | S9: 6631.302924 | T9: 6573.393808 | U9: 6531.612305 | V9: 6509.008239 | W9: 6507.261562 | X9: 1070.448495 | Y9: 987.7610673 | Z9: 935.3963529 | AA9: 905.0592712 | AB9: 890.5409657 | AC9: 887.2172089 | AD9: 891.6766177 | AE9: 901.4429678 | AF9: 914.7652665 | AG9: 930.4562033 | AH9: 947.7649091 | AI9: 966.2740888 | AJ9: 985.8148104 | AK9: 1006.394675 | AL9: 1028.136843 | AM9: 1051.22857 | AN9: 1075.878632 | AO9: 1102.283455 | AP9: 1130.601993 | AQ9: 1160.939535
A10: 5 | B10: TRANSFORMERS | D10: 4915.083701 | E10: 5061.450592 | F10: 5202.406997 | G10: 5334.845829 | H10: 5456.387927 | I10: 5565.436585 | J10: 5661.277019 | K10: 5744.178853 | L10: 5815.45857 | M10: 5877.465467 | N10: 5933.467734 | O10: 5987.4328 | P10: 6043.714924 | Q10: 6106.680001 | R10: 6180.309588 | S10: 6267.831459 | T10: 6371.421697 | U10: 6492.014186 | V10: 6629.239151 | W10: 6781.495338 | X10: 131.9065861 | Y10: 134.4257412 | Z10: 137.5940645 | AA10: 141.3165472 | AB10: 145.5323948 | AC10: 150.1984123 | AD10: 155.2783315 | AE10: 160.7367639 | AF10: 166.5363458 | AG10: 172.636751 | AH10: 178.9945129 | AI10: 185.5629546 | AJ10: 192.2919141 | AK10: 199.1272985 | AL10: 206.0107645 | AM10: 212.8799433 | AN10: 219.669617 | AO10: 226.3141077 | AP10: 232.750913 | AQ10: 238.9253507
A11: 6 | B11: UNDERGROUND CABLES | D11: 2626.500077 | E11: 2766.629481 | F11: 2933.060243 | G11: 3130.798608 | H11: 3364.500661 | I11: 3638.212516 | J11: 3955.123373 | K11: 4317.345288 | L11: 4725.732541 | M11: 5179.751593 | N11: 5677.410056 | O11: 6215.249976 | P11: 6788.407317 | Q11: 7390.736155 | R11: 8014.992953 | S11: 8653.073639 | T11: 9296.294113 | U11: 9935.70333 | V11: 10562.41703 | W11: 11167.95952 | X11: 5.720494697 | Y11: 6.322528896 | Z11: 7.061162243 | AA11: 7.954754531 | AB11: 9.020435325 | AC11: 10.27305727 | AD11: 11.72415512 | AE11: 13.3809823 | AF11: 15.24569926 | AG11: 17.31478332 | AH11: 19.57871714 | AI11: 22.0219938 | AJ11: 24.62345254 | AK11: 27.35693287 | AL11: 30.19221008 | AM11: 33.0961542 | AN11: 36.03404047 | AO11: 38.97093299 | AP11: 41.87306408 | AQ11: 44.70913926
C18: Total | D18: =IFERROR(SUM(D$6:D$17),"") -> 32271.08411 | E18: =IFERROR(SUM(E$6:E$17),"") -> 31946.66432 | F18: 32134.98247 | G18: 32709.77135 | H18: 33606.53895 | I18: 34771.09381 | J18: 36165.01639 | K18: 37757.94129 | L18: 39526.11561 | M18: 41451.59951 | N18: 43521.43696 | O18: 45726.75582 | P18: 48061.60397 | Q18: 50521.62752 | R18: 53102.72848 | S18: 55799.87152 | T18: 58606.18722 | U18: 61512.46302 | V18: 64507.04239 | W18: 67576.08538
A20: ID | B20: Asset group | C20: Asset category
A21: =IFERROR('Historical scenario - input'!A6,"") -> 1 | B21: =IFERROR('Historical scenario - input'!B6,"") -> OVERHEAD CONDUCTORS | C21: =IFERROR('Historical scenario - input'!C6,"") -> ˂ = 1 kv | D21: =IFERROR(repcalc('Historical scenario - input'!$CV6:$GH6,'Historical scenario - input'!$G6,'Historical scenario - input'!$E6,'Historical scenario - input'!$F6,20,TRUE,TRUE),"") -> 321.3494085 | E21: 371.4714259 | F21: 425.9249445 | G21: 484.448489 | H21: 546.6683281 | I21: 612.1053039 | J21: 680.1885871 | K21: 750.2765456 | L21: 821.6844817 | M21: 893.7185173 | N21: 965.7144379 | O21: 1037.079869 | P21: 1107.337799 | Q21: 1176.169204 | R21: 1243.452408 | S21: 1309.29683 | T21: 1374.068944 | U21: 1438.408572 | V21: 1503.234091 | W21: 1569.735605 | X21: =IFERROR(IF(OR(D21="",'Historical scenario - input'!$D6=""),"",D21/'Historical scenario - input'!$D6),"") -> 4.598929892 | Y21: =IFERROR(IF(OR(E21="",'Historical scenario - input'!$D6=""),"",E21/'Historical scenario - input'!$D6),"") -> 5.316241447 | Z21: =IFERROR(IF(OR(F21="",'Historical scenario - input'!$D6=""),"",F21/'Historical scenario - input'!$D6),"") -> 6.095542444 | AA21: =IFERROR(IF(OR(G21="",'Historical scenario - input'!$D6=""),"",G21/'Historical scenario - input'!$D6),"") -> 6.93309083 | AB21: =IFERROR(IF(OR(H21="",'Historical scenario - input'!$D6=""),"",H21/'Historical scenario - input'!$D6),"") -> 7.823538019 | AC21: =IFERROR(IF(OR(I21="",'Historical scenario - input'!$D6=""),"",I21/'Historical scenario - input'!$D6),"") -> 8.76002664 | AD21: =IFERROR(IF(OR(J21="",'Historical scenario - input'!$D6=""),"",J21/'Historical scenario - input'!$D6),"") -> 9.734387375 | AE21: =IFERROR(IF(OR(K21="",'Historical scenario - input'!$D6=""),"",K21/'Historical scenario - input'!$D6),"") -> 10.73743763 | AF21: =IFERROR(IF(OR(L21="",'Historical scenario - input'!$D6=""),"",L21/'Historical scenario - input'!$D6),"") -> 11.7593785 | AG21: =IFERROR(IF(OR(M21="",'Historical scenario - input'!$D6=""),"",M21/'Historical scenario - input'!$D6),"") -> 12.79027966 | AH21: =IFERROR(IF(OR(N21="",'Historical scenario - input'!$D6=""),"",N21/'Historical scenario - input'!$D6),"") -> 13.82063535 | AI21: =IFERROR(IF(OR(O21="",'Historical scenario - input'!$D6=""),"",O21/'Historical scenario - input'!$D6),"") -> 14.84196791 | AJ21: =IFERROR(IF(OR(P21="",'Historical scenario - input'!$D6=""),"",P21/'Historical scenario - input'!$D6),"") -> 15.84745068 | AK21: =IFERROR(IF(OR(Q21="",'Historical scenario - input'!$D6=""),"",Q21/'Historical scenario - input'!$D6),"") -> 16.83251802 | AL21: =IFERROR(IF(OR(R21="",'Historical scenario - input'!$D6=""),"",R21/'Historical scenario - input'!$D6),"") -> 17.79542857 | AM21: =IFERROR(IF(OR(S21="",'Historical scenario - input'!$D6=""),"",S21/'Historical scenario - input'!$D6),"") -> 18.73774829 | AN21: =IFERROR(IF(OR(T21="",'Historical scenario - input'!$D6=""),"",T21/'Historical scenario - input'!$D6),"") -> 19.66472186 | AO21: =IFERROR(IF(OR(U21="",'Historical scenario - input'!$D6=""),"",U21/'Historical scenario - input'!$D6),"") -> 20.585506 | AP21: =IFERROR(IF(OR(V21="",'Historical scenario - input'!$D6=""),"",V21/'Historical scenario - input'!$D6),"") -> 21.51324388 | AQ21: =IFERROR(IF(OR(W21="",'Historical scenario - input'!$D6=""),"",W21/'Historical scenario - input'!$D6),"") -> 22.46496744
A22: =IFERROR('Historical scenario - input'!A7,"") -> 1 | B22: =IFERROR('Historical scenario - input'!B7,"") -> OVERHEAD CONDUCTORS | C22: =IFERROR('Historical scenario - input'!C7,"") -> ˃ 11 kv & < = 22 kv ; multiple-phase | D22: =IFERROR(repcalc('Historical scenario - input'!$CV7:$GH7,'Historical scenario - input'!$G7,'Historical scenario - input'!$E7,'Historical scenario - input'!$F7,20,TRUE,TRUE),"") -> 5031.605292 | E22: 4768.449058 | F22: 4630.127684 | G22: 4609.763136 | H22: 4701.469066 | I22: 4900.407526 | J22: 5202.67126 | K22: 5605.042278 | L22: 6104.679167 | M22: 6698.781001 | N22: 7384.2661 | O22: 8157.490917 | P22: 9014.020228 | Q22: 9948.446562 | R22: 10954.24667 | S22: 12023.65725 | T22: 13147.55219 | U22: 14315.3094 | V22: 15514.66587 | W22: 16731.57305 | X22: =IFERROR(IF(OR(D22="",'Historical scenario - input'!$D7=""),"",D22/'Historical scenario - input'!$D7),"") -> 16.11201342 | Y22: =IFERROR(IF(OR(E22="",'Historical scenario - input'!$D7=""),"",E22/'Historical scenario - input'!$D7),"") -> 15.26934462 | Z22: =IFERROR(IF(OR(F22="",'Historical scenario - input'!$D7=""),"",F22/'Historical scenario - input'!$D7),"") -> 14.82641723 | AA22: =IFERROR(IF(OR(G22="",'Historical scenario - input'!$D7=""),"",G22/'Historical scenario - input'!$D7),"") -> 14.76120666 | AB22: =IFERROR(IF(OR(H22="",'Historical scenario - input'!$D7=""),"",H22/'Historical scenario - input'!$D7),"") -> 15.05486387 | AC22: =IFERROR(IF(OR(I22="",'Historical scenario - input'!$D7=""),"",I22/'Historical scenario - input'!$D7),"") -> 15.69189697 | AD22: =IFERROR(IF(OR(J22="",'Historical scenario - input'!$D7=""),"",J22/'Historical scenario - input'!$D7),"") -> 16.6597943 | AE22: =IFERROR(IF(OR(K22="",'Historical scenario - input'!$D7=""),"",K22/'Historical scenario - input'!$D7),"") -> 17.94825134 | AF22: =IFERROR(IF(OR(L22="",'Historical scenario - input'!$D7=""),"",L22/'Historical scenario - input'!$D7),"") -> 19.54816941 | AG22: =IFERROR(IF(OR(M22="",'Historical scenario - input'!$D7=""),"",M22/'Historical scenario - input'!$D7),"") -> 21.45057951 | AH22: =IFERROR(IF(OR(N22="",'Historical scenario - input'!$D7=""),"",N22/'Historical scenario - input'!$D7),"") -> 23.6456136 | AI22: =IFERROR(IF(OR(O22="",'Historical scenario - input'!$D7=""),"",O22/'Historical scenario - input'!$D7),"") -> 26.12160444 | AJ22: =IFERROR(IF(OR(P22="",'Historical scenario - input'!$D7=""),"",P22/'Historical scenario - input'!$D7),"") -> 28.86434974 | AK22: =IFERROR(IF(OR(Q22="",'Historical scenario - input'!$D7=""),"",Q22/'Historical scenario - input'!$D7),"") -> 31.8565339 | AL22: =IFERROR(IF(OR(R22="",'Historical scenario - input'!$D7=""),"",R22/'Historical scenario - input'!$D7),"") -> 35.07726842 | AM22: =IFERROR(IF(OR(S22="",'Historical scenario - input'!$D7=""),"",S22/'Historical scenario - input'!$D7),"") -> 38.50169394 | AN22: =IFERROR(IF(OR(T22="",'Historical scenario - input'!$D7=""),"",T22/'Historical scenario - input'!$D7),"") -> 42.10058719 | AO22: =IFERROR(IF(OR(U22="",'Historical scenario - input'!$D7=""),"",U22/'Historical scenario - input'!$D7),"") -> 45.83993454 | AP22: =IFERROR(IF(OR(V22="",'Historical scenario - input'!$D7=""),"",V22/'Historical scenario - input'!$D7),"") -> 49.68046781 | AQ22: =IFERROR(IF(OR(W22="",'Historical scenario - input'!$D7=""),"",W22/'Historical scenario - input'!$D7),"") -> 53.57720128
A23: =IFERROR('Historical scenario - input'!A8,"") -> 1 | B23: =IFERROR('Historical scenario - input'!B8,"") -> OVERHEAD CONDUCTORS | C23: =IFERROR('Historical scenario - input'!C8,"") -> ˃ 11 kv & < = 22 kv ; single-phase | D23: =IFERROR(repcalc('Historical scenario - input'!$CV8:$GH8,'Historical scenario - input'!$G8,'Historical scenario - input'!$E8,'Historical scenario - input'!$F8,20,TRUE,TRUE),"") -> 28.66192989 | E23: 31.93811823 | F23: 35.64346216 | G23: 39.87532941 | H23: 44.75355022 | I23: 50.4228551 | J23: 57.05470034 | K23: 64.84820736 | L23: 74.02996257 | M23: 84.852475 | N23: 97.59116849 | O23: 112.539883 | P23: 130.0049649 | Q23: 150.2981201 | R23: 173.7282716 | S23: 200.5926919 | T23: 231.1676553 | U23: 265.6987917 | V23: 304.3912134 | W23: 347.3993737 | X23: =IFERROR(IF(OR(D23="",'Historical scenario - input'!$D8=""),"",D23/'Historical scenario - input'!$D8),"") -> 0.154413755 | Y23: =IFERROR(IF(OR(E23="",'Historical scenario - input'!$D8=""),"",E23/'Historical scenario - input'!$D8),"") -> 0.1720639462 | Z23: =IFERROR(IF(OR(F23="",'Historical scenario - input'!$D8=""),"",F23/'Historical scenario - input'!$D8),"") -> 0.1920261774 | AA23: =IFERROR(IF(OR(G23="",'Historical scenario - input'!$D8=""),"",G23/'Historical scenario - input'!$D8),"") -> 0.214825009 | AB23: =IFERROR(IF(OR(H23="",'Historical scenario - input'!$D8=""),"",H23/'Historical scenario - input'!$D8),"") -> 0.2411060165 | AC23: =IFERROR(IF(OR(I23="",'Historical scenario - input'!$D8=""),"",I23/'Historical scenario - input'!$D8),"") -> 0.2716489233 | AD23: =IFERROR(IF(OR(J23="",'Historical scenario - input'!$D8=""),"",J23/'Historical scenario - input'!$D8),"") -> 0.307377436 | AE23: =IFERROR(IF(OR(K23="",'Historical scenario - input'!$D8=""),"",K23/'Historical scenario - input'!$D8),"") -> 0.3493643046 | AF23: =IFERROR(IF(OR(L23="",'Historical scenario - input'!$D8=""),"",L23/'Historical scenario - input'!$D8),"") -> 0.3988302444 | AG23: =IFERROR(IF(OR(M23="",'Historical scenario - input'!$D8=""),"",M23/'Historical scenario - input'!$D8),"") -> 0.4571356269 | AH23: =IFERROR(IF(OR(N23="",'Historical scenario - input'!$D8=""),"",N23/'Historical scenario - input'!$D8),"") -> 0.5257642748 | AI23: =IFERROR(IF(OR(O23="",'Historical scenario - input'!$D8=""),"",O23/'Historical scenario - input'!$D8),"") -> 0.6062992266 | AJ23: =IFERROR(IF(OR(P23="",'Historical scenario - input'!$D8=""),"",P23/'Historical scenario - input'!$D8),"") -> 0.7003908978 | AK23: =IFERROR(IF(OR(Q23="",'Historical scenario - input'!$D8=""),"",Q23/'Historical scenario - input'!$D8),"") -> 0.8097185773 | AL23: =IFERROR(IF(OR(R23="",'Historical scenario - input'!$D8=""),"",R23/'Historical scenario - input'!$D8),"") -> 0.9359465631 | AM23: =IFERROR(IF(OR(S23="",'Historical scenario - input'!$D8=""),"",S23/'Historical scenario - input'!$D8),"") -> 1.080676385 | AN23: =IFERROR(IF(OR(T23="",'Historical scenario - input'!$D8=""),"",T23/'Historical scenario - input'!$D8),"") -> 1.245396449 | AO23: =IFERROR(IF(OR(U23="",'Historical scenario - input'!$D8=""),"",U23/'Historical scenario - input'!$D8),"") -> 1.431430064 | AP23: =IFERROR(IF(OR(V23="",'Historical scenario - input'!$D8=""),"",V23/'Historical scenario - input'!$D8),"") -> 1.639882256 | AQ23: =IFERROR(IF(OR(W23="",'Historical scenario - input'!$D8=""),"",W23/'Historical scenario - input'!$D8),"") -> 1.87158513
A24: =IFERROR('Historical scenario - input'!A9,"") -> 1 | B24: =IFERROR('Historical scenario - input'!B9,"") -> OVERHEAD CONDUCTORS | C24: =IFERROR('Historical scenario - input'!C9,"") -> ˃ 11 kv & < = 22 kv ; swer | D24: =IFERROR(repcalc('Historical scenario - input'!$CV9:$GH9,'Historical scenario - input'!$G9,'Historical scenario - input'!$E9,'Historical scenario - input'!$F9,20,TRUE,TRUE),"") -> 22.06920784 | E24: 29.7715883 | F24: 39.73858493 | G24: 52.48745647 | H24: 68.60783654 | I24: 88.75944659 | J24: 113.6662546 | K24: 144.1068146 | L24: 180.9008119 | M24: 224.8921948 | N24: 276.9296752 | O24: 337.8457874 | P24: 408.4360646 | Q24: 489.440181 | R24: 581.5270655 | S24: 685.2859843 | T24: 801.2253997 | U24: 929.7810233 | V24: 1071.33393 | W24: 1226.238897 | X24: =IFERROR(IF(OR(D24="",'Historical scenario - input'!$D9=""),"",D24/'Historical scenario - input'!$D9),"") -> 0.001764024956 | Y24: =IFERROR(IF(OR(E24="",'Historical scenario - input'!$D9=""),"",E24/'Historical scenario - input'!$D9),"") -> 0.002379687804 | Z24: =IFERROR(IF(OR(F24="",'Historical scenario - input'!$D9=""),"",F24/'Historical scenario - input'!$D9),"") -> 0.003176364827 | AA24: =IFERROR(IF(OR(G24="",'Historical scenario - input'!$D9=""),"",G24/'Historical scenario - input'!$D9),"") -> 0.004195401293 | AB24: =IFERROR(IF(OR(H24="",'Historical scenario - input'!$D9=""),"",H24/'Historical scenario - input'!$D9),"") -> 0.005483927503 | AC24: =IFERROR(IF(OR(I24="",'Historical scenario - input'!$D9=""),"",I24/'Historical scenario - input'!$D9),"") -> 0.007094675985 | AD24: =IFERROR(IF(OR(J24="",'Historical scenario - input'!$D9=""),"",J24/'Historical scenario - input'!$D9),"") -> 0.009085514588 | AE24: =IFERROR(IF(OR(K24="",'Historical scenario - input'!$D9=""),"",K24/'Historical scenario - input'!$D9),"") -> 0.01151867431 | AF24: =IFERROR(IF(OR(L24="",'Historical scenario - input'!$D9=""),"",L24/'Historical scenario - input'!$D9),"") -> 0.01445967382 | AG24: =IFERROR(IF(OR(M24="",'Historical scenario - input'!$D9=""),"",M24/'Historical scenario - input'!$D9),"") -> 0.01797597118 | AH24: =IFERROR(IF(OR(N24="",'Historical scenario - input'!$D9=""),"",N24/'Historical scenario - input'!$D9),"") -> 0.02213540521 | AI24: =IFERROR(IF(OR(O24="",'Historical scenario - input'!$D9=""),"",O24/'Historical scenario - input'!$D9),"") -> 0.02700452162 | AJ24: =IFERROR(IF(OR(P24="",'Historical scenario - input'!$D9=""),"",P24/'Historical scenario - input'!$D9),"") -> 0.03264690859 | AK24: =IFERROR(IF(OR(Q24="",'Historical scenario - input'!$D9=""),"",Q24/'Historical scenario - input'!$D9),"") -> 0.03912168938 | AL24: =IFERROR(IF(OR(R24="",'Historical scenario - input'!$D9=""),"",R24/'Historical scenario - input'!$D9),"") -> 0.04648233247 | AM24: =IFERROR(IF(OR(S24="",'Historical scenario - input'!$D9=""),"",S24/'Historical scenario - input'!$D9),"") -> 0.05477593882 | AN24: =IFERROR(IF(OR(T24="",'Historical scenario - input'!$D9=""),"",T24/'Historical scenario - input'!$D9),"") -> 0.06404315056 | AO24: =IFERROR(IF(OR(U24="",'Historical scenario - input'!$D9=""),"",U24/'Historical scenario - input'!$D9),"") -> 0.0743187948 | AP24: =IFERROR(IF(OR(V24="",'Historical scenario - input'!$D9=""),"",V24/'Historical scenario - input'!$D9),"") -> 0.08563333139 | AQ24: =IFERROR(IF(OR(W24="",'Historical scenario - input'!$D9=""),"",W24/'Historical scenario - input'!$D9),"") -> 0.09801511824
A25: =IFERROR('Historical scenario - input'!A10,"") -> 1 | B25: =IFERROR('Historical scenario - input'!B10,"") -> OVERHEAD CONDUCTORS | C25: =IFERROR('Historical scenario - input'!C10,"") -> > 1 kv & < = 11 kv | D25: =IFERROR(repcalc('Historical scenario - input'!$CV10:$GH10,'Historical scenario - input'!$G10,'Historical scenario - input'!$E10,'Historical scenario - input'!$F10,20,TRUE,TRUE),"") -> 308.8974315 | E25: 333.2187392 | F25: 356.5419515 | G25: 378.4878523 | H25: 398.7167432 | I25: 416.9459671 | J25: 432.9658293 | K25: 446.6530209 | L25: 457.9807909 | M25: 467.0253278 | N25: 473.968052 | O25: 479.0937902 | P25: 482.7850592 | Q25: 485.5129147 | R25: 487.8249934 | S25: 490.3314892 | T25: 493.689835 | U25: 498.5888259 | V25: 505.7328157 | W25: 515.8264686 | X25: =IFERROR(IF(OR(D25="",'Historical scenario - input'!$D10=""),"",D25/'Historical scenario - input'!$D10),"") -> 2.051847275 | Y25: =IFERROR(IF(OR(E25="",'Historical scenario - input'!$D10=""),"",E25/'Historical scenario - input'!$D10),"") -> 2.213401254 | Z25: =IFERROR(IF(OR(F25="",'Historical scenario - input'!$D10=""),"",F25/'Historical scenario - input'!$D10),"") -> 2.368325396 | AA25: =IFERROR(IF(OR(G25="",'Historical scenario - input'!$D10=""),"",G25/'Historical scenario - input'!$D10),"") -> 2.514100764 | AB25: =IFERROR(IF(OR(H25="",'Historical scenario - input'!$D10=""),"",H25/'Historical scenario - input'!$D10),"") -> 2.648470915 | AC25: =IFERROR(IF(OR(I25="",'Historical scenario - input'!$D10=""),"",I25/'Historical scenario - input'!$D10),"") -> 2.769558304 | AD25: =IFERROR(IF(OR(J25="",'Historical scenario - input'!$D10=""),"",J25/'Historical scenario - input'!$D10),"") -> 2.875970036 | AE25: =IFERROR(IF(OR(K25="",'Historical scenario - input'!$D10=""),"",K25/'Historical scenario - input'!$D10),"") -> 2.966887032 | AF25: =IFERROR(IF(OR(L25="",'Historical scenario - input'!$D10=""),"",L25/'Historical scenario - input'!$D10),"") -> 3.042131601 | AG25: =IFERROR(IF(OR(M25="",'Historical scenario - input'!$D10=""),"",M25/'Historical scenario - input'!$D10),"") -> 3.102209823 | AH25: =IFERROR(IF(OR(N25="",'Historical scenario - input'!$D10=""),"",N25/'Historical scenario - input'!$D10),"") -> 3.148326781 | AI25: =IFERROR(IF(OR(O25="",'Historical scenario - input'!$D10=""),"",O25/'Historical scenario - input'!$D10),"") -> 3.182374431 | AJ25: =IFERROR(IF(OR(P25="",'Historical scenario - input'!$D10=""),"",P25/'Historical scenario - input'!$D10),"") -> 3.206893639 | AK25: =IFERROR(IF(OR(Q25="",'Historical scenario - input'!$D10=""),"",Q25/'Historical scenario - input'!$D10),"") -> 3.225013385 | AL25: =IFERROR(IF(OR(R25="",'Historical scenario - input'!$D10=""),"",R25/'Historical scenario - input'!$D10),"") -> 3.240371338 | AM25: =IFERROR(IF(OR(S25="",'Historical scenario - input'!$D10=""),"",S25/'Historical scenario - input'!$D10),"") -> 3.257020705 | AN25: =IFERROR(IF(OR(T25="",'Historical scenario - input'!$D10=""),"",T25/'Historical scenario - input'!$D10),"") -> 3.279328474 | AO25: =IFERROR(IF(OR(U25="",'Historical scenario - input'!$D10=""),"",U25/'Historical scenario - input'!$D10),"") -> 3.311869959 | AP25: =IFERROR(IF(OR(V25="",'Historical scenario - input'!$D10=""),"",V25/'Historical scenario - input'!$D10),"") -> 3.359323821 | AQ25: =IFERROR(IF(OR(W25="",'Historical scenario - input'!$D10=""),"",W25/'Historical scenario - input'!$D10),"") -> 3.426370783
A26: =IFERROR('Historical scenario - input'!A11,"") -> 1 | B26: =IFERROR('Historical scenario - input'!B11,"") -> OVERHEAD CONDUCTORS | C26: =IFERROR('Historical scenario - input'!C11,"") -> > 22 kv & < = 66 kv | D26: =IFERROR(repcalc('Historical scenario - input'!$CV11:$GH11,'Historical scenario - input'!$G11,'Historical scenario - input'!$E11,'Historical scenario - input'!$F11,20,TRUE,TRUE),"") -> 80.75683713 | E26: 96.49775459 | F26: 114.5505609 | G26: 135.1318344 | H26: 158.4706291 | I26: 184.813213 | J26: 214.4298764 | K26: 247.6241269 | L26: 284.7445863 | M26: 326.1999044 | N26: 372.4770225 | O26: 424.1631503 | P26: 481.9718648 | Q26: 546.7737942 | R26: 619.6323978 | S26: 701.8453761 | T26: 794.9922138 | U26: 900.9882484 | V26: 1022.145421 | W26: 1161.239487 | X26: =IFERROR(IF(OR(D26="",'Historical scenario - input'!$D11=""),"",D26/'Historical scenario - input'!$D11),"") -> 0.01995442094 | Y26: =IFERROR(IF(OR(E26="",'Historical scenario - input'!$D11=""),"",E26/'Historical scenario - input'!$D11),"") -> 0.02384388596 | Z26: =IFERROR(IF(OR(F26="",'Historical scenario - input'!$D11=""),"",F26/'Historical scenario - input'!$D11),"") -> 0.02830460173 | AA26: =IFERROR(IF(OR(G26="",'Historical scenario - input'!$D11=""),"",G26/'Historical scenario - input'!$D11),"") -> 0.03339008315 | AB26: =IFERROR(IF(OR(H26="",'Historical scenario - input'!$D11=""),"",H26/'Historical scenario - input'!$D11),"") -> 0.03915692778 | AC26: =IFERROR(IF(OR(I26="",'Historical scenario - input'!$D11=""),"",I26/'Historical scenario - input'!$D11),"") -> 0.04566598666 | AD26: =IFERROR(IF(OR(J26="",'Historical scenario - input'!$D11=""),"",J26/'Historical scenario - input'!$D11),"") -> 0.05298404652 | AE26: =IFERROR(IF(OR(K26="",'Historical scenario - input'!$D11=""),"",K26/'Historical scenario - input'!$D11),"") -> 0.06118610186 | AF26: =IFERROR(IF(OR(L26="",'Historical scenario - input'!$D11=""),"",L26/'Historical scenario - input'!$D11),"") -> 0.07035829457 | AG26: =IFERROR(IF(OR(M26="",'Historical scenario - input'!$D11=""),"",M26/'Historical scenario - input'!$D11),"") -> 0.08060159899 | AH26: =IFERROR(IF(OR(N26="",'Historical scenario - input'!$D11=""),"",N26/'Historical scenario - input'!$D11),"") -> 0.09203633476 | AI26: =IFERROR(IF(OR(O26="",'Historical scenario - input'!$D11=""),"",O26/'Historical scenario - input'!$D11),"") -> 0.1048075971 | AJ26: =IFERROR(IF(OR(P26="",'Historical scenario - input'!$D11=""),"",P26/'Historical scenario - input'!$D11),"") -> 0.1190917056 | AK26: =IFERROR(IF(OR(Q26="",'Historical scenario - input'!$D11=""),"",Q26/'Historical scenario - input'!$D11),"") -> 0.1351037861 | AL26: =IFERROR(IF(OR(R26="",'Historical scenario - input'!$D11=""),"",R26/'Historical scenario - input'!$D11),"") -> 0.1531066116 | AM26: =IFERROR(IF(OR(S26="",'Historical scenario - input'!$D11=""),"",S26/'Historical scenario - input'!$D11),"") -> 0.1734208343 | AN26: =IFERROR(IF(OR(T26="",'Historical scenario - input'!$D11=""),"",T26/'Historical scenario - input'!$D11),"") -> 0.1964367333 | AO26: =IFERROR(IF(OR(U26="",'Historical scenario - input'!$D11=""),"",U26/'Historical scenario - input'!$D11),"") -> 0.2226275744 | AP26: =IFERROR(IF(OR(V26="",'Historical scenario - input'!$D11=""),"",V26/'Historical scenario - input'!$D11),"") -> 0.2525646214 | AQ26: =IFERROR(IF(OR(W26="",'Historical scenario - input'!$D11=""),"",W26/'Historical scenario - input'!$D11),"") -> 0.2869337429
A27: =IFERROR('Historical scenario - input'!A12,"") -> 2 | B27: =IFERROR('Historical scenario - input'!B12,"") -> POLES | C27: =IFERROR('Historical scenario - input'!C12,"") -> ˂ = 1 kv ; concrete | D27: =IFERROR(repcalc('Historical scenario - input'!$CV12:$GH12,'Historical scenario - input'!$G12,'Historical scenario - input'!$E12,'Historical scenario - input'!$F12,20,TRUE,TRUE),"") -> 9.818170243 | E27: 10.85856786 | F27: 12.12963487 | G27: 13.71349801 | H27: 15.71942034 | I27: 18.2902754 | J27: 21.60953447 | K27: 25.90850444 | L27: 31.47347877 | M27: 38.65240198 | N27: 47.86060627 | O27: 59.58516687 | P27: 74.38744693 | Q27: 92.903467 | R27: 115.8418371 | S27: 143.979122 | T27: 178.152656 | U27: 219.250962 | V27: 268.2020265 | W27: 325.9597136 | X27: =IFERROR(IF(OR(D27="",'Historical scenario - input'!$D12=""),"",D27/'Historical scenario - input'!$D12),"") -> 1.1507479 | Y27: =IFERROR(IF(OR(E27="",'Historical scenario - input'!$D12=""),"",E27/'Historical scenario - input'!$D12),"") -> 1.272688683 | Z27: =IFERROR(IF(OR(F27="",'Historical scenario - input'!$D12=""),"",F27/'Historical scenario - input'!$D12),"") -> 1.421665291 | AA27: =IFERROR(IF(OR(G27="",'Historical scenario - input'!$D12=""),"",G27/'Historical scenario - input'!$D12),"") -> 1.607303463 | AB27: =IFERROR(IF(OR(H27="",'Historical scenario - input'!$D12=""),"",H27/'Historical scenario - input'!$D12),"") -> 1.842409482 | AC27: =IFERROR(IF(OR(I27="",'Historical scenario - input'!$D12=""),"",I27/'Historical scenario - input'!$D12),"") -> 2.143728973 | AD27: =IFERROR(IF(OR(J27="",'Historical scenario - input'!$D12=""),"",J27/'Historical scenario - input'!$D12),"") -> 2.532765861 | AE27: =IFERROR(IF(OR(K27="",'Historical scenario - input'!$D12=""),"",K27/'Historical scenario - input'!$D12),"") -> 3.03663069 | AF27: =IFERROR(IF(OR(L27="",'Historical scenario - input'!$D12=""),"",L27/'Historical scenario - input'!$D12),"") -> 3.688878753 | AG27: =IFERROR(IF(OR(M27="",'Historical scenario - input'!$D12=""),"",M27/'Historical scenario - input'!$D12),"") -> 4.530291217 | AH27: =IFERROR(IF(OR(N27="",'Historical scenario - input'!$D12=""),"",N27/'Historical scenario - input'!$D12),"") -> 5.609547482 | AI27: =IFERROR(IF(OR(O27="",'Historical scenario - input'!$D12=""),"",O27/'Historical scenario - input'!$D12),"") -> 6.983735662 | AJ27: =IFERROR(IF(OR(P27="",'Historical scenario - input'!$D12=""),"",P27/'Historical scenario - input'!$D12),"") -> 8.718650853 | AK27: =IFERROR(IF(OR(Q27="",'Historical scenario - input'!$D12=""),"",Q27/'Historical scenario - input'!$D12),"") -> 10.88883844 | AL27: =IFERROR(IF(OR(R27="",'Historical scenario - input'!$D12=""),"",R27/'Historical scenario - input'!$D12),"") -> 13.57735174 | AM27: =IFERROR(IF(OR(S27="",'Historical scenario - input'!$D12=""),"",S27/'Historical scenario - input'!$D12),"") -> 16.87520874 | AN27: =IFERROR(IF(OR(T27="",'Historical scenario - input'!$D12=""),"",T27/'Historical scenario - input'!$D12),"") -> 20.88055002 | AO27: =IFERROR(IF(OR(U27="",'Historical scenario - input'!$D12=""),"",U27/'Historical scenario - input'!$D12),"") -> 25.69751572 | AP27: =IFERROR(IF(OR(V27="",'Historical scenario - input'!$D12=""),"",V27/'Historical scenario - input'!$D12),"") -> 31.43487139 | AQ27: =IFERROR(IF(OR(W27="",'Historical scenario - input'!$D12=""),"",W27/'Historical scenario - input'!$D12),"") -> 38.20441556
A28: =IFERROR('Historical scenario - input'!A13,"") -> 2 | B28: =IFERROR('Historical scenario - input'!B13,"") -> POLES | C28: =IFERROR('Historical scenario - input'!C13,"") -> ˂ = 1 kv ; steel | D28: =IFERROR(repcalc('Historical scenario - input'!$CV13:$GH13,'Historical scenario - input'!$G13,'Historical scenario - input'!$E13,'Historical scenario - input'!$F13,20,TRUE,TRUE),"") -> 5.127136259 | E28: 5.644956798 | F28: 6.153838085 | G28: 6.6468371 | H28: 7.118964366 | I28: 7.567913597 | J28: 7.994690463 | K28: 8.40407882 | L28: 8.804890851 | M28: 9.209961295 | N28: 9.635863983 | O28: 10.10234985 | P28: 10.63152729 | Q28: 11.24682633 | R28: 11.97180543 | S28: 12.82887251 | T28: 13.83799895 | U28: 15.01550588 | V28: 16.3729973 | W28: 17.91650351 | X28: =IFERROR(IF(OR(D28="",'Historical scenario - input'!$D13=""),"",D28/'Historical scenario - input'!$D13),"") -> 0.6009308393 | Y28: =IFERROR(IF(OR(E28="",'Historical scenario - input'!$D13=""),"",E28/'Historical scenario - input'!$D13),"") -> 0.6616224838 | Z28: =IFERROR(IF(OR(F28="",'Historical scenario - input'!$D13=""),"",F28/'Historical scenario - input'!$D13),"") -> 0.7212663948 | AA28: =IFERROR(IF(OR(G28="",'Historical scenario - input'!$D13=""),"",G28/'Historical scenario - input'!$D13),"") -> 0.7790488092 | AB28: =IFERROR(IF(OR(H28="",'Historical scenario - input'!$D13=""),"",H28/'Historical scenario - input'!$D13),"") -> 0.8343849306 | AC28: =IFERROR(IF(OR(I28="",'Historical scenario - input'!$D13=""),"",I28/'Historical scenario - input'!$D13),"") -> 0.8870044484 | AD28: =IFERROR(IF(OR(J28="",'Historical scenario - input'!$D13=""),"",J28/'Historical scenario - input'!$D13),"") -> 0.9370252334 | AE28: =IFERROR(IF(OR(K28="",'Historical scenario - input'!$D13=""),"",K28/'Historical scenario - input'!$D13),"") -> 0.9850079818 | AF28: =IFERROR(IF(OR(L28="",'Historical scenario - input'!$D13=""),"",L28/'Historical scenario - input'!$D13),"") -> 1.031985534 | AG28: =IFERROR(IF(OR(M28="",'Historical scenario - input'!$D13=""),"",M28/'Historical scenario - input'!$D13),"") -> 1.079462197 | AH28: =IFERROR(IF(OR(N28="",'Historical scenario - input'!$D13=""),"",N28/'Historical scenario - input'!$D13),"") -> 1.129380523 | AI28: =IFERROR(IF(OR(O28="",'Historical scenario - input'!$D13=""),"",O28/'Historical scenario - input'!$D13),"") -> 1.184055439 | AJ28: =IFERROR(IF(OR(P28="",'Historical scenario - input'!$D13=""),"",P28/'Historical scenario - input'!$D13),"") -> 1.24607818 | AK28: =IFERROR(IF(OR(Q28="",'Historical scenario - input'!$D13=""),"",Q28/'Historical scenario - input'!$D13),"") -> 1.318194884 | AL28: =IFERROR(IF(OR(R28="",'Historical scenario - input'!$D13=""),"",R28/'Historical scenario - input'!$D13),"") -> 1.403166742 | AM28: =IFERROR(IF(OR(S28="",'Historical scenario - input'!$D13=""),"",S28/'Historical scenario - input'!$D13),"") -> 1.503620098 | AN28: =IFERROR(IF(OR(T28="",'Historical scenario - input'!$D13=""),"",T28/'Historical scenario - input'!$D13),"") -> 1.621895714 | AO28: =IFERROR(IF(OR(U28="",'Historical scenario - input'!$D13=""),"",U28/'Historical scenario - input'!$D13),"") -> 1.759906524 | AP28: =IFERROR(IF(OR(V28="",'Historical scenario - input'!$D13=""),"",V28/'Historical scenario - input'!$D13),"") -> 1.919012585 | AQ28: =IFERROR(IF(OR(W28="",'Historical scenario - input'!$D13=""),"",W28/'Historical scenario - input'!$D13),"") -> 2.099920686
